{"text_format":"1","workbook":"xlsx","n_sheets":20,"sheets":["Meni","Obrazac1","Obrazac2","Obrazac3","Obrazac4","Obrazac5","Obrazac6","Obrazac7","Obrazac8","K9OOSO","OZPR","Transferi","BO","Krv1","Krv2a","Krv2b","DP","VP","KontrolaF","Kontrola"],"not_rendered":{"charts":0,"images":52,"macros":1,"external_links":2,"defined_names":178,"comments":0,"pivot_tables":0},"unopened":[],"bounds":{"document_bytes":16777216,"sheet_cells":100000,"rows_first":2000,"rows_last":500,"rows_between":2000,"halvings":0,"cell_chars":16384,"cell_head_chars":4096},"cells_cut":0,"cells_raw":0,"read":"whole","date_system":"1900"}

{"sheet":"Meni","index":0,"n_rows":385,"n_cols":7,"rows_kept":385,"cut":false,"hidden":false,"merged":[[1,0,1,5],[0,0,0,5],[17,4,17,5],[11,2,11,3],[9,2,9,3],[10,2,10,3],[12,2,12,3],[13,2,13,3]]}
["Дванаестомесечни извештај здравствених установа  2022."]
["Изаберите филијалу, здравствену установу, упишите датум попуњавања, попуните податке о здравственој установи, попуните обрасцe и податке сачувајте кликом на дугме САЧУВАЈ (назив документа треба да буде шифра установе)"]
[]
[]
[]
[]
[null,null,"28.02.2023."]
[]
[]
[null,null,"ДОМ ЗДРАВЉА ЖАБАЉ"]
[null,null,"ЖАБАЉ"]
[null,null,"08062463"]
[null,null,"100647845"]
[null,null,"840-451661-41"]
[]
[]
[]
[]
[]
[]
[null,null,null,null,null,null,{"$f":" IF(KontrolaF!J12 =\"\",\"Filijala nije obavila dodatnu kontrolu!\", \"Filijala je obavila dodatnu kontrolu!\")","v":"Filijala nije obavila dodatnu kontrolu!"}]
[]
[]
[]
[]
[]
[]
[]
["06 НОВИ САД",{"$f":"LEFT(A29,2)","v":"06"},null,"00206006 ДЗ ЖАБАЉ",{"$f":"LEFT(D29,8)","v":"00206006"}]
["01 СУБОТИЦА","01","00201001 ДЗ Б ТОПОЛА","00206001 ДЗ БАЧ"]
["02 ЗРЕЊАНИН","01","00201002 ДЗ М ИЂОШ","00206002 ДЗ Б ПАЛАНКА"]
["03 КИКИНДА","01","00201004 ЗЈЗ СУБОТИЦА","00206003 ДЗ Б ПЕТРОВАЦ"]
["04 ПАНЧЕВО","01","00201005 АП СУБОТИЦА","00206004 ДЗ БЕОЧИН"]
["05 СОМБОР","01","00201006 ДЗ СУБОТИЦА","00206005 ДЗ БЕЧЕЈ"]
["06 НОВИ САД","01","00201007 ОБ СУБОТИЦА","00206006 ДЗ ЖАБАЉ"]
["07 СРЕМСКА МИТРОВИЦА","02","00202001 ДЗ ЖИТИШТЕ","00206007 ДЗ СРБОБРАН"]
["08 ШАБАЦ","02","00202003 ДЗ Н  БЕЧЕЈ","00206008 ДЗ ТЕМЕРИН"]
["09 ВАЉЕВО","02","00202004 ДЗ СЕЧАЊ","00206009 ДЗ ТИТЕЛ"]
["10 СМЕДЕРЕВО","02","00202005 ДЗ С ЦРЊА","00206010 ДЗ Н  САД"]
["11 ПОЖАРЕВАЦ","02","00202007 СП Б МЕЛЕНЦИ","00206012 ТРАНСФУЗИЈА НОВИ САД"]
["12 КРАГУЈЕВАЦ","02","00202008 СП Б ЗРЕЊАНИН","00206013 ЗЗ РЕУМ  Н  САД"]
["13 ЈАГОДИНА","02","00202009 ЗЈЗ ЗРЕЊАНИН","00206014 ИНСТ ЈЗ НОВИ САД"]
["14 БОР","02","00202010 АП ЗРЕЊАНИН","00206015 ОНКОЛОГИЈА Н  САД"]
["15 ЗАЈЕЧАР","02","00202011 ДЗ ЗРЕЊАНИН","00206016 ИНСТ  ПЛ  БОЛ  Н САД"]
["16 УЖИЦЕ","02","00202012 ОБ ЗРЕЊАНИН","00206017 ИНСТ  КВБ Н  САД"]
["17 ЧАЧАК","03","00203001 ДЗ АДА","00206018 ИНСТ  ЗЗ ДЕЦЕ И ОМЛ  Н  САД"]
["18 КРАЉЕВО","03","00203002 ДЗ КАЊИЖА","00206019 СТОМАТ  КЛ  Н  САД"]
["19 КРУШЕВАЦ","03","00203003 ДЗ Н  КНЕЖЕВАЦ","00206020 КЦ Н  САД"]
["20 НИШ","03","00203004 ДЗ ЧОКА","00206021 ЗЗЗ РАДНИКА Н  САД"]
["21 ПРОКУПЉЕ","03","00203007 СП Б Н КНЕЖЕВАЦ","00206022 ЗЗЗ СТУДЕНАТА Н  САД"]
["22 ПИРОТ","03","00203008 РХ КАЊИЖА","00206023 ПАСТЕРОВ ЗАВОД НОВИ САД"]
["23 ЛЕСКОВАЦ","03","00203009 ЗЈЗ КИКИНДА","00206024 АП  Н САД"]
["24 ВРАЊЕ","03","00203010 АП КИКИНДА","00206025 ХМП Н САД"]
["25 ГРАЧАНИЦА","03","00203011 ДЗ КИКИНДА","00206026 ДЗ ВРБАС"]
["28 КОСОВСКА МИТРОВИЦА","03","00203012 OБ КИКИНДА","00206027 ОБ ВРБАС"]
["29 ГЊИЛАНЕ","03","00203013 ДЗ СЕНТА","00206028 АП ВРБАС"]
["30 БЕОГРАД","03","00203014 ОБ СЕНТА","00206029 ВМЦ НОВИ САД"]
["33 НОВИ ПАЗАР","03","00203015 АП СЕНТА"]
[null,"04","00204001 ДЗ АЛИБУНАР"]
[null,"04","00204002 ДЗ Б  ЦРКВА"]
[null,"04","00204003 ДЗ КОВАЧИЦА"]
[null,"04","00204004 ДЗ КОВИН"]
[null,"04","00204005 ДЗ ОПОВО"]
[null,"04","00204006 ДЗ ПЛАНДИШТЕ"]
[null,"04","00204009 СП Б Б ЦРКВА"]
[null,"04","00204010 СП Б ВРШАЦ"]
[null,"04","00204011 СП Б КОВИН"]
[null,"04","00204012 ЗЈЗ ПАНЧЕВО"]
[null,"04","00204013 АП ПАНЧЕВО"]
[null,"04","00204014 АП ВРШАЦ"]
[null,"04","00204015 ДЗ ВРШАЦ"]
[null,"04","00204016 ОБ ВРШАЦ"]
[null,"04","00204017 ДЗ ПАНЧЕВО"]
[null,"04","00204018 ОБ ПАНЧЕВО"]
[null,"05","00205001 ДЗ АПАТИН"]
[null,"05","00205002 ДЗ КУЛА"]
[null,"05","00205003 ДЗ ОЏАЦИ"]
[null,"05","00205005 ЗЈЗ СОМБОР"]
[null,"05","00205006 АП СОМБОР"]
[null,"05","00205007 ДЗ СОМБОР"]
[null,"05","00205008 ОБ СОМБОР"]
[null,"05","00205009 СПБ ЈУНАКОВИЋ АПАТИН"]
[null,"06","00206001 ДЗ БАЧ"]
[null,"06","00206002 ДЗ Б ПАЛАНКА"]
[null,"06","00206003 ДЗ Б ПЕТРОВАЦ"]
[null,"06","00206004 ДЗ БЕОЧИН"]
[null,"06","00206005 ДЗ БЕЧЕЈ"]
[null,"06","00206006 ДЗ ЖАБАЉ"]
[null,"06","00206007 ДЗ СРБОБРАН"]
[null,"06","00206008 ДЗ ТЕМЕРИН"]
[null,"06","00206009 ДЗ ТИТЕЛ"]
[null,"06","00206010 ДЗ Н  САД"]
[null,"06","00206012 ТРАНСФУЗИЈА НОВИ САД"]
[null,"06","00206013 ЗЗ РЕУМ  Н  САД"]
[null,"06","00206014 ИНСТ ЈЗ НОВИ САД"]
[null,"06","00206015 ОНКОЛОГИЈА Н  САД"]
[null,"06","00206016 ИНСТ  ПЛ  БОЛ  Н САД"]
[null,"06","00206017 ИНСТ  КВБ Н  САД"]
[null,"06","00206018 ИНСТ  ЗЗ ДЕЦЕ И ОМЛ  Н  САД"]
[null,"06","00206019 СТОМАТ  КЛ  Н  САД"]
[null,"06","00206020 КЦ Н  САД"]
[null,"06","00206021 ЗЗЗ РАДНИКА Н  САД"]
[null,"06","00206022 ЗЗЗ СТУДЕНАТА Н  САД"]
[null,"06","00206023 ПАСТЕРОВ ЗАВОД НОВИ САД"]
[null,"06","00206024 АП  Н САД"]
[null,"06","00206025 ХМП Н САД"]
[null,"06","00206026 ДЗ ВРБАС"]
[null,"06","00206027 ОБ ВРБАС"]
[null,"06","00206028 АП ВРБАС"]
[null,"06","00206029 ВМЦ НОВИ САД"]
[null,"07","00207001 ДЗ ИНЂИЈА"]
[null,"07","00207002 ДЗ ПЕЋИНЦИ"]
[null,"07","00207003 ДЗ РУМА"]
[null,"07","00207004 ДЗ С  ПАЗОВА"]
[null,"07","00207005 ДЗ ШИД"]
[null,"07","00207007 СП Б СЛАНКАМЕН"]
[null,"07","00207008 ЗЈЗ С. МИТРОВИЦА"]
[null,"07","00207009 РХ ВРДНИК"]
[null,"07","00207010 АП С  МИТРОВИЦА"]
[null,"07","00207011 ДЗ ИРИГ"]
[null,"07","00207012 ДЗ С МИТРОВИЦА"]
[null,"07","00207013 ОБ С МИТРОВИЦА"]
[null,"08","00208001 ДЗ БОГАТИЋ"]
[null,"08","00208002 ДЗ ЉУБОВИЈА"]
[null,"08","00208005 РХ КОВИЉАЧА"]
[null,"08","00208006 ЗЈЗ ШАБАЦ"]
[null,"08","00208007 АУ ЛОЗНИЦА"]
[null,"08","00208008 АП ШАБАЦ"]
[null,"08","00208009 ОБ ШАБАЦ"]
[null,"08","00208010 ДЗ ШАБАЦ"]
[null,"08","00208011 ДЗ ВЛАДИМИРЦИ"]
[null,"08","00208012 ДЗ КОЦЕЉЕВА"]
[null,"08","00208013 ДЗ ЛОЗНИЦА"]
[null,"08","00208014 ДЗ КРУПАЊ"]
[null,"08","00208015 ДЗ МАЛИ ЗВОРНИК"]
[null,"08","00208016 ОБ ЛОЗНИЦА"]
[null,"09","00209001 ДЗ УБ"]
[null,"09","00209003 АП ВАЉЕВО"]
[null,"09","00209004 ДЗ ЛАЈКОВАЦ"]
[null,"09","00209005 ЗЈЗ ВАЉЕВО"]
[null,"09","00209007 ДЗ ВАЉЕВО"]
[null,"09","00209008 ДЗ ОСЕЧИНА"]
[null,"09","00209009 ДЗ ЉИГ"]
[null,"09","00209010 ДЗ МИОНИЦА"]
[null,"09","00209011 ОБ ВАЉЕВО"]
[null,"10","00210002 ОБ С ПАЛАНКА"]
[null,"10","00210003 АП С  ПАЛАНКА"]
[null,"10","00210004 АП СМЕДЕРЕВО"]
[null,"10","00210005 ДЗ В  ПЛАНА"]
[null,"10","00210006 ДЗ С  ПАЛАНКА"]
[null,"10","00210007 АП В  ПЛАНА"]
[null,"10","00210008 ОБ СМЕДЕРЕВО"]
[null,"10","00210009 ДЗ СМЕДЕРЕВО"]
[null,"11","00211001 ДЗ В  ГРАДИШТЕ"]
[null,"11","00211002 ДЗ ЖАГУБИЦА"]
[null,"11","00211005 ЗЈЗ ПОЖАРЕВАЦ"]
[null,"11","00211006 АП ПОЖАРЕВАЦ"]
[null,"11","00211007 ДЗ ЖАБАРИ"]
[null,"11","00211008 ДЗ ГОЛУБАЦ"]
[null,"11","00211009 ДЗ КУЧЕВО"]
[null,"11","00211010 ДЗ МАЛО ЦРНИЋЕ"]
[null,"11","00211011 ДЗ ПОЖАРЕВАЦ"]
[null,"11","00211012 OБ ПОЖАРЕВАЦ"]
[null,"11","00211013 ДЗ ПЕТРОВАЦ НА МЛАВИ"]
[null,"11","00211014 ОБ ПЕТРОВАЦ НА МЛАВИ"]
[null,"12","00212001 ДЗ КРАГУЈЕВАЦ"]
[null,"12","00212002 ДЗ БАТОЧИНА"]
[null,"12","00212003 ДЗ КНИЋ"]
[null,"12","00212004 ДЗ ЛАПОВО"]
[null,"12","00212005 ДЗ РАЧА"]
[null,"12","00212006 ДЗ ТОПОЛА"]
[null,"12","00212007 ЗЦ АРАНЂЕЛОВАЦ"]
[null,"12","00212008 СТОМАТОЛОГИЈА КРАГУЈЕВАЦ"]
[null,"12","00212009 СП Б БУКОВИЧКА БАЊА"]
[null,"12","00212010 КЦ КРАГУЈЕВАЦ"]
[null,"12","00212011 ИНСТ ЈЗ КРАГУЈЕВАЦ"]
[null,"12","00212012 АП КРАГУЈЕВАЦ"]
[null,"12","00212013 АП АРАНЂЕЛОВАЦ"]
[null,"12","00212014 ХМП КРАГУЈЕВАЦ"]
[null,"13","00213001 ДЗ ДЕСПОТОВАЦ"]
[null,"13","00213002 ДЗ СВИЛАЈНАЦ"]
[null,"13","00213005 ЗЈЗ ЋУПРИЈА"]
[null,"13","00213007 ДЗ РЕКОВАЦ"]
[null,"13","00213008 ДЗ ЈАГОДИНА"]
[null,"13","00213009 ОБ ЈАГОДИНА"]
[null,"13","00213010 АП ЈАГОДИНА"]
[null,"13","00213011 ДЗ ЋУПРИЈА"]
[null,"13","00213012 ОБ ЋУПРИЈА"]
[null,"13","00213014 ДЗ ПАРАЋИН"]
[null,"13","00213015 АП ПАРАЋИН"]
[null,"13","00213016 ОБ ПАРАЋИН"]
[null,"14","00214002 ЗЦ НЕГОТИН"]
[null,"14","00214003 ЗЦ КЛАДОВО"]
[null,"14","00214005 АУ БОР"]
[null,"14","00214006 ДЗ МАЈДАНПЕК"]
[null,"14","00214007 ОБ МАЈДАНПЕК"]
[null,"14","00214008 ДЗ БОР"]
[null,"14","00214009 ОБ БОР"]
[null,"15","00215001 ДЗ БОЉЕВАЦ"]
[null,"15","00215002 ЗЦ КЊАЖЕВАЦ"]
[null,"15","00215003 ЗЦ ЗАЈЕЧАР"]
[null,"15","00215004 РХ ГАМЗИГРАД"]
[null,"15","00215005 ЗЈЗ ЗАЈЕЧАР"]
[null,"15","00215006 АП ЗАЈЕЧАР"]
[null,"16","00216001 ЗЦ УЖИЦЕ"]
[null,"16","00216003 РХ ЗЛАТИБОР"]
[null,"16","00216004 ЗЈЗ УЖИЦЕ"]
[null,"16","00216005 АП УЖИЦЕ"]
[null,"17","00217001 ЗЦ ЧАЧАК"]
[null,"17","00217003 РХ ИВАЊИЦА"]
[null,"17","00217004 ЗЈЗ ЧАЧАК"]
[null,"17","00217005 АП ЧАЧАК"]
[null,"17","00217006 АП Г  МИЛАНОВАЦ"]
[null,"17","00217007 ДЗ Г МИЛАНОВАЦ"]
[null,"17","00217008 ОБ Г МИЛАНОВАЦ"]
[null,"17","00217009 ДЗ ЧАЧАК"]
[null,"17","00217010 ДЗ ИВАЊИЦА"]
[null,"17","00217011 ДЗ ЛУЧАНИ"]
[null,"17","00217012 ОБ ЧАЧАК"]
[null,"18","00218001 ДЗ РАШКА"]
[null,"18","00218004 ЗЈЗ КРАЉЕВО"]
[null,"33","00218005 СП Б НОВИ ПАЗАР"]
[null,"18","00218006 РХ ВРЊАЧКА БАЊА"]
[null,"18","00218007 СП Б МАТАРУШКА БАЊА"]
[null,"18","00218008 АУ КРАЉЕВО"]
[null,"33","00218009 ДЗ ТУТИН"]
[null,"18","00218010 ДЗ ВРЊАЧКА БАЊА"]
[null,"18","00218011 СП Б ВРЊАЧКА БАЊА"]
[null,"33","00218012 ДЗ НОВИ ПАЗАР"]
[null,"33","00218013 ОБ НОВИ ПАЗАР"]
[null,"18","00218014 ДЗ КРАЉЕВО"]
[null,"18","00218015 ОБ КРАЉЕВО"]
[null,"33","00218016 ЗЈЗ НОВИ ПАЗАР"]
[null,"33","00218017 АУ НОВИ ПАЗАР"]
[null,"19","00219001 ДЗ ТРСТЕНИК"]
[null,"19","00219003 СП Б РИБАРСКА БАЊА"]
[null,"19","00219004 ЗЈЗ КРУШЕВАЦ"]
[null,"19","00219005 АУ КРУШЕВАЦ"]
[null,"19","00219006 ДЗ БРУС"]
[null,"19","00219007 ДЗ АЛЕКСАНДРОВАЦ"]
[null,"19","00219008 ДЗ ЋИЋЕВАЦ"]
[null,"19","00219009 ДЗ ВАРВАРИН"]
[null,"19","00219012 ОБ КРУШЕВАЦ"]
[null,"19","00219013 ДЗ КРУШЕВАЦ"]
[null,"20","00220001 ДЗ ГАЏИН ХАН"]
[null,"20","00220002 ДЗ ДОЉЕВАЦ"]
[null,"20","00220003 ДЗ СВРЉИГ"]
[null,"20","00220004 ДЗ СОКОБАЊА"]
[null,"20","00220005 ДЗ НИШ"]
[null,"20","00220006 ДЗ МЕРОШИНА"]
[null,"20","00220007 ДЗ РАЖАЊ"]
[null,"20","00220009 СП Б ТОПОНИЦА"]
[null,"20","00220010 СП Б СОКО БАЊА"]
[null,"20","00220011 СП Б ОЗРЕН"]
[null,"20","00220012 ХМП НИШ"]
[null,"20","00220013 ЗЗЗ РАДНИКА НИШ"]
[null,"20","00220014 ЗЗЗ СТУДЕНАТА НИШ"]
[null,"20","00220015 АТД НИШ"]
[null,"20","00220016 ТРАНСФУЗИЈА НИШ"]
[null,"20","00220017 СУД  МЕД  НИШ"]
[null,"20","00220018 РХ НИШКА БАЊА"]
[null,"20","00220019 КЦ НИШ"]
[null,"20","00220020 СТОМАТОЛОГИЈА НИШ"]
[null,"20","00220021 ИНСТ ЈЗ НИШ"]
[null,"20","00220022 АУ НИШ"]
[null,"20","00220024 ВОЈНА БОЛНИЦА НИШ"]
[null,"20","00220025 ДЗ АЛЕКСИНАЦ"]
[null,"20","00220026 ОБ АЛЕКСИНАЦ"]
[null,"21","00221001 ДЗ КУРШУМЛИЈА"]
[null,"21","00221002 ДЗ БЛАЦЕ"]
[null,"21","00221005 АП ПРОКУПЉЕ"]
[null,"21","00221006 ДЗ ЖИТОРАЂА"]
[null,"21","00221007 ДЗ ПРОКУПЉЕ"]
[null,"21","00221008 ОБ ПРОКУПЉЕ"]
[null,"22","00222001 ДЗ БЕЛА ПАЛАНКА"]
[null,"22","00222003 ЗЈЗ ПИРОТ"]
[null,"22","00222004 АП ПИРОТ"]
[null,"22","00222005 ДЗ БАБУШНИЦА"]
[null,"22","00222006 ДЗ ДИМИТРОВГРАД"]
[null,"22","00222007 ДЗ ПИРОТ"]
[null,"22","00222008 ОБ ПИРОТ"]
[null,"23","00223001 ДЗ БОЈНИК"]
[null,"23","00223003 ЗЈЗ ЛЕСКОВАЦ"]
[null,"23","00223004 АП ЛЕСКОВАЦ"]
[null,"23","00223005 ДЗ ЛЕБАНЕ"]
[null,"23","00223006 РХ СИЈЕРИНСКА БАЊА"]
[null,"23","00223007 ДЗ ВЛАСОТИНЦЕ"]
[null,"23","00223008 ДЗ ЛЕСКОВАЦ"]
[null,"23","00223009 ОБ ЛЕСКОВАЦ"]
[null,"23","00223010 ДЗ МЕДВЕЂА"]
[null,"24","00224001 ЗЦ ВРАЊЕ"]
[null,"24","00224002 ЗЦ СУРДУЛИЦА"]
[null,"24","00224003 СП Б СУРДУЛИЦА"]
[null,"24","00224004 СП Б БУЈАНОВАЧКА БАЊА"]
[null,"24","00224005 РХ ВРАЊСКА БАЊА"]
[null,"24","00224006 ЗЈЗ ВРАЊЕ"]
[null,"24","00224007 АП ВРАЊЕ"]
[null,"24","00224008 ДЗ ВЛАДИЧИН ХАН"]
[null,"24","00224009 ДЗ БУЈАНОВАЦ"]
[null,"24","00224010 ДЗ БОСИЛЕГРАД"]
[null,"24","00224011 АП БУЈАНОВАЦ"]
[null,"24","00224012 ДЗ ПРЕШЕВО"]
[null,"24","00224013 ДЗ ТРГОВИШТЕ"]
[null,"25","00225001 ДЗ ГРАЧАНИЦА"]
[null,"25","00225002 ДЗ ДОЊА ГУШТЕРИЦА"]
[null,"25","00225003 ДЗ КОСОВО ПОЉЕ"]
[null,"25","00225004 ДЗ ОБИЛИЋ"]
[null,"25","00225005 ДЗ ШТРПЦЕ"]
[null,"25","00225006 КБЦ ПРИШТИНА"]
[null,"25","00225007 АУ ПРИШТИНА"]
[null,"25","00225008 ЗЦ ПРИЗРЕН"]
[null,"25","00225009 ДЗ ПРИШТИНА"]
[null,"25","00225010 ДЗ ДРАГАШ"]
[null,"25","00225011 АУ ПРИЗРЕН"]
[null,"25","00225012 ДЗ ИСТОК"]
[null,"25","00225013 ЗЦ ПЕЋ"]
[null,"25","00225014 СПБ ЗА ПЛ БОЛ ПЕЋ"]
[null,"25","00225015 ЗЦ ЂАКОВИЦА"]
[null,"25","00225016 АУ ПЕЋ"]
[null,"25","00225017 РХ ИСТОК"]
[null,"28","00228001 ДЗ ЗВЕЧАН"]
[null,"28","00228002 ЗЦ К. МИТРОВИЦА"]
[null,"28","00228003 АУ К. МИТРОВИЦА"]
[null,"28","00228004 ЗЈЗ К. МИТРОВИЦА"]
[null,"28","00228005 ДЗ ЗУБИН ПОТОК"]
[null,"28","00228004 КБЦ К. МИТРОВИЦА"]
[null,"29","00229001 АП ГЊИЛАНЕ"]
[null,"29","00229002 ЗЦ ГЊИЛАНЕ"]
[null,"30","00230001 ДЗ БАРАЈЕВО"]
[null,"30","00230002 ДЗ ВОЖДОВАЦ"]
[null,"30","00230003 ДЗ ВРАЧАР"]
[null,"30","00230004 ДЗ ГРОЦКА"]
[null,"30","00230005 ДЗ ЗВЕЗДАРА"]
[null,"30","00230006 ДЗ ЗЕМУН"]
[null,"30","00230007 ДЗ ЛАЗАРЕВАЦ"]
[null,"30","00230008 ДЗ МЛАДЕНОВАЦ"]
[null,"30","00230009 ДЗ Н  БГД"]
[null,"30","00230010 ДЗ ОБРЕНОВАЦ"]
[null,"30","00230011 ДЗ ПАЛИЛУЛА"]
[null,"30","00230012 ДЗ РАКОВИЦА"]
[null,"30","00230013 ДЗ С  ВЕНАЦ"]
[null,"30","00230014 ДЗ СОПОТ"]
[null,"30","00230015 ДЗ С  ГРАД"]
[null,"30","00230016 ДЗ ЧУКАРИЦА"]
[null,"30","00230017 СП Б МЛАДЕНОВАЦ"]
[null,"30","00230018 СП Б ЦЕРЕБ ПАРАЛИЗА БГД"]
[null,"30","00230019 НЕОНАТОЛОГИЈА БГД"]
[null,"30","00230020 СВЕТИ САВА БГД"]
[null,"30","00230021 ХМП БГД"]
[null,"30","00230022 ГЗ КОЖНО БГД"]
[null,"30","00230023 ГЗ ГЕРОНТ"]
[null,"30","00230024 ГЗЈЗ БГД"]
[null,"30","00230025 АТД БГД"]
[null,"30","00230026 НЕФРО ЛАЗАРЕВАЦ"]
[null,"30","00230027 ЗЗЗ СТУДЕНАТА БГД"]
[null,"30","00230028 ЗЗЗ МУП"]
[null,"30","00230029 ЗАВОД ЗА БИОЦИДЕ И МЕДИЦИНСКУ ЕКОЛОГИЈУ"]
[null,"30","00230030 ПРОТЕТИКА БГД"]
[null,"30","00230031 ТРАНСФУЗИЈА БГД"]
[null,"30","00230032 НАРКОМАНИЈА БГД"]
[null,"30","00230033 ГОВОРНА ПАТОЛ БГД"]
[null,"30","00230034 БАЊИЦА БГД"]
[null,"30","00230035 ЛАЗА ЛАЗАРЕВИЋ БГД"]
[null,"30","00230036 КВБ ДЕДИЊЕ"]
[null,"30","00230037 МАЈКА И ДЕТЕ БГД"]
[null,"30","00230038 МЕНТАЛНО БГД"]
[null,"30","00230039 ОНКОЛОГИЈА БГД"]
[null,"30","00230040 РЕУМАТОЛОГИЈА БГД"]
[null,"30","00230041 РЕХАБИЛИТАЦИЈА БГД"]
[null,"30","00230042 ЗОТОВИЋ БГД"]
[null,"30","00230043 НЕУРОПС ДЕЦЕ БГД"]
[null,"30","00230044 ДЕЧ КЛ БГД"]
[null,"30","00230045 ГАК"]
[null,"30","00230047 КБЦ Б КОСА"]
[null,"30","00230048 КБЦ Д МИШОВИЋ"]
[null,"30","00230049 КБЦ ЗЕМУН"]
[null,"30","00230050 КБЦ ЗВЕЗДАРА"]
[null,"30","00230051 КЦС"]
[null,"30","00230052 АП БГД"]
[null,"30","00230053 ИНСТ ЈЗ СРБИЈЕ"]
[null,30,"00230054 ИНСТИТУТ ТОРЛАК"]
[null,"30","00230055 ВМА БЕОГРАД"]
[null,"30","00230057 МЕДИЦИНА РАДА СРБИЈЕ"]
[null,"30","00230059 ДЗ СУРЧИН"]
[null,"12","00312001 ЗЗЗ РАДНИКА ЗАСТАВЕ КРАГУЈЕВАЦ"]

{"sheet":"Obrazac1","index":1,"n_rows":291,"n_cols":7,"rows_kept":291,"cut":false,"hidden":false,"merged":[[283,2,283,4],[284,2,284,4],[285,2,285,4],[286,2,286,4],[289,5,289,6],[277,2,277,4],[278,2,278,4],[279,2,279,4],[280,2,280,4],[281,2,281,4],[265,2,265,4],[266,2,266,4],[267,2,267,4],[268,2,268,4],[269,2,269,4],[270,2,270,4],[282,2,282,4],[271,2,271,4],[272,2,272,4],[273,2,273,4],[274,2,274,4],[275,2,275,4],[276,2,276,4],[258,2,258,4],[259,2,259,4],[260,2,260,4],[261,2,261,4],[262,2,262,4],[263,0,264,0],[263,1,264,1],[263,2,264,4],[263,5,263,6],[249,2,249,4],[250,2,250,4],[251,2,251,4],[252,2,252,4],[253,2,253,4],[254,2,254,4],[255,2,255,4],[256,2,256,4],[257,2,257,4],[240,2,240,4],[241,2,241,4],[242,2,242,4],[243,2,243,4],[244,2,244,4],[245,2,245,4],[246,2,246,4],[247,2,247,4],[248,2,248,4],[231,2,231,4],[232,2,232,4],[233,2,233,4],[234,2,234,4],[235,2,235,4],[236,2,236,4],[237,2,237,4],[238,2,238,4],[239,2,239,4],[222,2,222,4],[223,2,223,4],[224,2,224,4],[225,2,225,4],[226,2,226,4],[227,2,227,4],[228,2,228,4],[229,2,229,4],[230,2,230,4],[215,2,215,4],[216,0,217,0],[216,1,217,1],[216,2,217,4],[216,5,216,6],[218,2,218,4],[219,2,219,4],[220,2,220,4],[221,2,221,4],[206,2,206,4],[207,2,207,4],[208,2,208,4],[209,2,209,4],[210,2,210,4],[211,2,211,4],[212,2,212,4],[213,2,213,4],[214,2,214,4],[197,2,197,4],[198,2,198,4],[199,2,199,4],[200,2,200,4],[201,2,201,4],[202,2,202,4],[203,2,203,4],[204,2,204,4],[205,2,205,4],[188,2,188,4],[189,2,189,4],[190,2,190,4],[191,2,191,4],[192,2,192,4],[193,2,193,4],[194,2,194,4],[195,2,195,4],[196,2,196,4],[178,5,178,6],[180,2,180,4],[181,2,181,4],[182,2,182,4],[183,2,183,4],[184,2,184,4],[185,2,185,4],[186,2,186,4],[187,2,187,4],[171,2,171,4],[172,2,172,4],[173,2,173,4],[174,2,174,4],[175,2,175,4],[176,2,176,4],[177,2,177,4],[178,0,179,0],[178,1,179,1],[178,2,179,4],[162,2,162,4],[163,2,163,4],[164,2,164,4],[165,2,165,4],[166,2,166,4],[167,2,167,4],[168,2,168,4],[169,2,169,4],[170,2,170,4],[153,2,153,4],[154,2,154,4],[155,2,155,4],[156,2,156,4],[157,2,157,4],[158,2,158,4],[159,2,159,4],[160,2,160,4],[161,2,161,4],[144,2,144,4],[145,2,145,4],[146,2,146,4],[147,2,147,4],[148,2,148,4],[149,2,149,4],[150,2,150,4],[151,2,151,4],[152,2,152,4],[137,2,137,4],[138,2,138,4],[139,2,139,4],[140,2,140,4],[141,2,141,4],[142,0,143,0],[142,1,143,1],[142,2,143,4],[142,5,142,6],[128,2,128,4],[129,2,129,4],[130,2,130,4],[131,2,131,4],[132,2,132,4],[133,2,133,4],[134,2,134,4],[135,2,135,4],[136,2,136,4],[119,2,119,4],[120,2,120,4],[121,2,121,4],[122,2,122,4],[123,2,123,4],[124,2,124,4],[125,2,125,4],[126,2,126,4],[127,2,127,4],[110,2,110,4],[111,2,111,4],[112,2,112,4],[113,2,113,4],[114,2,114,4],[115,2,115,4],[116,2,116,4],[117,2,117,4],[118,2,118,4],[103,0,104,0],[103,1,104,1],[103,2,104,4],[103,5,103,6],[105,2,105,4],[106,2,106,4],[107,2,107,4],[108,2,108,4],[109,2,109,4],[44,0,46,0],[44,1,46,1],[44,2,46,2],[44,4,44,6],[45,3,46,3],[45,4,46,4],[45,5,46,5],[45,6,46,6],[86,0,88,0],[86,1,88,1],[86,2,88,2],[86,4,86,6],[87,3,88,3],[87,4,88,4],[87,5,88,5],[87,6,88,6],[13,0,13,6],[14,0,14,6],[17,0,19,0],[17,1,19,1],[17,2,19,2],[17,4,17,6],[18,3,19,3],[18,4,19,4],[18,5,19,5],[18,6,19,6]]}
[null,null,null,null,null,null,"Образац 1"]
[]
[]
[]
[]
[]
["Назив корисника буџетских средстава"]
[{"$f":"NazKorisnika","v":"ДОМ ЗДРАВЉА ЖАБАЉ"}]
[{"$f":"\"Седиште:   \" &biop","v":"Седиште:   ЖАБАЉ"},null,null,null,{"$f":" \"Матични број:   \" & MatBroj","v":"Матични број:   08062463"}]
[{"$f":"\"ПИБ:   \" & bip","v":"ПИБ:   100647845"},null,null,null,{"$f":"\"Број подрачуна:  \" & BrojPodr","v":"Број подрачуна:  840-451661-41"}]
["Назив надлежног директног корисника буџетских средстава"]
[]
[]
["БИЛАНС СТАЊА"]
["на дан 31.12.2022. "]
[]
[null,null,null,null,null,null,"(У хиљадама динара)"]
["Ознака ОП","Број конта","Опис","Износ из претходне    године","Износ текуће године"]
[null,null,null,"(почетно      стање)","Бруто","Исправка вредности","Нето                           (5 – 6)"]
[]
[1,2,3,4,5,6,7]
[null,null,"АКТИВА"]
["1001","000000","НEФИНАНСИЈСКА ИМОВИНА        (1002 + 1020)",{"$f":"D24+D42","v":30789},{"$f":"E24+E42","v":116228},{"$f":"F24+F42","v":80577},{"$f":"E23-F23","v":35651}]
["1002","010000","НЕФИНАНСИЈСКА ИМОВИНА У СТАЛНИМ СРЕДСТВИМА  (1003 + 1007 + 1009 + 1011 + 1015 + 1018)",{"$f":"D25+D29+D31+D33+D37+D40","v":28672},{"$f":"E25+E29+E31+E33+E37+E40","v":113954},{"$f":"F25+F29+F31+F33+F37+F40","v":80577},33377]
["1003","011000","НЕКРЕТНИНЕ И ОПРЕМА                     (од 1004 до 1006)",{"$f":"SUM(D26:D28)","v":28672},{"$f":"SUM(E26:E28)","v":113954},{"$f":"SUM(F26:F28)","v":80577},33377]
["1004","011100","Зграде и грађевински објекти",17610,36477,19489,16988]
["1005","011200","Опрема",11062,77477,61088,16389]
["1006","011300","Остале некретнине и опрема",null,null,null,0]
[1007,"012000","КУЛТИВИСАНА ИМОВИНА (1008)",{"$f":"D30","v":0},{"$f":"E30","v":0},{"$f":"F30","v":0},0]
[1008,"012100","Култивисана имовина",null,null,null,0]
[1009,"013000","ДРАГОЦЕНОСТИ (1010)",{"$f":"D32","v":0},{"$f":"E32","v":0},{"$f":"F32","v":0},0]
[1010,"013100","Драгоцености",null,null,null,0]
[1011,"014000","ПРИРОДНА ИМОВИНА                                    (од 1012 до 1014)",{"$f":"SUM(D34:D36)","v":0},{"$f":"SUM(E34:E36)","v":0},{"$f":"SUM(F34:F36)","v":0},0]
[1012,"014100","Земљиште",null,null,null,0]
[1013,"014200","Подземна блага",null,null,null,0]
[1014,"014300","Шуме и воде",null,null,null,0]
[1015,"015000","НЕФИНАНСИЈСКА ИМОВИНА У ПРИПРЕМИ И АВАНСИ (1016 + 1017)",{"$f":"D38+D39","v":0},{"$f":"E38+E39","v":0},{"$f":"F38+F39","v":0},0]
[1016,"015100","Нефинансијска имовина у припреми",null,null,null,0]
[1017,"015200","Аванси за нефинансијску имовину",null,null,null,0]
[1018,"016000","НЕМАТЕРИЈАЛНА ИМОВИНА (1019)",{"$f":"D41","v":0},{"$f":"E41","v":0},{"$f":"F41","v":0},0]
[1019,"016100","Нематеријална имовина",null,null,null,0]
[1020,"020000","НЕФИНАНСИЈСКА ИМОВИНА У ЗАЛИХАМА (1021 + 1025)",{"$f":"D43+D51","v":2117},{"$f":"E43+E51","v":2274},{"$f":"F43+F51","v":0},2274]
[1021,"021000","ЗАЛИХЕ (од 1022 до 1024)",{"$f":"SUM(D44:D50)","v":0},{"$f":"SUM(E44:E50)","v":0},{"$f":"SUM(F44:F50)","v":0},0]
[1022,"021100","Робне резерве",null,null,null,0]
["Ознака ОП","Број конта","Опис","Износ из претходне    године","Износ текуће године"]
[null,null,null,"(почетно      стање)","Бруто","Исправка вредности","Нето                       (5 – 6)"]
[]
[1,2,3,"4","5","6","7"]
[1023,"021200","Залихе производње",null,null,null,0]
[1024,"021300","Роба за даљу продају",null,null,null,0]
[1025,"022000","ЗАЛИХЕ СИТНОГ ИНВЕНТАРА И ПОТРОШНОГ МАТЕРИЈАЛА (1026 + 1027)",{"$f":"D52+D53","v":2117},{"$f":"E52+E53","v":2274},{"$f":"F52+F53","v":0},2274]
[1026,"022100","Залихе ситног инвентара",null,null,null,0]
[1027,"022200","Залихе потрошног материјала",2117,2274,null,2274]
[1028,100000,"ФИНАНСИЈСКА ИМОВИНА (1029 + 1049 + 1067)",{"$f":"D55+D75+D97","v":56553},{"$f":"E55+E75+E97","v":42639},{"$f":"F55+F75+F97","v":0},42639]
[1029,110000,"ДУГОРОЧНА ФИНАНСИЈСКА ИМОВИНА (1030 + 1040)",{"$f":"D56+D66","v":0},{"$f":"E56+E66","v":0},{"$f":"F56+F66","v":0},0]
[1030,111000,"ДУГОРОЧНА ДОМАЋА ФИНАНСИЈСКА ИМОВИНА                 (од 1031 до 1039)",{"$f":"SUM(D57:D65)","v":0},{"$f":"SUM(E57:E65)","v":0},{"$f":"SUM(F57:F65)","v":0},0]
[1031,111100,"Дугорочне домаће хартије од вредности, изузев акција",null,null,null,0]
[1032,111200,"Кредити осталим нивоима власти",null,null,null,0]
[1033,111300,"Кредити домаћим јавним финансијским институцијама",null,null,null,0]
[1034,111400,"Кредити домаћим пословним банкама",null,null,null,0]
[1035,111500,"Кредити домаћим јавним нефинансијским  институцијама",null,null,null,0]
[1036,111600,"Кредити физичким лицима и домаћинствима у земљи",null,null,null,0]
[1037,111700,"Кредити домаћим невладиним организацијама",null,null,null,0]
[1038,111800,"Кредити домаћим нефинансијским приватним предузећима",null,null,null,0]
[1039,111900,"Домаће акције и остали капитал",null,null,null,0]
[1040,112000,"ДУГОРОЧНA СТРАНА ФИНАНСИЈСКА ИМОВИНА (од 1041 до 1048)",{"$f":"SUM(D67:D74)","v":0},{"$f":"SUM(E67:E74)","v":0},{"$f":"SUM(F67:F74)","v":0},0]
[1041,112100,"Дугорочне стране хартије од вредности, изузев акција",null,null,null,0]
[1042,112200,"Кредити страним владама",null,null,null,0]
[1043,112300,"Кредити међународним организацијама",null,null,null,0]
[1044,112400,"Кредити страним пословним банкама",null,null,null,0]
[1045,112500,"Кредити страним нефинансијским институцијама",null,null,null,0]
[1046,112600,"Кредити страним невладиним организацијама",null,null,null,0]
[1047,112700,"Стране акције и остали капитал",null,null,null,0]
[1048,"112800","Страни финансијски деривати",null,null,null,0]
[1049,120000,"НОВЧАНА СРЕДСТВА, ПЛЕМЕНИТИ МЕТАЛИ, ХАРТИЈЕ ОД ВРЕДНОСТИ, ПОТРАЖИВАЊА И КРАТКОРОЧНИ ПЛАСМАНИ (1050+ 1060 + 1062)",{"$f":"D76+D86+D92","v":33448},{"$f":"E76+E86+E92","v":27559},{"$f":"F76+F86+F92","v":0},27559]
[1050,121000,"НОВЧАНА СРЕДСТВА, ПЛЕМЕНИТИ МЕТАЛИ, ХАРТИЈЕ ОД ВРЕДНОСТИ    (од 1051 до 1059)",{"$f":"D77+D78+D79+D80+D81+D82+D83+D84+D85","v":12521},{"$f":"E77+E78+E79+E80+E81+E82+E83+E84+E85","v":17466},{"$f":"F77+F78+F79+F80+F81+F82+F83+F84+F85","v":0},17466]
[1051,121100,"Жиро и текући рачуни",12521,17466,null,17466]
[1052,121200,"Издвојена новчана средства и акредитиви",null,null,null,0]
[1053,121300,"Благајна",null,null,null,0]
[1054,121400,"Девизни рачун",null,null,null,0]
[1055,121500,"Девизни акредитиви",null,null,null,0]
[1056,121600,"Девизна благајна",null,null,null,0]
[1057,121700,"Остала новчана средства",null,null,null,0]
[1058,121800,"Племенити метали",null,null,null,0]
[1059,121900,"Хартије од вредности",null,null,null,0]
[1060,122000,"КРАТКОРОЧНА ПОТРАЖИВАЊА (1061)",{"$f":"D91","v":20927},{"$f":"E91","v":10093},{"$f":"F91","v":0},10093]
["Ознака ОП","Број конта","Опис","Износ из претходне    године","Износ текуће године"]
[null,null,null,"(почетно      стање)","Бруто","Исправка вредности","Нето                        (5 – 6)"]
[]
[1,2,3,"4","5","6","7"]
[1061,122100,"Потраживања по основу продаје и друга потраживања",20927,10093,null,{"$f":"E91-F91","v":10093}]
[1062,123000,"КРАТКОРОЧНИ ПЛАСМАНИ               (од 1063 до 1066)",{"$f":"SUM(D93:D96)","v":0},{"$f":"SUM(E93:E96)","v":0},{"$f":"SUM(F93:F96)","v":0},0]
[1063,123100,"Краткорочни кредити",null,null,null,0]
[1064,123200,"Дати аванси, депозити и кауције",null,null,null,0]
[1065,123300,"Хартије од вредности намењене продаји",null,null,null,0]
[1066,123900,"Остали краткорочни пласмани",null,null,null,0]
[1067,130000,"АКТИВНА ВРЕМЕНСКА РАЗГРАНИЧЕЊА (1068)",{"$f":"D98","v":23105},{"$f":"E98","v":15080},{"$f":"F98","v":0},15080]
[1068,131000,"АКТИВНА ВРЕМЕНСКА РАЗГРАНИЧЕЊА                                             (од 1069 до 1071)",{"$f":"SUM(D99:D101)","v":23105},{"$f":"SUM(E99:E101)","v":15080},{"$f":"SUM(F99:F101)","v":0},15080]
[1069,131100,"Разграничени расходи до једне године",null,null,null,0]
[1070,131200,"Обрачунати неплаћени расходи и издаци",23105,15080,null,15080]
[1071,131300,"Остала активна временска разграничења",null,null,null,0]
[1072,null,"УКУПНА АКТИВА (1001 + 1028)",{"$f":"D23+D54","v":87342},{"$f":"E23+E54","v":158867},{"$f":"F23+F54","v":80577},78290]
[1073,"351000","ВАНБИЛАНСНА АКТИВА",null,null,null,0]
["Ознака ОП","Број конта","Опис",null,null,"Износ"]
[null,null,null,null,null,"Претходна година","Текућа година"]
[1,2,3,null,null,"4","5"]
[null,null,"ПАСИВА"]
[1074,200000,"ОБАВЕЗЕ (1075 + 1099 + 1118 + 1173 + 1198 + 1212)",null,null,{"$f":"F109+F133+F155+F213+F241+F255","v":44033},{"$f":"G109+G133+G155+G213+G241+G255","v":25173}]
[1075,210000,"ДУГОРОЧНЕ ОБАВЕЗЕ (1076 + 1086 + 1093 + 1095 + 1097)",null,null,{"$f":"F110+F120+F127+F129+F131","v":0},{"$f":"G110+G120+G127+G129+G131","v":0}]
[1076,211000,"ДОМАЋЕ ДУГОРОЧНЕ ОБАВЕЗЕ (од 1077 до 1085)",null,null,{"$f":"SUM(F111:F119)","v":0},{"$f":"SUM(G111:G119)","v":0}]
[1077,211100,"Обавезе умањене за дисконт по основу емитованих хартија од вредности, изузев акција"]
[1078,211200,"Обавезе по основу дугорочних кредита од осталих нивоа власти"]
[1079,211300,"Обавезе по основу дугорочних кредита од домаћих јавних финансијских институција"]
[1080,211400,"Обавезе по основу дугорочних кредита од домаћих пословних банака"]
[1081,211500,"Обавезе по основу дугорочних кредита од осталих домаћих кредитора"]
[1082,211600,"Обавезе по основу дугорочних кредита од домаћинстава у земљи"]
[1083,"211700","Дугорочне обавезе по основу домаћих финансијских деривата"]
[1084,211800,"Дугорочне обавезе по основу домаћих меница"]
[1085,"211900","Дугорочне обавезе за финансијске лизинге"]
[1086,212000,"СТРАНЕ ДУГОРОЧНЕ ОБАВЕЗЕ (од 1087 до 1092)",null,null,{"$f":"SUM(F121:F126)","v":0},{"$f":"SUM(G121:G126)","v":0}]
[1087,212100,"Дугорочне стране обавезе умањене за дисконт по основу емитованих хартија од вредности, изузев акција"]
[1088,212200,"Обавезе по основу дугорочних кредита од страних влада"]
[1089,212300,"Обавезе по основу дугорочних кредита од мултилатералних институција"]
[1090,212400,"Обавезе по основу дугорочних кредита од страних пословних банака"]
[1091,212500,"Обавезе по основу дугорочних кредита од осталих страних кредитора"]
[1092,212600,"Дугорочне обавезе по основу страних финансијских деривата"]
[1093,213000,"ДУГОРОЧНЕ ОБАВЕЗЕ ПО ОСНОВУ ГАРАНЦИЈА (1094)",null,null,{"$f":"F128","v":0},{"$f":"G128","v":0}]
[1094,213100,"Дугорочне обавезе по основу гаранција"]
[1095,214000,"ОБАВЕЗЕ ПО ОСНОВУ ОТПЛАТЕ ГЛАВНИЦЕ ЗА ФИНАНСИЈСКИ ЛИЗИНГ (1096)",null,null,{"$f":"F130","v":0},{"$f":"G130","v":0}]
[1096,214100,"Обавезе по основу отплате главнице зa финансијски лизинг"]
[1097,215000,"ОБАВЕЗЕ ПО ОСНОВУ ОТПЛАТА ГАРАНЦИЈА ПО КОМЕРЦИЈАЛНИМ ТРАНСАКЦИЈАМА (1098)",null,null,{"$f":"F132","v":0},{"$f":"G132","v":0}]
[1098,215100,"Обавезе по основу отплата гаранција по комерцијалним трансакцијама"]
[1099,220000,"КРАТКОРОЧНЕ ОБАВЕЗЕ (1100 + 1109 + 1116)",null,null,{"$f":"F134+F146+F153","v":0},{"$f":"G134+G146+G153","v":0}]
[1100,221000,"КРАТКОРОЧНЕ ДОМАЋЕ ОБАВЕЗЕ (од 1101 до 1108)","КРАТКОРОЧНЕ ДОМАЋЕ ОБАВЕЗЕ (од 1101 до 1108)","КРАТКОРОЧНЕ ДОМАЋЕ ОБАВЕЗЕ (од 1101 до 1108)",{"$f":"SUM(F135:F142)","v":0},{"$f":"SUM(G135:G142)","v":0}]
[1101,221100,"Краткорочне домаће обавезе умањене за дисконт по основу емитованих хартија од вредности, изузев акција","Краткорочне домаће обавезе по основу емитованих хартија од вредности, изузев акција","Краткорочне домаће обавезе по основу емитованих хартија од вредности, изузев акција"]
[1102,221200,"Обавезе по основу краткорочних кредита од осталих нивоа власти","Обавезе по основу краткорочних кредита од осталих нивоа власти","Обавезе по основу краткорочних кредита од осталих нивоа власти"]
[1103,221300,"Обавезе по основу краткорочних кредита од домаћих јавних финансијских институција","Обавезе по основу краткорочних кредита од домаћих јавних финансијских институција","Обавезе по основу краткорочних кредита од домаћих јавних финансијских институција"]
[1104,221400,"Обавезе по основу краткорочних кредита од домаћих пословних банака","Обавезе по основу краткорочних кредита од домаћих пословних банака","Обавезе по основу краткорочних кредита од домаћих пословних банака"]
[1105,221500,"Обавезе по основу краткорочних кредита од осталих домаћих кредитора","Обавезе по основу краткорочних кредита од осталих домаћих кредитора","Обавезе по основу краткорочних кредита од осталих домаћих кредитора"]
[1106,221600,"Обавезе по основу краткорочних кредита од домаћинстава у земљи","Обавезе по основу краткорочних кредита од домаћинстава у земљи","Обавезе по основу краткорочних кредита од домаћинстава у земљи"]
[1107,221700,"Краткорочне обавезе по основу домаћих финансијских деривата","Краткорочне обавезе по основу домаћих финансијских деривата","Краткорочне обавезе по основу домаћих финансијских деривата"]
[1108,221800,"Краткорочне обавезе по основу домаћих меница","Краткорочне обавезе по основу домаћих меница","Краткорочне обавезе по основу домаћих меница"]
["Ознака ОП","Број конта","Опис",null,null,"Износ"]
[null,null,null,null,null,"Претходна година","Текућа година"]
[1,2,3,null,null,"4 ","5 "]
[1109,222000,"КРАТКОРОЧНЕ СТРАНЕ ОБАВЕЗЕ (од 1110 до 1115)","КРАТКОРОЧНЕ СТРАНЕ ОБАВЕЗЕ (од 1110 до 1115)","КРАТКОРОЧНЕ СТРАНЕ ОБАВЕЗЕ (од 1110 до 1115)",{"$f":"F147+F148+F149+F150+F151+F152","v":0},{"$f":"G147+G148+G149+G150+G151+G152","v":0}]
[1110,222100,"Краткорочне стране обавезе умањене за дисконт по основу емитованих хартија од вредности, изузев акција","Краткорочне стране обавезе по основу емитованих хартија од вредности, изузев акција","Краткорочне стране обавезе по основу емитованих хартија од вредности, изузев акција"]
[1111,222200,"Обавезе по основу краткорочних кредита од страних влада"]
[1112,222300,"Обавезе по основу краткорочних кредита од мултилатералних институција"]
[1113,222400,"Обавезе по основу краткорочних кредита од страних пословних банака"]
[1114,222500,"Обавезе по основу краткорочних кредита од осталих страних кредитора"]
[1115,222600,"Краткорочне обавезе по основу страних финансијских деривата"]
[1116,223000,"КРАТКОРОЧНЕ ОБАВЕЗЕ ПО ОСНОВУ ГАРАНЦИЈА (1117)",null,null,{"$f":"F154","v":0},{"$f":"G154","v":0}]
[1117,223100,"Краткорочне обавезе по основу гаранција"]
[1118,230000,"ОБАВЕЗЕ ПО ОСНОВУ РАСХОДА ЗА ЗАПОСЛЕНЕ (1119 + 1125 + 1131 + 1137 + 1141+ 1147 + 1153 + 1161 + 1167)",null,null,{"$f":"F156+F162+F168+F174+F178+F187+F193+F201+F207","v":11136},{"$f":"G156+G162+G168+G174+G178+G187+G193+G201+G207","v":9332}]
[1119,231000,"ОБАВЕЗЕ ЗА ПЛАТЕ И ДОДАТКЕ (од 1120 до 1124)",null,null,{"$f":"SUM(F157:F161)","v":7983},{"$f":"SUM(G157:G161)","v":7776}]
[1120,231100,"Обавезе за нето плате и додатке",null,null,5867,5760]
[1121,231200,"Обавезе по основу пореза на плате и додатке",null,null,540,484]
[1122,231300,"Обавезе по основу доприноса за пензијско и инвалидско осигурање на плате и додатке",null,null,1109,1078]
[1123,231400,"Обавезе по основу доприноса за здравствено осигурање на плате и додатке",null,null,408,396]
[1124,231500,"Обавезе по основу доприноса за незапосленост на плате и додатке",null,null,59,58]
[1125,232000,"ОБАВЕЗЕ ПО ОСНОВУ НАКНАДА ЗАПОСЛЕНИМА (од 1126 до 1130)",null,null,{"$f":"SUM(F163:F167)","v":0},{"$f":"SUM(G163:G167)","v":0}]
[1126,232100,"Обавезе по основу нето накнада запосленима"]
[1127,232200,"Обавезе по основу пореза на плате за накнаде запосленима"]
[1128,232300,"Обавезе по основу доприноса за пензијско и инвалидско осигурање за накнаде запосленима"]
[1129,232400,"Обавезе по основу доприноса за здравствено осигурање за накнаде запосленима"]
[1130,232500,"Обавезе по основу доприноса за незапосленост за накнаде запосленима"]
[1131,233000,"ОБАВЕЗЕ ЗА НАГРАДЕ И ОСТАЛЕ ПОСЕБНЕ РАСХОДЕ (од 1132 до 1136)",null,null,{"$f":"SUM(F169:F173)","v":448},{"$f":"SUM(G169:G173)","v":0}]
[1132,233100,"Обавезе по основу нето исплата награда и осталих посебних расхода",null,null,409]
[1133,233200,"Обавезе по основу пореза на награде и остале посебне расходе",null,null,39]
[1134,233300,"Обавезе по основу доприноса за пензијско и инвалидско осигурање за награде и остале посебне расходе"]
[1135,233400,"Обавезе по основу доприноса за здравствено осигурање за награде и остале посебне расходе"]
[1136,233500,"Обавезе по основу доприноса за случај незапослености за награде и остале посебне расходе"]
[1137,234000,"ОБАВЕЗЕ ПО ОСНОВУ СОЦИЈАЛНИХ ДОПРИНОСА НА ТЕРЕТ ПОСЛОДАВЦА (од 1138 до 1140) ",null,null,{"$f":"SUM(F175:F177)","v":1316},{"$f":"SUM(G175:G177)","v":1216}]
[1138,234100,"Обавезе по основу доприноса за пензијско и инвалидско осигурање на терет послодавца",null,null,908,820]
[1139,234200,"Обавезе по основу доприноса за здравствено осигурање на терет послодавца",null,null,408,396]
[1140,234300,"Обавезе по основу доприноса за случај незапослености на терет послодавца"]
[1141,235000,"ОБАВЕЗЕ ПО ОСНОВУ НАКНАДА У НАТУРИ (од 1142 до 1146)",null,null,{"$f":"F182+F183+F184+F185+F186","v":0},{"$f":"G182+G183+G184+G185+G186","v":0}]
["Ознака ОП","Број конта","Опис",null,null,"Износ"]
[null,null,null,null,null,"Претходна година","Текућа година"]
[1,2,3,null,null,"4 ","5 "]
[1142,235100,"Обавезе по основу нето накнада у натури"]
[1143,235200,"Обавезе по основу пореза на накнаде у натури"]
[1144,235300,"Обавезе по основу доприноса за пензијско и инвалидско осигурање за накнаде у натури"]
[1145,235400,"Обавезе по основу доприноса за здравствено осигурање за накнаде у натури"]
[1146,235500,"Обавезе по основу доприноса за случај незапослености за накнаде у натури"]
[1147,236000,"ОБАВЕЗЕ ПО ОСНОВУ СОЦИЈАЛНЕ ПОМОЋИ ЗАПОСЛЕНИМА (од 1148 до 1152)",null,null,{"$f":"SUM(F188:F192)","v":1389},{"$f":"SUM(G188:G192)","v":340}]
[1148,236100,"Обавезе по основу нето исплата социјалне помоћи запосленима",null,null,1034,219]
[1149,236200,"Обавезе по основу пореза на социјалну помоћ запосленима",null,null,132,18]
[1150,236300,"Обавезе по основу доприноса за пензијско и инвалидско осигурање за социјалну помоћ запосленима",null,null,154,71]
[1151,236400,"Обавезе по основу доприноса за здравствено осигурање за социјалну помоћ запосленима",null,null,64,30]
[1152,236500,"Обавезе по основу доприноса за случај незапослености за социјалну помоћ запосленима",null,null,5,2]
[1153,237000,"СЛУЖБЕНА ПУТОВАЊА И УСЛУГЕ ПО УГОВОРУ (од 1154 до 1160)",null,null,{"$f":"SUM(F194:F200)","v":0},{"$f":"SUM(G194:G200)","v":0}]
[1154,237100,"Обавезе по основу нето исплата за службена путовања"]
[1155,237200,"Обавезе по основу пореза на исплате за службена путовања "]
[1156,237300,"Обавезе по основу нето исплата за услуге по уговору"]
[1157,237400,"Обавезе по основу пореза на исплате за услуге по уговору"]
[1158,237500,"Обавезе по основу доприноса за пензијско и инвалидско осигурање за услуге по уговору"]
[1159,237600,"Обавезе по основу доприноса за здравствено осигурање за услуге по уговору"]
[1160,237700,"Обавезе по основу доприноса за случај незапослености за услуге по уговору"]
[1161,238000,"ОБАВЕЗЕ ПО ОСНОВУ ПОСЛАНИЧКИХ ДОДАТАКА (од 1162 до 1166)",null,null,{"$f":"SUM(F202:F206)","v":0},{"$f":"SUM(G202:G206)","v":0}]
[1162,238100,"Обавезе за нето исплаћени посланички додатак"]
[1163,238200,"Обавезе по основу пореза на исплаћени посланички додатак"]
[1164,238300,"Обавезе по основу доприноса за пензијско и инвалидско осигурање за посланички додатак"]
[1165,238400,"Обавезе по основу доприноса за здравствено осигурање за посланички додатак"]
[1166,238500,"Обавезе по основу доприноса за случај незапослености за посланички додатак"]
[1167,239000,"ОБАВЕЗЕ ПО ОСНОВУ СУДИЈСКИХ ДОДАТАКА (од 1168 до 1172)",null,null,{"$f":"SUM(F208:F212)","v":0},{"$f":"SUM(G208:G212)","v":0}]
[1168,239100,"Обавезе за нето исплаћени судијски додатак"]
[1169,239200,"Обавезе по основу пореза на исплаћени судијски додатак"]
[1170,239300,"Обавезе по основу доприноса за пензијско и инвалидско осигурање за судијски додатак"]
[1171,239400,"Обавезе по основу доприноса за здравствено осигурање за судијски додатак"]
[1172,239500,"Обавезе по основу доприноса за случај незапослености за судијски додатак"]
[1173,240000,"ОБАВЕЗЕ ПО ОСНОВУ ОСТАЛИХ РАСХОДА, ИЗУЗЕВ РАСХОДА ЗА ЗАПОСЛЕНЕ (1174 + 1179+ 1184 + 1189 + 1192)",null,null,{"$f":"F214+F222+F227+F232+F235","v":0},{"$f":"G214+G222+G227+G232+G235","v":0}]
[1174,241000,"ОБАВЕЗЕ ПО ОСНОВУ ОТПЛАТЕ КАМАТА И ПРАТЕЋИХ ТРОШКОВА ЗАДУЖИВАЊА  (од 1175 до 1178)",null,null,{"$f":"SUM(F215:F221)","v":0},{"$f":"SUM(G215:G221)","v":0}]
[1175,241100,"Обавезе по основу отплате домаћих камата"]
[1176,241200,"Обавезе по основу отплате страних камата"]
["Ознака ОП","Број конта","Опис",null,null,"Износ"]
[null,null,null,null,null,"Претходна година","Текућа година"]
[1,2,3,null,null,"4","5"]
[1177,241300,"Обавезе по основу отплате камата по гаранцијама"]
[1178,241400,"Обавезе по основу пратећих трошкова задуживања"]
[1179,242000,"ОБАВЕЗЕ ПО ОСНОВУ СУБВЕНЦИЈА (од 1180 до 1183)",null,null,{"$f":"F223+F224+F225+F226","v":0},{"$f":"G223+G224+G225+G226","v":0}]
[1180,242100,"Обавезе по основу субвенција нефинансијским предузећима"]
[1181,242200,"Обавезе по основу субвенција приватним финансијским предузећима"]
[1182,242300,"Обавезе по основу субвенција јавним финансијским установама"]
[1183,242400,"Обавезе по основу субвенција приватним предузећима"]
[1184,243000,"ОБАВЕЗЕ ПО ОСНОВУ ДОНАЦИЈА, ДОТАЦИЈА И ТРАНСФЕРА (од 1185 до 1188)",null,null,{"$f":"SUM(F228:F231)","v":0},{"$f":"SUM(G228:G231)","v":0}]
[1185,243100,"Обавезе по основу донација страним владама"]
[1186,243200,"Обавезе по основу дотација међународним организацијама"]
[1187,243300,"Обавезе по основу трансфера осталим нивоима власти"]
[1188,243400,"Обавезе по основу дотација организацијама обавезног социјалног осигурања"]
[1189,244000,"ОБАВЕЗЕ ЗА СОЦИЈАЛНО ОСИГУРАЊЕ (1190 + 1191)",null,null,{"$f":"F233+F234","v":0},{"$f":"G233+G234","v":0}]
[1190,244100,"Обавезе по основу права из социјалног осигурања код организација обавезног социјалног осигурања"]
[1191,244200,"Обавезе по основу социјалне помоћи из буџета"]
[1192,245000,"ОБАВЕЗЕ ЗА ОСТАЛЕ РАСХОДЕ (од 1193 до 1197)",null,null,{"$f":"SUM(F236:F240)","v":0},{"$f":"SUM(G236:G240)","v":0}]
[1193,245100,"Обавезе по основу дотација невладиним организацијама"]
[1194,245200,"Обавезе за остале порезе, обавезне таксе, казне и камате"]
[1195,245300,"Обавезе по основу казни и пенала по решењима судова"]
[1196,245400,"Обавезе по основу накнаде штете за повреде и штете услед елементарних непогода"]
[1197,245500,"Обавезе по основу накнаде штете или повреда нанетих од стране државних органа"]
[1198,250000,"ОБАВЕЗЕ ИЗ ПОСЛОВАЊА (1199+ 1203 + 1206 + 1208)",null,null,{"$f":"F242+F246+F249+F251","v":11970},{"$f":"G242+G246+G249+G251","v":5748}]
[1199,251000,"ПРИМЉЕНИ АВАНСИ, ДЕПОЗИТИ И КАУЦИЈЕ (од 1200 до 1202)",null,null,{"$f":"SUM(F243:F245)","v":0},{"$f":"SUM(G243:G245)","v":0}]
[1200,251100,"Примљени аванси"]
[1201,251200,"Примљени депозити"]
[1202,251300,"Примљене кауције"]
[1203,252000,"ОБАВЕЗЕ ПРЕМА ДОБАВЉАЧИМА (1204 + 1205)",null,null,{"$f":"F247+F248","v":11970},{"$f":"G247+G248","v":5748}]
[1204,252100,"Добављачи у земљи",null,null,11970,5748]
[1205,252200,"Добављачи у иностранству"]
[1206,253000,"ОБАВЕЗЕ ЗА ИЗДАТЕ ЧЕКОВЕ И ОБВЕЗНИЦЕ (1207)",null,null,{"$f":"F250","v":0},{"$f":"G250","v":0}]
[1207,253100,"Обавезе за издате чекове и обвезнице"]
[1208,254000,"ОСТАЛЕ ОБАВЕЗЕ (1209 до 1211)",null,null,{"$f":"SUM(F252:F254)","v":0},{"$f":"SUM(G252:G254)","v":0}]
[1209,254100,"Обавезе из односа буџета и буџетских корисника"]
[1210,254200,"Остале обавезе буџета"]
[1211,254900,"Остале обавезе из пословања"]
[1212,290000,"ПАСИВНА ВРЕМЕНСКА РАЗГРАНИЧЕЊА (1213)",null,null,{"$f":"F256","v":20927},{"$f":"G256","v":10093}]
[1213,291000,"ПАСИВНА ВРЕМЕНСКА РАЗГРАНИЧЕЊА (од 1214 до 1217)",null,null,{"$f":"SUM(F257:F260)","v":20927},{"$f":"SUM(G257:G260)","v":10093}]
[1214,291100,"Разграничени приходи и примања"]
[1215,291200,"Разграничени плаћени расходи и издаци"]
[1216,291300,"Обрачунати ненаплаћени приходи и примања",null,null,20202,10086]
[1217,291900,"Остала пасивна временска разграничења",null,null,725,7]
[1218,300000,"КАПИТАЛ, УТВРЂИВАЊЕ РЕЗУЛТАТА ПОСЛОВАЊА И ВАНБИЛАНСНА ЕВИДЕНЦИЈА (1219 + 1229 - 1230 + 1231 - 1232 + 1233 - 1234)",null,null,{"$f":"F262+F275-F276+F277-F278+F280-F281","v":43309},{"$f":"G262+G275-G276+G277-G278+G280-G281","v":53117}]
[1219,310000,"КАПИТАЛ (1220)",null,null,{"$f":"F263","v":30969},{"$f":"G263","v":35744}]
[1220,311000,"КАПИТАЛ (1221 + 1222 - 1223 + 1224 + 1225 - 1226 + 1227 + 1228)",null,null,{"$f":"F267+F268-F269+F270+F271-F272+F273+F274","v":30969},{"$f":"G267+G268-G269+G270+G271-G272+G273+G274","v":35744}]
["Ознака ОП","Број конта","Опис",null,null,"Износ"]
[null,null,null,null,null,"Претходна година","Текућа година"]
[1,2,3,null,null,"4","5"]
[1221,311100,"Нефинансијска имовина у сталним средствима",null,null,28671,33377]
[1222,311200,"Нефинансијска имовина у залихама",null,null,2117,2274]
[1223,311300,"Исправка вредности сопствених извора нефинансијске имовине, у сталним средствима, за набавке из кредита"]
[1224,311400,"Финансијска имовина"]
[1225,311500,"Извори новчаних средстава",null,null,181,93]
[1226,311600,"Утрошена средства текућих прихода и примања од продаје нефинансијске имовине у току једне године"]
[1227,311700,"Пренета неутрошена средства из ранијих година"]
[1228,311900,"Остали сопствени извори"]
[1229,321121,"Вишак прихода и примања – суфицит",null,null,6206,4852]
[1230,321122,"Мањак прихода и примања – дефицит"]
[1231,321311,"Нераспоређени вишак прихода и примања  из ранијих година",null,null,6134,12521]
[1232,321312,"Дефицит из ранијих година"]
[null,null,"ПРОМЕНЕ У ВРЕДНОСТИ И ОБИМУ"]
[1233,null,"ПОЗИТИВНЕ ПРОМЕНЕ У ВРЕДНОСТИ И ОБИМУ (1235 + 1237 - 1236 - 1238)",null,null,{"$f":"IF((F282+F284-F283-F285)>0,F282+F284-F283-F285,0)","v":0},{"$f":"IF((G282+G284-G283-G285)>0,G282+G284-G283-G285,0)","v":0}]
[1234,null,"НЕГАТИВНЕ ПРОМЕНЕ У ВРЕДНОСТИ И ОБИМУ (1236 + 1238 - 1235 - 1237)",null,null,{"$f":"IF((F283+F285-F282-F284)>0,F283+F285-F282-F284,0)","v":0},{"$f":"IF((G283+G285-G282-G284)>0,G283+G285-G282-G284,0)","v":0}]
[1235,330000,"ДОБИТИ КОЈЕ СУ РЕЗУЛТАТ ПРОМЕНЕ ВРЕДНОСТИ - ПОТРАЖНИ САЛДО"]
[1236,330000,"ДОБИТИ КОЈЕ СУ РЕЗУЛТАТ ПРОМЕНЕ ВРЕДНОСТИ - ДУГОВНИ САЛДО"]
[1237,340000,"ДРУГЕ ПРОМЕНЕ У ОБИМУ - ПОТРАЖНИ САЛДО"]
[1238,340000,"ДРУГЕ ПРОМЕНЕ У ОБИМУ - ДУГОВНИ САЛДО"]
[1239,null,"УКУПНА ПАСИВА (1074 + 1218)",null,null,{"$f":"F108+F261","v":87342},{"$f":"G108+G261","v":78290}]
[1240,352000,"ВАНБИЛАНСНА ПАСИВА "]
[]
[]
["Датум _______________________",null,null,"Лице одговорно за      ",null,"Наредбодавац"]
[null,null,null,"попуњавање обрасца"]

{"sheet":"Obrazac2","index":2,"n_rows":385,"n_cols":5,"rows_kept":385,"cut":false,"hidden":false,"merged":[[383,3,383,4],[13,0,13,4],[14,0,14,4],[17,0,18,0],[17,1,18,1],[17,2,18,2],[17,3,17,4]]}
[null,null,null,null,"Образац 2"]
[]
[]
[]
[]
[]
["Назив корисника буџетских средстава"]
[{"$f":"NazKorisnika","v":"ДОМ ЗДРАВЉА ЖАБАЉ"}]
[{"$f":"\"Седиште:   \" &biop","v":"Седиште:   ЖАБАЉ"},null,null,{"$f":" \"Матични број:   \" & MatBroj","v":"Матични број:   08062463"}]
[{"$f":"\"ПИБ:   \" & bip","v":"ПИБ:   100647845"},null,null,{"$f":"\"Број подрачуна:  \" & BrojPodr","v":"Број подрачуна:  840-451661-41"}]
["Назив надлежног директног корисника буџетских средстава"]
[]
[]
["БИЛАНС ПРИХОДА И РАСХОДА"]
["у периоду 01.01.2022. - 31.12.2022."]
[]
[null,null,null,null,"(У хиљадама динара)"]
["Ознака ОП","Број конта","Опис","Износ"]
[null,null,null,"Претходна година","Текућа година"]
[1,2,3,4,5]
[2001,null,"ТЕКУЋИ ПРИХОДИ И ПРИМАЊА ОД ПРОДАЈЕ НЕФИНАНСИЈСКЕ ИМОВИНЕ (2002 + 2106)",{"$f":"D22+D126","v":272248},{"$f":"E22+E126","v":291581}]
[2002,700000,"ТЕКУЋИ ПРИХОДИ (2003 + 2047 + 2057 + 2069 + 2094 + 2099 + 2103)",{"$f":"D23+D67+D77+D89+D114+D119+D123","v":272248},{"$f":"E23+E67+E77+E89+E114+E119+E123","v":291581}]
[2003,710000,"ПОРЕЗИ (2004 + 2008 + 2010 + 2017 + 2023 + 2030 + 2033 + 2040)",{"$f":"D24+D28+D30+D37+D43+D50+D53+D60","v":0},{"$f":"E24+E28+E30+E37+E43+E50+E53+E60","v":0}]
[2004,711000,"ПОРЕЗ НА ДОХОДАК, ДОБИТ И КАПИТАЛНЕ ДОБИТКЕ (од 2005 до 2007)",{"$f":"SUM(D25:D27)","v":0},{"$f":"SUM(E25:E27)","v":0}]
[2005,711100,"Порези на доходак и капиталне добитке које плаћају физичка лица"]
[2006,711200,"Порези на добит и капиталне добитке које плаћају предузећа и друга правна лица"]
[2007,711300,"Порези на доходак, добит и капиталне добитке који се не могу разврстати између физичких и правних лица"]
[2008,712000,"ПОРЕЗ НА ФОНД ЗАРАДА (2009)",{"$f":"D29","v":0},{"$f":"E29","v":0}]
[2009,712100,"Порез на фонд зарада"]
[2010,713000,"ПОРЕЗ НА ИМОВИНУ (од 2011 до 2016)",{"$f":"SUM(D31:D36)","v":0},{"$f":"SUM(E31:E36)","v":0}]
[2011,713100,"Периодични порези на непокретности"]
[2012,713200,"Периодични порези на нето имовину"]
[2013,713300,"Порези на заоставштину, наслеђе и поклон"]
[2014,713400,"Порези на финансијске и капиталне трансакције"]
[2015,713500,"Други једнократни порези на имовину"]
[2016,713600,"Други периодични порези на имовину"]
[2017,714000,"ПОРЕЗ НА ДОБРА И УСЛУГЕ (од 2018 до 2022)",{"$f":"SUM(D38:D42)","v":0},{"$f":"SUM(E38:E42)","v":0}]
[2018,714100,"Општи порези на добра и услуге"]
[2019,714300,"Добит фискалних монопола"]
[2020,714400,"Порези на појединачне услуге"]
[2021,714500,"Порези, таксе и накнаде на употребу добара, на дозволу да се добра употребљавају или делатности обављају"]
[2022,714600,"Други порези на добра и услуге"]
[2023,715000,"ПОРЕЗ НА МЕЂУНАРОДНУ ТРГОВИНУ И ТРАНСАКЦИЈЕ (од 2024 до 2029)",{"$f":"SUM(D44:D49)","v":0},{"$f":"SUM(E44:E49)","v":0}]
[2024,715100,"Царине и друге увозне дажбине"]
[2025,715200,"Порези на извоз"]
[2026,715300,"Добит извозних или увозних монопола"]
[2027,715400,"Добит по основу разлике између куповног и продајног девизног курса"]
[2028,715500,"Порези на продају или куповину девиза"]
[2029,715600,"Други порези на међународну трговину и трансакције"]
[2030,716000,"ДРУГИ ПОРЕЗИ (2031 + 2032)",{"$f":"D51+D52","v":0},{"$f":"E51+E52","v":0}]
[2031,716100,"Други порези које искључиво плаћају предузећа, односно предузетници"]
[2032,716200,"Други порези које плаћају остала лица или који се не могу идентификовати"]
[2033,717000,"АКЦИЗЕ (од 2034 до 2039)",{"$f":"SUM(D54:D59)","v":0},{"$f":"SUM(E54:E59)","v":0}]
[2034,717100,"Акцизе на деривате нафте"]
[2035,717200,"Акцизе на дуванске прерађевине"]
[2036,717300,"Акцизе на алкохолна пића"]
[2037,717400,"Акцизе на освежавајућа безалкохолна пића"]
[2038,717500,"Акциза на кафу"]
[2039,717600,"Друге акцизе"]
[2040,719000,"ЈЕДНОКРАТНИ ПОРЕЗ НА ЕКСТРА ПРОФИТ И ЕКСТРА ИМОВИНУ СТЕЧЕНУ КОРИШЋЕЊЕМ ПОСЕБНИХ ПОГОДНОСТИ (од 2041 до 2046)",{"$f":"SUM(D61:D66)","v":0},{"$f":"SUM(E61:E66)","v":0}]
[2041,719100,"Порез на доходак, добит и капиталну добит на терет физичких лица"]
[2042,719200,"Порез на доходак, добит и капиталну добит на терет предузећа и осталих правних лица"]
[2043,719300,"Порез на доходак, добит и капиталну добит нераспоредив између физичких и правних лица"]
[2044,719400,"Остали једнократни порези на имовину"]
[2045,719500,"Остали порези које плаћају искључиво предузећа и предузетници"]
[2046,719600,"Остали порези које плаћају друга или неидентификована лица"]
[2047,720000,"СОЦИЈАЛНИ ДОПРИНОСИ (2048 + 2053)",{"$f":"D68+D73","v":0},{"$f":"E68+E73","v":0}]
[2048,721000,"ДОПРИНОСИ ЗА СОЦИЈАЛНО ОСИГУРАЊЕ (од 2049 до 2052)",{"$f":"SUM(D69:D72)","v":0},{"$f":"SUM(E69:E72)","v":0}]
[2049,721100,"Доприноси за социјално осигурање на терет запослених"]
[2050,721200,"Доприноси за социјално осигурање на терет послодаваца"]
[2051,721300,"Доприноси за социјално осигурање лица која обављају самосталну делатност и незапослених лица"]
[2052,721400,"Доприноси за социјално осигурање који се не могу разврстати"]
[2053,722000,"ОСТАЛИ СОЦИЈАЛНИ ДОПРИНОСИ (од 2054 до 2056)",{"$f":"SUM(D74:D76)","v":0},{"$f":"SUM(E74:E76)","v":0}]
[2054,722100,"Социјални доприноси на терет осигураника"]
[2055,722200,"Социјални доприноси послодаваца"]
[2056,722300,"Импутирани социјални доприноси"]
[2057,730000,"ДОНАЦИЈЕ, ПОМОЋИ И ТРАНСФЕРИ (2058 + 2061 + 2066)",{"$f":"D78+D81+D86","v":16857},{"$f":"E78+E81+E86","v":11663}]
[2058,731000,"ДОНАЦИЈЕ ОД ИНОСТРАНИХ ДРЖАВА (2059 + 2060)",{"$f":"D79+D80","v":0},{"$f":"E79+E80","v":0}]
[2059,731100,"Текуће донације од иностраних држава"]
[2060,731200,"Капиталне донације од иностраних држава"]
[2061,732000,"ДОНАЦИЈЕ И ПОМОЋИ ОД МЕЂУНАРОДНИХ ОРГАНИЗАЦИЈА (од 2062 до 2065)",{"$f":"D82+D83+D84+D85","v":0},{"$f":"E82+E83+E84+E85","v":0}]
[2062,732100,"Текуће донације од међународних организација"]
[2063,732200,"Капиталне донације од међународних организација"]
[2064,732300,"Текуће помоћи од ЕУ"]
[2065,732400,"Капиталне помоћи од ЕУ"]
[2066,733000,"ТРАНСФЕРИ ОД ДРУГИХ НИВОА ВЛАСТИ (2067 + 2068)",{"$f":"D87+D88","v":16857},{"$f":"E87+E88","v":11663}]
[2067,733100,"Текући трансфери од других нивоа власти",16857,11663]
[2068,733200,"Капитални трансфери од других нивоа власти"]
[2069,740000,"ДРУГИ ПРИХОДИ (2070 + 2077 + 2082 + 2089 + 2092)",{"$f":"D90+D97+D102+D109+D112","v":12882},{"$f":"E90+E97+E102+E109+E112","v":6749}]
[2070,741000,"ПРИХОДИ ОД ИМОВИНЕ (од 2071 до 2076)",{"$f":"SUM(D91:D96)","v":79},{"$f":"SUM(E91:E96)","v":245}]
[2071,741100,"Камате"]
[2072,741200,"Дивиденде"]
[2073,741300,"Повлачење прихода од квази корпорација"]
[2074,741400,"Приход од имовине који припада имаоцима полиса осигурања",79,245]
[2075,741500,"Закуп непроизведене имовине"]
[2076,741600,"Финансијске промене на финансијским лизинзима"]
[2077,742000,"ПРИХОДИ ОД ПРОДАЈЕ ДОБАРА И УСЛУГА (од 2078 до 2081)",{"$f":"SUM(D98:D101)","v":11624},{"$f":"SUM(E98:E101)","v":5797}]
[2078,742100,"Приходи од продаје добара и услуга или закупа од стране тржишних организација"]
[2079,742200,"Таксе и накнаде"]
[2080,742300,"Споредне продаје добара и услуга које врше државне нетржишне јединице",11624,5797]
[2081,742400,"Импутиране продаје добара и услуга"]
[2082,743000,"НОВЧАНЕ КАЗНЕ И ОДУЗЕТА ИМОВИНСКА КОРИСТ (од 2083 до 2088)",{"$f":"SUM(D103:D108)","v":0},{"$f":"SUM(E103:E108)","v":0}]
[2083,743100,"Приходи од новчаних казни за кривична дела "]
[2084,743200,"Приходи од новчаних казни за привредне преступе"]
[2085,743300,"Приходи од новчаних казни за прекршаје"]
[2086,743400,"Приходи од пенала"]
[2087,743500,"Приходи од одузете имовинске користи"]
[2088,743900,"Остале новчане казне, пенали и приходи од одузете имовинске користи"]
[2089,744000,"ДОБРОВОЉНИ ТРАНСФЕРИ ОД ФИЗИЧКИХ И ПРАВНИХ ЛИЦА (2090 + 2091)",{"$f":"D110+D111","v":0},{"$f":"E110+E111","v":0}]
[2090,744100,"Текући добровољни трансфери од физичких и правних лица"]
[2091,744200,"Капитални добровољни трансфери од физичких и правних лица"]
[2092,745000,"МЕШОВИТИ И НЕОДРЕЂЕНИ ПРИХОДИ (2093)",{"$f":"D113","v":1179},{"$f":"E113","v":707}]
[2093,745100,"Мешовити и неодређени приходи",1179,707]
[2094,770000,"МЕМОРАНДУМСКЕ СТАВКЕ ЗА РЕФУНДАЦИЈУ РАСХОДА (2095 + 2097)",{"$f":"D115+D117","v":0},{"$f":"E115+E117","v":0}]
[2095,771000,"МЕМОРАНДУМСКЕ СТАВКЕ ЗА РЕФУНДАЦИЈУ РАСХОДА (2096)",{"$f":"D116","v":0},{"$f":"E116","v":0}]
[2096,771100,"Меморандумске ставке за рефундацију расхода"]
[2097,772000,"МЕМОРАНДУМСКЕ СТАВКЕ ЗА РЕФУНДАЦИЈУ РАСХОДА ИЗ ПРЕТХОДНЕ ГОДИНЕ (2098)",{"$f":"D118","v":0},{"$f":"E118","v":0}]
[2098,772100,"Меморандумске ставке за рефундацију расхода из претходне године"]
[2099,780000,"ТРАНСФЕРИ ИЗМЕЂУ БУЏЕТСКИХ КОРИСНИКА НА ИСТОМ НИВОУ (2100)",{"$f":"D120","v":242397},{"$f":"E120","v":265495}]
[2100,781000,"ТРАНСФЕРИ ИЗМЕЂУ БУЏЕТСКИХ КОРИСНИКА НА ИСТОМ НИВОУ (2101 + 2102)",{"$f":"D121+D122","v":242397},{"$f":"E121+E122","v":265495}]
[2101,781100,"Трансфери између буџетских корисника на истом нивоу",242397,265495]
[2102,781300,"Трансфери између организација обавезног социјалног осигурања"]
[2103,790000,"ПРИХОДИ ИЗ БУЏЕТА (2104)",{"$f":"D124","v":112},{"$f":"E124","v":7674}]
[2104,791000,"ПРИХОДИ ИЗ БУЏЕТА (2105)",{"$f":"D125","v":112},{"$f":"E125","v":7674}]
[2105,791100,"Приходи из буџета",112,7674]
[2106,800000,"ПРИМАЊА ОД ПРОДАЈЕ НЕФИНАНСИЈСКЕ ИМОВИНЕ (2107 + 2114 + 2121 + 2124)",{"$f":"D127+D134+D141+D144","v":0},{"$f":"E127+E134+E141+E144","v":0}]
[2107,810000,"ПРИМАЊА ОД ПРОДАЈЕ ОСНОВНИХ СРЕДСТАВА (2108 + 2110 + 2112)",{"$f":"D128+D130+D132","v":0},{"$f":"E128+E130+E132","v":0}]
[2108,811000,"ПРИМАЊА ОД ПРОДАЈЕ НЕПОКРЕТНОСТИ (2109)",{"$f":"D129","v":0},{"$f":"E129","v":0}]
[2109,811100,"Примања од продаје непокретности"]
[2110,812000,"ПРИМАЊА ОД ПРОДАЈЕ ПОКРЕТНЕ ИМОВИНЕ (2111)",{"$f":"D131","v":0},{"$f":"E131","v":0}]
[2111,812100,"Примања од продаје покретне имовине"]
[2112,813000,"ПРИМАЊА ОД ПРОДАЈЕ ОСТАЛИХ ОСНОВНИХ СРЕДСТАВА (2113)",{"$f":"D133","v":0},{"$f":"E133","v":0}]
[2113,813100,"Примања од продаје осталих основних средстава"]
[2114,820000,"ПРИМАЊА ОД ПРОДАЈЕ ЗАЛИХА (2115 + 2117 + 2119)",{"$f":"D135+D137+D139","v":0},{"$f":"E135+E137+E139","v":0}]
[2115,821000,"ПРИМАЊА ОД ПРОДАЈЕ РОБНИХ РЕЗЕРВИ (2116)",{"$f":"D136","v":0},{"$f":"E136","v":0}]
[2116,821100,"Примања од продаје робних резерви"]
[2117,822000,"ПРИМАЊА ОД ПРОДАЈЕ ЗАЛИХА ПРОИЗВОДЊЕ (2118)",{"$f":"D138","v":0},{"$f":"E138","v":0}]
[2118,822100,"Примања од продаје залиха производње"]
[2119,823000,"ПРИМАЊА ОД ПРОДАЈЕ РОБЕ ЗА ДАЉУ ПРОДАЈУ (2120)",{"$f":"D140","v":0},{"$f":"E140","v":0}]
[2120,823100,"Примања од продаје робе за даљу продају"]
[2121,830000,"ПРИМАЊА ОД ПРОДАЈЕ ДРАГОЦЕНОСТИ (2122)",{"$f":"D142","v":0},{"$f":"E142","v":0}]
[2122,831000,"ПРИМАЊА ОД ПРОДАЈЕ ДРАГОЦЕНОСТИ (2123)",{"$f":"D143","v":0},{"$f":"E143","v":0}]
[2123,831100,"Примања од продаје драгоцености"]
[2124,840000,"ПРИМАЊА ОД ПРОДАЈЕ ПРИРОДНЕ ИМОВИНЕ (2125 + 2127 + 2129)",{"$f":"D145+D147+D149","v":0},{"$f":"E145+E147+E149","v":0}]
[2125,841000,"ПРИМАЊА ОД ПРОДАЈЕ ЗЕМЉИШТА (2126)",{"$f":"D146","v":0},{"$f":"E146","v":0}]
[2126,841100,"Примања од продаје земљишта"]
[2127,842000,"ПРИМАЊА ОД ПРОДАЈЕ ПОДЗЕМНИХ БЛАГА (2128)",{"$f":"D148","v":0},{"$f":"E148","v":0}]
[2128,842100,"Примања од продаје подземних блага"]
[2129,843000,"ПРИМАЊА ОД ПРОДАЈЕ ШУМА И ВОДА (2130)",{"$f":"D150","v":0},{"$f":"E150","v":0}]
[2130,843100,"Примања од продаје шума и вода"]
[2131,null,"ТЕКУЋИ РАСХОДИ И ИЗДАЦИ ЗА НЕФИНАНСИЈСКУ ИМОВИНУ (2132 + 2300)",{"$f":"D152+D320","v":266042},{"$f":"E152+E320","v":286729}]
[2132,400000,"ТЕКУЋИ РАСХОДИ  (2133 + 2155 + 2200 + 2215 + 2239 + 2252 + 2268 + 2283)",{"$f":"D153+D175+D220+D235+D259+D272+D288+D303","v":261920},{"$f":"E153+E175+E220+E235+E259+E272+E288+E303","v":277934}]
[2133,410000,"РАСХОДИ ЗА ЗАПОСЛЕНЕ (2134 + 2136 + 2140 + 2142 + 2147 + 2149 + 2151 + 2153)",{"$f":"D154+D156+D160+D162+D167+D169+D171+D173","v":220488},{"$f":"E154+E156+E160+E162+E167+E169+E171+E173","v":237742}]
[2134,411000,"ПЛАТЕ, ДОДАЦИ И НАКНАДЕ ЗАПОСЛЕНИХ (ЗАРАДЕ) (2135)",{"$f":"D155","v":179367},{"$f":"E155","v":190619}]
[2135,411100,"Плате, додаци и накнаде запослених",179367,190619]
[2136,412000,"СОЦИЈАЛНИ ДОПРИНОСИ НА ТЕРЕТ ПОСЛОДАВЦА (од 2137 до 2139)",{"$f":"SUM(D157:D159)","v":30917},{"$f":"SUM(E157:E159)","v":31991}]
[2137,412100,"Допринос за пензијско и инвалидско осигурање ",21678,22175]
[2138,412200,"Допринос за здравствено осигурање",9239,9816]
[2139,412300,"Допринос за незапосленост"]
[2140,413000,"НАКНАДЕ У НАТУРИ (2141)",{"$f":"D161","v":0},{"$f":"E161","v":0}]
[2141,413100,"Накнаде у натури"]
[2142,414000,"СОЦИЈАЛНА ДАВАЊА ЗАПОСЛЕНИМА (од 2143 до 2146)",{"$f":"SUM(D163:D166)","v":1021},{"$f":"SUM(E163:E166)","v":3819}]
[2143,414100,"Исплата накнада за време одсуствовања с посла на терет фондова"]
[2144,414200,"Расходи за образовање деце запослених"]
[2145,414300,"Отпремнине и помоћи",647,1243]
[2146,414400,"Помоћ у медицинском лечењу запосленог или чланова уже породице и друге помоћи запосленом",374,2576]
[2147,415000,"НАКНАДЕ ТРОШКОВА ЗА ЗАПОСЛЕНЕ (2148)",{"$f":"D168","v":7239},{"$f":"E168","v":8009}]
[2148,415100,"Накнаде трошкова за запослене",7239,8009]
[2149,416000,"НАГРАДЕ ЗАПОСЛЕНИМА И ОСТАЛИ ПОСЕБНИ РАСХОДИ (2150)",{"$f":"D170","v":1944},{"$f":"E170","v":3304}]
[2150,416100,"Награде запосленима и остали посебни расходи",1944,3304]
[2151,417000,"ПОСЛАНИЧКИ ДОДАТАК (2152)",{"$f":"D172","v":0},{"$f":"E172","v":0}]
[2152,417100,"Посланички додатак"]
[2153,418000,"СУДИЈСКИ ДОДАТАК (2154)",{"$f":"D174","v":0},{"$f":"E174","v":0}]
[2154,418100,"Судијски додатак"]
[2155,420000,"КОРИШЋЕЊЕ УСЛУГА И РОБА (2156 + 2164 + 2170 + 2179 + 2187 + 2190)",{"$f":"D176+D184+D190+D199+D207+D210","v":40418},{"$f":"E176+E184+E190+E199+E207+E210","v":39084}]
[2156,421000,"СТАЛНИ ТРОШКОВИ (од 2157 до 2163)",{"$f":"SUM(D177:D183)","v":10287},{"$f":"SUM(E177:E183)","v":10861}]
[2157,421100,"Трошкови платног промета и банкарских услуга",303,319]
[2158,421200,"Енергетске услуге",5979,6521]
[2159,421300,"Комуналне услуге",1651,1590]
[2160,421400,"Услуге комуникација",1528,1592]
[2161,421500,"Трошкови осигурања",826,839]
[2162,421600,"Закуп имовине и опреме"]
[2163,421900,"Остали трошкови"]
[2164,422000,"ТРОШКОВИ ПУТОВАЊА (од 2165 до 2169)",{"$f":"SUM(D185:D189)","v":74},{"$f":"SUM(E185:E189)","v":54}]
[2165,422100,"Трошкови службених путовања у земљи"]
[2166,422200,"Трошкови службених путовања у иностранство"]
[2167,422300,"Трошкови путовања у оквиру редовног рада",74,54]
[2168,422400,"Трошкови путовања ученика"]
[2169,422900,"Остали трошкови транспорта"]
[2170,423000,"УСЛУГЕ ПО УГОВОРУ (од 2171 до 2178)",{"$f":"SUM(D191:D198)","v":1631},{"$f":"SUM(E191:E198)","v":2260}]
[2171,423100,"Административне услуге"]
[2172,423200,"Компјутерске услуге",1199,1512]
[2173,423300,"Услуге образовања и усавршавања запослених",80,453]
[2174,423400,"Услуге информисања",7,7]
[2175,423500,"Стручне услуге",323,288]
[2176,423600,"Услуге за домаћинство и угоститељство",22]
[2177,423700,"Репрезентација"]
[2178,423900,"Остале опште услуге"]
[2179,424000,"СПЕЦИЈАЛИЗОВАНЕ УСЛУГЕ (од 2180 до 2186)",{"$f":"SUM(D200:D206)","v":2765},{"$f":"SUM(E200:E206)","v":510}]
[2180,424100,"Пољопривредне услуге"]
[2181,424200,"Услуге образовања, културе и спорта"]
[2182,424300,"Медицинске услуге",246,150]
[2183,424400,"Услуге одржавања аутопутева"]
[2184,424500,"Услуге одржавања националних паркова и природних површина"]
[2185,424600,"Услуге очувања животне средине, науке и геодетске услуге"]
[2186,424900,"Остале специјализоване услуге",2519,360]
[2187,425000,"ТЕКУЋЕ ПОПРАВКЕ И ОДРЖАВАЊЕ (УСЛУГЕ И МАТЕРИЈАЛИ) (2188 + 2189)",{"$f":"D208+D209","v":2098},{"$f":"E208+E209","v":2342}]
[2188,425100,"Текуће поправке и одржавање зграда и објеката",434,694]
[2189,425200,"Текуће поправке и одржавање опреме",1664,1648]
[2190,426000,"МАТЕРИЈАЛ (од 2191 до 2199)",{"$f":"SUM(D211:D219)","v":23563},{"$f":"SUM(E211:E219)","v":23057}]
[2191,426100,"Административни материјал",2457,1163]
[2192,426200,"Материјали за пољопривреду "]
[2193,426300,"Материјали за образовање и усавршавање запослених"]
[2194,426400,"Материјали за саобраћај",4379,5421]
[2195,426500,"Материјали за очување животне средине и науку"]
[2196,426600,"Материјали за образовање, културу и спорт"]
[2197,426700,"Медицински и лабораторијски материјали",16429,15978]
[2198,426800,"Материјали за одржавање хигијене и угоститељство",236,495]
[2199,426900,"Материјали за посебне намене",62]
[2200,430000,"АМОРТИЗАЦИЈА И УПОТРЕБА СРЕДСТАВА ЗА РАД  (2201 + 2205 + 2207 + 2209 + 2213)",{"$f":"D221+D225+D227+D229+D233","v":181},{"$f":"E221+E225+E227+E229+E233","v":93}]
[2201,431000,"АМОРТИЗАЦИЈА НЕКРЕТНИНА И ОПРЕМЕ (од 2202 до 2204)",{"$f":"SUM(D222:D224)","v":181},{"$f":"SUM(E222:E224)","v":93}]
[2202,431100,"Амортизација зграда и грађевинских објеката",29,14]
[2203,431200,"Амортизација опреме",152,79]
[2204,431300,"Амортизација осталих некретнина и опреме"]
[2205,432000,"АМОРТИЗАЦИЈА КУЛТИВИСАНЕ ОПРЕМЕ (од 2206)",{"$f":"D226","v":0},{"$f":"E226","v":0}]
[2206,432100,"Амортизација култивисане опреме"]
[2207,433000,"УПОТРЕБА ДРАГОЦЕНОСТИ (2208)",{"$f":"D228","v":0},{"$f":"E228","v":0}]
[2208,433100,"Употреба драгоцености"]
[2209,434000,"УПОТРЕБА ПРИРОДНЕ ИМОВИНЕ (од 2210 до 2212)",{"$f":"SUM(D230:D232)","v":0},{"$f":"SUM(E230:E232)","v":0}]
[2210,434100,"Употребa земљишта"]
[2211,434200,"Употреба подземног блага"]
[2212,434300,"Употреба шума и вода"]
[2213,435000,"АМОРТИЗАЦИЈА НЕМАТЕРИЈАЛНЕ ИМОВИНЕ (2214)",{"$f":"D234","v":0},{"$f":"E234","v":0}]
[2214,435100,"Амортизација нематеријалне имовине"]
[2215,440000,"ОТПЛАТА КАМАТА И ПРАТЕЋИ ТРОШКОВИ ЗАДУЖИВАЊА (2216 + 2226 + 2233 + 2235)",{"$f":"D236+D246+D253+D255","v":8},{"$f":"E236+E246+E253+E255","v":15}]
[2216,441000,"ОТПЛАТЕ ДОМАЋИХ КАМАТА (од 2217 до 2225)",{"$f":"SUM(D237:D245)","v":8},{"$f":"SUM(E237:E245)","v":15}]
[2217,441100,"Отплата камата на домаће хартије од вредности"]
[2218,441200,"Отплата камата осталим нивоима власти"]
[2219,441300,"Отплата камата домаћим јавним финансијским институцијама",8,15]
[2220,441400,"Отплата камата домаћим пословним банкама"]
[2221,441500,"Отплата камата осталим домаћим кредиторима"]
[2222,441600,"Отплата камата домаћинствима у земљи"]
[2223,441700,"Отплата камата на домаће финансијске деривате"]
[2224,441800,"Отплата камата на домаће менице"]
[2225,441900,"Финансијске промене на финансијским лизинзима"]
[2226,442000,"ОТПЛАТА СТРАНИХ КАМАТА (од 2227 до 2232)",{"$f":"SUM(D247:D252)","v":0},{"$f":"SUM(E247:E252)","v":0}]
[2227,442100,"Отплата камата на хартије од вредности емитоване на иностраном финансијском тржишту"]
[2228,442200,"Отплата камата страним владама"]
[2229,442300,"Отплата камата мултилатералним институцијама"]
[2230,442400,"Отплата камата страним пословним банкама"]
[2231,442500,"Отплата камата осталим страним кредиторима"]
[2232,442600,"Отплата камата на стране финансијске деривате"]
[2233,443000,"ОТПЛАТА КАМАТА ПО ГАРАНЦИЈАМА (2234)",{"$f":"D254","v":0},{"$f":"E254","v":0}]
[2234,443100,"Отплата камата по гаранцијама"]
[2235,444000,"ПРАТЕЋИ ТРОШКОВИ ЗАДУЖИВАЊА (од 2236 до 2238)",{"$f":"SUM(D256:D258)","v":0},{"$f":"SUM(E256:E258)","v":0}]
[2236,444100,"Негативне курсне разлике"]
[2237,444200,"Казне за кашњење"]
[2238,444300,"Остали пратећи трошкови задуживања"]
[2239,450000,"СУБВЕНЦИЈЕ (2240 + 2243 + 2246 + 2249)",{"$f":"D260+D263+D266+D269","v":0},{"$f":"E260+E263+E266+E269","v":0}]
[2240,451000,"СУБВЕНЦИЈЕ ЈАВНИМ НЕФИНАНСИЈСКИМ ПРЕДУЗЕЋИМА И ОРГАНИЗАЦИЈАМА (2241 + 2242)",{"$f":"D261+D262","v":0},{"$f":"E261+E262","v":0}]
[2241,451100,"Текуће субвенције јавним нефинансијским предузећима и организацијама"]
[2242,451200,"Капиталне субвенције јавним нефинансијским предузећима и организацијама"]
[2243,452000,"СУБВЕНЦИЈЕ ПРИВАТНИМ ФИНАНСИЈСКИМ  ИНСТИТУЦИЈАМА (2244 + 2245)",{"$f":"D264+D265","v":0},{"$f":"E264+E265","v":0}]
[2244,452100,"Текуће субвенције приватним финансијским институцијама"]
[2245,452200,"Капиталне субвенције приватним финансијским институцијама"]
[2246,453000,"СУБВЕНЦИЈЕ ЈАВНИМ ФИНАНСИЈСКИМ  ИНСТИТУЦИЈАМА (2247 + 2248)",{"$f":"D267+D268","v":0},{"$f":"E267+E268","v":0}]
[2247,453100,"Текуће субвенције јавним финансијским институцијама"]
[2248,453200,"Капиталне субвенције јавним финансијским институцијама"]
[2249,454000,"СУБВЕНЦИЈЕ ПРИВАТНИМ ПРЕДУЗЕЋИМА (2250 + 2251)",{"$f":"D270+D271","v":0},{"$f":"E270+E271","v":0}]
[2250,454100,"Текуће субвенције приватним предузећима"]
[2251,454200,"Капиталне субвенције приватним предузећима"]
[2252,460000,"ДОНАЦИЈЕ, ДОТАЦИЈЕ И ТРАНСФЕРИ (2253 + 2256 + 2259 + 2262 + 2265)",{"$f":"D273+D276+D279+D282+D285","v":529},{"$f":"E273+E276+E279+E282+E285","v":600}]
[2253,461000,"ДОНАЦИЈЕ СТРАНИМ ВЛАДАМА (2254 + 2255)",{"$f":"D274+D275","v":0},{"$f":"E274+E275","v":0}]
[2254,461100,"Текуће донације страним владама"]
[2255,461200,"Капиталне донације страним владама"]
[2256,462000,"ДОТАЦИЈЕ МЕЂУНАРОДНИМ ОРГАНИЗАЦИЈАМА (2257 + 2258)",{"$f":"D277+D278","v":0},{"$f":"E277+E278","v":0}]
[2257,462100,"Текуће дотације међународним организацијама"]
[2258,462200,"Капиталне дотације међународним организацијама"]
[2259,463000,"ТРАНСФЕРИ ОСТАЛИМ НИВОИМА ВЛАСТИ (2260 + 2261)",{"$f":"D280+D281","v":0},{"$f":"E280+E281","v":0}]
[2260,463100,"Текући трансфери осталим нивоима власти"]
[2261,463200,"Капитални трансфери осталим нивоима власти"]
[2262,464000,"ДОТАЦИЈЕ ОРГАНИЗАЦИЈАМА ОБАВЕЗНОГ СОЦИЈАЛНОГ ОСИГУРАЊА (2263 + 2264)",{"$f":"D283+D284","v":0},{"$f":"E283+E284","v":0}]
[2263,464100,"Текуће дотације организацијама обавезног социјалног осигурања"]
[2264,464200,"Капиталне дотације организацијама обавезног социјалног осигурања"]
[2265,465000,"ОСТАЛЕ ДОТАЦИЈЕ И ТРАНСФЕРИ (2266 + 2267)",{"$f":"D286+D287","v":529},{"$f":"E286+E287","v":600}]
[2266,465100,"Остале текуће дотације и трансфери",529,600]
[2267,465200,"Остале капиталне дотације и трансфери"]
[2268,470000,"СОЦИЈАЛНО ОСИГУРАЊЕ И СОЦИЈАЛНА ЗАШТИТА (2269 + 2273)",{"$f":"D289+D293","v":0},{"$f":"E289+E293","v":0}]
[2269,471000,"ПРАВА ИЗ СОЦИЈАЛНОГ ОСИГУРАЊА (ОРГАНИЗАЦИЈЕ ОБАВЕЗНОГ СОЦИЈАЛНОГ ОСИГУРАЊА) (од 2270 до 2272)",{"$f":"SUM(D290:D292)","v":0},{"$f":"SUM(E290:E292)","v":0}]
[2270,471100,"Права из социјалног осигурања која се исплаћују непосредно домаћинствима"]
[2271,471200,"Права из социјалног осигурања која се исплаћују непосредно пружаоцима услуга"]
[2272,471900,"Трансфери другим организацијама обавезног социјалног осигурања за доприносе за осигурање"]
[2273,472000,"НАКНАДЕ ЗА СОЦИЈАЛНУ ЗАШТИТУ ИЗ БУЏЕТА (од 2274 до 2282)",{"$f":"SUM(D294:D302)","v":0},{"$f":"SUM(E294:E302)","v":0}]
[2274,472100,"Накнаде из буџета у случају болести и инвалидности"]
[2275,472200,"Накнаде из буџета за породиљско одсуство "]
[2276,472300,"Накнаде из буџета за децу и породицу "]
[2277,472400,"Накнаде из буџета за случај незапослености "]
[2278,472500,"Старосне и породичне пензије из буџета"]
[2279,472600,"Накнаде из буџета у случају смрти"]
[2280,472700,"Накнаде из буџета за образовање, културу, науку и спорт "]
[2281,472800,"Накнаде из буџета за становање и живот "]
[2282,472900,"Остале накнаде из буџета"]
[2283,480000,"ОСТАЛИ РАСХОДИ (2284 + 2287 + 2291 + 2293 + 2296 + 2298)",{"$f":"D304+D307+D311+D313+D316+D318","v":296},{"$f":"E304+E307+E311+E313+E316+E318","v":400}]
[2284,481000,"ДОТАЦИЈЕ НЕВЛАДИНИМ ОРГАНИЗАЦИЈАМА (2285 + 2286)",{"$f":"D305+D306","v":0},{"$f":"E305+E306","v":0}]
[2285,481100,"Дотације непрофитним организацијама које пружају помоћ домаћинствима"]
[2286,481900,"Дотације осталим непрофитним институцијама"]
[2287,482000,"ПОРЕЗИ, ОБАВЕЗНЕ ТАКСЕ, КАЗНЕ, ПЕНАЛИ И КАМАТЕ (од 2288 до 2290)",{"$f":"SUM(D308:D310)","v":294},{"$f":"SUM(E308:E310)","v":240}]
[2288,482100,"Остали порези",294,239]
[2289,482200,"Обавезне таксе",null,1]
[2290,482300,"Новчане казне, пенали и камате"]
[2291,483000,"НОВЧАНЕ КАЗНЕ И ПЕНАЛИ ПО РЕШЕЊУ СУДОВА (2292)",{"$f":"D312","v":2},{"$f":"E312","v":160}]
[2292,483100,"Новчане казне и пенали по решењу судова",2,160]
[2293,484000,"НАКНАДА ШТЕТЕ ЗА ПОВРЕДЕ ИЛИ ШТЕТУ НАСТАЛУ УСЛЕД ЕЛЕМЕНТАРНИХ НЕПОГОДА ИЛИ ДРУГИХ ПРИРОДНИХ УЗРОКА (2294 + 2295)",{"$f":"D314+D315","v":0},{"$f":"E314+E315","v":0}]
[2294,484100,"Накнада штете за повреде или штету услед елементарних непогода"]
[2295,484200,"Накнада штете од дивљачи"]
[2296,485000,"НАКНАДА ШТЕТЕ ЗА ПОВРЕДЕ ИЛИ ШТЕТУ НАНЕТУ ОД СТРАНЕ ДРЖАВНИХ ОРГАНА (2297)",{"$f":"D317","v":0},{"$f":"E317","v":0}]
[2297,485100,"Накнада штете за повреде или штету нанете од стране државних органа"]
[2298,489000,"РАСХОДИ КОЈИ СЕ ФИНАНСИРАЈУ ИЗ СРЕДСТАВА ЗА РЕАЛИЗАЦИЈУ НАЦИОНАЛНОГ ИНВЕСТИЦИОНОГ ПЛАНА (2299)",{"$f":"D319","v":0},{"$f":"E319","v":0}]
[2299,489100,"Расходи који се финансирају из средстава за реализацију националног инвестиционог плана"]
[2300,500000,"ИЗДАЦИ ЗА НЕФИНАНСИЈСКУ ИМОВИНУ (2301 + 2323 + 2332 + 2335 + 2343)",{"$f":"D321+D343+D352+D355+D363","v":4122},{"$f":"E321+E343+E352+E355+E363","v":8795}]
[2301,510000,"ОСНОВНА СРЕДСТВА (2302 + 2307 + 2317 + 2319 + 2321)",{"$f":"D322+D327+D337+D339+D341","v":4122},{"$f":"E322+E327+E337+E339+E341","v":8795}]
[2302,511000,"ЗГРАДЕ И ГРАЂЕВИНСКИ ОБЈЕКТИ (од 2303 до 2306)",{"$f":"SUM(D323:D326)","v":2939},{"$f":"SUM(E323:E326)","v":0}]
[2303,511100,"Куповина зграда и објеката"]
[2304,511200,"Изградња зграда и објеката"]
[2305,511300,"Капитално одржавање зграда и објеката",2939]
[2306,511400,"Пројектно планирање"]
[2307,512000,"МАШИНЕ И ОПРЕМА (од 2308 до 2316)",{"$f":"SUM(D328:D336)","v":1183},{"$f":"SUM(E328:E336)","v":8795}]
[2308,512100,"Опрема за саобраћај"]
[2309,512200,"Административна опрема",715,985]
[2310,512300,"Опрема за пољопривреду"]
[2311,512400,"Опрема за заштиту животне средине"]
[2312,512500,"Медицинска и лабораторијска опрема",468,7810]
[2313,512600,"Опрема за образовање, науку, културу и спорт"]
[2314,512700,"Опрема за војску"]
[2315,512800,"Опрема за јавну безбедност"]
[2316,512900,"Опрема за производњу, моторна, непокретна и немоторна опрема"]
[2317,513000,"ОСТАЛЕ НЕКРЕТНИНЕ И ОПРЕМА (2318)",{"$f":"D338","v":0},{"$f":"E338","v":0}]
[2318,513100,"Остале некретнине и опрема"]
[2319,514000,"КУЛТИВИСАНА ИМОВИНА (2320)",{"$f":"D340","v":0},{"$f":"E340","v":0}]
[2320,514100,"Култивисана имовина"]
[2321,515000,"НЕМАТЕРИЈАЛНА ИМОВИНА (2322)",{"$f":"D342","v":0},{"$f":"E342","v":0}]
[2322,515100,"Нематеријална имовина"]
[2323,520000,"ЗАЛИХЕ (2324 + 2326 + 2330)",{"$f":"D344+D346+D350","v":0},{"$f":"E344+E346+E350","v":0}]
[2324,521000,"РОБНЕ РЕЗЕРВЕ (2325)",{"$f":"D345","v":0},{"$f":"E345","v":0}]
[2325,521100,"Робне резерве"]
[2326,522000,"ЗАЛИХЕ ПРОИЗВОДЊЕ (од 2327 до 2329)",{"$f":"SUM(D347:D349)","v":0},{"$f":"SUM(E347:E349)","v":0}]
[2327,522100,"Залихе материјала"]
[2328,522200,"Залихе недовршене производње"]
[2329,522300,"Залихе готових производа"]
[2330,523000,"ЗАЛИХЕ РОБЕ ЗА ДАЉУ ПРОДАЈУ (2331)",{"$f":"D351","v":0},{"$f":"E351","v":0}]
[2331,523100,"Залихе робе за даљу продају"]
[2332,530000,"ДРАГОЦЕНОСТИ (2333)",{"$f":"D353","v":0},{"$f":"E353","v":0}]
[2333,531000,"ДРАГОЦЕНОСТИ (2334)",{"$f":"D354","v":0},{"$f":"E354","v":0}]
[2334,531100,"Драгоцености"]
[2335,540000,"ПРИРОДНА ИМОВИНА (2336 + 2338 + 2340)",{"$f":"D356+D358+D360","v":0},{"$f":"E356+E358+E360","v":0}]
[2336,541000,"ЗЕМЉИШТЕ (2337)",{"$f":"D357","v":0},{"$f":"E357","v":0}]
[2337,541100,"Земљиште"]
[2338,542000,"РУДНА БОГАТСТВА (2339)",{"$f":"D359","v":0},{"$f":"E359","v":0}]
[2339,542100,"Копови"]
[2340,543000,"ШУМЕ И ВОДЕ (2341 + 2342)",{"$f":"D361+D362","v":0},{"$f":"E361+E362","v":0}]
[2341,543100,"Шуме"]
[2342,543200,"Воде"]
[2343,550000,"НЕФИНАНСИЈСКА ИМОВИНА КОЈА СЕ ФИНАНСИРА ИЗ СРЕДСТАВА ЗА РЕАЛИЗАЦИЈУ НАЦИОНАЛНОГ ИНВЕСТИЦИОНОГ ПЛАНА (2344)",{"$f":"D364","v":0},{"$f":"E364","v":0}]
[2344,551000,"НЕФИНАНСИЈСКА ИМОВИНА КОЈА СЕ ФИНАНСИРА ИЗ СРЕДСТАВА ЗА РЕАЛИЗАЦИЈУ НАЦИОНАЛНОГ ИНВЕСТИЦИОНОГ ПЛАНА (2345)",{"$f":"D365","v":0},{"$f":"E365","v":0}]
[2345,551100,"Нефинансијска имовина која се финансира из средстава за реализацију националног инвестиционог плана"]
[null,null,"УТВРЂИВАЊЕ РЕЗУЛТАТА ПОСЛОВАЊА "]
[2346,null,"Вишак прихода и примања - буџетски суфицит (2001 - 2131) > 0",{"$f":"IF((D21-D151)>0,D21-D151,0)","v":6206},{"$f":"IF((E21-E151)>0,E21-E151,0)","v":4852}]
[2347,null,"Мањак прихода и примања - буџетски дефицит (2131 - 2001) > 0",{"$f":"IF((D151-D21)>0,D151-D21,0)","v":0},{"$f":"IF((E151-E21)>0,E151-E21,0)","v":0}]
[2348,null,"КОРИГОВАЊЕ ВИШКА, ОДНОСНО МАЊКА ПРИХОДА И ПРИМАЊА (од 2349 до 2353)",{"$f":"D370+D371+D372+D373+D374","v":0},{"$f":"E370+E371+E372+E373+E374","v":0}]
[2349,null,"Део нераспоређеног вишка прихода и примања из ранијих година који је коришћен за покриће расхода и издатака текуће године"]
[2350,null,"Део новчаних средстава амортизације који је коришћен за набавку нефинансијске имовине"]
[2351,null,"Део пренетих неутрошених средстава из ранијих година коришћен за покриће расхода и издатака текуће године"]
[2352,null,"Износ расхода и издатака за нефинансијску имовину, финансираних из кредита"]
[2353,null,"Износ приватизационих примања и примања од отплате датих кредита коришћен за покриће расхода и издатака текуће године"]
[2354,null,"ПОКРИЋЕ ИЗВРШЕНИХ ИЗДАТАКА ИЗ ТЕКУЋИХ ПРИХОДА И ПРИМАЊА (2355 + 2356)",{"$f":"D376+D377","v":0},{"$f":"E376+E377","v":0}]
[2355,null,"Утрошена средства текућих прихода и примања од продаје нефинансијске имовине за отплату обавеза по кредитима"]
[2356,null,"Утрошена средства текућих прихода и примања од продаје нефинансијске имовине за набавку финансијске имовине"]
[2357,321121,"ВИШАК ПРИХОДА И ПРИМАЊА – СУФИЦИТ (2346 + 2348 - 2347-2354) > 0",{"$f":"IF((D367+D369-D368-D375)>0,D367+D369-D368-D375,0)","v":6206},{"$f":"IF((E367+E369-E368-E375)>0,E367+E369-E368-E375,0)","v":4852}]
[2358,321122,"МАЊАК ПРИХОДА И ПРИМАЊА – ДЕФИЦИТ (2347 + 2354 - 2346 - 2348) > 0",{"$f":"IF((D368+D375-D367-D369)>0,D368+D375-D367-D369,0)","v":0},{"$f":"IF((E368+E375-E367-E369)>0,E368+E375-E367-E369,0)","v":0}]
[2359,null,"ВИШАК ПРИХОДА И ПРИМАЊА – СУФИЦИТ (ЗА ПРЕНОС У НАРЕДНУ ГОДИНУ) (2360 + 2361 = 2357)",{"$f":"D381+D382","v":6206},{"$f":"E381+E382","v":4852}]
[2360,null,"Део вишка прихода и примања наменски опредељен за наредну годину"]
[2361,null,"Нераспоређени део вишка прихода и примања за пренос у наредну годину ",6206,4852]
[]
["Датум ",null,"                                                               Лице одговорно за      ","              Наредбодавац"]
[null,null,"                                                          попуњавање обрасца"]

{"sheet":"Obrazac3","index":3,"n_rows":186,"n_cols":5,"rows_kept":186,"cut":false,"hidden":false,"merged":[[184,3,184,4],[13,0,13,4],[14,0,14,4],[17,1,18,1],[17,2,18,2],[17,3,17,4]]}
[null,null,null,null,"Образац 3"]
[]
[]
[]
[]
[]
["Назив корисника буџетских средстава"]
[{"$f":"NazKorisnika","v":"ДОМ ЗДРАВЉА ЖАБАЉ"}]
[{"$f":"\"Седиште:   \" &biop","v":"Седиште:   ЖАБАЉ"},null,null,{"$f":" \"Матични број:   \" & MatBroj","v":"Матични број:   08062463"}]
[{"$f":"\"ПИБ:   \" & bip","v":"ПИБ:   100647845"},null,null,{"$f":"\"Број подрачуна:  \" & BrojPodr","v":"Број подрачуна:  840-451661-41"}]
["Назив надлежног директног корисника буџетских средстава"]
[]
[]
["ИЗВЕШТАЈ О КАПИТАЛНИМ ИЗДАЦИМА И ПРИМАЊИМА"]
["у периоду 01.01.2022. - 31.12.2022."]
[]
[null,null,null,null,"(У хиљадама динара)"]
["Ознака","Број конта","Опис","Износ"]
["ОП",null,null,"Претходна година","Текућа година"]
[1,2,3,4,5]
[3001,null,"ПРИМАЊА (3002 + 3027)",{"$f":"D22+D47","v":0},{"$f":"E22+E47","v":0}]
[3002,800000,"ПРИМАЊА ОД ПРОДАЈЕ НЕФИНАНСИЈСКЕ ИМОВИНЕ (3003 + 3010 + 3017 + 3020)",{"$f":"D23+D30+D37+D40","v":0},{"$f":"E23+E30+E37+E40","v":0}]
[3003,810000,"ПРИМАЊА ОД ПРОДАЈЕ ОСНОВНИХ СРЕДСТАВА (3004 + 3006 + 3008)",{"$f":"D24+D26+D28","v":0},{"$f":"E24+E26+E28","v":0}]
[3004,811000,"ПРИМАЊА ОД ПРОДАЈЕ НЕПОКРЕТНОСТИ (3005)",{"$f":"D25","v":0},{"$f":"E25","v":0}]
[3005,811100,"Примања од продаје непокретности"]
[3006,812000,"ПРИМАЊА ОД ПРОДАЈЕ ПОКРЕТНЕ ИМОВИНЕ (3007)",{"$f":"D27","v":0},{"$f":"E27","v":0}]
[3007,812100,"Примања од продаје покретне имовине"]
[3008,813000,"ПРИМАЊА ОД ПРОДАЈЕ ОСТАЛИХ ОСНОВНИХ СРЕДСТАВА (3009)",{"$f":"D29","v":0},{"$f":"E29","v":0}]
[3009,813100,"Примања од продаје осталих основних средстава"]
[3010,820000,"ПРИМАЊА ОД ПРОДАЈЕ ЗАЛИХА (3011 + 3013 + 3015)",{"$f":"D31+D33+D35","v":0},{"$f":"E31+E33+E35","v":0}]
[3011,821000,"ПРИМАЊА ОД ПРОДАЈЕ РОБНИХ РЕЗЕРВИ (3012)",{"$f":"D32","v":0},{"$f":"E32","v":0}]
[3012,821100,"Примања од продаје робних резерви"]
[3013,822000,"ПРИМАЊА ОД ПРОДАЈЕ ЗАЛИХА ПРОИЗВОДЊЕ (3014)",{"$f":"D34","v":0},{"$f":"E34","v":0}]
[3014,822100,"Примања од продаје залиха производње"]
[3015,823000,"ПРИМАЊА ОД ПРОДАЈЕ РОБЕ ЗА ДАЉУ ПРОДАЈУ (3016)",{"$f":"D36","v":0},{"$f":"E36","v":0}]
[3016,823100,"Примања од продаје робе за даљу продају"]
[3017,830000,"ПРИМАЊА ОД ПРОДАЈЕ ДРАГОЦЕНОСТИ (3018)",{"$f":"D38","v":0},{"$f":"E38","v":0}]
[3018,831000,"ПРИМАЊА ОД ПРОДАЈЕ ДРАГОЦЕНОСТИ (3019)",{"$f":"D39","v":0},{"$f":"E39","v":0}]
[3019,831100,"Примања од продаје драгоцености"]
[3020,840000,"ПРИМАЊА ОД ПРОДАЈЕ ПРИРОДНЕ ИМОВИНЕ (3021 + 3023 + 3025)",{"$f":"D41+D43+D45","v":0},{"$f":"E41+E43+E45","v":0}]
[3021,841000,"ПРИМАЊА ОД ПРОДАЈЕ ЗЕМЉИШТА (3022)",{"$f":"D42","v":0},{"$f":"E42","v":0}]
[3022,841100,"Примања од продаје земљишта"]
[3023,842000,"ПРИМАЊА ОД ПРОДАЈЕ ПОДЗЕМНИХ БЛАГА (3024)",{"$f":"D44","v":0},{"$f":"E44","v":0}]
[3024,842100,"Примања од продаје подземних блага"]
[3025,843000,"ПРИМАЊА ОД ПРОДАЈЕ ШУМА И ВОДА (3026)",{"$f":"D46","v":0},{"$f":"E46","v":0}]
[3026,843100,"Примања од продаје шума и вода"]
[3027,900000,"ПРИМАЊА ОД ЗАДУЖИВАЊА И ПРОДАЈЕ ФИНАНСИЈСКЕ ИМОВИНЕ (3028 + 3047)",{"$f":"D48+D67","v":0},{"$f":"E48+E67","v":0}]
[3028,910000,"ПРИМАЊА ОД ЗАДУЖИВАЊА (3029 + 3039)",{"$f":"D49+D59","v":0},{"$f":"E49+E59","v":0}]
[3029,911000,"ПРИМАЊА ОД ДОМАЋИХ ЗАДУЖИВАЊА (од 3030 до 3038)",{"$f":"SUM(D50:D58)","v":0},{"$f":"SUM(E50:E58)","v":0}]
[3030,911100,"Примања од емитовања домаћих хартија од вредности, изузев акција"]
[3031,911200,"Примања од задуживања од осталих нивоа власти"]
[3032,911300,"Примања од задуживања од јавних финансијских институција у земљи"]
[3033,911400,"Примања од задуживања од пословних банака у земљи"]
[3034,911500,"Примања од задуживања од осталих поверилаца у земљи"]
[3035,911600,"Примања од задуживања од домаћинстава у земљи"]
[3036,911700,"Примања од домаћих финансијских деривата"]
[3037,911800,"Примања од домаћих меница"]
[3038,911900,"Исправка унутрашњег дуга"]
[3039,912000,"ПРИМАЊА ОД ИНОСТРАНОГ ЗАДУЖИВАЊА (од 3040 до 3046)",{"$f":"SUM(D60:D66)","v":0},{"$f":"SUM(E60:E66)","v":0}]
[3040,912100,"Примања од емитовања хартија од вредности, изузев акција, на иностраном финансијском тржишту "]
[3041,912200,"Примања од задуживања од иностраних држава"]
[3042,912300,"Примања од задуживања од мултилатералних институција"]
[3043,912400,"Примања од задуживања од иностраних пословних банака "]
[3044,912500,"Примања од задуживања од осталих иностраних поверилаца"]
[3045,912600,"Примања од иностраних финансијских деривата"]
[3046,912900,"Исправка спољног дуга"]
[3047,920000,"ПРИМАЊА ОД ПРОДАЈЕ ФИНАНСИЈСКЕ ИМОВИНЕ (3048 + 3058)",{"$f":"D68+D78","v":0},{"$f":"E68+E78","v":0}]
[3048,921000,"ПРИМАЊА ОД ПРОДАЈЕ ДОМАЋЕ ФИНАНСИЈСКЕ ИМОВИНЕ (од 3049 до 3057) ",{"$f":"SUM(D69:D77)","v":0},{"$f":"SUM(E69:E77)","v":0}]
[3049,921100,"Примања од продаје домаћих хартија од вредности, изузев акција"]
[3050,921200,"Примања од отплате кредита датих осталим нивоима власти"]
[3051,921300,"Примања од отплате кредита датих домаћим јавним финансијским институцијама"]
[3052,921400,"Примања од отплате кредита датих домаћим пословним банкама"]
[3053,921500,"Примања од отплате кредита датих домаћим јавним нефинансијским институцијама"]
[3054,921600,"Примања од отплате кредита датих физичким лицима и домаћинствима у земљи"]
[3055,921700,"Примања од отплате кредита датих удружењима грађана у земљи"]
[3056,921800,"Примања од отплате кредита датих нефинансијским приватним предузећима у земљи"]
[3057,921900,"Примања од продаје домаћих акција и осталог капитала"]
[3058,922000,"ПРИМАЊА ОД ПРОДАЈЕ СТРАНЕ ФИНАНСИЈСКЕ ИМОВИНЕ (од 3059 до 3066)",{"$f":"SUM(D79:D86)","v":0},{"$f":"SUM(E79:E86)","v":0}]
[3059,922100,"Примања од продаје страних хартија од вредности, изузев акција"]
[3060,922200,"Примања од отплате кредита датих страним владама"]
[3061,922300,"Примања од отплате кредита датих међународним организацијама"]
[3062,922400,"Примања од отплате кредита датих страним пословним банкама"]
[3063,922500,"Примања од отплате кредита датих страним нефинансијским институцијама"]
[3064,922600,"Примања од отплате кредита датих страним невладиним организацијама"]
[3065,922700,"Примања од продаје страних акција и осталог капитала"]
[3066,922800,"Примања од продаје стране валуте"]
[3067,null,"ИЗДАЦИ (3068 + 3114)",{"$f":"D88+D134","v":4122},{"$f":"E88+E134","v":8795}]
[3068,500000,"ИЗДАЦИ ЗА НЕФИНАНСИЈСКУ ИМОВИНУ (3069 + 3091 + 3100 + 3103 + 3111)",{"$f":"D89+D111+D120+D123+D131","v":4122},{"$f":"E89+E111+E120+E123+E131","v":8795}]
[3069,510000,"ОСНОВНА СРЕДСТВА (3070 + 3075 + 3085 + 3087 + 3089)",{"$f":"D90+D95+D105+D107+D109","v":4122},{"$f":"E90+E95+E105+E107+E109","v":8795}]
[3070,511000,"ЗГРАДЕ И ГРАЂЕВИНСКИ ОБЈЕКТИ (од 3071 до 3074)",{"$f":"SUM(D91:D94)","v":2939},{"$f":"SUM(E91:E94)","v":0}]
[3071,511100,"Куповина зграда и објеката",2939]
[3072,511200,"Изградња зграда и објеката"]
[3073,511300,"Капитално одржавање зграда и објеката"]
[3074,511400,"Пројектно планирање"]
[3075,512000,"МАШИНЕ И ОПРЕМА (од 3076 до 3084)",{"$f":"SUM(D96:D104)","v":1183},{"$f":"SUM(E96:E104)","v":8795}]
[3076,512100,"Опрема за саобраћај"]
[3077,512200,"Административна опрема",715,985]
[3078,512300,"Опрема за пољопривреду"]
[3079,512400,"Опрема за заштиту животне средине"]
[3080,512500,"Медицинска и лабораторијска опрема",468,7810]
[3081,512600,"Опрема за образовање, културу и спорт"]
[3082,512700,"Опрема за војску"]
[3083,512800,"Опрема за јавну безбедност"]
[3084,512900,"Опрема за производњу, моторна, непокретна и немоторна опрема"]
[3085,513000,"ОСТАЛЕ НЕКРЕТНИНЕ И ОПРЕМА (3086)",{"$f":"D106","v":0},{"$f":"E106","v":0}]
[3086,513100,"Остале некретнине и опрема"]
[3087,514000,"КУЛТИВИСАНА ИМОВИНА (3088)",{"$f":"D108","v":0},{"$f":"E108","v":0}]
[3088,514100,"Култивисана имовина"]
[3089,515000,"НЕМАТЕРИЈАЛНА ИМОВИНА (3090)",{"$f":"D110","v":0},{"$f":"E110","v":0}]
[3090,515100,"Нематеријална имовина"]
[3091,520000,"ЗАЛИХЕ (3092 + 3094 + 3098)",{"$f":"D112+D114+D118","v":0},{"$f":"E112+E114+E118","v":0}]
[3092,521000,"РОБНЕ РЕЗЕРВЕ (3093)",{"$f":"D113","v":0},{"$f":"E113","v":0}]
[3093,521100,"Робне резерве"]
[3094,522000,"ЗАЛИХЕ ПРОИЗВОДЊЕ (од 3095 до 3097)",{"$f":"SUM(D115:D117)","v":0},{"$f":"SUM(E115:E117)","v":0}]
[3095,522100,"Залихе материјала"]
[3096,522200,"Залихе недовршене производње"]
[3097,522300,"Залихе готових производа"]
[3098,523000,"ЗАЛИХЕ РОБЕ ЗА ДАЉУ ПРОДАЈУ (3099)",{"$f":"D119","v":0},{"$f":"E119","v":0}]
[3099,523100,"Залихе робе за даљу продају"]
[3100,530000,"ДРАГОЦЕНОСТИ (3101)",{"$f":"D121","v":0},{"$f":"E121","v":0}]
[3101,531000,"ДРАГОЦЕНОСТИ (3102)",{"$f":"D122","v":0},{"$f":"E122","v":0}]
[3102,531100,"Драгоцености",0,0]
[3103,540000,"ПРИРОДНА ИМОВИНА (3104 + 3106 + 3108)",{"$f":"D124+D126+D128","v":0},{"$f":"E124+E126+E128","v":0}]
[3104,541000,"ЗЕМЉИШТЕ (3105)",{"$f":"D125","v":0},{"$f":"E125","v":0}]
[3105,541100,"Земљиште"]
[3106,542000,"РУДНА БОГАТСТВА (3107)",{"$f":"D127","v":0},{"$f":"E127","v":0}]
[3107,542100,"Копови"]
[3108,543000,"ШУМЕ И ВОДЕ (3109 + 3110)",{"$f":"D129+D130","v":0},{"$f":"E129+E130","v":0}]
[3109,543100,"Шуме"]
[3110,543200,"Воде"]
[3111,550000,"НЕФИНАНСИЈСКА ИМОВИНА КОЈА СЕ ФИНАНСИРА ИЗ СРЕДСТАВА ЗА РЕАЛИЗАЦИЈУ НАЦИОНАЛНОГ ИНВЕСТИЦИОНОГ ПЛАНА (3112)",{"$f":"D132","v":0},{"$f":"E132","v":0}]
[3112,551000,"НЕФИНАНСИЈСКА ИМОВИНА КОЈА СЕ ФИНАНСИРА ИЗ СРЕДСТАВА ЗА РЕАЛИЗАЦИЈУ НАЦИОНАЛНОГ ИНВЕСТИЦИОНОГ ПЛАНА (3113)",{"$f":"D133","v":0},{"$f":"E133","v":0}]
[3113,551100,"Нефинансијска имовина која се финансира из средстава за реализацију националног инвестиционог плана"]
[3114,600000,"ИЗДАЦИ ЗА ОТПЛАТУ ГЛАВНИЦЕ И НАБАВКУ ФИНАНСИЈСКЕ ИМОВИНЕ (3115 + 3140)",{"$f":"D135+D160","v":0},{"$f":"E135+E160","v":0}]
[3115,610000,"ОТПЛАТА ГЛАВНИЦЕ (3116 + 3126 + 3134 + 3136 + 3138)",{"$f":"D136+D146+D154+D156+D158","v":0},{"$f":"E136+E146+E154+E156+E158","v":0}]
[3116,611000,"ОТПЛАТА ГЛАВНИЦЕ ДОМАЋИМ КРЕДИТОРИМА (од 3117 до 3125)",{"$f":"SUM(D137:D145)","v":0},{"$f":"SUM(E137:E145)","v":0}]
[3117,611100,"Отплата главнице умањена за дисконт на домаће хартије од вредности, изузев акција"]
[3118,611200,"Отплата главнице осталим нивоима власти"]
[3119,611300,"Отплата главнице домаћим јавним финансијским институцијама"]
[3120,611400,"Отплата главнице домаћим пословним банкама"]
[3121,611500,"Отплата главнице осталим домаћим кредиторима"]
[3122,611600,"Отплата главнице домаћинствима у земљи"]
[3123,611700,"Отплата главнице на домаће финансијске деривате "]
[3124,611800,"Отплата домаћих меница"]
[3125,611900,"Исправка унутрашњег дуга"]
[3126,612000,"ОТПЛАТА ГЛАВНИЦЕ СТРАНИМ КРЕДИТОРИМА (од 3127 до 3133)",{"$f":"SUM(D147:D153)","v":0},{"$f":"SUM(E147:E153)","v":0}]
[3127,612100,"Отплата главнице умањена за дисконт на хартије од вредности, изузев акција, емитоване на иностраном финансијском тржишту"]
[3128,612200,"Отплата главнице страним владама"]
[3129,612300,"Отплата главнице мултилатералним институцијама"]
[3130,612400,"Отплата главнице страним пословним банкама"]
[3131,612500,"Отплата главнице осталим страним кредиторима"]
[3132,612600,"Отплата главнице на стране финансијске деривате"]
[3133,612900,"Исправка спољног дуга"]
[3134,613000,"ОТПЛАТА ГЛАВНИЦЕ ПО ГАРАНЦИЈАМА (3135)",{"$f":"D155","v":0},{"$f":"E155","v":0}]
[3135,613100,"Отплата главнице по гаранцијама"]
[3136,614000,"ОТПЛАТА ГЛАВНИЦЕ ЗА ФИНАНСИЈСКИ ЛИЗИНГ (3137)",{"$f":"D157","v":0},{"$f":"E157","v":0}]
[3137,614100,"Отплата главнице за финансијски лизинг"]
[3138,615000,"ОТПЛАТА ГАРАНЦИЈА ПО КОМЕРЦИЈАЛНИМ ТРАНСАКЦИЈАМА (3139)",{"$f":"D159","v":0},{"$f":"E159","v":0}]
[3139,615100,"Отплата гаранција по комерцијалним трансакцијама"]
[3140,620000,"НАБАВКА ФИНАНСИЈСКЕ ИМОВИНЕ (3141 + 3151 + 3160)",{"$f":"D161+D171+D180","v":0},{"$f":"E161+E171+E180","v":0}]
[3141,621000,"НАБАВКА ДОМАЋЕ ФИНАНСИЈСКЕ ИМОВИНЕ (од 3142 до 3150)",{"$f":"SUM(D162:D170)","v":0},{"$f":"SUM(E162:E170)","v":0}]
[3142,621100,"Набавка домаћих хартија од вредности, изузев акција"]
[3143,621200,"Кредити осталим нивоима власти"]
[3144,621300,"Кредити домаћим јавним финансијским институцијама"]
[3145,621400,"Кредити домаћим пословним банкама"]
[3146,621500,"Кредити домаћим нефинансијским јавним институцијама"]
[3147,621600,"Кредити физичким лицима и домаћинствима у земљи"]
[3148,621700,"Кредити невладиним организацијама у земљи"]
[3149,621800,"Кредити домаћим нефинансијским приватним предузећима"]
[3150,621900,"Набавка домаћих акција и осталог капитала"]
[3151,622000,"НАБАВКА СТРАНЕ ФИНАНСИЈСКЕ ИМОВИНЕ (од 3152 до 3159)",{"$f":"SUM(D172:D179)","v":0},{"$f":"SUM(E172:E179)","v":0}]
[3152,622100,"Набавка страних хартија од вредности, изузев акција"]
[3153,622200,"Кредити страним владама"]
[3154,622300,"Кредити међународним организацијама"]
[3155,622400,"Кредити страним пословним банкама"]
[3156,622500,"Кредити страним нефинансијским институцијама"]
[3157,622600,"Кредити страним невладиним организацијама"]
[3158,622700,"Набавка страних акција и осталог капитала"]
[3159,622800,"Куповина стране валуте"]
[3160,623000,"НАБАВКА ФИНАНСИЈСКЕ ИМОВИНЕ КОЈА СЕ ФИНАНСИРА ИЗ СРЕДСТАВА ЗА РЕАЛИЗАЦИЈУ НАЦИОНАЛНОГ ИНВЕСТИЦИОНОГ ПЛАНА (3161)",{"$f":"D181","v":0},{"$f":"E181","v":0}]
[3161,623100,"Набавка финансијске имовине која се финансира из средстава за реализацију националног инвестиционог плана"]
[3162,null,"ВИШАК ПРИМАЊА (3001 – 3067) > 0",{"$f":"IF(D21-D87>0,D21-D87,0)","v":0},{"$f":"IF(E21-E87>0,E21-E87,0)","v":0}]
[3163,null,"МАЊАК ПРИМАЊА (3067 – 3001) > 0",{"$f":"IF(D87-D21>0,D87-D21,0)","v":4122},{"$f":"IF(E87-E21>0,E87-E21,0)","v":8795}]
[]
["Датум ",null,"                                                              Лице одговорно за      ","                      Наредбодавац"]
[null,null,"                                                          попуњавање обрасца"]

{"sheet":"Obrazac4","index":4,"n_rows":465,"n_cols":5,"rows_kept":465,"cut":false,"hidden":false,"merged":[[463,3,463,4],[13,0,13,4],[14,0,14,4],[17,0,18,0],[17,1,18,1],[17,2,18,2],[17,3,17,4]]}
[null,null,null,null,"Образац 4"]
[]
[]
[]
[]
[]
["Назив корисника буџетских средстава"]
[{"$f":"NazKorisnika","v":"ДОМ ЗДРАВЉА ЖАБАЉ"}]
[{"$f":"\"Седиште:   \" &biop","v":"Седиште:   ЖАБАЉ"},null,null,{"$f":" \"Матични број:   \" & MatBroj","v":"Матични број:   08062463"}]
[{"$f":"\"ПИБ:   \" & bip","v":"ПИБ:   100647845"},null,null,{"$f":"\"Број подрачуна:  \" & BrojPodr","v":"Број подрачуна:  840-451661-41"}]
["Назив надлежног директног корисника буџетских средстава"]
[]
[]
["ИЗВЕШТАЈ О НОВЧАНИМ ТОКОВИМА"]
["у периоду 01.01.2022. - 31.12.2022."]
[]
[null,null,null,null,"(У хиљадама динара)"]
["Ознака ОП","Број конта","Опис","Износ "]
[null,null,null,"Претходна година","Текућа година"]
[1,2,3,4,5]
[4001,null,"Н О В Ч А Н И  П Р И Л И В И (4002 + 4106 + 4131)",{"$f":"D22+D126+D151","v":272248},{"$f":"E22+E126+E151","v":291581}]
[4002,700000,"ТЕКУЋИ ПРИХОДИ (4003 + 4047 + 4057 + 4069 + 4094 + 4099 + 4103)",{"$f":"D23+D67+D77+D89+D114+D119+D123","v":272248},{"$f":"E23+E67+E77+E89+E114+E119+E123","v":291581}]
[4003,710000,"ПОРЕЗИ (4004 + 4008 + 4010 + 4017 + 4023 + 4030 + 4033 + 4040)",{"$f":"D24+D28+D30+D37+D43+D50+D53+D60","v":0},{"$f":"E24+E28+E30+E37+E43+E50+E53+E60","v":0}]
[4004,711000,"ПОРЕЗ НА ДОХОДАК, ДОБИТ И КАПИТАЛНЕ ДОБИТКЕ (од 4005 до 4007)",{"$f":"SUM(D25:D27)","v":0},{"$f":"SUM(E25:E27)","v":0}]
[4005,711100,"Порези на доходак и капиталне добитке које плаћају физичка лица"]
[4006,711200,"Порези на добит и капиталне добитке које плаћају предузећа и друга правна лица"]
[4007,711300,"Порези на доходак, добит и капиталне добитке који се не могу разврстати између физичких и правних лица"]
[4008,712000,"ПОРЕЗ НА ФОНД ЗАРАДА (4009)",{"$f":"D29","v":0},{"$f":"E29","v":0}]
[4009,712100,"Порез на фонд зарада"]
[4010,713000,"ПОРЕЗ НА ИМОВИНУ (од 4011 до 4016)",{"$f":"SUM(D31:D36)","v":0},{"$f":"SUM(E31:E36)","v":0}]
[4011,713100,"Периодични порези на непокретности"]
[4012,713200,"Периодични порези на нето имовину"]
[4013,713300,"Порези на заоставштину, наслеђе и поклон"]
[4014,713400,"Порези на финансијске и капиталне трансакције"]
[4015,713500,"Други једнократни порези на имовину"]
[4016,713600,"Други периодични порези на имовину"]
[4017,714000,"ПОРЕЗ НА ДОБРА И УСЛУГЕ (од 4018 до 4022)",{"$f":"SUM(D38:D42)","v":0},{"$f":"SUM(E38:E42)","v":0}]
[4018,714100,"Општи порези на добра и услуге"]
[4019,714300,"Добит фискалних монопола"]
[4020,714400,"Порези на појединачне услуге"]
[4021,714500,"Порези, таксе и накнаде на употребу добара, на дозволу да се добра употребљавају или делатности обављају"]
[4022,714600,"Други порези на добра и услуге"]
[4023,715000,"ПОРЕЗ НА МЕЂУНАРОДНУ ТРГОВИНУ И ТРАНСАКЦИЈЕ (од 4024 до 4029)",{"$f":"SUM(D44:D49)","v":0},{"$f":"SUM(E44:E49)","v":0}]
[4024,715100,"Царине и друге увозне дажбине"]
[4025,715200,"Порези на извоз"]
[4026,715300,"Добит извозних или увозних монопола"]
[4027,715400,"Добит по основу разлике између куповног и продајног девизног курса"]
[4028,715500,"Порези на продају или куповину девиза"]
[4029,715600,"Други порези на међународну трговину и трансакције"]
[4030,716000,"ДРУГИ ПОРЕЗИ (4031 + 4032)",{"$f":"D51+D52","v":0},{"$f":"E51+E52","v":0}]
[4031,716100,"Други порези које искључиво плаћају предузећа, односно предузетници"]
[4032,716200,"Други порези које плаћају остала лица или који се не могу идентификовати"]
[4033,717000,"АКЦИЗЕ (од 4034 до 4039)",{"$f":"SUM(D54:D59)","v":0},{"$f":"SUM(E54:E59)","v":0}]
[4034,717100,"Акцизе на деривате нафте"]
[4035,717200,"Акцизе на дуванске прерађевине"]
[4036,717300,"Акцизе на алкохолна пића"]
[4037,717400,"Акцизе на освежавајућа безалкохолна пића"]
[4038,717500,"Акцизе на кафу"]
[4039,717600,"Друге акцизе"]
[4040,719000,"ЈЕДНОКРАТНИ ПОРЕЗ НА ЕКСТРА ПРОФИТ И ЕКСТРА ИМОВИНУ СТЕЧЕНУ КОРИШЋЕЊЕМ ПОСЕБНИХ ПОГОДНОСТИ (од 4041 до 4046)",{"$f":"SUM(D61:D66)","v":0},{"$f":"SUM(E61:E66)","v":0}]
[4041,719100,"Порез на доходак, добит и капиталну добит на терет физичких лица"]
[4042,719200,"Порез на доходак, добит и капиталну добит на терет предузећа и осталих правних лица"]
[4043,719300,"Порез на доходак, добит и капиталну добит нераспоредив између физичких и правних лица"]
[4044,719400,"Остали једнократни порези на имовину"]
[4045,719500,"Остали порези које плаћају искључиво предузећа и предузетници"]
[4046,719600,"Остали порези које плаћају друга или неидентификована лица"]
[4047,720000,"СОЦИЈАЛНИ ДОПРИНОСИ (4048 + 4053)",{"$f":"D68+D73","v":0},{"$f":"E68+E73","v":0}]
[4048,721000,"ДОПРИНОСИ ЗА СОЦИЈАЛНО ОСИГУРАЊЕ (од 4049 до 4052)",{"$f":"SUM(D69:D72)","v":0},{"$f":"SUM(E69:E72)","v":0}]
[4049,721100,"Доприноси за социјално осигурање на терет запослених"]
[4050,721200,"Доприноси за социјално осигурање на терет послодавца"]
[4051,721300,"Доприноси за социјално осигурање лица која обављају самосталну делатност и незапослених лица"]
[4052,721400,"Доприноси за социјално осигурање који се не могу разврстати"]
[4053,722000,"ОСТАЛИ СОЦИЈАЛНИ ДОПРИНОСИ (од 4054 до 4056)",{"$f":"SUM(D74:D76)","v":0},{"$f":"SUM(E74:E76)","v":0}]
[4054,722100,"Социјални доприноси на терет осигураника"]
[4055,722200,"Социјални доприноси на терет послодаваца"]
[4056,722300,"Импутирани социјални доприноси"]
[4057,730000,"ДОНАЦИЈЕ, ПОМОЋИ И ТРАНСФЕРИ (4058 + 4061 + 4066)",{"$f":"D78+D81+D86","v":16857},{"$f":"E78+E81+E86","v":11663}]
[4058,731000,"ДОНАЦИЈЕ ОД ИНОСТРАНИХ ДРЖАВА (од 4059 + 4060)",{"$f":"D79+D80","v":0},{"$f":"E79+E80","v":0}]
[4059,731100,"Текуће донације од иностраних држава"]
[4060,731200,"Капиталне донације од иностраних држава"]
[4061,732000,"ДОНАЦИЈЕ И ПОМОЋИ ОД МЕЂУНАРОДНИХ ОРГАНИЗАЦИЈА (од 4062 до 4065)",{"$f":"D82+D83+D84+D85","v":0},{"$f":"E82+E83+E84+E85","v":0}]
[4062,732100,"Текуће донације од међународних организација"]
[4063,732200,"Капиталне донације од међународних организација"]
[4064,732300,"Текуће помоћи од ЕУ"]
[4065,732400,"Капиталне помоћи од ЕУ"]
[4066,733000,"ТРАНСФЕРИ ОД ДРУГИХ НИВОА ВЛАСТИ (4067 + 4068)",{"$f":"D87+D88","v":16857},{"$f":"E87+E88","v":11663}]
[4067,733100,"Текући трансфери од других нивоа власти",16857,11663]
[4068,733200,"Капитални трансфери од других нивоа власти"]
[4069,740000,"ДРУГИ ПРИХОДИ (4070 + 4077 + 4082 + 4089 + 4092)",{"$f":"D90+D97+D102+D109+D112","v":12882},{"$f":"E90+E97+E102+E109+E112","v":6749}]
[4070,741000,"ПРИХОДИ ОД ИМОВИНЕ (од 4071 до 4076)",{"$f":"SUM(D91:D96)","v":79},{"$f":"SUM(E91:E96)","v":245}]
[4071,741100,"Камате"]
[4072,741200,"Дивиденде"]
[4073,741300,"Повлачење прихода од квази корпорација"]
[4074,741400,"Приход од имовине који припада имаоцима полиса осигурања",79,245]
[4075,741500,"Закуп непроизведене имовине"]
[4076,741600,"Финансијске промене на финансијским лизинзима"]
[4077,742000,"ПРИХОДИ ОД ПРОДАЈЕ ДОБАРА И УСЛУГА (од 4078 до 4081)",{"$f":"SUM(D98:D101)","v":11624},{"$f":"SUM(E98:E101)","v":5797}]
[4078,742100,"Приходи од продаје добара и услуга или закупа од стране тржишних организација"]
[4079,742200,"Таксе и накнаде"]
[4080,742300,"Споредне продаје добара и услуга које врше државне нетржишне јединице",11624,5797]
[4081,742400,"Импутиране продаје добара и услуга"]
[4082,743000,"НОВЧАНЕ КАЗНЕ И ОДУЗЕТА ИМОВИНСКА КОРИСТ (од 4083 до 4088)",{"$f":"SUM(D103:D108)","v":0},{"$f":"SUM(E103:E108)","v":0}]
[4083,743100,"Приходи од новчаних казни за кривична дела "]
[4084,743200,"Приходи од новчаних казни за привредне преступе"]
[4085,743300,"Приходи од новчаних казни за прекршаје"]
[4086,743400,"Приходи од пенала"]
[4087,743500,"Приходи од одузете имовинске користи"]
[4088,743900,"Остале новчане казне, пенали и приходи од одузете имовинске користи"]
[4089,744000,"ДОБРОВОЉНИ ТРАНСФЕРИ ОД ФИЗИЧКИХ И ПРАВНИХ ЛИЦА (4090 + 4091)",{"$f":"D110+D111","v":0},{"$f":"E110+E111","v":0}]
[4090,744100,"Текући добровољни трансфери од физичких и правних лица"]
[4091,744200,"Капитални добровољни трансфери од физичких и правних лица"]
[4092,745000,"МЕШОВИТИ И НЕОДРЕЂЕНИ ПРИХОДИ (4093)",{"$f":"D113","v":1179},{"$f":"E113","v":707}]
[4093,745100,"Мешовити и неодређени приходи",1179,707]
[4094,770000,"МЕМОРАНДУМСКЕ СТАВКЕ ЗА РЕФУНДАЦИЈУ РАСХОДА (4095 + 4097)",{"$f":"D115+D117","v":0},{"$f":"E115+E117","v":0}]
[4095,771000,"МЕМОРАНДУМСКЕ СТАВКЕ ЗА РЕФУНДАЦИЈУ РАСХОДА (4096)",{"$f":"D116","v":0},{"$f":"E116","v":0}]
[4096,771100,"Меморандумске ставке за рефундацију расхода"]
[4097,772000,"МЕМОРАНДУМСКЕ СТАВКЕ ЗА РЕФУНДАЦИЈУ РАСХОДА ИЗ ПРЕТХОДНЕ ГОДИНЕ (4098)",{"$f":"D118","v":0},{"$f":"E118","v":0}]
[4098,772100,"Меморандумске ставке за рефундацију расхода из претходне године"]
[4099,780000,"ТРАНСФЕРИ ИЗМЕЂУ БУЏЕТСКИХ КОРИСНИКА НА ИСТОМ НИВОУ (4100)",{"$f":"D120","v":242397},{"$f":"E120","v":265495}]
[4100,781000,"ТРАНСФЕРИ ИЗМЕЂУ БУЏЕТСКИХ КОРИСНИКА НА ИСТОМ НИВОУ (4101 + 4102)",{"$f":"D121+D122","v":242397},{"$f":"E121+E122","v":265495}]
[4101,781100,"Трансфери између буџетских корисника на истом нивоу",242397,265495]
[4102,781300,"Трансфери између организација обавезног социјалног осигурања"]
[4103,790000,"ПРИХОДИ ИЗ БУЏЕТА (4104)",{"$f":"D124","v":112},{"$f":"E124","v":7674}]
[4104,791000,"ПРИХОДИ ИЗ БУЏЕТА (4105)",{"$f":"D125","v":112},{"$f":"E125","v":7674}]
[4105,791100,"Приходи из буџета",112,7674]
[4106,800000,"ПРИМАЊА ОД ПРОДАЈЕ НЕФИНАНСИЈСКЕ ИМОВИНЕ (4107 + 4114 + 4121 + 4124)",{"$f":"D127+D134+D141+D144","v":0},{"$f":"E127+E134+E141+E144","v":0}]
[4107,810000,"ПРИМАЊА ОД ПРОДАЈЕ ОСНОВНИХ СРЕДСТАВА (4108 + 4110 + 4112)",{"$f":"D128+D130+D132","v":0},{"$f":"E128+E130+E132","v":0}]
[4108,811000,"ПРИМАЊА ОД ПРОДАЈЕ НЕПОКРЕТНОСТИ (4109)",{"$f":"D129","v":0},{"$f":"E129","v":0}]
[4109,811100,"Примања од продаје непокретности"]
[4110,812000,"ПРИМАЊА ОД ПРОДАЈЕ ПОКРЕТНЕ ИМОВИНЕ (4111)",{"$f":"D131","v":0},{"$f":"E131","v":0}]
[4111,812100,"Примања од продаје покретне имовине"]
[4112,813000,"ПРИМАЊА ОД ПРОДАЈЕ ОСТАЛИХ ОСНОВНИХ СРЕДСТАВА (4113)",{"$f":"D133","v":0},{"$f":"E133","v":0}]
[4113,813100,"Примања од продаје осталих основних средстава"]
[4114,820000,"ПРИМАЊА ОД ПРОДАЈЕ ЗАЛИХА (4115 + 4117 + 4119)",{"$f":"D135+D137+D139","v":0},{"$f":"E135+E137+E139","v":0}]
[4115,821000,"ПРИМАЊА ОД ПРОДАЈЕ РОБНИХ РЕЗЕРВИ (4116)",{"$f":"D136","v":0},{"$f":"E136","v":0}]
[4116,821100,"Примања од продаје робних резерви"]
[4117,822000,"ПРИМАЊА ОД ПРОДАЈЕ ЗАЛИХА ПРОИЗВОДЊЕ (4118)",{"$f":"D138","v":0},{"$f":"E138","v":0}]
[4118,822100,"Примања од продаје залиха производње"]
[4119,823000,"ПРИМАЊА ОД ПРОДАЈЕ РОБЕ ЗА ДАЉУ ПРОДАЈУ (4120)",{"$f":"D140","v":0},{"$f":"E140","v":0}]
[4120,823100,"Примања од продаје робе за даљу продају"]
[4121,830000,"ПРИМАЊА ОД ПРОДАЈЕ ДРАГОЦЕНОСТИ (4122)",{"$f":"D142","v":0},{"$f":"E142","v":0}]
[4122,831000,"ПРИМАЊА ОД ПРОДАЈЕ ДРАГОЦЕНОСТИ (4123)",{"$f":"D143","v":0},{"$f":"E143","v":0}]
[4123,831100,"Примања од продаје драгоцености"]
[4124,840000,"ПРИМАЊА ОД ПРОДАЈЕ ПРИРОДНЕ ИМОВИНЕ (4125 + 4127 + 4129)",{"$f":"D145+D147+D149","v":0},{"$f":"E145+E147+E149","v":0}]
[4125,841000,"ПРИМАЊА ОД ПРОДАЈЕ ЗЕМЉИШТА (4126)",{"$f":"D146","v":0},{"$f":"E146","v":0}]
[4126,841100,"Примања од продаје земљишта"]
[4127,842000,"ПРИМАЊА ОД ПРОДАЈЕ ПОДЗЕМНИХ БЛАГА (4128)",{"$f":"D148","v":0},{"$f":"E148","v":0}]
[4128,842100,"Примања од продаје подземних блага"]
[4129,843000,"ПРИМАЊА ОД ПРОДАЈЕ ШУМА И ВОДА (4130)",{"$f":"D150","v":0},{"$f":"E150","v":0}]
[4130,843100,"Примања од продаје шума и вода"]
[4131,900000,"ПРИМАЊА ОД ЗАДУЖИВАЊА И ПРОДАЈЕ ФИНАНСИЈСКЕ ИМОВИНЕ (4132 + 4151)",{"$f":"D152+D171","v":0},{"$f":"E152+E171","v":0}]
[4132,910000,"ПРИМАЊА ОД ЗАДУЖИВАЊА (4133 + 4143)",{"$f":"D153+D163","v":0},{"$f":"E153+E163","v":0}]
[4133,911000,"ПРИМАЊА ОД ДОМАЋИХ ЗАДУЖИВАЊА (од 4134 до 4142)",{"$f":"SUM(D154:D162)","v":0},{"$f":"SUM(E154:E162)","v":0}]
[4134,911100,"Примања од емитовања домаћих хартија од вредности, изузев акција"]
[4135,911200,"Примања од задуживања од осталих нивоа власти"]
[4136,911300,"Примања од задуживања од јавних финансијских институција у земљи"]
[4137,911400,"Примања од задуживања од пословних банака у земљи"]
[4138,911500,"Примања од задуживања од осталих поверилаца у земљи"]
[4139,911600,"Примања од задуживања од домаћинстава у земљи"]
[4140,911700,"Примања од домаћих финансијских деривата"]
[4141,911800,"Примања од домаћих меница"]
[4142,911900,"Исправка унутрашњег дуга"]
[4143,912000,"ПРИМАЊА ОД ИНОСТРАНОГ ЗАДУЖИВАЊА (од 4144 до 4150)",{"$f":"SUM(D164:D170)","v":0},{"$f":"SUM(E164:E170)","v":0}]
[4144,912100,"Примања од емитовања хартија од вредности, изузев акција, на иностраном финансијском тржишту"]
[4145,912200,"Примања од задуживања од иностраних држава"]
[4146,912300,"Примања од задуживања од мултилатералних институција"]
[4147,912400,"Примања од задуживања од иностраних пословних банака "]
[4148,912500,"Примања од задуживања од осталих иностраних поверилаца"]
[4149,912600,"Примања од иностраних финансијских деривата"]
[4150,912900,"Исправка спољног дуга"]
[4151,920000,"ПРИМАЊА ОД ПРОДАЈЕ ФИНАНСИЈСКЕ ИМОВИНЕ (4152 + 4162)",{"$f":"D172+D182","v":0},{"$f":"E172+E182","v":0}]
[4152,921000,"ПРИМАЊА ОД ПРОДАЈЕ ДОМАЋЕ ФИНАНСИЈСКЕ ИМОВИНЕ (од 4153 до 4161)",{"$f":"SUM(D173:D181)","v":0},{"$f":"SUM(E173:E181)","v":0}]
[4153,921100,"Примања од продаје домаћих хартија од вредности, изузев акција"]
[4154,921200,"Примања од отплате кредита датих осталим нивоима власти"]
[4155,921300,"Примања од отплате кредита датих домаћим јавним финансијским институцијама"]
[4156,921400,"Примања од отплате кредита датих домаћим пословним банкама"]
[4157,921500,"Примања од отплате кредита датих домаћим јавним нефинансијским институцијама"]
[4158,921600,"Примања од отплате кредита датих физичким лицима и домаћинствима у земљи"]
[4159,921700,"Примања од отплате кредита датих удружењима грађана у земљи"]
[4160,921800,"Примања од отплате кредита датих нефинансијским приватним предузећима у земљи"]
[4161,921900,"Примања од продаје домаћих акција и осталог капитала"]
[4162,922000,"ПРИМАЊА ОД ПРОДАЈЕ СТРАНЕ ФИНАНСИЈСКЕ ИМОВИНЕ (од 4163 до 4170)",{"$f":"SUM(D183:D190)","v":0},{"$f":"SUM(E183:E190)","v":0}]
[4163,922100,"Примања од продаје страних хартија од вредности, изузев акција"]
[4164,922200,"Примања од отплате кредита датих страним владама"]
[4165,922300,"Примања од отплате кредита датих међународним организацијама"]
[4166,922400,"Примања од отплате кредита датих страним пословним банкама"]
[4167,922500,"Примања од отплате кредита датих страним нефинансијским институцијама"]
[4168,922600,"Примања од отплате кредита датих страним невладиним организацијама"]
[4169,922700,"Примања од продаје страних акција и осталог капитала"]
[4170,922800,"Примања од продаје стране валуте"]
[4171,null,"НОВЧАНИ ОДЛИВИ (4172 + 4340 + 4386)",{"$f":"D192+D360+D406","v":266042},{"$f":"E192+E360+E406","v":286729}]
[4172,400000,"ТЕКУЋИ РАСХОДИ (4173 + 4195 + 4240 + 4255 + 4279 + 4292 + 4308 + 4323)",{"$f":"D193+D215+D260+D275+D299+D312+D328+D343","v":261920},{"$f":"E193+E215+E260+E275+E299+E312+E328+E343","v":277934}]
[4173,410000,"РАСХОДИ ЗА ЗАПОСЛЕНЕ (4174 + 4176 + 4180 + 4182 + 4187 + 4189 + 4191+ 4193)",{"$f":"D194+D196+D200+D202+D207+D209+D211+D213","v":220488},{"$f":"E194+E196+E200+E202+E207+E209+E211+E213","v":237742}]
[4174,411000,"ПЛАТЕ, ДОДАЦИ И НАКНАДЕ ЗАПОСЛЕНИХ (ЗАРАДЕ) (4175)",{"$f":"D195","v":179367},{"$f":"E195","v":190619}]
[4175,411100,"Плате, додаци и накнаде запослених",179367,190619]
[4176,412000,"СОЦИЈАЛНИ ДОПРИНОСИ НА ТЕРЕТ ПОСЛОДАВЦА (од 4177 до 4179)",{"$f":"SUM(D197:D199)","v":30917},{"$f":"SUM(E197:E199)","v":31991}]
[4177,412100,"Допринос за пензијско и инвалидско осигурање ",21678,22175]
[4178,412200,"Допринос за здравствено осигурање",9239,9816]
[4179,412300,"Допринос за незапосленост"]
[4180,413000,"НАКНАДЕ У НАТУРИ (4181)",{"$f":"D201","v":0},{"$f":"E201","v":0}]
[4181,413100,"Накнаде у натури"]
[4182,414000,"СОЦИЈАЛНА ДАВАЊА ЗАПОСЛЕНИМА (од 4183 до 4186)",{"$f":"SUM(D203:D206)","v":1021},{"$f":"SUM(E203:E206)","v":3819}]
[4183,414100,"Исплата накнада за време одсуствовања с посла на терет фондова"]
[4184,414200,"Расходи за образовање деце запослених"]
[4185,414300,"Отпремнине и помоћи",647,1243]
[4186,414400,"Помоћ у медицинском лечењу запосленог или чланова уже породице и друге помоћи запосленом",374,2576]
[4187,415000,"НАКНАДЕ ТРОШКОВА ЗА ЗАПОСЛЕНЕ (4188)",{"$f":"D208","v":7239},{"$f":"E208","v":8009}]
[4188,415100,"Накнаде трошкова за запослене",7239,8009]
[4189,416000,"НАГРАДЕ ЗАПОСЛЕНИМА И ОСТАЛИ ПОСЕБНИ РАСХОДИ (4190)",{"$f":"D210","v":1944},{"$f":"E210","v":3304}]
[4190,416100,"Награде запосленима и остали посебни расходи",1944,3304]
[4191,417000,"ПОСЛАНИЧКИ ДОДАТАК (4192)",{"$f":"D212","v":0},{"$f":"E212","v":0}]
[4192,417100,"Посланички додатак"]
[4193,418000,"СУДИЈСКИ ДОДАТАК (4194)",{"$f":"D214","v":0},{"$f":"E214","v":0}]
[4194,418100,"Судијски додатак"]
[4195,420000,"КОРИШЋЕЊЕ УСЛУГА И РОБА (4196 + 4204 + 4210 + 4219 + 4227 + 4230) ",{"$f":"D216+D224+D230+D239+D247+D250","v":40418},{"$f":"E216+E224+E230+E239+E247+E250","v":39084}]
[4196,421000,"СТАЛНИ ТРОШКОВИ (од 4197 до 4203)",{"$f":"SUM(D217:D223)","v":10287},{"$f":"SUM(E217:E223)","v":10861}]
[4197,421100,"Трошкови платног промета и банкарских услуга",303,319]
[4198,421200,"Енергетске услуге",5979,6521]
[4199,421300,"Комуналне услуге",1651,1590]
[4200,421400,"Услуге комуникација",1528,1592]
[4201,421500,"Трошкови осигурања",826,839]
[4202,421600,"Закуп имовине и опреме"]
[4203,421900,"Остали трошкови"]
[4204,422000,"ТРОШКОВИ ПУТОВАЊА (од 4205 до 4209)",{"$f":"SUM(D225:D229)","v":74},{"$f":"SUM(E225:E229)","v":54}]
[4205,422100,"Трошкови службених путовања у земљи"]
[4206,422200,"Трошкови службених путовања у иностранство"]
[4207,422300,"Трошкови путовања у оквиру редовног рада",74,54]
[4208,422400,"Трошкови путовања ученика"]
[4209,422900,"Остали трошкови транспорта"]
[4210,423000,"УСЛУГЕ ПО УГОВОРУ (од 4211 до 4218)",{"$f":"SUM(D231:D238)","v":1631},{"$f":"SUM(E231:E238)","v":2260}]
[4211,423100,"Административне услуге"]
[4212,423200,"Компјутерске услуге",1199,1512]
[4213,423300,"Услуге образовања и усавршавања запослених",80,453]
[4214,423400,"Услуге информисања",7,7]
[4215,423500,"Стручне услуге",323,288]
[4216,423600,"Услуге за домаћинство и угоститељство",22]
[4217,423700,"Репрезентација"]
[4218,423900,"Остале опште услуге"]
[4219,424000,"СПЕЦИЈАЛИЗОВАНЕ УСЛУГЕ (од 4220 до 4226)",{"$f":"SUM(D240:D246)","v":2765},{"$f":"SUM(E240:E246)","v":510}]
[4220,424100,"Пољопривредне услуге"]
[4221,424200,"Услуге образовања, културе и спорта"]
[4222,424300,"Медицинске услуге",246,150]
[4223,424400,"Услуге одржавања аутопутева"]
[4224,424500,"Услуге одржавања националних паркова и природних површина"]
[4225,424600,"Услуге очувања животне средине, науке и геодетске услуге"]
[4226,424900,"Остале специјализоване услуге",2519,360]
[4227,425000,"ТЕКУЋЕ ПОПРАВКЕ И ОДРЖАВАЊЕ (УСЛУГЕ И МАТЕРИЈАЛИ) (4228 + 4229)",{"$f":"D248+D249","v":2098},{"$f":"E248+E249","v":2342}]
[4228,425100,"Текуће поправке и одражавање зграда и објеката",434,694]
[4229,425200,"Текуће поправке и одржавање опреме",1664,1648]
[4230,426000,"МАТЕРИЈАЛ (од 4231 до 4239)",{"$f":"SUM(D251:D259)","v":23563},{"$f":"SUM(E251:E259)","v":23057}]
[4231,426100,"Административни материјал",2457,1163]
[4232,426200,"Материјали за пољопривреду "]
[4233,426300,"Материјали за образовање и усавршавање запослених"]
[4234,426400,"Материјали за саобраћај",4379,5421]
[4235,426500,"Материјали за очување животне средине и науку"]
[4236,426600,"Материјали за образовање, културу и спорт"]
[4237,426700,"Медицински и лабораторијски материјали",16429,15978]
[4238,426800,"Материјали за одржавање хигијене и угоститељство",236,495]
[4239,426900,"Материјали за посебне намене",62]
[4240,430000,"АМОРТИЗАЦИЈА И УПОТРЕБА СРЕДСТАВА ЗА РАД (4241 + 4245 + 4247 + 4249 + 4253)",{"$f":"D261+D265+D267+D269+D273","v":181},{"$f":"E261+E265+E267+E269+E273","v":93}]
[4241,431000,"АМОРТИЗАЦИЈА НЕКРЕТНИНА И ОПРЕМЕ (од 4242 до 4244)",{"$f":"SUM(D262:D264)","v":181},{"$f":"SUM(E262:E264)","v":93}]
[4242,431100,"Амортизација зграда и грађевинских објеката",29,14]
[4243,431200,"Амортизација опреме",152,79]
[4244,431300,"Амортизација осталих некретнина и опреме"]
[4245,432000,"АМОРТИЗАЦИЈА КУЛТИВИСАНЕ ИМОВИНЕ (4246)",{"$f":"D266","v":0},{"$f":"E266","v":0}]
[4246,432100,"Амортизација култивисане имовине"]
[4247,433000,"УПОТРЕБА ДРАГОЦЕНОСТИ (4248)",{"$f":"D268","v":0},{"$f":"E268","v":0}]
[4248,433100,"Употреба драгоцености"]
[4249,434000,"УПОТРЕБА ПРИРОДНЕ ИМОВИНЕ (од 4250 до 4252)",{"$f":"SUM(D270:D272)","v":0},{"$f":"SUM(E270:E272)","v":0}]
[4250,434100,"Употреба земљишта"]
[4251,434200,"Употреба подземног блага"]
[4252,434300,"Употреба шума и вода"]
[4253,435000,"АМОРТИЗАЦИЈА НЕМАТЕРИЈАЛНЕ ИМОВИНЕ (4254)",{"$f":"D274","v":0},{"$f":"E274","v":0}]
[4254,435100,"Амортизација нематеријалне имовине"]
[4255,440000,"ОТПЛАТА КАМАТА И ПРАТЕЋИ ТРОШКОВИ ЗАДУЖИВАЊА (4256 + 4266 + 4273 + 4275)",{"$f":"D276+D286+D293+D295","v":8},{"$f":"E276+E286+E293+E295","v":15}]
[4256,441000,"ОТПЛАТЕ ДОМАЋИХ КАМАТА (од 4257 до 4265)",{"$f":"SUM(D277:D285)","v":8},{"$f":"SUM(E277:E285)","v":15}]
[4257,441100,"Отплата камата на домаће хартије од вредности"]
[4258,441200,"Отплата камата осталим нивоима власти"]
[4259,441300,"Отплата камата домаћим јавним финансијским институцијама",8,15]
[4260,441400,"Отплата камата домаћим пословним банкама"]
[4261,441500,"Отплата камата осталим домаћим кредиторима"]
[4262,441600,"Отплата камата домаћинствима у земљи"]
[4263,441700,"Отплата камата на домаће финансијске деривате"]
[4264,441800,"Отплата камата на домаће менице"]
[4265,441900,"Финансијске промене на финансијским лизинзима"]
[4266,442000,"ОТПЛАТА СТРАНИХ КАМАТА (од 4267 до 4272)",{"$f":"SUM(D287:D292)","v":0},{"$f":"SUM(E287:E292)","v":0}]
[4267,442100,"Отплата камата на хартије од вредности емитоване на иностраном финансијском тржишту"]
[4268,442200,"Отплата камата страним владама"]
[4269,442300,"Отплата камата мултилатералним институцијама"]
[4270,442400,"Отплата камата страним пословним банкама"]
[4271,442500,"Отплата камата осталим страним кредиторима"]
[4272,442600,"Отплата камата на стране финансијске деривате"]
[4273,443000,"ОТПЛАТА КАМАТА ПО ГАРАНЦИЈАМА (4274)",{"$f":"D294","v":0},{"$f":"E294","v":0}]
[4274,443100,"Отплата камата по гаранцијама"]
[4275,444000,"ПРАТЕЋИ ТРОШКОВИ ЗАДУЖИВАЊА (од 4276 до 4278)",{"$f":"SUM(D296:D298)","v":0},{"$f":"SUM(E296:E298)","v":0}]
[4276,444100,"Негативне курсне разлике"]
[4277,444200,"Казне за кашњење"]
[4278,444300,"Остали пратећи трошкови задуживања"]
[4279,450000,"СУБВЕНЦИЈЕ (4280 + 4283 + 4286 + 4289)",{"$f":"D300+D303+D306+D309","v":0},{"$f":"E300+E303+E306+E309","v":0}]
[4280,451000,"СУБВЕНЦИЈЕ ЈАВНИМ НЕФИНАНСИЈСКИМ ПРЕДУЗЕЋИМА И ОРГАНИЗАЦИЈАМА (4281 + 4282)",{"$f":"D301+D302","v":0},{"$f":"E301+E302","v":0}]
[4281,451100,"Текуће субвенције јавним нефинансијским предузећима и организацијама"]
[4282,451200,"Капиталне субвенције јавним нефинансијским предузећима и организацијама"]
[4283,452000,"СУБВЕНЦИЈЕ ПРИВАТНИМ ФИНАНСИЈСКИМ ИНСТИТУЦИЈАМА (4284 + 4285)",{"$f":"D304+D305","v":0},{"$f":"E304+E305","v":0}]
[4284,452100,"Текуће субвенције приватним финансијским институцијама"]
[4285,452200,"Капиталне субвенције приватним финансијским институцијама"]
[4286,453000,"СУБВЕНЦИЈЕ ЈАВНИМ ФИНАНСИЈСКИМ ИНСТИТУЦИЈАМА (4287 + 4288)",{"$f":"D307+D308","v":0},{"$f":"E307+E308","v":0}]
[4287,453100,"Текуће субвенције јавним финансијским институцијама"]
[4288,453200,"Капиталне субвенције јавним финансијским институцијама"]
[4289,454000,"СУБВЕНЦИЈЕ ПРИВАТНИМ ПРЕДУЗЕЋИМА (4290 + 4291)",{"$f":"D310+D311","v":0},{"$f":"E310+E311","v":0}]
[4290,454100,"Текуће субвенције приватним предузећима"]
[4291,454200,"Капиталне субвенције приватним предузећима"]
[4292,460000,"ДОНАЦИЈЕ, ДОТАЦИЈЕ И ТРАНСФЕРИ (4293 + 4296 + 4299 + 4302 + 4305)",{"$f":"D313+D316+D319+D322+D325","v":529},{"$f":"E313+E316+E319+E322+E325","v":600}]
[4293,461000,"ДОНАЦИЈЕ СТРАНИМ ВЛАДАМА (4294 + 4295)",{"$f":"D314+D315","v":0},{"$f":"E314+E315","v":0}]
[4294,461100,"Текуће донације страним владама",null,0]
[4295,461200,"Капиталне донације страним владама",null,0]
[4296,462000,"ДОТАЦИЈЕ МЕЂУНАРОДНИМ ОРГАНИЗАЦИЈАМА (4297 + 4298)",{"$f":"D317+D318","v":0},{"$f":"E317+E318","v":0}]
[4297,462100,"Текуће дотације међународним организацијама"]
[4298,462200,"Капиталне дотације међународним организацијама"]
[4299,463000,"ТРАНСФЕРИ ОСТАЛИМ НИВОИМА ВЛАСТИ (4300 + 4301)",{"$f":"D320+D321","v":0},{"$f":"E320+E321","v":0}]
[4300,463100,"Текући трансфери осталим нивоима власти"]
[4301,463200,"Капитални трансфери осталим нивоима власти"]
[4302,464000,"ДОТАЦИЈЕ ОРГАНИЗАЦИЈАМА ОБАВЕЗНОГ СОЦИЈАЛНОГ ОСИГУРАЊА (4303 + 4304)",{"$f":"D323+D324","v":0},{"$f":"E323+E324","v":0}]
[4303,464100,"Текуће дотације организацијама обавезног социјалног осигурања"]
[4304,464200,"Капиталне дотације организацијама обавезног социјалног осигурања"]
[4305,465000,"ОСТАЛЕ ДОТАЦИЈЕ И ТРАНСФЕРИ (4306 + 4307)",{"$f":"D326+D327","v":529},{"$f":"E326+E327","v":600}]
[4306,465100,"Остале текуће дотације и трансфери",529,600]
[4307,465200,"Остале капиталне дотације и трансфери"]
[4308,470000,"СОЦИЈАЛНО ОСИГУРАЊЕ И СОЦИЈАЛНА ЗАШТИТА (4309 + 4313)",{"$f":"D329+D333","v":0},{"$f":"E329+E333","v":0}]
[4309,471000,"ПРАВА ИЗ СОЦИЈАЛНОГ ОСИГУРАЊА (ОРГАНИЗАЦИЈЕ ОБАВЕЗНОГ СОЦИЈАЛНОГ ОСИГУРАЊА) (од 4310 до 4312)",{"$f":"SUM(D330:D332)","v":0},{"$f":"SUM(E330:E332)","v":0}]
[4310,471100,"Права из социјалног осигурања која се исплаћују непосредно домаћинствима"]
[4311,471200,"Права из социјалног осигурања која се исплаћују непосредно пружаоцима услуга"]
[4312,471900,"Трансфери другим организацијама обавезног социјалног осигурања за доприносе за осигурање"]
[4313,472000,"НАКНАДЕ ЗА СОЦИЈАЛНУ ЗАШТИТУ ИЗ БУЏЕТА (од 4314 до 4322)",{"$f":"SUM(D334:D342)","v":0},{"$f":"SUM(E334:E342)","v":0}]
[4314,472100,"Накнаде из буџета у случају болести и инвалидности"]
[4315,472200,"Накнаде из буџета за породиљско одсуство "]
[4316,472300,"Накнаде из буџета за децу и породицу "]
[4317,472400,"Накнаде из буџета за случај незапослености "]
[4318,472500,"Старосне и породичне пензије из буџета"]
[4319,472600,"Накнаде из буџета у случају смрти"]
[4320,472700,"Накнаде из буџета за образовање, културу, науку и спорт "]
[4321,472800,"Накнаде из буџета за становање и живот "]
[4322,472900,"Остале накнаде из буџета"]
[4323,480000,"ОСТАЛИ РАСХОДИ (4324 + 4327 + 4331 + 4333 + 4336 + 4338)",{"$f":"D344+D347+D351+D353+D356+D358","v":296},{"$f":"E344+E347+E351+E353+E356+E358","v":400}]
[4324,481000,"ДОТАЦИЈЕ НЕВЛАДИНИМ ОРГАНИЗАЦИЈАМА (4325 + 4326)",{"$f":"D345+D346","v":0},{"$f":"E345+E346","v":0}]
[4325,481100,"Дотације непрофитним организацијама које пружају помоћ домаћинствима"]
[4326,481900,"Дотације осталим непрофитним институцијама"]
[4327,482000,"ПОРЕЗИ, ОБАВЕЗНЕ ТАКСЕ, КАЗНЕ, ПЕНАЛИ И КАМАТЕ            (од 4328 до 4330)",{"$f":"SUM(D348:D350)","v":294},{"$f":"SUM(E348:E350)","v":240}]
[4328,482100,"Остали порези",294,239]
[4329,482200,"Обавезне таксе ",null,1]
[4330,482300,"Новчане казне, пенали и камате"]
[4331,483000,"НОВЧАНЕ КАЗНЕ И ПЕНАЛИ ПО РЕШЕЊУ СУДОВА (4332)",{"$f":"D352","v":2},{"$f":"E352","v":160}]
[4332,483100,"Новчане казне и пенали по решењу судова",2,160]
[4333,484000,"НАКНАДА ШТЕТЕ ЗА ПОВРЕДЕ ИЛИ ШТЕТУ НАСТАЛУ УСЛЕД ЕЛЕМЕНТАРНИХ НЕПОГОДА ИЛИ ДРУГИХ ПРИРОДНИХ УЗРОКА (4334 + 4335)",{"$f":"D354+D355","v":0},{"$f":"E354+E355","v":0}]
[4334,484100,"Накнада штете за повреде или штету услед елементарних непогода"]
[4335,484200,"Накнада штете од дивљачи"]
[4336,485000,"НАКНАДА ШТЕТЕ ЗА ПОВРЕДЕ ИЛИ ШТЕТУ НАНЕТУ ОД СТРАНЕ ДРЖАВНИХ ОРГАНА (4337)",{"$f":"D357","v":0},{"$f":"E357","v":0}]
[4337,485100,"Накнада штете за повреде или штету нанете од стране државних органа"]
[4338,489000,"РАСХОДИ КОЈИ СЕ ФИНАНСИРАЈУ ИЗ СРЕДСТАВА ЗА РЕАЛИЗАЦИЈУ НАЦИОНАЛНОГ ИНВЕСТИЦИОНОГ ПЛАНА (4339)",{"$f":"D359","v":0},{"$f":"E359","v":0}]
[4339,489100,"Расходи који се финансирају из средстава за реализацију националног инвестиционог плана"]
[4340,500000,"ИЗДАЦИ ЗА НЕФИНАНСИЈСКУ ИМОВИНУ (4341 + 4363 + 4372 + 4375 + 4383)",{"$f":"D361+D383+D392+D395+D403","v":4122},{"$f":"E361+E383+E392+E395+E403","v":8795}]
[4341,510000,"ОСНОВНА СРЕДСТВА (4342 + 4347 + 4357 + 4359 + 4361)",{"$f":"D362+D367+D377+D379+D381","v":4122},{"$f":"E362+E367+E377+E379+E381","v":8795}]
[4342,511000,"ЗГРАДЕ И ГРАЂЕВИНСКИ ОБЈЕКТИ (од 4343 до 4346)",{"$f":"SUM(D363:D366)","v":2939},{"$f":"SUM(E363:E366)","v":0}]
[4343,511100,"Куповина зграда и објеката"]
[4344,511200,"Изградња зграда и објеката"]
[4345,511300,"Капитално одржавање зграда и објеката",2939]
[4346,511400,"Пројектно планирање"]
[4347,512000,"МАШИНЕ И ОПРЕМА (од 4348 до 4356)",{"$f":"SUM(D368:D376)","v":1183},{"$f":"SUM(E368:E376)","v":8795}]
[4348,512100,"Опрема за саобраћај"]
[4349,512200,"Административна опрема",715,985]
[4350,512300,"Опрема за пољопривреду"]
[4351,512400,"Опрема за заштиту животне средине"]
[4352,512500,"Медицинска и лабораторијска опрема",468,7810]
[4353,512600,"Опрема за образовање, науку, културу и спорт"]
[4354,512700,"Опрема за војску"]
[4355,512800,"Опрема за јавну безбедност"]
[4356,512900,"Опрема за производњу, моторна, непокретна и немоторна опрема"]
[4357,513000,"ОСТАЛЕ НЕКРЕТНИНЕ И ОПРЕМА (4358)",{"$f":"D378","v":0},{"$f":"E378","v":0}]
[4358,513100,"Остале некретнине и опрема"]
[4359,514000,"КУЛТИВИСАНА ИМОВИНА (4360)",{"$f":"D380","v":0},{"$f":"E380","v":0}]
[4360,514100,"Култивисана имовина"]
[4361,515000,"НЕМАТЕРИЈАЛНА ИМОВИНА (4362)",{"$f":"D382","v":0},{"$f":"E382","v":0}]
[4362,515100,"Нематеријална имовина"]
[4363,520000,"ЗАЛИХЕ (4364 + 4366 + 4370)",{"$f":"D384+D386+D390","v":0},{"$f":"E384+E386+E390","v":0}]
[4364,521000,"РОБНЕ РЕЗЕРВЕ (4365)",{"$f":"D385","v":0},{"$f":"E385","v":0}]
[4365,521100,"Робне резерве"]
[4366,522000,"ЗАЛИХЕ ПРОИЗВОДЊЕ (од 4367 до 4369)",{"$f":"SUM(D387:D389)","v":0},{"$f":"SUM(E387:E389)","v":0}]
[4367,522100,"Залихе материјала"]
[4368,522200,"Залихе недовршене производње"]
[4369,522300,"Залихе готових производа"]
[4370,523000,"ЗАЛИХЕ РОБЕ ЗА ДАЉУ ПРОДАЈУ (4371)",{"$f":"D391","v":0},{"$f":"E391","v":0}]
[4371,523100,"Залихе робе за даљу продају"]
[4372,530000,"ДРАГОЦЕНОСТИ (4373)",{"$f":"D393","v":0},{"$f":"E393","v":0}]
[4373,531000,"ДРАГОЦЕНОСТИ (4374)",{"$f":"D394","v":0},{"$f":"E394","v":0}]
[4374,531100,"Драгоцености"]
[4375,540000,"ПРИРОДНА ИМОВИНА (4376 + 4378 + 4380)",{"$f":"D396+D398+D400","v":0},{"$f":"E396+E398+E400","v":0}]
[4376,541000,"ЗЕМЉИШТЕ (4377)",{"$f":"D397","v":0},{"$f":"E397","v":0}]
[4377,541100,"Земљиште"]
[4378,542000,"РУДНА БОГАТСТВА (4379)",{"$f":"D399","v":0},{"$f":"E399","v":0}]
[4379,542100,"Копови"]
[4380,543000,"ШУМЕ И ВОДЕ (4381 + 4382)",{"$f":"D401+D402","v":0},{"$f":"E401+E402","v":0}]
[4381,543100,"Шуме"]
[4382,543200,"Воде"]
[4383,55000,"НЕФИНАНСИЈСКА ИМОВИНА КОЈА СЕ ФИНАНСИРА ИЗ СРЕДСТАВА ЗА РЕАЛИЗАЦИЈУ НАЦИОНАЛНОГ ИНВЕСТИЦИОНОГ ПЛАНА (4384)",{"$f":"D404","v":0},{"$f":"E404","v":0}]
[4384,551000,"НЕФИНАНСИЈСКА ИМОВИНА КОЈА СЕ ФИНАНСИРА ИЗ СРЕДСТАВА ЗА РЕАЛИЗАЦИЈУ НАЦИОНАЛНОГ ИНВЕСТИЦИОНОГ ПЛАНА (4385)",{"$f":"D405","v":0},{"$f":"E405","v":0}]
[4385,551100,"Нефинансијска имовина која се финансира из средстава за реализацију националног инвестиционог плана"]
[4386,600000,"ИЗДАЦИ ЗА ОТПЛАТУ ГЛАВНИЦЕ И НАБАВКУ ФИНАНСИЈСКЕ ИМОВИНЕ (4387 + 4412)",{"$f":"D407+D432","v":0},{"$f":"E407+E432","v":0}]
[4387,610000,"ОТПЛАТА ГЛАВНИЦЕ (4388 + 4398 + 4406 + 4408+4410)",{"$f":"D408+D418+D426+D428+D430","v":0},{"$f":"E408+E418+E426+E428+E430","v":0}]
[4388,611000,"ОТПЛАТА ГЛАВНИЦЕ ДОМАЋИМ КРЕДИТОРИМА (од 4389 до 4397)",{"$f":"SUM(D409:D417)","v":0},{"$f":"SUM(E409:E417)","v":0}]
[4389,611100,"Отплата главницеумањена за дисконт на домаће хартије од вредности, изузев акција"]
[4390,611200,"Отплата главнице осталим нивоима власти"]
[4391,611300,"Отплата главнице домаћим јавним финансијским институцијама"]
[4392,611400,"Отплата главнице домаћим пословним банкама"]
[4393,611500,"Отплата главнице осталим домаћим кредиторима"]
[4394,611600,"Отплата главнице домаћинствима у земљи"]
[4395,611700,"Отплата главнице на домаће финансијске деривате "]
[4396,611800,"Отплата домаћих меница"]
[4397,611900,"Исправка унутрашњег дуга"]
[4398,612000,"ОТПЛАТА ГЛАВНИЦЕ СТРАНИМ КРЕДИТОРИМА (од 4399 до 4405)",{"$f":"SUM(D419:D425)","v":0},{"$f":"SUM(E419:E425)","v":0}]
[4399,612100,"Отплата главнице умањена за дисконт на хартије од вредности, изузев акција, емитоване на иностраном финансијском тржишту"]
[4400,612200,"Отплата главнице страним владама"]
[4401,612300,"Отплата главнице мултилатералним институцијама"]
[4402,612400,"Отплата главнице страним пословним банкама"]
[4403,612500,"Отплата главнице осталим страним кредиторима"]
[4404,612600,"Отплата главнице на стране финансијске деривате"]
[4405,612900,"Исправка спољног дуга"]
[4406,613000,"ОТПЛАТА ГЛАВНИЦЕ ПО ГАРАНЦИЈАМА (4407)",{"$f":"D427","v":0},{"$f":"E427","v":0}]
[4407,613100,"Отплата главнице по гаранцијама"]
[4408,614000,"ОТПЛАТА ГЛАВНИЦЕ ЗА ФИНАНСИЈСКИ ЛИЗИНГ (4409)",{"$f":"D429","v":0},{"$f":"E429","v":0}]
[4409,614100,"Отплата главнице за финансијски лизинг"]
[4410,615000,"ОТПЛАТА ГАРАНЦИЈА ПО КОМЕРЦИЈАЛНИМ ТРАНСАКЦИЈАМА (4411)",{"$f":"D431","v":0},{"$f":"E431","v":0}]
[4411,615100,"Отплата гаранција по комерцијалним трансакцијама"]
[4412,620000,"НАБАВКА ФИНАНСИЈСКЕ ИМОВИНЕ (4413 + 4423 + 4432)",{"$f":"D433+D443+D452","v":0},{"$f":"E433+E443+E452","v":0}]
[4413,621000,"НАБАВКА ДОМАЋЕ ФИНАНСИЈСКЕ ИМОВИНЕ (од 4414 до 4422)",{"$f":"SUM(D434:D442)","v":0},{"$f":"SUM(E434:E442)","v":0}]
[4414,621100,"Набавка домаћих хартија од вредности, изузев акција"]
[4415,621200,"Кредити осталим нивоима власти"]
[4416,621300,"Кредити домаћим јавним финансијским институцијама"]
[4417,621400,"Кредити домаћим пословним банкама"]
[4418,621500,"Кредити домаћим нефинансијским јавним институцијама"]
[4419,621600,"Кредити физичким лицима и домаћинствима у земљи"]
[4420,621700,"Кредити невладиним организацијама у земљи"]
[4421,621800,"Кредити домаћим нефинансијским приватним предузећима"]
[4422,621900,"Набавка домаћих акција и осталог капитала"]
[4423,622000,"НАБАВКА СТРАНЕ ФИНАНСИЈСКЕ ИМОВИНЕ (од 4424 до 4431)",{"$f":"SUM(D444:D451)","v":0},{"$f":"SUM(E444:E451)","v":0}]
[4424,622100,"Набавка страних хартија од вредности, изузев акција"]
[4425,622200,"Кредити страним владама"]
[4426,622300,"Кредити међународним организацијама"]
[4427,622400,"Кредити страним пословним банкама"]
[4428,622500,"Кредити страним нефинансијским институцијама"]
[4429,622600,"Кредити страним невладиним организацијама"]
[4430,622700,"Набавка страних акција и осталог капитала"]
[4431,622800,"Куповина стране валуте"]
[4432,623000,"НАБАВКА ФИНАНСИЈСКЕ ИМОВИНЕ КОЈА СЕ ФИНАНСИРА ИЗ СРЕДСТАВА ЗА РЕАЛИЗАЦИЈУ НАЦИОНАЛНОГ ИНВЕСТИЦИОНОГ ПЛАНА (4433)",{"$f":"D453","v":0},{"$f":"E453","v":0}]
[4433,623100,"Набавка финансијске имовине која се финансира из средстава за реализацију националног инвестиционог плана"]
[4434,null,"ВИШАК НОВЧАНИХ ПРИЛИВА (4001 – 4171) > 0",{"$f":"IF(D21-D191>0,D21-D191,0)","v":6206},{"$f":"IF(E21-E191>0,E21-E191,0)","v":4852}]
[4435,null,"МАЊАК НОВЧАНИХ ПРИЛИВА (4171 – 4001) > 0",{"$f":"IF(D191-D21>0,D191-D21,0)","v":0},{"$f":"IF(E191-E21>0,E191-E21,0)","v":0}]
[4436,null,"САЛДО ГОТОВИНЕ НА ПОЧЕТКУ ГОДИНЕ",6134,12521]
[4437,null,"КОРИГОВАНИ ПРИЛИВИ ЗА ПРИМЉЕНА СРЕДСТВА У ОБРАЧУНУ (4001 + 4438)",{"$f":"D21+D458","v":272248},{"$f":"E21+E458","v":291581}]
[4438,null,"Корекција новчаних прилива за наплаћена средства којa се не евидентирају преко класа 700000, 800000 и 900000"]
[4439,null,"КОРИГОВАНИ ОДЛИВИ ЗА ИСПЛАЋЕНА СРЕДСТВА У ОБРАЧУНУ (4171 – 4440 + 4441)",{"$f":"D191-D460+D461","v":265861},{"$f":"E191-E460+E461","v":286636}]
[4440,null,"Корекција новчаних одлива за износ обрачунате амортизације књижене на терет сопствених прихода",181,93]
[4441,null,"Корекција новчаних одлива за износ плаћених расхода који се не евидентирају преко класе 400000, 500000 и 600000"]
[4442,null,"САЛДО ГОТОВИНЕ НА КРАЈУ ГОДИНЕ (4436 + 4437 – 4439)",{"$f":"D456+D457-D459","v":12521},{"$f":"E456+E457-E459","v":17466}]
[]
["Датум",null,"  Лице одговорно за      ","                    Наредбодавац"]
[null,null,"                                                        попуњавање обрасца"]

{"sheet":"Obrazac5","index":5,"n_rows":559,"n_cols":11,"rows_kept":559,"cut":false,"hidden":false,"merged":[[555,8,555,9],[555,4,555,5],[371,5,371,8],[396,5,396,8],[424,5,424,8],[539,4,539,10],[486,4,487,4],[486,9,487,9],[458,9,459,9],[540,5,540,8],[540,10,541,10],[457,4,457,10],[458,4,459,4],[458,10,459,10],[512,4,512,10],[513,5,513,8],[458,5,458,8],[485,4,485,10],[513,4,514,4],[513,9,514,9],[513,10,514,10],[371,9,372,9],[371,4,372,4],[539,0,541,0],[539,1,541,1],[539,2,541,2],[539,3,541,3],[540,4,541,4],[540,9,541,9],[423,3,425,3],[395,3,397,3],[395,4,395,10],[396,4,397,4],[424,4,425,4],[424,9,425,9],[512,0,514,0],[396,9,397,9],[396,10,397,10],[423,4,423,10],[283,4,283,10],[284,10,285,10],[248,5,248,8],[247,4,247,10],[229,10,230,10],[248,4,249,4],[315,9,316,9],[315,10,316,10],[284,5,284,8],[315,5,315,8],[284,4,285,4],[284,9,285,9],[248,9,249,9],[248,10,249,10],[229,4,230,4],[283,2,285,2],[247,2,249,2],[512,1,514,1],[512,2,514,2],[512,3,514,3],[485,0,487,0],[485,1,487,1],[485,3,487,3],[485,2,487,2],[457,0,459,0],[457,1,459,1],[283,3,285,3],[314,3,316,3],[344,3,346,3],[247,3,249,3],[247,0,249,0],[228,0,230,0],[216,3,218,3],[228,3,230,3],[228,2,230,2],[115,0,117,0],[115,1,117,1],[168,2,170,2],[168,3,170,3],[486,10,487,10],[486,5,486,8],[314,2,316,2],[457,2,459,2],[457,3,459,3],[315,4,316,4],[423,2,425,2],[370,4,370,10],[345,4,346,4],[344,4,344,10],[370,3,372,3],[314,4,314,10],[345,10,346,10],[371,10,372,10],[424,10,425,10],[345,9,346,9],[345,5,345,8],[370,2,372,2],[395,2,397,2],[423,0,425,0],[423,1,425,1],[344,1,346,1],[344,2,346,2],[216,1,218,1],[194,0,196,0],[216,0,218,0],[216,2,218,2],[194,2,196,2],[194,1,196,1],[314,0,316,0],[314,1,316,1],[247,1,249,1],[228,1,230,1],[344,0,346,0],[395,0,397,0],[395,1,397,1],[370,0,372,0],[370,1,372,1],[283,0,285,0],[283,1,285,1],[217,10,218,10],[217,5,217,8],[229,9,230,9],[217,4,218,4],[217,9,218,9],[228,4,228,10],[229,5,229,8],[85,0,87,0],[85,1,87,1],[141,1,143,1],[141,2,143,2],[168,0,170,0],[168,1,170,1],[141,3,143,3],[141,0,143,0],[115,2,117,2],[216,4,216,10],[195,9,196,9],[195,10,196,10],[195,5,195,8],[168,4,168,10],[116,4,117,4],[141,4,141,10],[142,4,143,4],[58,0,60,0],[58,1,60,1],[58,3,60,3],[59,5,59,8],[58,2,60,2],[195,4,196,4],[194,3,196,3],[18,9,19,9],[27,4,28,4],[27,9,28,9],[17,0,19,0],[17,1,19,1],[26,0,28,0],[27,5,27,8],[26,1,28,1],[26,2,28,2],[26,3,28,3],[26,4,26,10],[27,10,28,10],[58,4,58,10],[86,5,86,8],[115,3,117,3],[85,4,85,10],[85,3,87,3],[169,4,170,4],[169,9,170,9],[169,10,170,10],[194,4,194,10],[169,5,169,8],[115,4,115,10],[116,5,116,8],[142,5,142,8],[116,10,117,10],[142,9,143,9],[142,10,143,10],[116,9,117,9],[18,10,19,10],[18,4,19,4],[59,9,60,9],[59,10,60,10],[17,2,19,2],[17,4,17,10],[18,5,18,8],[85,2,87,2],[86,4,87,4],[59,4,60,4],[86,9,87,9],[86,10,87,10],[17,3,19,3]]}
[null,null,null,null,null,null,null,null,null,null,"Образац 5"]
[]
[]
[]
[]
[]
["Назив корисника буџетских средстава"]
[{"$f":"NazivKorisnika","v":"ДОМ ЗДРАВЉА ЖАБАЉ"}]
[{"$f":"\"Седиште:   \" & biop","v":"Седиште:   ЖАБАЉ"},null,null,{"$f":" \"Матични број:   \" & MaticniBroj","v":"Матични број:   08062463"}]
[{"$f":"\"ПИБ:   \" & bip","v":"ПИБ:   100647845"},null,null,{"$f":"\"Број подрачуна:  \" & BrojPodracuna","v":"Број подрачуна:  840-451661-41"}]
["Назив надлежног директног корисника буџетских средстава"]
["_______________________________________________________________________"]
["(Попуњава само индиректни корисник буџетских средстава)"]
["ИЗВЕШТАЈ О ИЗВРШЕЊУ БУЏЕТА"]
["у периоду од 01.01.2022. - 31.12.2022. године"]
["I. УКУПНИ ПРИХОДИ И ПРИМАЊА"]
[null,null,null,null,null,null,null,null,null,null,"(У хиљадама динара)"]
["Ознака ОП","Број конта","Опис","Износ планираних прихода и примања","Износ остварених прихода и примања"]
[null,null,null,null,"Укупно                        (од 6 до 11)","Приходи и примања из буџета",null,null,null,"Из донација и помоћи","Из осталих извора"]
[null,null,null,null,null,"Републике","Аутономне покрајине","Општине / \nграда","ООСО"]
[1,2,3,4,5,6,7,8,9,10,11]
[5001,null,"ТЕКУЋИ ПРИХОДИ И ПРИМАЊА ОД ПРОДАЈЕ НЕФИНАНСИЈСКЕ ИМОВИНЕ (5002 + 5106)",{"$f":"D23+D147","v":307273},{"$f":"SUM(F22:K22)","v":291581},{"$f":"F23+F147","v":4400},3274,11663,265740,0,6504]
[5002,700000,"ТЕКУЋИ ПРИХОДИ (5003 + 5047 + 5057 + 5069 + 5094 + 5099 + 5103)",{"$f":"D24+D76+D90+D102+D131+D136+D140","v":307243},291581,{"$f":"F24+F76+F90+F102+F131+F136+F140","v":4400},3274,11663,265740,0,6504]
[5003,710000,"ПОРЕЗИ (5004 + 5008 + 5010 + 5017 + 5023 + 5030 + 5033 + 5040)",{"$f":"D25+D33+D35+D42+D48+D55+D58+D69","v":0},0,{"$f":"F25+F33+F35+F42+F48+F55+F58+F69","v":0},0,0,0,0,0]
[5004,711000,"ПОРЕЗ НА ДОХОДАК, ДОБИТ И КАПИТАЛНЕ ДОБИТКЕ (од 5005 до 5007)",{"$f":"SUM(D26:D32)","v":0},0,{"$f":"SUM(F26:F32)","v":0},0,0,0,0,0]
[5005,711100,"Порези на доходак и капиталнe добиткe које плаћају физичка лица",null,0]
["Ознака ОП","Број конта","Опис","Износ планираних прихода и примања","Износ остварених прихода и примања"]
[null,null,null,null,"Укупно                        (од 6 до 11)","Приходи и примања из буџета",null,null,null,"Из донација и помоћи","Из осталих извора"]
[null,null,null,null,null,"Републике","Аутономне покрајине","Општине / \nграда","ООСО"]
["1","2","3","4","5","6","7","8","9","10","11"]
[5006,711200,"Порези на добит и капиталне добитке које плаћају предузећа и друга правна лица",null,0]
[5007,711300,"Порези на доходак, добит и капиталне добитке који се не могу разврстати између физичких и правних лица",null,0]
[5008,712000,"ПОРЕЗ НА ФОНД ЗАРАДА (5009)",{"$f":"D34","v":0},0,{"$f":"F34","v":0},0,0,0,0,0]
[5009,712100,"Порез на фонд зарада",null,0]
[5010,713000,"ПОРЕЗ НА ИМОВИНУ (од 5011 до 5016)",{"$f":"SUM(D36:D41)","v":0},0,{"$f":"SUM(F36:F41)","v":0},0,0,0,0,0]
[5011,713100,"Периодични порези на непокретности",null,0]
[5012,713200,"Периодични порези на нето имовину",null,0]
[5013,713300,"Порези на заоставштину, наслеђе и поклон",null,0]
[5014,713400,"Порези на финансијске и капиталне трансакције",null,0]
[5015,713500,"Други једнократни порези на имовину",null,0]
[5016,713600,"Други периодични порези на имовину",null,0]
[5017,714000,"ПОРЕЗ НА ДОБРА И УСЛУГЕ (од 5018 до 5022)",{"$f":"SUM(D43:D47)","v":0},0,{"$f":"SUM(F43:F47)","v":0},0,0,0,0,0]
[5018,714100,"Општи порези на добра и услуге",null,0]
[5019,714300,"Добит фискалних монопола",null,0]
[5020,714400,"Порези на појединачне услуге",null,0]
[5021,714500,"Порези, таксе и накнаде на употребу добара, на дозволу да се добра употребљавају или делатности обављају",null,0]
[5022,714600,"Други порези на добра и услуге",null,0]
[5023,715000,"ПОРЕЗ НА МЕЂУНАРОДНУ ТРГОВИНУ И ТРАНСАКЦИЈЕ (од 5024 до 5029)",{"$f":"SUM(D49:D54)","v":0},0,{"$f":"SUM(F49:F54)","v":0},0,0,0,0,0]
[5024,715100,"Царине и друге увозне дажбине",null,0]
[5025,715200,"Порези на извоз",null,0]
[5026,715300,"Добит извозних или увозних монопола",null,0]
[5027,715400,"Добит по основу разлике између куповног и продајног девизног курса",null,0]
[5028,715500,"Порези на продају или куповину девиза",null,0]
[5029,715600,"Други порези на међународну трговину и трансакције",null,0]
[5030,716000,"ДРУГИ ПОРЕЗИ (5031 + 5032)",{"$f":"D56+D57","v":0},0,{"$f":"F56+F57","v":0},0,0,0,0,0]
[5031,716100,"Други порези које искључиво плаћају предузећа, односно предузетници",null,0]
[5032,716200,"Други порези које плаћају остала лица или који се не могу идентификовати",null,0]
[5033,717000,"АКЦИЗЕ (од 5034 до 5039)",{"$f":"SUM(D63:D68)","v":0},{"$f":"SUM(F58:K58)","v":0},{"$f":"SUM(F63:F68)","v":0},0,0,0,0,0]
["Ознака ОП","Број конта","Опис","Износ планираних прихода и примања","Износ остварених прихода и примања"]
[null,null,null,null,"Укупно                        (од 6 до 11)","Приходи и примања из буџета",null,null,null,"Из донација и помоћи","Из осталих извора"]
[null,null,null,null,null,"Републике","Аутономне покрајине","Општине / \nграда","ООСО"]
["1","2","3","4","5","6","7","8","9","10","11"]
[5034,717100,"Акцизе на деривате нафте",null,0]
[5035,717200,"Акцизе на дуванске прерађевине",null,0]
[5036,717300,"Акцизе на алкохолна пића",null,0]
[5037,717400,"Акцизе на освежавајућа безалкохолна пића",null,0]
[5038,717500,"Акциза на кафу",null,0]
[5039,717600,"Друге акцизе",null,0]
[5040,719000,"ЈЕДНОКРАТНИ ПОРЕЗ НА ЕКСТРА ПРОФИТ И ЕКСТРА ИМОВИНУ СТЕЧЕНУ КОРИШЋЕЊЕМ ПОСЕБНИХ ПОГОДНОСТИ (од 5041 до 5046)",{"$f":"SUM(D70:D75)","v":0},0,{"$f":"SUM(F70:F75)","v":0},0,0,0,0,0]
[5041,719100,"Порез на доходак, добит и капиталну добит на терет физичких лица",null,0]
[5042,719200,"Порез на доходак, добит и капиталну добит на терет предузећа и осталих правних лица",null,0]
[5043,719300,"Порез на доходак, добит и капиталну добит нераспоредив између физичких и правних лица",null,0]
[5044,719400,"Остали једнократни порези на имовину",null,0]
[5045,719500,"Остали порези које плаћају искључиво предузећа и предузетници",null,0]
[5046,719600,"Остали порези које плаћају друга или неидентификована лица",null,0]
[5047,720000,"СОЦИЈАЛНИ ДОПРИНОСИ (5048 + 5053)",{"$f":"D77+D82","v":0},0,{"$f":"F77+F82","v":0},0,0,0,0,0]
[5048,721000,"ДОПРИНОСИ ЗА СОЦИЈАЛНО ОСИГУРАЊЕ (од 5049 до 5052)",{"$f":"SUM(D78:D81)","v":0},0,{"$f":"SUM(F78:F81)","v":0},0,0,0,0,0]
[5049,721100,"Доприноси за социјално осигурање на терет запослених",null,0]
[5050,721200,"Доприноси за социјално осигурање на терет послодавца",null,0]
[5051,721300,"Доприноси за социјално осигурање лица која обављају самосталну делатност и незапослених лица",null,0]
[5052,721400,"Доприноси за социјално осигурање који се не могу разврстати",null,0]
[5053,722000,"ОСТАЛИ СОЦИЈАЛНИ ДОПРИНОСИ (од 5054 до 5056)",{"$f":"SUM(D83:D85)","v":0},0,{"$f":"SUM(F83:F85)","v":0},0,0,0,0,0]
[5054,722100,"Социјални доприноси на терет осигураника",null,0]
[5055,722200,"Социјални доприноси на терет послодаваца",null,0]
[5056,722300,"Импутирани социјални доприноси",null,0]
["Ознака ОП","Број конта","Опис","Износ планираних прихода и примања","Износ остварених прихода и примања"]
[null,null,null,null,"Укупно                        (од 6 до 11)","Приходи и примања из буџета",null,null,null,"Из донација и помоћи","Из осталих извора"]
[null,null,null,null,null,"Републике","Аутономне покрајине","Општине / \nграда","ООСО"]
["1","2","3","4","5","6","7","8","9","10","11"]
[5057,730000,"ДОНАЦИЈЕ, ПОМОЋИ И ТРАНСФЕРИ (5058 + 5061 + 5066)",{"$f":"D91+D94+D99","v":13000},11663,{"$f":"F91+F94+F99","v":0},0,11663,0,0,0]
[5058,731000,"ДОНАЦИЈЕ ОД ИНОСТРАНИХ ДРЖАВА (5059 + 5060)",{"$f":"D92+D93","v":0},0,{"$f":"F92+F93","v":0},0,0,0,0,0]
[5059,731100,"Текуће донације од иностраних држава",null,0]
[5060,731200,"Капиталне донације од иностраних држава",null,0]
[5061,732000,"ДОНАЦИЈЕ И ПОМОЋИ ОД МЕЂУНАРОДНИХ ОРГАНИЗАЦИЈА (од 5062 до 5065)",{"$f":"D95+D96+D97+D98","v":0},0,{"$f":"F95+F96+F97+F98","v":0},0,0,0,0,0]
[5062,732100,"Текуће донације од међународних организација",null,0]
[5063,732200,"Капиталне донације од међународних организација",null,0]
[5064,732300,"Текуће помоћи од ЕУ",null,0]
[5065,732400,"Капиталне помоћи од ЕУ",null,0]
[5066,733000,"ТРАНСФЕРИ ОД ДРУГИХ НИВОА ВЛАСТИ (5067 + 5068)",{"$f":"D100+D101","v":13000},11663,{"$f":"F100+F101","v":0},0,11663,0,0,0]
[5067,733100,"Текући трансфери од других нивоа власти",13000,{"$f":"SUM(F100:K100)","v":11663},null,null,11663]
[5068,733200,"Капитални трансфери од других нивоа власти",null,0]
[5069,740000,"ДРУГИ ПРИХОДИ (5070 + 5077 + 5082 + 5089 + 5092)",{"$f":"D103+D110+D115+D126+D129","v":12033},6749,{"$f":"F103+F110+F115+F126+F129","v":0},0,0,245,0,6504]
[5070,741000,"ПРИХОДИ ОД ИМОВИНЕ (од 5071 до 5076)",{"$f":"SUM(D104:D109)","v":300},245,{"$f":"SUM(F104:F109)","v":0},0,0,245,0,0]
[5071,741100,"Камате",null,0]
[5072,741200,"Дивиденде",null,0]
[5073,741300,"Повлачење прихода од квази корпорација",null,0]
[5074,741400,"Приход од имовине који припада имаоцима полиса осигурања",300,245,null,null,null,245]
[5075,741500,"Закуп непроизведене имовине",null,0]
[5076,741600,"Финансијске промене на финансијским лизинзима",null,0]
[5077,742000,"ПРИХОДИ ОД ПРОДАЈЕ ДОБАРА И УСЛУГА (од 5078 до 5081)",{"$f":"SUM(D111:D114)","v":10531},5797,{"$f":"SUM(F111:F114)","v":0},0,0,0,0,5797]
[5078,742100,"Приходи од продаје добара и услуга или закупа од стране тржишних организација",null,0]
[5079,742200,"Таксе и накнаде",null,0]
[5080,742300,"Споредне продаје добара и услуга које врше државне нетржишне јединице",10531,5797,null,null,null,null,null,5797]
[5081,742400,"Импутиране продаје добара и услуга",null,0]
[5082,743000,"НОВЧАНЕ КАЗНЕ И ОДУЗЕТА ИМОВИНСКА КОРИСТ (од 5083 до 5088)",{"$f":"SUM(D120:D125)","v":0},0,{"$f":"SUM(F120:F125)","v":0},0,0,0,0,0]
["Ознака ОП","Број конта","Опис","Износ планираних прихода и примања","Износ остварених прихода и примања"]
[null,null,null,null,"Укупно                        (од 6 до 11)","Приходи и примања из буџета",null,null,null,"Из донација и помоћи","Из осталих извора"]
[null,null,null,null,null,"Републике","Аутономне покрајине","Општине / \nграда","ООСО"]
["1","2","3","4","5","6","7","8","9","10","11"]
[5083,743100,"Приходи од новчаних казни за кривична дела",null,0]
[5084,743200,"Приходи од новчаних казни за привредне преступе",null,0]
[5085,743300,"Приходи од новчаних казни за прекршаје",null,0]
[5086,743400,"Приходи од пенала",null,0]
[5087,743500,"Приходи од одузете имовинске користи",null,0]
[5088,743900,"Остале новчане казне, пенали и приходи од одузете имовинске користи",null,0]
[5089,744000,"ДОБРОВОЉНИ ТРАНСФЕРИ ОД ФИЗИЧКИХ И ПРАВНИХ ЛИЦА (5090 + 5091)",{"$f":"D127+D128","v":0},0,{"$f":"F127+F128","v":0},0,0,0,0,0]
[5090,744100,"Текући добровољни трансфери од физичких и правних лица",null,0]
[5091,744200,"Капитални добровољни трансфери од физичких и правних лица",null,0]
[5092,745000,"МЕШОВИТИ И НЕОДРЕЂЕНИ ПРИХОДИ (5093)",{"$f":"D130","v":1202},707,{"$f":"F130","v":0},0,0,0,0,707]
[5093,745100,"Мешовити и неодређени приходи",1202,707,null,null,null,null,null,707]
[5094,770000,"МЕМОРАНДУМСКЕ СТАВКЕ ЗА РЕФУНДАЦИЈУ РАСХОДА (5095 + 5097)",{"$f":"D132+D134","v":0},0,{"$f":"F132+F134","v":0},0,0,0,0,0]
[5095,771000,"МЕМОРАНДУМСКЕ СТАВКЕ ЗА РЕФУНДАЦИЈУ РАСХОДА (5096)",{"$f":"D133","v":0},0,{"$f":"F133","v":0},0,0,0,0,0]
[5096,771100,"Меморандумске ставке за рефундацију расхода",null,0]
[5097,772000,"МЕМОРАНДУМСКЕ СТАВКЕ ЗА РЕФУНДАЦИЈУ РАСХОДА ИЗ ПРЕТХОДНЕ ГОДИНЕ (5098)",{"$f":"D135","v":0},0,{"$f":"F135","v":0},0,0,0,0,0]
[5098,772100,"Меморандумске ставке за рефундацију расхода из претходне године",null,0]
[5099,780000,"ТРАНСФЕРИ ИЗМЕЂУ БУЏЕТСКИХ КОРИСНИКА НА ИСТОМ НИВОУ (5100)",{"$f":"D137","v":265510},{"$f":"SUM(F136:K136)","v":265495},{"$f":"F137","v":0},0,0,265495,0,0]
[5100,781000,"ТРАНСФЕРИ ИЗМЕЂУ БУЏЕТСКИХ КОРИСНИКА НА ИСТОМ НИВОУ (5101 + 5102)",{"$f":"D138+D139","v":265510},265495,{"$f":"F138+F139","v":0},0,0,265495,0,0]
[5101,781100,"Трансфери између буџетских корисника на истом нивоу",265510,{"$f":"SUM(F138:K138)","v":265495},null,null,null,265495]
[5102,781300,"Трансфери између организација обавезног социјалног осигурања",null,0]
[5103,790000,"ПРИХОДИ ИЗ БУЏЕТА (5104)",{"$f":"D141","v":16700},7674,{"$f":"F141","v":4400},3274,0,0,0,0]
[5104,791000,"ПРИХОДИ ИЗ БУЏЕТА (5105)",{"$f":"D146","v":16700},7674,{"$f":"F146","v":4400},3274,0,0,0,0]
["Ознака ОП","Број конта","Опис","Износ планираних прихода и примања","Износ остварених прихода и примања"]
[null,null,null,null,"Укупно                        (од 6 до 11)","Приходи и примања из буџета",null,null,null,"Из донација и помоћи","Из осталих извора"]
[null,null,null,null,null,"Републике","Аутономне покрајине","Општине / \nграда","ООСО"]
["1","2","3","4","5","6","7","8","9","10","11"]
[5105,791100,"Приходи из буџета",16700,7674,4400,3274]
[5106,800000,"ПРИМАЊА ОД ПРОДАЈЕ НЕФИНАНСИЈСКЕ ИМОВИНЕ (5107 + 5114 + 5121 + 5124)",{"$f":"D148+D155+D162+D165","v":30},0,{"$f":"F148+F155+F162+F165","v":0},0,0,0,0,0]
[5107,810000,"ПРИМАЊА ОД ПРОДАЈЕ ОСНОВНИХ СРЕДСТАВА (5108 + 5110 + 5112)",{"$f":"D149+D151+D153","v":30},0,{"$f":"F149+F151+F153","v":0},0,0,0,0,0]
[5108,811000,"ПРИМАЊА ОД ПРОДАЈЕ НЕПОКРЕТНОСТИ (5109)",{"$f":"D150","v":0},0,{"$f":"F150","v":0},0,0,0,0,0]
[5109,811100,"Примања од продаје непокретности",null,0]
[5110,812000,"ПРИМАЊА ОД ПРОДАЈЕ ПОКРЕТНЕ ИМОВИНЕ (5111)",{"$f":"D152","v":30},0,{"$f":"F152","v":0},0,0,0,0,0]
[5111,812100,"Примања од продаје покретне имовине",30,0]
[5112,813000,"ПРИМАЊА ОД ПРОДАЈЕ ОСТАЛИХ ОСНОВНИХ СРЕДСТАВА (5113)",{"$f":"D154","v":0},0,{"$f":"F154","v":0},0,0,0,0,0]
[5113,813100,"Примања од продаје осталих основних средстава",null,0]
[5114,820000,"ПРИМАЊА ОД ПРОДАЈЕ ЗАЛИХА (5115 + 5117 + 5119)",{"$f":"D156+D158+D160","v":0},0,{"$f":"F156+F158+F160","v":0},0,0,0,0,0]
[5115,821000,"ПРИМАЊА ОД ПРОДАЈЕ РОБНИХ РЕЗЕРВИ (5116)",{"$f":"D157","v":0},0,{"$f":"F157","v":0},0,0,0,0,0]
[5116,821100,"Примања од продаје робних резерви",null,0]
[5117,822000,"ПРИМАЊА ОД ПРОДАЈЕ ЗАЛИХА  ПРОИЗВОДЊЕ (5118)",{"$f":"D159","v":0},0,{"$f":"F159","v":0},0,0,0,0,0]
[5118,822100,"Примања од продаје залиха производње",null,0]
[5119,823000,"ПРИМАЊА ОД ПРОДАЈЕ РОБЕ ЗА ДАЉУ ПРОДАЈУ (5120)",{"$f":"D161","v":0},0,{"$f":"F161","v":0},0,0,0,0,0]
[5120,823100,"Примања од продаје робе за даљу продају",null,0]
[5121,830000,"ПРИМАЊА ОД ПРОДАЈЕ ДРАГОЦЕНОСТИ (5122)",{"$f":"D163","v":0},0,{"$f":"F163","v":0},0,0,0,0,0]
[5122,831000,"ПРИМАЊА ОД ПРОДАЈЕ ДРАГОЦЕНОСТИ (5123)",{"$f":"D164","v":0},0,0,0,0,0,0,0]
[5123,831100,"Примања од продаје драгоцености",null,0]
[5124,840000,"ПРИМАЊА ОД ПРОДАЈЕ ПРИРОДНЕ ИМОВИНЕ (5125 + 5127 + 5129)",{"$f":"D166+D168+D174","v":0},0,{"$f":"F166+F168+F174","v":0},0,0,0,0,0]
[5125,841000,"ПРИМАЊА ОД ПРОДАЈЕ ЗЕМЉИШТА (5126)",{"$f":"D167","v":0},0,{"$f":"F167","v":0},0,0,0,0,0]
[5126,841100,"Примања од продаје земљишта",null,0]
[5127,842000,"ПРИМАЊА ОД ПРОДАЈЕ ПОДЗЕМНИХ БЛАГА (5128)",{"$f":"D173","v":0},0,{"$f":"F173","v":0},0,0,0,0,0]
["Ознака ОП","Број конта","Опис","Износ планираних прихода и примања","Износ остварених прихода и примања"]
[null,null,null,null,"Укупно                        (од 6 до 11)","Приходи и примања из буџета",null,null,null,"Из донација и помоћи","Из осталих извора"]
[null,null,null,null,null,"Републике","Аутономне покрајине","Општине / \nграда","ООСО"]
["1","2","3","4","5","6","7","8","9","10","11"]
[5128,842100,"Примања од продаје подземних блага",null,0]
[5129,843000,"ПРИМАЊА ОД ПРОДАЈЕ ШУМА И ВОДА (5130)",{"$f":"D175","v":0},0,{"$f":"F175","v":0},0,0,0,0,0]
[5130,843100,"Примања од продаје шума и вода",null,0]
[5131,900000,"ПРИМАЊА ОД ЗАДУЖИВАЊА И ПРОДАЈЕ ФИНАНСИЈСКЕ ИМОВИНЕ (5132 + 5151)",{"$f":"D177+D200","v":0},{"$f":"SUM(F176:K176)","v":0},{"$f":"F177+F200","v":0},0,0,0,0,0]
[5132,910000,"ПРИМАЊА ОД ЗАДУЖИВАЊА (5133 + 5143)",{"$f":"D178+D188","v":0},0,{"$f":"F178+F188","v":0},0,0,0,0,0]
[5133,911000,"ПРИМАЊА ОД ДОМАЋИХ ЗАДУЖИВАЊА (од 5134 до 5142)",{"$f":"SUM(D179:D187)","v":0},0,{"$f":"SUM(F179:F187)","v":0},0,0,0,0,0]
[5134,911100,"Примања од емитовања домаћих хартија од вредности, изузев акција",null,0]
[5135,911200,"Примања од задуживања од осталих нивоа власти",null,0]
[5136,911300,"Примања од задуживања од јавних финансијских институција у земљи",null,0]
[5137,911400,"Примања од задуживања од пословних банака у земљи",null,0]
[5138,911500,"Примања од задуживања код осталих поверилаца у земљи",null,0]
[5139,911600,"Примања од задуживања од домаћинстава у земљи",null,0]
[5140,911700,"Примања од домаћих финансијских деривата",null,0]
[5141,911800,"Примања од домаћих меница",null,0]
[5142,911900,"Исправка унутрашњег дуга",null,0]
[5143,912000,"ПРИМАЊА ОД ИНОСТРАНОГ ЗАДУЖИВАЊА (од 5144 до 5150)",{"$f":"SUM(D189:D199)","v":0},0,{"$f":"SUM(F189:F199)","v":0},0,0,0,0,0]
[5144,912100,"Примања од емитовања хартија од вредности, изузев акција, на иностраном финансијском тржишту",null,0]
[5145,912200,"Примања од задуживања од иностраних држава",null,0]
[5146,912300,"Примања од задуживања од мултилатералних институција",null,0]
[5147,912400,"Примања од задуживања од иностраних пословних банака",null,0]
[5148,912500,"Примања од задуживања од осталих иностраних поверилаца",null,0]
[5149,912600,"Примања од иностраних финансијских деривата",null,0]
["Ознака ОП","Број конта","Опис","Износ планираних прихода и примања","Износ остварених прихода и примања"]
[null,null,null,null,"Укупно                        (од 6 до 11)","Приходи и примања из буџета",null,null,null,"Из донација и помоћи","Из осталих извора"]
[null,null,null,null,null,"Републике","Аутономне покрајине","Општине / \nграда","ООСО"]
["1","2","3","4","5","6","7","8","9","10","11"]
[5150,912900,"Исправка спољног дуга",null,0]
[5151,920000,"ПРИМАЊА ОД ПРОДАЈЕ ФИНАНСИЈСКЕ ИМОВИНЕ (5152 + 5162)",{"$f":"D201+D211","v":0},0,{"$f":"F201+F211","v":0},0,0,0,0,0]
[5152,921000,"ПРИМАЊА ОД ПРОДАЈЕ ДОМАЋЕ ФИНАНСИЈСКЕ ИМОВИНЕ (од 5153 до 5161) ",{"$f":"SUM(D202:D210)","v":0},0,{"$f":"SUM(F202:F210)","v":0},0,0,0,0,0]
[5153,921100,"Примања од продаје домаћих хартија од вредности, изузев акција",null,0]
[5154,921200,"Примања од отплате кредита датих осталим нивоима власти",null,0]
[5155,921300,"Примања од отплате кредита датих домаћим јавним финансијским институцијама",null,0]
[5156,921400,"Примања од отплате кредита домаћим пословним банкама",null,0]
[5157,921500,"Примања од отплате кредита датих домаћим јавним нефинансијским институцијама",null,0]
[5158,921600,"Примања од отплате кредита датих физичким лицима и домаћинствима у земљи",null,0]
[5159,921700,"Примања од отплате кредита датих удружењима грађана у земљи",null,0]
[5160,921800,"Примања од отплате кредита датих нефинансијским приватним предузећима у земљи",null,0]
[5161,921900,"Примања од продаје домаћих акција и осталог капитала",null,0]
[5162,922000,"ПРИМАЊА ОД ПРОДАЈЕ СТРАНЕ ФИНАНСИЈСКЕ ИМОВИНЕ (од 5163 до 5170)",{"$f":"SUM(D212:D223)","v":0},0,{"$f":"SUM(F212:F223)","v":0},0,0,0,0,0]
[5163,922100,"Примања од продаје страних хартија од вредности, изузев акција",null,{"$f":"SUM(F212:K212)","v":0}]
[5164,922200,"Примања од отплате кредита датих страним владама",null,0]
[5165,922300,"Примања од отплате кредита датих међународним организацијама",null,0]
[5166,922400,"Примања од отплате кредита датих страним пословним банкама",null,0]
[5167,922500,"Примања од отплате кредита датих страним нефинансијским институцијама",null,0]
["Ознака ОП","Број конта","Опис","Износ планираних прихода и примања","Износ остварених прихода и примања"]
[null,null,null,null,"Укупно                        (од 6 до 11)","Приходи и примања из буџета",null,null,null,"Из донација и помоћи","Из осталих извора"]
[null,null,null,null,null,"Републике","Аутономне покрајине","Општине / \nграда","ООСО"]
["1","2","3","4","5","6","7","8","9","10","11"]
[5168,922600,"Примања од отплате кредита датих страним невладиним организацијама",null,0]
[5169,922700,"Примања од продаје страних акција и осталог капитала",null,0]
[5170,922800,"Примања од продаје стране валуте",null,0]
[5171,null,"УКУПНИ ПРИХОДИ И ПРИМАЊА (5001 + 5131)",{"$f":"D22+D176","v":307273},291581,{"$f":"F22+F176","v":4400},3274,11663,265740,0,6504]
[]
[]
["II. УКУПНИ РАСХОДИ И ИЗДАЦИ"]
[null,null,null,null,null,null,null,null,null,"(У хиљадама динара)"]
["Ознака ОП","Број конта","Опис","Износ одобрених апропријација ","Износ извршених расхода и издатака"]
[null,null,null,null,"Укупно           (од 6 до 11)","Расходи и издаци на терет буџета",null,null,null,"Из донација и помоћи","Из осталих извора"]
[null,null,null,null,null,"Републике ","Аутономне покрајине","Општине / \nграда","ООСО"]
[1,2,3,4,5,6,7,8,9,10,11]
[5172,null,"ТЕКУЋИ РАСХОДИ И ИЗДАЦИ ЗА НЕФИНАНСИЈСКЕ ИМОВИНЕ (5173 + 5341)",{"$f":"D234+D430","v":307273},{"$f":"SUM(F233:K233)","v":286729},{"$f":"F234+F430","v":4400},2734,11663,264902,0,3030]
[5173,400000,"ТЕКУЋИ РАСХОДИ (5174 + 5196 + 5241 + 5256 + 5280 + 5293 + 5309 + 5324)",{"$f":"D235+D261+D310+D329+D357+D370+D390+D409","v":286828},277934,{"$f":"F235+F261+F310+F329+F357+F370+F390+F409","v":0},30,11021,264902,0,1981]
[5174,410000,"РАСХОДИ ЗА ЗАПОСЛЕНЕ (5175 + 5177 + 5181 + 5183 + 5188 + 5190 + 5192 + 5194)",{"$f":"D236+D238+D242+D244+D253+D255+D257+D259","v":241742},237742,{"$f":"F236+F238+F242+F244+F253+F255+F257+F259","v":0},0,5638,231980,0,124]
[5175,411000,"ПЛАТЕ, ДОДАЦИ И НАКНАДЕ ЗАПОСЛЕНИХ (ЗАРАДЕ) (5176)",{"$f":"D237","v":193491},190619,{"$f":"F237","v":0},0,3712,186878,0,29]
[5176,411100,"Плате, додаци и накнаде запослених",193491,190619,null,null,3712,186878,null,29]
[5177,412000,"СОЦИЈАЛНИ ДОПРИНОСИ НА ТЕРЕТ ПОСЛОДАВЦА (од 5178 до 5180)",{"$f":"SUM(D239:D241)","v":32523},31991,{"$f":"SUM(F239:F241)","v":0},0,1805,30181,0,5]
[5178,412100,"Допринос за пензијско и инвалидско осигурање",22473,22175,null,null,1615,20557,null,3]
[5179,412200,"Допринос за здравствено осигурање",10050,9816,null,null,190,9624,null,2]
[5180,412300,"Допринос за незапосленост",null,0]
[5181,413000,"НАКНАДЕ У НАТУРИ (5182)",{"$f":"D243","v":0},0,{"$f":"F243","v":0},0,0,0,0,0]
[5182,413100,"Накнаде у натури",null,0]
[5183,414000,"СОЦИЈАЛНА ДАВАЊА ЗАПОСЛЕНИМА (од 5184 до 5187)",{"$f":"SUM(D245:D252)","v":4264},3819,{"$f":"SUM(F245:F252)","v":0},0,0,3729,0,90]
[5184,414100,"Исплата накнада за време одсуствовања с посла на терет фондова",null,0]
[5185,414200,"Расходи за образовање деце запослених",null,0]
[5186,414300,"Отпремнине и помоћи",1636,1243,null,null,null,1227,null,16]
["Ознака ОП","Број конта","Опис","Износ одобрених апропријација","Износ извршених расхода и издатака"]
[null,null,null,null,"Укупно           (од 6 до 11)","Расходи и издаци на терет буџета",null,null,null,"Из донација и помоћи","Из осталих извора"]
[null,null,null,null,null,"Републике ","Аутономне покрајине","Општине / \nграда","ООСО"]
["1","2","3","4","5","6","7","8","9","10","11"]
[5187,414400,"Помоћ у медицинском лечењу запосленог или чланова уже породице и друге помоћи запосленом",2628,2576,null,null,null,2502,null,74]
[5188,415000,"НАКНАДА ТРОШКОВА ЗА ЗАПОСЛЕНЕ (5189)",{"$f":"D254","v":8083},8009,{"$f":"F254","v":0},0,121,7888,0,0]
[5189,415100,"Накнаде трошкова за запослене",8083,8009,null,null,121,7888]
[5190,416000,"НАГРАДЕ ЗАПОСЛЕНИМА И ОСТАЛИ ПОСЕБНИ РАСХОДИ (5191)",{"$f":"D256","v":3381},3304,{"$f":"F256","v":0},0,0,3304,0,0]
[5191,416100,"Награде запосленима и остали посебни расходи",3381,3304,null,null,null,3304]
[5192,417000,"ПОСЛАНИЧКИ ДОДАТАК (5193)",{"$f":"D258","v":0},0,{"$f":"F258","v":0},0,0,0,0,0]
[5193,417100,"Посланички додатак",null,0]
[5194,418000,"СУДИЈСКИ ДОДАТАК (5195)",{"$f":"D260","v":0},0,{"$f":"F260","v":0},0,0,0,0,0]
[5195,418100,"Судијски додатак",null,0]
[5196,420000,"КОРИШЋЕЊЕ УСЛУГА И РОБА (5197 + 5205 + 5211 + 5220 + 5228 + 5231) ",{"$f":"D262+D270+D276+D289+D297+D300","v":43595},39084,{"$f":"F262+F270+F276+F289+F297+F300","v":0},30,5383,32082,0,1589]
[5197,421000,"СТАЛНИ ТРОШКОВИ (од 5198 до 5204)",{"$f":"SUM(D263:D269)","v":11560},10861,{"$f":"SUM(F263:F269)","v":0},0,0,10349,0,512]
[5198,421100,"Трошкови платног промета и банкарских услуга",421,319,null,null,null,289,null,30]
[5199,421200,"Енергетске услуге",6686,6521,null,null,null,6039,null,482]
[5200,421300,"Комуналне услуге",1834,1590,null,null,null,1590]
[5201,421400,"Услуге комуникација",1693,1592,null,null,null,1592]
[5202,421500,"Трошкови осигурања",926,839,null,null,null,839]
[5203,421600,"Закуп имовине и опреме",null,0]
[5204,421900,"Остали трошкови",null,0]
[5205,422000,"ТРОШКОВИ ПУТОВАЊА (од 5206 до 5210)",{"$f":"SUM(D271:D275)","v":115},54,{"$f":"SUM(F271:F275)","v":0},0,0,54,0,0]
[5206,422100,"Трошкови службених путовања у земљи",null,0]
[5207,422200,"Трошкови службених путовања у иностранство",null,0]
[5208,422300,"Трошкови путовања у оквиру редовног рада",115,54,null,null,null,54]
[5209,422400,"Трошкови путовања ученика",null,0]
[5210,422900,"Остали трошкови транспорта",null,0]
[5211,423000,"УСЛУГЕ ПО УГОВОРУ (од 5212 до 5219)",{"$f":"SUM(D277:D288)","v":2889},2260,{"$f":"SUM(F277:F288)","v":0},0,216,1965,0,79]
[5212,423100,"Административне услуге",null,0]
[5213,423200,"Компјутерске услуге",1550,1512,null,null,null,1512]
[5214,423300,"Услуге образовања и усавршавања запослених",460,453,null,null,null,453]
[5215,423400,"Услуге информисања",7,7,null,null,null,null,null,7]
[5216,423500,"Стручне услуге",755,288,null,null,216,null,null,72]
[5217,423600,"Услуге за домаћинство и угоститељство",52,0]
[5218,423700,"Репрезентација",5,0]
["Ознака ОП","Број конта","Опис","Износ одобрених апропријација","Износ извршених расхода и издатака"]
[null,null,null,null,"Укупно           (од 6 до 11)","Расходи и издаци на терет буџета",null,null,null,"Из донација и помоћи","Из осталих извора"]
[null,null,null,null,null,"Републике ","Аутономне покрајине","Општине / \nграда","ООСО"]
["1","2","3","4","5","6","7","8","9","10","11"]
[5219,423900,"Остале опште услуге",60,0]
[5220,424000,"СПЕЦИЈАЛИЗОВАНЕ УСЛУГЕ (од 5221 до 5227)",{"$f":"SUM(D290:D296)","v":2849},510,{"$f":"SUM(F290:F296)","v":0},30,0,60,0,420]
[5221,424100,"Пољопривредне услуге",null,0]
[5222,424200,"Услуге образовања, културе и спорта",null,0]
[5223,424300,"Медицинске услуге",250,150,null,null,null,60,null,90]
[5224,424400,"Услуге одржавања аутопутева",null,0]
[5225,424500,"Услуге одржавања националних паркова и природних површина",null,0]
[5226,424600,"Услуге очувања животне средине, науке и геодетске услуге",null,0]
[5227,424900,"Остале специјализоване услуге",2599,360,null,30,null,null,null,330]
[5228,425000,"ТЕКУЋЕ ПОПРАВКЕ И ОДРЖАВАЊЕ (5229 + 5230)",{"$f":"D298+D299","v":2797},2342,{"$f":"F298+F299","v":0},0,0,2342,0,0]
[5229,425100,"Текуће поправке и одржавање зграда и објеката",707,694,null,null,null,694]
[5230,425200,"Текуће поправке и одржавање опреме",2090,1648,null,null,null,1648]
[5231,426000,"МАТЕРИЈАЛ (од 5232 до 5240)",{"$f":"SUM(D301:D309)","v":23385},23057,{"$f":"SUM(F301:F309)","v":0},0,5167,17312,0,578]
[5232,426100,"Административни материјал",1167,1163,null,null,280,883]
[5233,426200,"Материјали за пољопривреду",null,0]
[5234,426300,"Материјали за образовање и усавршавање запослених",null,0]
[5235,426400,"Материјали за саобраћај",5421,5421,null,null,null,5421]
[5236,426500,"Материјали за очување животне средине и науку",null,{"$f":"SUM(F305:K305)","v":0}]
[5237,426600,"Материјали за образовање, културу и спорт",null,0]
[5238,426700,"Медицински и лабораторијски материјали",16232,15978,null,null,4887,10513,null,578]
[5239,426800,"Материјали за одржавање хигијене и угоститељство",500,495,null,null,null,495]
[5240,426900,"Материјали за посебне намене",65,0]
[5241,430000,"АМОРТИЗАЦИЈА И УПОТРЕБА СРЕДСТАВА ЗА РАД (5242 + 5246 + 5248 + 5250 + 5254)",{"$f":"D311+D319+D321+D323+D327","v":380},93,{"$f":"F311+F319+F321+F323+F327","v":0},0,0,0,0,93]
[5242,431000,"АМОРТИЗАЦИЈА НЕКРЕТНИНА И ОПРЕМЕ (од 5243 до 5245)",{"$f":"SUM(D312:D314)","v":380},93,{"$f":"SUM(F312:F314)","v":0},0,0,0,0,93]
[5243,431100,"Амортизација зграда и грађевинскиx објеката",60,14,null,null,null,null,null,14]
[5244,431200,"Амортизација опреме",320,79,null,null,null,null,null,79]
[5245,431300,"Амортизација осталих некретнина и опреме",null,0]
["Ознака ОП","Број конта","Опис","Износ одобрених апропријација","Износ извршених расхода и издатака"]
[null,null,null,null,"Укупно           (од 6 до 11)","Расходи и издаци на терет буџета",null,null,null,"Из донација и помоћи","Из осталих извора"]
[null,null,null,null,null,"Републике ","Аутономне покрајине","Општине / \nграда","ООСО"]
["1","2","3","4","5","6","7","8","9","10","11"]
[5246,432000,"АМОРТИЗАЦИЈА КУЛТИВИСАНЕ ИМОВИНЕ (5247)",{"$f":"D320","v":0},0,{"$f":"F320","v":0},0,0,0,0,0]
[5247,432100,"Амортизација култивисане опреме",null,0]
[5248,433000,"УПОТРЕБА ДРАГОЦЕНОСТИ (5249)",{"$f":"D322","v":0},0,{"$f":"F322","v":0},0,0,0,0,0]
[5249,433100,"Употреба драгоцености",null,0]
[5250,434000,"УПОТРЕБА ПРИРОДНЕ ИМОВИНЕ (од 5251 до 5253)",{"$f":"SUM(D324:D326)","v":0},0,{"$f":"SUM(F324:F326)","v":0},0,0,0,0,0]
[5251,434100,"Употреба земљишта",null,0]
[5252,434200,"Употреба подземног блага",null,0]
[5253,434300,"Употреба шума и вода",null,0]
[5254,435000,"АМОРТИЗАЦИЈА НЕМАТЕРИЈАЛНЕ ИМОВИНЕ (5255)",{"$f":"D328","v":0},0,{"$f":"F328","v":0},0,0,0,0,0]
[5255,435100,"Амортизација нематеријалне имовине",null,0]
[5256,440000,"ОТПЛАТА КАМАТА И ПРАТЕЋИ ТРОШКОВИ ЗАДУЖИВАЊА (5257 + 5267 + 5274 + 5276)",{"$f":"D330+D340+D351+D353","v":20},15,{"$f":"F330+F340+F351+F353","v":0},0,0,0,0,15]
[5257,441000,"ОТПЛАТЕ ДОМАЋИХ КАМАТА (од 5258 до 5266)",{"$f":"SUM(D331:D339)","v":20},15,{"$f":"SUM(F331:F339)","v":0},0,0,0,0,15]
[5258,441100,"Отплата камата на домаће хартије од вредности",null,0]
[5259,441200,"Отплата камата осталим нивоима власти",null,0]
[5260,441300,"Отплата камата домаћим јавним финансијским институцијама",20,15,null,null,null,null,null,15]
[5261,441400,"Отплата камата домаћим пословним банкама",null,0]
[5262,441500,"Отплата камата осталим домаћим кредиторима",null,0]
[5263,441600,"Отплата камата домаћинствима у земљи",null,0]
[5264,441700,"Отплата камата на домаће финансијске деривате",null,0]
[5265,441800,"Отплата камата на домаће менице",null,0]
[5266,441900,"Финансијске промене на финансијским лизинзима",null,0]
[5267,442000,"ОТПЛАТА СТРАНИХ КАМАТА (од 5268 до 5273)",{"$f":"SUM(D341:D350)","v":0},0,{"$f":"SUM(F341:F350)","v":0},0,0,0,0,0]
[5268,442100,"Отплата камата на хартије од вредности емитоване на иностраном финансијском тржишту",null,0]
[5269,442200,"Отплата камата страним владама",null,0]
[5270,442300,"Отплата камата мултилатералним институцијама",null,0]
[5271,442400,"Отплата камата страним пословним банкама",null,0]
["Ознака ОП","Број конта","Опис","Износ одобрених апропријација","Износ извршених расхода и издатака"]
[null,null,null,null,"Укупно           (од 6 до 11)","Расходи и издаци на терет буџета",null,null,null,"Из донација и помоћи","Из осталих извора"]
[null,null,null,null,null,"Републике ","Аутономне покрајине","Општине / \nграда","ООСО"]
["1","2","3","4","5","6","7","8","9","10","11"]
[5272,442500,"Отплата камата осталим страним кредиторима",null,0]
[5273,442600,"Отплата камата на стране финансијске деривате",null,0]
[5274,443000,"ОТПЛАТА КАМАТА ПО ГАРАНЦИЈАМА (5275)",{"$f":"D352","v":0},0,{"$f":"F352","v":0},0,0,0,0,0]
[5275,443100,"Отплата камата по гаранцијама",null,0]
[5276,444000,"ПРАТЕЋИ ТРОШКОВИ ЗАДУЖИВАЊА (од 5277 до 5279)",{"$f":"SUM(D354:D356)","v":0},0,{"$f":"SUM(F354:F356)","v":0},0,0,0,0,0]
[5277,444100,"Негативне курсне разлике",null,0]
[5278,444200,"Казне за кашњење",null,0]
[5279,444300,"Остали пратећи трошкови задуживања",null,0]
[5280,450000,"СУБВЕНЦИЈЕ (5281 + 5284 + 5287 + 5290)",{"$f":"D358+D361+D364+D367","v":0},0,{"$f":"F358+F361+F364+F367","v":0},0,0,0,0,0]
[5281,451000,"СУБВЕНЦИЈЕ ЈАВНИМ НЕФИНАНСИЈСКИМ ПРЕДУЗЕЋИМА И ОРГАНИЗАЦИЈАМА (5282 + 5283)",{"$f":"D359+D360","v":0},0,{"$f":"F359+F360","v":0},0,0,0,0,0]
[5282,451100,"Текуће субвенције јавним нефинансијским предузећима и организацијама",null,0]
[5283,451200,"Капиталне субвенције јавним нефинансијским предузећима и организацијама",null,0]
[5284,452000,"СУБВЕНЦИЈЕ ПРИВАТНИМ ФИНАНСИЈСКИМ ИНСТИТУЦИЈАМА (5285 + 5286)",{"$f":"D362+D363","v":0},0,{"$f":"F362+F363","v":0},0,0,0,0,0]
[5285,452100,"Текуће субвенције приватним финансијским институцијама",null,0]
[5286,452200,"Капиталне субвенције приватним финансијским институцијама",null,0]
[5287,453000,"СУБВЕНЦИЈЕ ЈАВНИМ ФИНАНСИЈСКИМ ИНСТИТУЦИЈАМА (5288 + 5289)",{"$f":"D365+D366","v":0},0,{"$f":"F365+F366","v":0},0,0,0,0,0]
[5288,453100,"Текуће субвенције јавним финансијским институцијама",null,0]
[5289,453200,"Капиталне субвенције јавним финансијским институцијама",null,0]
[5290,454000,"СУБВЕНЦИЈЕ ПРИВАТНИМ ПРЕДУЗЕЋИМА (5291 + 5292)",{"$f":"D368+D369","v":0},0,{"$f":"F368+F369","v":0},0,0,0,0,0]
[5291,454100,"Текуће субвенције приватним предузећима",null,0]
[5292,454200,"Капиталне субвенције приватним предузећима",null,0]
[5293,460000,"ДОНАЦИЈЕ, ДОТАЦИЈЕ И ТРАНСФЕРИ (5294 + 5297 + 5300 + 5303 + 5306)",{"$f":"D375+D378+D381+D384+D387","v":600},600,{"$f":"F375+F378+F381+F384+F387","v":0},0,0,600,0,0]
["Ознака ОП","Број конта","Опис","Износ одобрених апропријација","Износ извршених расхода и издатака"]
[null,null,null,null,"Укупно           (од 6 до 11)","Расходи и издаци на терет буџета",null,null,null,"Из донација и помоћи","Из осталих извора"]
[null,null,null,null,null,"Републике ","Аутономне покрајине","Општине / \nграда","ООСО"]
["1","2","3","4","5","6","7","8","9","10","11"]
[5294,461000,"ДОНАЦИЈЕ СТРАНИМ ВЛАДАМА (5295 + 5296)",{"$f":"D376+D377","v":0},0,{"$f":"F376+F377","v":0},0,0,0,0,0]
[5295,461100,"Текуће донације страним владама",null,0]
[5296,461200,"Капиталне донације страним владама",null,0]
[5297,462000,"ДОТАЦИЈЕ МЕЂУНАРОДНИМ ОРГАНИЗАЦИЈАМА (5298 + 5299)",{"$f":"D379+D380","v":0},0,{"$f":"F379+F380","v":0},0,0,0,0,0]
[5298,462100,"Текуће дотације међународним организацијама",null,0]
[5299,462200,"Капиталне дотације међународним организацијама",null,0]
[5300,463000,"ТРАНСФЕРИ ОСТАЛИМ НИВОИМА ВЛАСТИ (5301 + 5302)",{"$f":"D382+D383","v":0},{"$f":"SUM(F381:K381)","v":0},{"$f":"F382+F383","v":0},0,0,0,0,0]
[5301,463100,"Текући трансфери осталим нивоима власти",null,0]
[5302,463200,"Капитални трансфери осталим нивоима власти",null,0]
[5303,464000,"ДОТАЦИЈЕ ОРГАНИЗАЦИЈАМА ОБАВЕЗНОГ СОЦИЈАЛНОГ ОСИГУРАЊА (5304 + 5305)",{"$f":"D385+D386","v":0},0,{"$f":"F385+F386","v":0},0,0,0,0,0]
[5304,464100,"Текуће дотације организацијама обавезног социјалног осигурања",null,0]
[5305,464200,"Капиталне дотације организацијама обавезног социјалног осигурања",null,0]
[5306,465000,"ОСТАЛЕ ДОТАЦИЈЕ И ТРАНСФЕРИ (5307 + 5308)",{"$f":"D388+D389","v":600},600,{"$f":"F388+F389","v":0},0,0,600,0,0]
[5307,465100,"Остале текуће дотације и трансфери",600,600,null,null,null,600]
[5308,465200,"Остале капиталне дотације и трансфери",null,0]
[5309,470000,"СОЦИЈАЛНО ОСИГУРАЊЕ И СОЦИЈАЛНА ЗАШТИТА (5310 + 5314)",{"$f":"D391+D395","v":0},0,{"$f":"F391+F395","v":0},0,0,0,0,0]
[5310,471000,"ПРАВА ИЗ СОЦИЈАЛНОГ ОСИГУРАЊА (ОРГАНИЗАЦИЈЕ ОБАВЕЗНОГ СОЦИЈАЛНОГ ОСИГУРАЊА) (од 5311 до 5313)",{"$f":"SUM(D392:D394)","v":0},0,{"$f":"SUM(F392:F394)","v":0},0,0,0,0,0]
[5311,471100,"Права из социјалног осигурања која се исплаћују непосредно домаћинствима",null,0]
[5312,471200,"Права из социјалног осигурања која се исплаћују непосредно пружаоцима услуга",null,0]
[5313,471900,"Трансфери другим организацијама обавезног социјалног осигурања за доприносе за осигурање",null,0]
[5314,472000,"НАКНАДЕ ЗА СОЦИЈАЛНУ ЗАШТИТУ ИЗ БУЏЕТА (од 5315 до 5323)",{"$f":"SUM(D400:D408)","v":0},0,{"$f":"SUM(F400:F408)","v":0},0,0,0,0,0]
["Ознака ОП","Број конта","Опис","Износ одобрених апропријација","Износ извршених расхода и издатака"]
[null,null,null,null,"Укупно           (од 6 до 11)","Расходи и издаци на терет буџета",null,null,null,"Из донација и помоћи","Из осталих извора"]
[null,null,null,null,null,"Републике ","Аутономне покрајине","Општине / \nграда","ООСО"]
["1","2","3","4","5","6","7","8","9","10","11"]
[5315,472100,"Накнаде из буџета у случају болести и инвалидности",null,0]
[5316,472200,"Накнаде из буџета за породиљско одсуство",null,0]
[5317,472300,"Накнаде из буџета за децу и породицу",null,0]
[5318,472400,"Накнаде из буџета за случај незапослености",null,0]
[5319,472500,"Старосне и породичне пензије из буџета",null,0]
[5320,472600,"Накнаде из буџета у случају смрти",null,0]
[5321,472700,"Накнаде из буџета за образовање, културу, науку и спорт",null,0]
[5322,472800,"Накнаде из буџета за становање и живот",null,0]
[5323,472900,"Остале накнаде из буџета",null,0]
[5324,480000,"ОСТАЛИ РАСХОДИ (5325 + 5328 + 5332 + 5334 + 5337 + 5339)",{"$f":"D410+D413+D417+D419+D422+D428","v":491},400,{"$f":"F410+F413+F417+F419+F422+F428","v":0},0,0,240,0,160]
[5325,481000,"ДОТАЦИЈЕ НЕВЛАДИНИМ ОРГАНИЗАЦИЈАМА (5326 + 5327)",{"$f":"D411+D412","v":0},0,{"$f":"F411+F412","v":0},0,0,0,0,0]
[5326,481100,"Дотације непрофитним организацијама које пружају помоћ домаћинствима",null,0]
[5327,481900,"Дотације осталим непрофитним институцијама",null,0]
[5328,482000,"ПОРЕЗИ, ОБАВЕЗНЕ ТАКСЕ, КАЗНЕ, ПЕНАЛИ И КАМАТЕ (од 5329 до 5331)",{"$f":"SUM(D414:D416)","v":331},240,{"$f":"SUM(F414:F416)","v":0},0,0,240,0,0]
[5329,482100,"Остали порези",320,239,null,null,null,239]
[5330,482200,"Обавезне таксе",1,1,null,null,null,1]
[5331,482300,"Новчане казне, пенали и камате",10,0]
[5332,483000,"НОВЧАНЕ КАЗНЕ И ПЕНАЛИ ПО РЕШЕЊУ СУДОВА (5333)",{"$f":"D418","v":160},160,{"$f":"F418","v":0},0,0,0,0,160]
[5333,483100,"Новчане казне и пенали по решењу судова",160,160,null,null,null,null,null,160]
[5334,484000,"НАКНАДА ШТЕТЕ ЗА ПОВРЕДЕ ИЛИ ШТЕТУ НАСТАЛУ УСЛЕД ЕЛЕМЕНТАРНИХ НЕПОГОДА ИЛИ ДРУГИХ ПРИРОДНИХ УЗРОКА (5335 + 5336)",{"$f":"D420+D421","v":0},0,{"$f":"F420+F421","v":0},0,0,0,0,0]
[5335,484100,"Накнада штете за повреде или штету насталу услед елементарних непогода",null,0]
[5336,484200,"Накнада штете од дивљачи",null,0]
[5337,485000,"НАКНАДА ШТЕТЕ ЗА ПОВРЕДЕ ИЛИ ШТЕТУ НАНЕТУ ОД СТРАНЕ ДРЖАВНИХ ОРГАНА (5338)",{"$f":"D423","v":0},0,{"$f":"F423","v":0},0,0,0,0,0]
[5338,485100,"Накнада штете за повреде или штету нанетих од стране државних органа",null,0]
["Ознака ОП","Број конта","Опис","Износ одобрених апропријација","Износ извршених расхода и издатака"]
[null,null,null,null,"Укупно           (од 6 до 11)","Расходи и издаци на терет буџета",null,null,null,"Из донација и помоћи","Из осталих извора"]
[null,null,null,null,null,"Републике ","Аутономне покрајине","Општине / \nграда","ООСО"]
["1","2","3","4","5","6","7","8","9","10","11"]
[5339,489000,"РАСХОДИ КОЈИ СЕ ФИНАНСИРАЈУ ИЗ СРЕДСТАВА ЗА РЕАЛИЗАЦИЈУ НАЦИОНАЛНОГ ИНВЕСТИЦИОНОГ ПЛАНА (5340)",{"$f":"D429","v":0},0,{"$f":"F429","v":0},0,0,0,0,0]
[5340,489100,"Расходи који се финансирају из средстава за реализацију националног инвестиционог плана",null,0]
[5341,500000,"ИЗДАЦИ ЗА НЕФИНАНСИЈСКУ ИМОВИНУ (5342 + 5364 + 5373 + 5376 + 5384)",{"$f":"D431+D453+D466+D469+D477","v":20445},8795,{"$f":"F431+F453+F466+F469+F477","v":4400},2704,642,0,0,1049]
[5342,510000,"ОСНОВНА СРЕДСТВА (5343 + 5348 + 5358 + 5360 + 5362)",{"$f":"D432+D437+D447+D449+D451","v":20445},8795,{"$f":"F432+F437+F447+F449+F451","v":4400},2704,642,0,0,1049]
[5343,511000,"ЗГРАДЕ И ГРАЂЕВИНСКИ ОБЈЕКТИ (од 5344 до 5347)",{"$f":"SUM(D433:D436)","v":5555},0,{"$f":"SUM(F433:F436)","v":0},0,0,0,0,0]
[5344,511100,"Куповина зграда и објеката",null,0]
[5345,511200,"Изградња зграда и објеката",null,0]
[5346,511300,"Капитално одржавање зграда и објеката",5555,0]
[5347,511400,"Пројектно планирање",null,0]
[5348,512000,"МАШИНЕ И ОПРЕМА (од 5349 до 5357)",{"$f":"SUM(D438:D446)","v":14890},8795,{"$f":"SUM(F438:F446)","v":4400},2704,642,0,0,1049]
[5349,512100,"Опрема за саобраћај",5000,0]
[5350,512200,"Административна опрема",990,985,null,null,null,null,null,985]
[5351,512300,"Опрема за пољопривреду",null,0]
[5352,512400,"Опрема за заштиту животне средине",null,0]
[5353,512500,"Медицинска и лабораторијска опрема",8900,7810,4400,2704,642,null,null,64]
[5354,512600,"Опрема за образовање, културу и спорт",null,0]
[5355,512700,"Опрема за војску",null,0]
[5356,512800,"Опрема за јавну безбедност",null,0]
[5357,512900,"Опрема за производњу, моторна, непокретна и немоторна опрема",null,0]
[5358,513000,"ОСТАЛЕ НЕКРЕТНИНЕ И ОПРЕМА (5359)",{"$f":"D448","v":0},0,{"$f":"F448","v":0},0,0,0,0,0]
[5359,513100,"Остале некретнине и опрема",null,0]
[5360,514000,"КУЛТИВИСАНА ИМОВИНА (5361)",{"$f":"D450","v":0},0,{"$f":"F450","v":0},0,0,0,0,0]
[5361,514100,"Култивисана имовина",null,0]
[5362,515000,"НЕМАТЕРИЈАЛНА ИМОВИНА (5363)",{"$f":"D452","v":0},0,{"$f":"F452","v":0},0,0,0,0,0]
[5363,515100,"Нематеријална имовина",null,0]
[5364,520000,"ЗАЛИХЕ (5365 + 5367 + 5371)",{"$f":"D454+D456+D464","v":0},{"$f":"SUM(F453:K453)","v":0},{"$f":"F454+F456+F464","v":0},0,0,0,0,0]
[5365,521000,"РОБНЕ РЕЗЕРВЕ (5366)",{"$f":"D455","v":0},0,{"$f":"F455","v":0},0,0,0,0,0]
[5366,521100,"Робне резерве",null,0]
[5367,522000,"ЗАЛИХЕ ПРОИЗВОДЊЕ (од 5368 до 5370)",{"$f":"SUM(D457:D463)","v":0},0,{"$f":"SUM(F457:F463)","v":0},0,0,0,0,0]
[5368,522100,"Залихе материјала",null,0]
["Ознака ОП","Број конта","Опис","Износ одобрених апропријација","Износ извршених расхода и издатака"]
[null,null,null,null,"Укупно           (од 6 до 11)","Расходи и издаци на терет буџета",null,null,null,"Из донација и помоћи","Из осталих извора"]
[null,null,null,null,null,"Републике ","Аутономне покрајине","Општине / \nграда","ООСО"]
["1","2","3","4","5","6","7","8","9","10","11"]
[5369,522200,"Залихе недовршене производње",null,0]
[5370,522300,"Залихе готових производа",null,0]
[5371,523000,"ЗАЛИХЕ РОБЕ ЗА ДАЉУ ПРОДАЈУ (5372)",{"$f":"D465","v":0},0,{"$f":"F465","v":0},0,0,0,0,0]
[5372,523100,"Залихе робе за даљу продају",null,0]
[5373,530000,"ДРАГОЦЕНОСТИ (5374)",{"$f":"D467","v":0},0,{"$f":"F467","v":0},0,0,0,0,0]
[5374,531000,"ДРАГОЦЕНОСТИ (5375)",{"$f":"D468","v":0},0,0,0,0,0,0,0]
[5375,531100,"Драгоцености",null,0]
[5376,540000,"ПРИРОДНА ИМОВИНА (5377 + 5379 + 5381)",{"$f":"D470+D472+D474","v":0},0,{"$f":"F470+F472+F474","v":0},0,0,0,0,0]
[5377,541000,"ЗЕМЉИШТЕ (5378)",{"$f":"D471","v":0},0,{"$f":"F471","v":0},0,0,0,0,0]
[5378,541100,"Земљиште",null,0]
[5379,542000,"РУДНА БОГАТСТВА (5380)",{"$f":"D473","v":0},0,{"$f":"F473","v":0},0,0,0,0,0]
[5380,542100,"Копови",null,0]
[5381,543000,"ШУМЕ И ВОДЕ (5382 + 5383)",{"$f":"D475+D476","v":0},0,{"$f":"F475+F476","v":0},0,0,0,0,0]
[5382,543100,"Шуме",null,0]
[5383,543200,"Воде",null,0]
[5384,550000,"НЕФИНАНСИЈСКА ИМОВИНА КОЈА СЕ ФИНАНСИРА ИЗ СРЕДСТАВА ЗА РЕАЛИЗАЦИЈУ НАЦИОНАЛНОГ ИНВЕСТИЦИОНОГ ПЛАНА (5385)",{"$f":"D478","v":0},0,{"$f":"F478","v":0},0,0,0,0,0]
[5385,551000,"НЕФИНАНСИЈСКА ИМОВИНА КОЈА СЕ ФИНАНСИРА ИЗ СРЕДСТАВА ЗА РЕАЛИЗАЦИЈУ НАЦИОНАЛНОГ ИНВЕСТИЦИОНОГ ПЛАНА (5386)",{"$f":"D479","v":0},0,0,0,0,0,0,0]
[5386,551100,"Нефинансијска имовина која се финансира из средстава за реализацију националног инвестиционог плана",null,0]
[5387,600000,"ИЗДАЦИ ЗА ОТПЛАТУ ГЛАВНИЦЕ И НАБАВКУ ФИНАНСИЈСКЕ ИМОВИНЕ (5388 + 5413)",{"$f":"D481+D510","v":0},0,{"$f":"F481+F510","v":0},0,0,0,0,0]
[5388,610000,"ОТПЛАТА ГЛАВНИЦЕ (5389 + 5399 + 5407 + 5409 + 5411)",{"$f":"D482+D496+D504+D506+D508","v":0},0,{"$f":"F482+F496+F504+F506+F508","v":0},0,0,0,0,0]
[5389,611000,"ОТПЛАТА ГЛАВНИЦЕ ДОМАЋИМ КРЕДИТОРИМА (од 5390 до 5398)",{"$f":"SUM(D483:D495)","v":0},0,{"$f":"SUM(F483:F495)","v":0},0,0,0,0,0]
[5390,611100,"Отплата главнице умањена за дисконт на домаће хартије од вредности, изузев акција",null,0]
[5391,611200,"Отплата главнице осталим нивоима власти",null,0]
[5392,611300,"Отплата главнице домаћим јавним финансијским институцијама",null,0]
["Ознака ОП","Број конта","Опис","Износ одобрених апропријација","Износ извршених расхода и издатака"]
[null,null,null,null,"Укупно           (од 6 до 11)","Расходи и издаци на терет буџета",null,null,null,"Из донација и помоћи","Из осталих извора"]
[null,null,null,null,null,"Републике ","Аутономне покрајине","Општине / \nграда","ООСО"]
["1","2","3","4","5","6","7","8","9","10","11"]
[5393,611400,"Отплата главнице домаћим пословним банкама",null,0]
[5394,611500,"Отплата главнице осталим домаћим кредиторима",null,0]
[5395,611600,"Отплата главнице домаћинствима у земљи",null,0]
[5396,611700,"Отплата главнице на домаће финансијске деривате",null,0]
[5397,611800,"Отплата домаћих меница",null,0]
[5398,611900,"Исправка унутрашњег дуга",null,0]
[5399,612000,"ОТПЛАТА ГЛАВНИЦЕ СТРАНИМ КРЕДИТОРИМА (од 5400 до 5406)",{"$f":"SUM(D497:D503)","v":0},0,{"$f":"SUM(F497:F503)","v":0},0,0,0,0,0]
[5400,612100,"Отплата главнице умањена за дисконт на хартије од вредности, изузев акција, емитоване на иностраном финансијском тржишту",null,0]
[5401,612200,"Отплата главнице страним владама",null,0]
[5402,612300,"Отплата главнице мултилатералним институцијама",null,0]
[5403,612400,"Отплате главнице страним пословним банкама",null,0]
[5404,612500,"Отплате главнице осталим страним кредиторима",null,0]
[5405,612600,"Отплата главнице на стране финансијске деривате",null,0]
[5406,612900,"Исправка спољног дуга",null,0]
[5407,613000,"ОТПЛАТА ГЛАВНИЦЕ ПО ГАРАНЦИЈАМА (5408)",{"$f":"D505","v":0},0,{"$f":"F505","v":0},0,0,0,0,0]
[5408,613100,"Отплата главнице по гаранцијама",null,0]
[5409,614000,"ОТПЛАТА ГЛАВНИЦЕ ЗА ФИНАНСИЈСКИ ЛИЗИНГ (5410)",{"$f":"D507","v":0},0,{"$f":"F507","v":0},0,0,0,0,0]
[5410,614100,"Отплата главнице за финансијски лизинг",null,0]
[5411,615000,"ОТПЛАТА ГАРАНЦИЈА ПО КОМЕРЦИЈАЛНИМ ТРАНСАКЦИЈАМА (5412)",{"$f":"D509","v":0},0,0,0,0,0,0,0]
[5412,615100,"Отплата гаранција по комерцијалним трансакцијама",null,0]
[5413,620000,"НАБАВКА ФИНАНСИЈСКЕ ИМОВИНЕ (5414 + 5424 + 5433)",{"$f":"D511+D525+D534","v":0},0,{"$f":"F511+F525+F534","v":0},0,0,0,0,0]
[5414,621000,"НАБАВКА ДОМАЋЕ ФИНАНСИЈСКЕ ИМОВИНЕ (од 5415 до 5423)",{"$f":"SUM(D512:D524)","v":0},0,{"$f":"SUM(F512:F524)","v":0},0,0,0,0,0]
[5415,621100,"Набавка домаћих хартија од вредности, изузев акција",null,0]
["Ознака ОП","Број конта","Опис","Износ одобрених апропријација","Износ извршених расхода и издатака"]
[null,null,null,null,"Укупно           (од 6 до 11)","Расходи и издаци на терет буџета",null,null,null,"Из донација и помоћи","Из осталих извора"]
[null,null,null,null,null,"Републике ","Аутономне покрајине","Општине / \nграда","ООСО"]
["1","2","3","4","5","6","7","8","9","10","11"]
[5416,621200,"Кредити осталим нивоима власти",null,0]
[5417,621300,"Кредити домаћим јавним финансијским институцијама",null,0]
[5418,621400,"Кредити домаћим пословним банкама",null,0]
[5419,621500,"Кредити домаћим нефинансијским јавним институцијама",null,0]
[5420,621600,"Кредити физичким лицима и домаћинствима у земљи",null,0]
[5421,621700,"Кредити невладиним организацијама у земљи",null,0]
[5422,621800,"Кредити домаћим нефинансијским приватним предузећима",null,0]
[5423,621900,"Набавка домаћих акција и осталог капитала",null,0]
[5424,622000,"НАБАВКА СТРАНЕ ФИНАНСИЈСКЕ ИМОВИНЕ (од 5425 до 5432)",{"$f":"SUM(D526:D533)","v":0},0,{"$f":"SUM(F526:F533)","v":0},0,0,0,0,0]
[5425,622100,"Набавка страних хартија од вредности, изузев акција",null,0]
[5426,622200,"Кредити страним владама",null,0]
[5427,622300,"Кредити међународним организацијама",null,0]
[5428,622400,"Кредити страним пословним банкама",null,0]
[5429,622500,"Кредити страним нефинансијским институцијама",null,0]
[5430,622600,"Кредити страним невладиним организацијама",null,{"$f":"SUM(F531:K531)","v":0}]
[5431,622700,"Набавка страних акција и осталог капитала",null,0]
[5432,622800,"Куповина стране валуте",null,0]
[5433,623000,"НАБАВКА ФИНАНСИЈСКЕ ИМОВИНЕ КОЈА СЕ ФИНАНСИРА ИЗ СРЕДСТАВА ЗА РЕАЛИЗАЦИЈУ НАЦИОНАЛНОГ ИНВЕСТИЦИОНОГ ПЛАНА (5434)",{"$f":"D535","v":0},0,{"$f":"F535","v":0},0,0,0,0,0]
[5434,623100,"Набавка финансијске имовине која се финансира из средстава за реализацију националног инвестиционог плана ",null,0]
[5435,null,"УКУПНИ РАСХОДИ И ИЗДАЦИ (5172 + 5387)",{"$f":"D233+D480","v":307273},286729,{"$f":"F233+F480","v":4400},2734,11663,264902,0,3030]
[]
["III. УТВРЂИВАЊЕ РЕЗУЛТАТА"]
[]
["Ознака ОП","Број конта","Опис","Планирани приходи и примања / расходи и издаци","Остварени приходи и и примања / расходи и издаци"]
[null,null,null,null,"Укупно           (од 6 до 11)","Из буџета",null,null,null,"Из донација и помоћи","Из осталих извора"]
[null,null,null,null,null,"Републике","Аутономне покрајине","Општине / \nграда","ООСО"]
[1,2,3,4,5,6,7,8,9,10,11]
[5436,null,"ТЕКУЋИ ПРИХОДИ И ПРИМАЊА ОД ПРОДАЈЕ НЕФИНАНСИЈСКЕ ИМОВИНЕ (5001)",{"$f":"D22","v":307273},{"$f":"SUM(F544:K544)","v":291581},{"$f":"F22","v":4400},3274,11663,265740,0,6504]
[5437,null,"ТЕКУЋИ РАСХОДИ И ИЗДАЦИ ЗА НЕФИНАНСИЈСКУ ИМОВИНУ (5172)",{"$f":"D233","v":307273},{"$f":"SUM(F545:K545)","v":286729},{"$f":"F233","v":4400},2734,11663,264902,0,3030]
[5438,null,"Вишак прихода и примања – буџетски суфицит (5436 – 5437) > 0",{"$f":"IF((D544-D545)>0,D544-D545,0)","v":0},{"$f":"IF((E544-E545)>0,E544-E545,0)","v":4852},{"$f":"IF((F544-F545)>0,F544-F545,0)","v":0},540,0,838,0,3474]
[5439,null,"Мањак прихода и примања – буџетски дефицит (5437 – 5436) > 0",{"$f":"IF((D545-D544)>0,D545-D544,0)","v":0},{"$f":"IF((E545-E544)>0,E545-E544,0)","v":0},{"$f":"IF((F545-F544)>0,F545-F544,0)","v":0},0,0,0,0,0]
[5440,900000,"ПРИМАЊА ОД ЗАДУЖИВАЊА И ПРОДАЈЕ ФИНАНСИЈСКЕ ИМОВИНЕ (5131)",{"$f":"D176","v":0},{"$f":"SUM(F548:K548)","v":0},{"$f":"F176","v":0},0,0,0,0,0]
[5441,600000,"ИЗДАЦИ ЗА ОТПЛАТУ ГЛАВНИЦЕ И НАБАВКУ ФИНАНСИЈСКЕ ИМОВИНЕ (5387)",{"$f":"D480","v":0},{"$f":"SUM(F549:K549)","v":0},{"$f":"F480","v":0},0,0,0,0,0]
[5442,null,"ВИШАК ПРИМАЊА (5440 – 5441) > 0",{"$f":"IF((D548-D549)>0,D548-D549,0)","v":0},{"$f":"IF((E548-E549)>0,E548-E549,0)","v":0},{"$f":"IF((F548-F549)>0,F548-F549,0)","v":0},0,0,0,0,0]
[5443,null,"МАЊАК ПРИМАЊА (5441 – 5440) > 0",{"$f":"IF((D549-D548)>0,D549-D548,0)","v":0},{"$f":"IF((E549-E548)>0,E549-E548,0)","v":0},{"$f":"IF((F549-F548)>0,F549-F548,0)","v":0},0,0,0,0,0]
[5444,null,"ВИШАК НОВЧАНИХ ПРИЛИВА (5171 - 5435) > 0",{"$f":"IF(D224-D536>0,D224-D536,0)","v":0},4852,0,540,0,838,0,3474]
[5445,null,"МАЊАК НОВЧАНИХ ПРИЛИВА (5435 - 5171) > 0",{"$f":"IF(D536-D224>0,D536-D224,0)","v":0},0,0,0,0,0,0,0]
[]
[]
["Датум  _________________________",null,null,null,"Лице одговорно за\n попуњавање обрасца",null,null,null,"Наредбодавац"]
[]
[]
[null,null,null,null,"____________________________________",null,null,null,"_________________________________"]

{"sheet":"Obrazac6","index":6,"n_rows":49,"n_cols":6,"rows_kept":49,"cut":false,"hidden":false,"merged":[[3,0,3,5],[43,0,43,6],[44,2,44,3]]}
["РЕПУБЛИЧКИ ФОНД ЗА ЗДРАВСТВЕНО",null,null,null,null,"Образац 6"]
["ОСИГУРАЊЕ - БЕОГРАД"]
["Јована Мариновића 2"]
["СТАЊЕ НЕИЗМИРЕНИХ ОБАВЕЗА ПРЕМА ДОБАВЉАЧИМА (252000) НА ДАН 31.12.2022."]
[{"$f":"\"ФИЛИЈАЛА:   \" & Fili","v":"ФИЛИЈАЛА:   06 НОВИ САД"}]
[{"$f":"\"ЗДРАВСТВЕНА УСТАНОВА:  \" & ZDU","v":"ЗДРАВСТВЕНА УСТАНОВА:  00206006 ДЗ ЖАБАЉ"}]
[null,null,null,null,null,"(У хиљадама динара)"]
["Ред. Бр.",null,"НАЗИВ ОБАВЕЗЕ","Стање дуга на дан 31.12.2022.","Доспели дуг на дан 31.12.2022.","Недоспели дуг на дан 31.12.2022."]
[1,null,2,"3=4+5",4,5]
["1.",null,"ЗА ЛЕКОВЕ И ПОМАГАЛА НА НАЛОГ У АПОТЕКАМА",{"$f":"SUM(D11:D12)","v":0},{"$f":"SUM(E11:E12)","v":0},{"$f":"SUM(F11:F12)","v":0}]
["1.1.",null,"ЗА ЛЕКОВЕ НА РЕЦЕПТ ",{"$f":"E11+F11","v":0}]
["1.2.",null,"ЗА ПОМАГАЛА НА НАЛОГ",{"$f":"E12+F12","v":0}]
["2.",null,"ЛЕКОВИ ",{"$f":"SUM(D14:D18)","v":1685},{"$f":"SUM(E14:E18)","v":13},{"$f":"SUM(F14:F18)","v":1672}]
["2.1.",null,"ЛЕКОВИ У ЗУ",{"$f":"E14+F14","v":1685},13,1672]
["2.2.",null,"ЦИТОСТАТИЦИ СА ЛИСТЕ ЛЕКОВА",{"$f":"E15+F15","v":0}]
["2.3.",null,"ЛЕКОВИ СА Ц ЛИСТЕ ПО ТЕНДЕРУ РФЗО",0]
["2.4.",null,"ЛЕКОВИ ЗА ХЕМОФИЛИЈУ",0]
["2.5.",null,"ОСТАЛИ ЛЕКОВИ (ВАН ЛИСТЕ)",0]
["3.",null,"КРВ И ПРОДУКТИ ОД КРВИ",0]
["4.",null,"УГРАДНИ МАТЕРИЈАЛ",{"$f":"SUM(D21:D27)","v":0},{"$f":"SUM(E21:E27)","v":0},{"$f":"SUM(F21:F27)","v":0}]
["4.1.",null,"ОСТАЛИ УГРАДНИ МАТЕРИЈАЛ У ОРТОПЕДИЈИ",0]
["4.2.",null,"ОРТОПЕДИЈА - ЕНДОПРОТЕЗЕ",0]
["4.3.",null," УГРАДНИ МАТЕРИЈАЛ У КАРДИОХИРУРГИЈИ",0]
["4.4.",null,"ПЕЈСМЕЈКЕРИ И ЕЛЕКТРОДЕ",0]
["4.5.",null,"СТЕНТОВИ",0]
["4.6.",null,"ГРАФТОВИ",0]
["4.7.",null,"ОСТАЛИ УГРАДНИ МАТЕРИЈАЛ",0]
["5.",null,"САНИТЕТСКИ И МЕДИЦИНСКИ ПОТРОШНИ МАТЕРИЈАЛ",1100,109,991]
["6.",null,"МАТЕРИЈАЛ ЗА ДИЈАЛИЗУ СА ЛЕКОВИМА (РЕКОРМОН И ЕПРЕКС)",0]
["7.",null,"ИСХРАНА (НАМИРНИЦЕ И УСЛУГЕ)",0]
["8.",null,"ЕНЕРГЕНТИ",{"$f":"SUM(D32:D36)","v":2614},{"$f":"SUM(E32:E36)","v":25},{"$f":"SUM(F32:F36)","v":2589}]
["8.1.",null,"ДАЉИНСКО ГРЕЈАЊЕ",0]
["8.2.",null,"ГАС",1386,25,1361]
["8.3.",null,"ОБАВЕЗЕ ПРЕМА НИС-У",0]
["8.4.",null,"ЕЛЕКТРОПРИВРЕДА",553,null,553]
["8.5.",null,"ОБАВЕЗЕ ЗА ОСТАЛЕ ЕНЕРГЕНТЕ",675,null,675]
["9.",null,"ЈАВНО КОМУНАЛНО ПРЕДУЗЕЋЕ",{"$f":"SUM(D38:D40)","v":293},{"$f":"SUM(E38:E40)","v":40},{"$f":"SUM(F38:F40)","v":253}]
["9.1.",null,"ОБАВЕЗЕ ЗА ВОДУ",47,null,47]
["9.2.",null,"ОБАВЕЗЕ ПРЕМА ПТТ-У",115,null,115]
["9.3.",null,"ОБАВЕЗЕ ПРЕМА ОСТАЛИМ ЈКП",131,40,91]
["10.",null,"ОСТАЛЕ ОБАВЕЗЕ",56,33,23]
["11.",null,"УКУПНЕ ОБАВЕЗЕ - 252000 \n(1+2+3+4+5+6+7+8+9+10) ",{"$f":"+D10+D13+D19+D20+D28+D29+D30+D31+D37+D41","v":5748},{"$f":"+E10+E13+E19+E20+E28+E29+E30+E31+E37+E41","v":220},{"$f":"+F10+F13+F19+F20+F28+F29+F30+F31+F37+F41","v":5528}]
[]
["Напомена: Подаци у овом обрасцу морају бити сложени са подацима у БИЛАНСУ СТАЊА"]
[]
[]
[null,null,"ОБРАЗАЦ ПОПУНИО:",null,null,"ОДГОВОРНО ЛИЦЕ:"]
[null,null,"__________________________",null,null,"___________________"]
[null,null,"Телефон:__________________________"]

{"sheet":"Obrazac7","index":7,"n_rows":34,"n_cols":7,"rows_kept":34,"cut":false,"hidden":false,"merged":[[25,0,25,2],[26,0,26,2],[27,0,27,2],[12,3,12,5],[13,3,13,5],[14,3,14,5],[15,3,15,5],[16,3,16,5],[23,0,24,2],[23,3,23,5],[23,6,24,6],[3,0,3,8],[7,3,7,5],[8,3,8,5],[9,3,9,5],[10,3,10,5],[11,3,11,5]]}
["РЕПУБЛИЧКИ ФОНД ЗА ЗДРАВСТВЕНО",null,null,null,null,null,"Образац 7"]
["ОСИГУРАЊЕ - БЕОГРАД"]
["Јована Мариновића 2"]
["НЕНАПЛАЋЕНА ПОТРАЖИВАЊА ЗДРАВСТВЕНЕ УСТАНОВЕ НА ДАН  31.12.2022. ГОДИНЕ"]
[{"$f":"\"ФИЛИЈАЛА:   \" & Fili","v":"ФИЛИЈАЛА:   06 НОВИ САД"}]
[{"$f":"\"ЗДРАВСТВЕНА УСТАНОВА:  \" & ZDU","v":"ЗДРАВСТВЕНА УСТАНОВА:  00206006 ДЗ ЖАБАЉ"}]
[null,null,null,null,null,null,"(У хиљадама динара)"]
["Ред. бр.",null,"Конто","НАЗИВ",null,null,"31.12.2022."]
[1,null,2,3,null,null,4]
["I",null,122100,"Потраживања по основу продаје и друга потраживања (1+2+3+4+5+6+7)",null,null,{"$f":"SUM(G11:G17)","v":10093}]
[1,null,"део 122100","Од РФЗО",null,null,9795]
[2,null,"део 122100","Од Фонда за социјално осигурање војних осигураника"]
[3,null,"део 122100","Од Фонда здравства Црне Горе"]
[4,null,"део 122100","Од Фонда здравства Републике Српске"]
[5,null,"део 122100","Од Дистрикта Брчко"]
[6,null,"део 122100","Од других здравствених установа"]
[7,null,"део 122100","Остала потраживања",null,null,298]
[]
["Напомена: Подаци у овом обрасцу морају бити сложени са подацима у БИЛАНСУ СТАЊА"]
[]
[]
["ПОДАЦИ О УКУПНОМ БРОЈУ ЗАПОСЛЕНИХ РАДНИКА"]
[]
["Период",null,null,"Укупан број запослених радника",null,null,"Укупан број запослених на бази остварених часова рада"]
[null,null,null,"На одређено","На неодређено","Укупно"]
[1,null,null,2,3,"4=2+3",5]
["31.12.2021.",null,null,16,124,{"$f":"SUM(D27:E27)","v":140},141]
["31.12.2022.",null,null,20,124,{"$f":"SUM(D28:E28)","v":144},144]
[]
[]
[]
["ОБРАЗАЦ ПОПУНИО:",null,null,null,null,null,"ОДГОВОРНО ЛИЦЕ:"]
["______________________",null,null,null,null,null,"__________________________"]
["Телефон:",null,"____________"]

{"sheet":"Obrazac8","index":8,"n_rows":48,"n_cols":5,"rows_kept":48,"cut":false,"hidden":false,"merged":[[3,0,3,4]]}
["РЕПУБЛИЧКИ ФОНД ЗА ЗДРАВСТВЕНО",null,null,null,"Образац 8"]
["ОСИГУРАЊЕ - БЕОГРАД"]
["Јована Мариновића 2"]
["СТАЊЕ ЗАЛИХА НА ДАН 31.12.2022."]
[{"$f":"\"ФИЛИЈАЛА:   \" & Fili","v":"ФИЛИЈАЛА:   06 НОВИ САД"}]
[{"$f":"\"ЗДРАВСТВЕНА УСТАНОВА:  \" & ZDU","v":"ЗДРАВСТВЕНА УСТАНОВА:  00206006 ДЗ ЖАБАЉ"}]
[null,null,null,null,"(У хиљадама динара)"]
["Ред. Бр.",null,"Конто","Залихе","31.12.2022."]
[1,null,2,3,4]
["I",null,"020000","ЗАЛИХЕ (II+III+IV+V)",{"$f":"E11+E12+E13+E14","v":2274}]
["II",null,"021200","Залихе производње"]
["III",null,"021300","Залихе робе за даљу продају (лекови и помагала у апотекама)"]
["IV",null,"022100","Ситан инвентар"]
["V",null,"022200","Потрошни материјал (1+2+3+4)",{"$f":"+E15+E16+E17+E42","v":2274}]
[1,null,"022210","Материјал за сталне трошкове (грејање)"]
[2,null,"022220","Материјал за поправке и одржавање"]
[3,null,"022230","Материјал за обављање делатности",{"$f":"E18+E19+E40+E41","v":2274}]
["3.1",null,"022231","Административни материјал",120]
["3.2",null,"022237","Медицински и лабораторијски материјал",{"$f":"E20+E28+E29+E37+E38+E39","v":2074}]
["3.2.1",null,null,"Лекови (3.2.1.1+3.2.1.2+3.2.1.3+3.2.1.4+3.2.1.5+3.2.1.6+3.2.1.7)",{"$f":"SUM(E21:E27)","v":1017}]
["3.2.1.1",null,null,"Лекови у ЗУ",1017]
["3.2.1.2",null,null,"Вакцине"]
["3.2.1.3",null,null,"Цитостатици са листе лекова"]
["3.2.1.4",null,null,"Лекови са Ц листе по тендеру РФЗО"]
["3.2.1.5",null,null,"Лекови за хемофилију"]
["3.2.1.6",null,null,"Лекови за лечење ретких болести"]
["3.2.1.7",null,null,"Лекови ван листе лекова (без лекова за лечење ретких болести)"]
["3.2.2",null,null,"Крв и лабилни продукти од крви"]
["3.2.3",null,null,"Уградни материјал (3.2.3.1+3.2.3.2+3.2.3.3+3.2.3.4+3.2.3.5+3.2.3.6+3.2.3.7)",{"$f":"SUM(E30:E36)","v":0}]
["3.2.3.1",null,null,"Уградни материјал у ортопедији"]
["3.2.3.2",null,null,"Имплантанти у ортопедији"]
["3.2.3.3",null,null,"Уградни материјал у кардиохирургији"]
["3.2.3.4",null,null,"Пејсмекери и електроде"]
["3.2.3.5",null,null,"Стентови"]
["3.2.3.6",null,null,"Графтови"]
["3.2.3.7",null,null,"Остали уградни материјал"]
["3.2.4",null,null,"Лабораторијски материјал"]
["3.2.5",null,null,"Остали санитетски материјал",1057]
["3.2.6",null,null,"Материјал за дијализу"]
["3.3",null,"022238","Материјал за домаћинство и угоститељство",80]
["3.4",null,null,"Остали материјал за обављање делатности"]
["4.",null,"022240","Залихе лекова на рецепт и помагала у апотекама"]
[]
["Напомена: Подаци у овом обрасцу морају бити сложени са подацима у БИЛАНСУ СТАЊА"]
[]
["ОБРАЗАЦ ПОПУНИО:",null,null,null,"ОДГОВОРНО ЛИЦЕ:"]
["______________________",null,null,null,"___________________"]
["Телефон:",null,"____________"]

{"sheet":"K9OOSO","index":9,"n_rows":26,"n_cols":5,"rows_kept":26,"cut":false,"hidden":false,"merged":[[10,0,10,1]]}
["РЕПУБЛИЧКИ ФОНД ЗА ЗДРАВСТВЕНО",null,null,null,"К9ООСО"]
["ОСИГУРАЊЕ - БЕОГРАД"]
["Јована Мариновића 2"]
[]
[null,null,"ОДСТУПАЊА ОД НОВЧАНОГ ТОКА У ПЕРИОДУ 01.01.- 31.12.2022. ГОДИНЕ"]
[]
[{"$f":"\"ФИЛИЈАЛА:   \" & Filijala","v":"ФИЛИЈАЛА:   06 НОВИ САД"}]
[{"$f":"\"ЗДРАВСТВЕНА УСТАНОВА:  \" & ZU","v":"ЗДРАВСТВЕНА УСТАНОВА:  00206006 ДЗ ЖАБАЉ"}]
[]
[null,null,null,null,"у хиљадама (000) динара"]
["Р. Бр.",null,"ОПИС","КОЛОНА УКУПНО","КОЛОНА 9 ООСО"]
[1,2,3,4,5]
["1.",null,"ПОЧЕТНО СТАЊЕ СРЕДСТАВА НА ДАН 01.01.2022.Г. ",{"$f":"D14+D15","v":12521},{"$f":"E14+E15","v":1670}]
[null,"1.1.","Почетно стање средстава на подрачунима (група 121000)",12521,1670]
[null,"1.2.","Почетно стање средстава у благајни (група 121000)"]
["2.",null,"НОВЧАНИ ПРИЛИВИ У ПЕРИОДУ 01.01.-31.12.2022.Г.",{"$f":"D17+D18+D19","v":291581},{"$f":"E17+E18+E19","v":265740}]
[null,"2.1.","Приходи и примања  који се исказују у обрасцу бр. 5.(класе 700000, 800000 и 900000)",291581,265740]
[null,"2.2.","Новчани приливи по основу наплаћеног ПДВ-а"]
[null,"2.3.","Остали новчани приливи који нису исказани на класама у обрасцу бр. 5."]
["3.",null,"НОВЧАНИ ОДЛИВИ У ПЕРИОДУ 01.01.-31.12.2022.Г.",{"$f":"D21+D22+D23","v":286636},{"$f":"E21+E22+E23","v":264902}]
[null,"3.1.","Расходи и издаци који се исказују у обрасцу бр.5. (класе 400000, 500000 и 600000)",286636,264902]
[null,"3.2.","Новчани одливи по основу плаћеног ПДВ-а"]
[null,"3.3.","Остали новчани одливи који нису исказани на класама у обрасцу бр. 5."]
["4.",null,"САЛДО СРЕДСТАВА НА ДАН 31.12.2022.г. (4 = (1+ 2- 3) = (4.1 + 4.2))",{"$f":"D13+D16-D20","v":17466},{"$f":"E13+E16-E20","v":2508}]
[null,"4.1.","Салдо средстава на подрачунима (група 121000)",17466,2508]
[null,"4.2.","Салдо средстава у благајни (група 121000)"]

{"sheet":"OZPR","index":10,"n_rows":308,"n_cols":10,"rows_kept":308,"cut":false,"hidden":false,"merged":[[17,6,19,6],[17,3,19,3],[17,5,19,5],[17,4,19,4],[36,1,38,1],[36,4,38,4],[36,3,38,3],[17,0,19,0],[17,2,19,2],[36,2,38,2],[17,1,19,1],[36,0,38,0],[17,9,19,9],[17,8,19,8],[36,8,38,8],[17,7,19,7],[36,7,38,7]]}
["РЕПУБЛИЧКИ ФОНД ЗА ЗДРАВСТВЕНО",null,null,null,null,null,null,null,null,"ОЗПР"]
["ОСИГУРАЊЕ - БЕОГРАД"]
["Јована Мариновића 2"]
[]
[]
[]
[{"$f":"\"ФИЛИЈАЛА:   \" & Filijala","v":"ФИЛИЈАЛА:   06 НОВИ САД"}]
[{"$f":"\"ЗДРАВСТВЕНА УСТАНОВА:  \" & ZU","v":"ЗДРАВСТВЕНА УСТАНОВА:  00206006 ДЗ ЖАБАЉ"}]
[]
[]
[]
[]
[]
["ОБРАЗАЦ ЗА ПАРТИЦИПАЦИЈУ И РЕФУНДАЦИЈЕ"]
["у периоду од 01.01.2022. - 31.12.2022. године"]
["I. УКУПНИ ПРИХОДИ И ПРИМАЊА"]
[null,null,null,null,null,null,null,null,null,"у хиљадама (000) динара"]
["Ознака ОП","Број конта","Опис","Приходи по основу партиципације за услуге здравствене заштите и рефундација","Приходи по основу партиципације за  лекове издате на рецепт и помагала издатa на налог и рефундација","Приходи по основу укупне партиципације и рефундација","Јавни радови","Приход од Фонда ПИО","Приход од Фонда СОВО","УКУПНО"]
[]
[]
[1,2,3,4,5,"6=4+5",7,8,9,"10=6+7+8+9"]
[5001,null,"ТЕКУЋИ ПРИХОДИ И ПРИМАЊА ОД ПРОДАЈЕ НЕФИНАНСИЈСКЕ ИМОВИНЕ (5002)",{"$f":"D23","v":984},{"$f":"E23","v":0},{"$f":"D22+E22","v":984},{"$f":"G23","v":0},{"$f":"H23","v":0},{"$f":"I23","v":0},{"$f":"F22+G22+H22+I22","v":984}]
[5002,700000,"ТЕКУЋИ ПРИХОДИ (5003 + 5047 + 5057 + 5069 + 5094 + 5099 + 5103)",{"$f":"D24+D29","v":984},{"$f":"E24+E29","v":0},984,{"$f":"G24+G29","v":0},{"$f":"H24+H29","v":0},{"$f":"I24+I29","v":0},{"$f":"F23+G23+H23+I23","v":984}]
[5094,770000,"МЕМОРАНДУМСКЕ СТАВКЕ ЗА РЕФУНДАЦИЈУ РАСХОДА (5095 + 5097)",{"$f":"D25+D27","v":0},{"$f":"E25+E27","v":0},0,{"$f":"G25+G27","v":0},{"$f":"H25+H27","v":0},{"$f":"I25+I27","v":0},0]
[5095,771000,"МЕМОРАНДУМСКЕ СТАВКЕ ЗА РЕФУНДАЦИЈУ РАСХОДА (5096)",{"$f":"D26","v":0},{"$f":"E26","v":0},0,{"$f":"G26","v":0},{"$f":"H26","v":0},{"$f":"I26","v":0},0]
[5096,771100,"Меморандумске ставке за рефундацију расхода",null,null,0,null,null,null,0]
[5097,772000,"МЕМОРАНДУМСКЕ СТАВКЕ ЗА РЕФУНДАЦИЈУ РАСХОДА ИЗ ПРЕТХОДНЕ ГОДИНЕ (5098)",{"$f":"D28","v":0},{"$f":"E28","v":0},0,{"$f":"G28","v":0},{"$f":"H28","v":0},{"$f":"I28","v":0},0]
[5098,772100,"Меморандумске ставке за рефундацију расхода из претходне године",null,null,0,null,null,null,0]
[5099,780000,"ТРАНСФЕРИ ИЗМЕЂУ БУЏЕТСКИХ КОРИСНИКА НА ИСТОМ НИВОУ (5100)",{"$f":"D30","v":984},{"$f":"E30","v":0},984,null,{"$f":"H30","v":0},{"$f":"I30","v":0},984]
[5100,781000,"ТРАНСФЕРИ ИЗМЕЂУ БУЏЕТСКИХ КОРИСНИКА НА ИСТОМ НИВОУ (5101 + 5102)",{"$f":"D31","v":984},{"$f":"E31","v":0},984,null,{"$f":"H31","v":0},{"$f":"I31","v":0},984]
[5101,781100,"Трансфери између буџетских корисника на истом нивоу",984,null,984,null,null,null,984]
[5171,null,"УКУПНИ ПРИХОДИ И ПРИМАЊА (5001)",{"$f":"D22","v":984},{"$f":"E22","v":0},984,{"$f":"G22","v":0},{"$f":"H22","v":0},{"$f":"I22","v":0},984]
[]
[]
["II. УКУПНИ РАСХОДИ И ИЗДАЦИ"]
[null,null,null,"у хиљадама (000) динара"]
["Ознака ОП","Број конта","Опис","Расходи и издаци по основу укупне партиципације и рефундација "]
[]
[]
[1,2,3,4]
[5172,null,"ТЕКУЋИ РАСХОДИ И ИЗДАЦИ ЗА НЕФИНАНСИЈСКЕ ИМОВИНЕ (5173 + 5341)",{"$f":"D42+D210","v":984}]
[5173,400000,"ТЕКУЋИ РАСХОДИ (5174 + 5196 + 5241 + 5256 + 5280 + 5293 + 5309 + 5324)",{"$f":"D43+D65+D110+D125+D149+D162+D178+D193","v":984}]
[5174,410000,"РАСХОДИ ЗА ЗАПОСЛЕНЕ (5175 + 5177 + 5181 + 5183 + 5188 + 5190 + 5192 + 5194)",{"$f":"D44+D46+D50+D52+D57+D59+D61+D63","v":0}]
[5175,411000,"ПЛАТЕ, ДОДАЦИ И НАКНАДЕ ЗАПОСЛЕНИХ (ЗАРАДЕ) (5176)",{"$f":"D45","v":0}]
[5176,411100,"Плате, додаци и накнаде запослених"]
[5177,412000,"СОЦИЈАЛНИ ДОПРИНОСИ НА ТЕРЕТ ПОСЛОДАВЦА (од 5178 до 5180)",{"$f":"SUM(D47:D49)","v":0}]
[5178,412100,"Допринос за пензијско и инвалидско осигурање"]
[5179,412200,"Допринос за здравствено осигурање"]
[5180,412300,"Допринос за незапосленост"]
[5181,413000,"НАКНАДЕ У НАТУРИ (5182)",{"$f":"D51","v":0}]
[5182,413100,"Накнаде у натури"]
[5183,414000,"СОЦИЈАЛНА ДАВАЊА ЗАПОСЛЕНИМА (од 5184 до 5187)",{"$f":"SUM(D53:D56)","v":0}]
[5184,414100,"Исплата накнада за време одсуствовања с посла на терет фондова"]
[5185,414200,"Расходи за образовање деце запослених"]
[5186,414300,"Отпремнине и помоћи"]
[5187,414400,"Помоћ у медицинском лечењу запосленог или чланова уже породице и друге помоћи запосленом"]
[5188,415000,"НАКНАДА ТРОШКОВА ЗА ЗАПОСЛЕНЕ (5189)",{"$f":"D58","v":0}]
[5189,415100,"Накнаде трошкова за запослене"]
[5190,416000,"НАГРАДЕ ЗАПОСЛЕНИМА И ОСТАЛИ ПОСЕБНИ РАСХОДИ (5191)",{"$f":"D60","v":0}]
[5191,416100,"Награде запосленима и остали посебни расходи"]
[5192,417000,"ПОСЛАНИЧКИ ДОДАТАК (5193)",{"$f":"D62","v":0}]
[5193,417100,"Посланички додатак"]
[5194,418000,"СУДИЈСКИ ДОДАТАК (5195)",{"$f":"D64","v":0}]
[5195,418100,"Судијски додатак"]
[5196,420000,"КОРИШЋЕЊЕ УСЛУГА И РОБА (5197 + 5205 + 5211 + 5220 + 5228 + 5231) ",{"$f":"D66+D74+D80+D89+D97+D100","v":744}]
[5197,421000,"СТАЛНИ ТРОШКОВИ (од 5198 до 5204)",{"$f":"SUM(D67:D73)","v":0}]
[5198,421100,"Трошкови платног промета и банкарских услуга"]
[5199,421200,"Енергетске услуге"]
[5200,421300,"Комуналне услуге"]
[5201,421400,"Услуге комуникација"]
[5202,421500,"Трошкови осигурања"]
[5203,421600,"Закуп имовине и опреме"]
[5204,421900,"Остали трошкови"]
[5205,422000,"ТРОШКОВИ ПУТОВАЊА (од 5206 до 5210)",{"$f":"SUM(D75:D79)","v":54}]
[5206,422100,"Трошкови службених путовања у земљи"]
[5207,422200,"Трошкови службених путовања у иностранство"]
[5208,422300,"Трошкови путовања у оквиру редовног рада",54]
[5209,422400,"Трошкови путовања ученика"]
[5210,422900,"Остали трошкови транспорта"]
[5211,423000,"УСЛУГЕ ПО УГОВОРУ (од 5212 до 5219)",{"$f":"SUM(D81:D88)","v":646}]
[5212,423100,"Административне услуге"]
[5213,423200,"Компјутерске услуге",193]
[5214,423300,"Услуге образовања и усавршавања запослених",453]
[5215,423400,"Услуге информисања"]
[5216,423500,"Стручне услуге"]
[5217,423600,"Услуге за домаћинство и угоститељство"]
[5218,423700,"Репрезентација"]
[5219,423900,"Остале опште услуге"]
[5220,424000,"СПЕЦИЈАЛИЗОВАНЕ УСЛУГЕ (од 5221 до 5227)",{"$f":"SUM(D90:D96)","v":0}]
[5221,424100,"Пољопривредне услуге"]
[5222,424200,"Услуге образовања, културе и спорта"]
[5223,424300,"Медицинске услуге"]
[5224,424400,"Услуге одржавања аутопутева"]
[5225,424500,"Услуге одржавања националних паркова и природних површина"]
[5226,424600,"Услуге очувања животне средине, науке и геодетске услуге"]
[5227,424900,"Остале специјализоване услуге"]
[5228,425000,"ТЕКУЋЕ ПОПРАВКЕ И ОДРЖАВАЊЕ (5229 + 5230)",{"$f":"D98+D99","v":0}]
[5229,425100,"Текуће поправке и одржавање зграда и објеката"]
[5230,425200,"Текуће поправке и одржавање опреме"]
[5231,426000,"МАТЕРИЈАЛ (од 5232 до 5240)",{"$f":"SUM(D101:D109)","v":44}]
[5232,426100,"Административни материјал"]
[5233,426200,"Материјали за пољопривреду"]
[5234,426300,"Материјали за образовање и усавршавање запослених"]
[5235,426400,"Материјали за саобраћај"]
[5236,426500,"Материјали за очување животне средине и науку"]
[5237,426600,"Материјали за образовање, културу и спорт"]
[5238,426700,"Медицински и лабораторијски материјали",44]
[5239,426800,"Материјали за одржавање хигијене и угоститељство"]
[5240,426900,"Материјали за посебне намене"]
[5241,430000,"АМОРТИЗАЦИЈА И УПОТРЕБА СРЕДСТАВА ЗА РАД (5242 + 5246 + 5248 + 5250 + 5254)",{"$f":"D111+D115+D117+D119+D123","v":0}]
[5242,431000,"АМОРТИЗАЦИЈА НЕКРЕТНИНА И ОПРЕМЕ (од 5243 до 5245)",{"$f":"SUM(D112:D114)","v":0}]
[5243,431100,"Амортизација зграда и грађевинскиx објеката"]
[5244,431200,"Амортизација опреме"]
[5245,431300,"Амортизација осталих некретнина и опреме"]
[5246,432000,"АМОРТИЗАЦИЈА КУЛТИВИСАНЕ ИМОВИНЕ (5247)",{"$f":"D116","v":0}]
[5247,432100,"Амортизација култивисане опреме"]
[5248,433000,"УПОТРЕБА ДРАГОЦЕНОСТИ (5249)",{"$f":"D118","v":0}]
[5249,433100,"Употреба драгоцености"]
[5250,434000,"УПОТРЕБА ПРИРОДНЕ ИМОВИНЕ (од 5251 до 5253)",{"$f":"SUM(D120:D122)","v":0}]
[5251,434100,"Употреба земљишта"]
[5252,434200,"Употреба подземног блага"]
[5253,434300,"Употреба шума и вода"]
[5254,435000,"АМОРТИЗАЦИЈА НЕМАТЕРИЈАЛНЕ ИМОВИНЕ (5255)",{"$f":"D124","v":0}]
[5255,435100,"Амортизација нематеријалне имовине"]
[5256,440000,"ОТПЛАТА КАМАТА И ПРАТЕЋИ ТРОШКОВИ ЗАДУЖИВАЊА (5257 + 5267 + 5274 + 5276)",{"$f":"D126+D136+D143+D145","v":0}]
[5257,441000,"ОТПЛАТЕ ДОМАЋИХ КАМАТА (од 5258 до 5266)",{"$f":"SUM(D127:D135)","v":0}]
[5258,441100,"Отплата камата на домаће хартије од вредности"]
[5259,441200,"Отплата камата осталим нивоима власти"]
[5260,441300,"Отплата камата домаћим јавним финансијским институцијама"]
[5261,441400,"Отплата камата домаћим пословним банкама"]
[5262,441500,"Отплата камата осталим домаћим кредиторима"]
[5263,441600,"Отплата камата домаћинствима у земљи"]
[5264,441700,"Отплата камата на домаће финансијске деривате"]
[5265,441800,"Отплата камата на домаће менице"]
[5266,441900,"Финансијске промене на финансијским лизинзима"]
[5267,442000,"ОТПЛАТА СТРАНИХ КАМАТА (од 5268 до 5273)",{"$f":"SUM(D137:D142)","v":0}]
[5268,442100,"Отплата камата на хартије од вредности емитоване на иностраном финансијском тржишту"]
[5269,442200,"Отплата камата страним владама"]
[5270,442300,"Отплата камата мултилатералним институцијама"]
[5271,442400,"Отплата камата страним пословним банкама"]
[5272,442500,"Отплата камата осталим страним кредиторима"]
[5273,442600,"Отплата камата на стране финансијске деривате"]
[5274,443000,"ОТПЛАТА КАМАТА ПО ГАРАНЦИЈАМА (5275)",{"$f":"D144","v":0}]
[5275,443100,"Отплата камата по гаранцијама"]
[5276,444000,"ПРАТЕЋИ ТРОШКОВИ ЗАДУЖИВАЊА (од 5277 до 5279)",{"$f":"SUM(D146:D148)","v":0}]
[5277,444100,"Негативне курсне разлике"]
[5278,444200,"Казне за кашњење"]
[5279,444300,"Остали пратећи трошкови задуживања"]
[5280,450000,"СУБВЕНЦИЈЕ (5281 + 5284 + 5287 + 5290)",{"$f":"D150+D153+D156+D159","v":0}]
[5281,451000,"СУБВЕНЦИЈЕ ЈАВНИМ НЕФИНАНСИЈСКИМ ПРЕДУЗЕЋИМА И ОРГАНИЗАЦИЈАМА (5282 + 5283)",{"$f":"D151+D152","v":0}]
[5282,451100,"Текуће субвенције јавним нефинансијским предузећима и организацијама"]
[5283,451200,"Капиталне субвенције јавним нефинансијским предузећима и организацијама"]
[5284,452000,"СУБВЕНЦИЈЕ ПРИВАТНИМ ФИНАНСИЈСКИМ ИНСТИТУЦИЈАМА (5285 + 5286)",{"$f":"D154+D155","v":0}]
[5285,452100,"Текуће субвенције приватним финансијским институцијама"]
[5286,452200,"Капиталне субвенције приватним финансијским институцијама"]
[5287,453000,"СУБВЕНЦИЈЕ ЈАВНИМ ФИНАНСИЈСКИМ ИНСТИТУЦИЈАМА (5288 + 5289)",{"$f":"D157+D158","v":0}]
[5288,453100,"Текуће субвенције јавним финансијским институцијама"]
[5289,453200,"Капиталне субвенције јавним финансијским институцијама"]
[5290,454000,"СУБВЕНЦИЈЕ ПРИВАТНИМ ПРЕДУЗЕЋИМА (5291 + 5292)",{"$f":"D160+D161","v":0}]
[5291,454100,"Текуће субвенције приватним предузећима"]
[5292,454200,"Капиталне субвенције приватним предузећима"]
[5293,460000,"ДОНАЦИЈЕ, ДОТАЦИЈЕ И ТРАНСФЕРИ (5294 + 5297 + 5300 + 5303 + 5306)",{"$f":"D163+D166+D169+D172+D175","v":0}]
[5294,461000,"ДОНАЦИЈЕ СТРАНИМ ВЛАДАМА (5295 + 5296)",{"$f":"D164+D165","v":0}]
[5295,461100,"Текуће донације страним владама"]
[5296,461200,"Капиталне донације страним владама"]
[5297,462000,"ДОТАЦИЈЕ МЕЂУНАРОДНИМ ОРГАНИЗАЦИЈАМА (5298 + 5299)",{"$f":"D167+D168","v":0}]
[5298,462100,"Текуће дотације међународним организацијама"]
[5299,462200,"Капиталне дотације међународним организацијама"]
[5300,463000,"ТРАНСФЕРИ ОСТАЛИМ НИВОИМА ВЛАСТИ (5301 + 5302)",{"$f":"D170+D171","v":0}]
[5301,463100,"Текући трансфери осталим нивоима власти"]
[5302,463200,"Капитални трансфери осталим нивоима власти"]
[5303,464000,"ДОТАЦИЈЕ ОРГАНИЗАЦИЈАМА ОБАВЕЗНОГ СОЦИЈАЛНОГ ОСИГУРАЊА (5304 + 5305)",{"$f":"D173+D174","v":0}]
[5304,464100,"Текуће дотације организацијама обавезног социјалног осигурања"]
[5305,464200,"Капиталне дотације организацијама обавезног социјалног осигурања"]
[5306,465000,"ОСТАЛЕ ДОТАЦИЈЕ И ТРАНСФЕРИ (5307 + 5308)",{"$f":"D176+D177","v":0}]
[5307,465100,"Остале текуће дотације и трансфери"]
[5308,465200,"Остале капиталне дотације и трансфери"]
[5309,470000,"СОЦИЈАЛНО ОСИГУРАЊЕ И СОЦИЈАЛНА ЗАШТИТА (5310 + 5314)",{"$f":"D179+D183","v":0}]
[5310,471000,"ПРАВА ИЗ СОЦИЈАЛНОГ ОСИГУРАЊА (ОРГАНИЗАЦИЈЕ ОБАВЕЗНОГ СОЦИЈАЛНОГ ОСИГУРАЊА) (од 5311 до 5313)",{"$f":"SUM(D180:D182)","v":0}]
[5311,471100,"Права из социјалног осигурања која се исплаћују непосредно домаћинствима"]
[5312,471200,"Права из социјалног осигурања која се исплаћују непосредно пружаоцима услуга"]
[5313,471900,"Трансфери другим организацијама обавезног социјалног осигурања за доприносе за осигурање"]
[5314,472000,"НАКНАДЕ ЗА СОЦИЈАЛНУ ЗАШТИТУ ИЗ БУЏЕТА (од 5315 до 5323)",{"$f":"SUM(D184:D192)","v":0}]
[5315,472100,"Накнаде из буџета у случају болести и инвалидности"]
[5316,472200,"Накнаде из буџета за породиљско одсуство"]
[5317,472300,"Накнаде из буџета за децу и породицу"]
[5318,472400,"Накнаде из буџета за случај незапослености"]
[5319,472500,"Старосне и породичне пензије из буџета"]
[5320,472600,"Накнаде из буџета у случају смрти"]
[5321,472700,"Накнаде из буџета за образовање, културу, науку и спорт"]
[5322,472800,"Накнаде из буџета за становање и живот"]
[5323,472900,"Остале накнаде из буџета"]
[5324,480000,"ОСТАЛИ РАСХОДИ (5325 + 5328 + 5332 + 5334 + 5337 + 5339)",{"$f":"D194+D197+D201+D203+D206+D208","v":240}]
[5325,481000,"ДОТАЦИЈЕ НЕВЛАДИНИМ ОРГАНИЗАЦИЈАМА (5326 + 5327)",{"$f":"D195+D196","v":0}]
[5326,481100,"Дотације непрофитним организацијама које пружају помоћ домаћинствима"]
[5327,481900,"Дотације осталим непрофитним институцијама"]
[5328,482000,"ПОРЕЗИ, ОБАВЕЗНЕ ТАКСЕ,  КАЗНЕ, ПЕНАЛИ И КАМАТЕ (од 5329 до 5331)",{"$f":"SUM(D198:D200)","v":240}]
[5329,482100,"Остали порези",239]
[5330,482200,"Обавезне таксе",1]
[5331,482300,"Новчане казне, пенали и камате"]
[5332,483000,"НОВЧАНЕ КАЗНЕ И ПЕНАЛИ ПО РЕШЕЊУ СУДОВА (5333)",{"$f":"D202","v":0}]
[5333,483100,"Новчане казне и пенали по решењу судова"]
[5334,484000,"НАКНАДА ШТЕТЕ ЗА ПОВРЕДЕ ИЛИ ШТЕТУ НАСТАЛУ УСЛЕД ЕЛЕМЕНТАРНИХ НЕПОГОДА ИЛИ ДРУГИХ ПРИРОДНИХ УЗРОКА (5335 + 5336)",{"$f":"D204+D205","v":0}]
[5335,484100,"Накнада штете за повреде или штету насталу услед елементарних непогода"]
[5336,484200,"Накнада штете од дивљачи"]
[5337,485000,"НАКНАДА ШТЕТЕ ЗА ПОВРЕДЕ ИЛИ ШТЕТУ НАНЕТУ ОД СТРАНЕ ДРЖАВНИХ ОРГАНА (5338)",{"$f":"D207","v":0}]
[5338,485100,"Накнада штете за повреде или штету нанетих од стране државних органа"]
[5339,489000,"РАСХОДИ КОЈИ СЕ ФИНАНСИРАЈУ ИЗ СРЕДСТАВА ЗА РЕАЛИЗАЦИЈУ НАЦИОНАЛНОГ ИНВЕСТИЦИОНОГ ПЛАНА (5340)",{"$f":"D209","v":0}]
[5340,489100,"Расходи који се финансирају из средстава за реализацију националног инвестиционог плана"]
[5341,500000,"ИЗДАЦИ ЗА НЕФИНАНСИЈСКУ ИМОВИНУ (5342 + 5364 + 5373 + 5376 + 5384)",{"$f":"D211+D233+D242+D245+D253","v":0}]
[5342,510000,"ОСНОВНА СРЕДСТВА (5343 + 5348 + 5358 + 5360 + 5362)",{"$f":"D212+D217+D227+D229+D231","v":0}]
[5343,511000,"ЗГРАДЕ И ГРАЂЕВИНСКИ ОБЈЕКТИ (од 5344 до 5347)",{"$f":"SUM(D213:D216)","v":0}]
[5344,511100,"Куповина зграда и објеката"]
[5345,511200,"Изградња зграда и објеката"]
[5346,511300,"Капитално одржавање зграда и објеката"]
[5347,511400,"Пројектно планирање"]
[5348,512000,"МАШИНЕ И ОПРЕМА (од 5349 до 5357)",{"$f":"SUM(D218:D226)","v":0}]
[5349,512100,"Опрема за саобраћај"]
[5350,512200,"Административна опрема"]
[5351,512300,"Опрема за пољопривреду"]
[5352,512400,"Опрема за заштиту животне средине"]
[5353,512500,"Медицинска и лабораторијска опрема"]
[5354,512600,"Опрема за образовање, културу и спорт"]
[5355,512700,"Опрема за војску"]
[5356,512800,"Опрема за јавну безбедност"]
[5357,512900,"Опрема за производњу, моторна, непокретна и немоторна опрема"]
[5358,513000,"ОСТАЛЕ НЕКРЕТНИНЕ И ОПРЕМА (5359)",{"$f":"D228","v":0}]
[5359,513100,"Остале некретнине и опрема"]
[5360,514000,"КУЛТИВИСАНА ИМОВИНА (5361)",{"$f":"D230","v":0}]
[5361,514100,"Култивисана имовина"]
[5362,515000,"НЕМАТЕРИЈАЛНА ИМОВИНА (5363)",{"$f":"D232","v":0}]
[5363,515100,"Нематеријална имовина"]
[5364,520000,"ЗАЛИХЕ (5365 + 5367 + 5371)",{"$f":"D234+D236+D240","v":0}]
[5365,521000,"РОБНЕ РЕЗЕРВЕ (5366)",{"$f":"D235","v":0}]
[5366,521100,"Робне резерве"]
[5367,522000,"ЗАЛИХЕ ПРОИЗВОДЊЕ (од 5368 до 5370)",{"$f":"SUM(D237:D239)","v":0}]
[5368,522100,"Залихе материјала"]
[5369,522200,"Залихе недовршене производње"]
[5370,522300,"Залихе готових производа"]
[5371,523000,"ЗАЛИХЕ РОБЕ ЗА ДАЉУ ПРОДАЈУ (5372)",{"$f":"D241","v":0}]
[5372,523100,"Залихе робе за даљу продају"]
[5373,530000,"ДРАГОЦЕНОСТИ (5374)",{"$f":"D243","v":0}]
[5374,531000,"ДРАГОЦЕНОСТИ (5375)",{"$f":"D244","v":0}]
[5375,531100,"Драгоцености"]
[5376,540000,"ПРИРОДНА ИМОВИНА (5377 + 5379 + 5381)",{"$f":"D246+D248+D250","v":0}]
[5377,541000,"ЗЕМЉИШТЕ (5378)",{"$f":"D247","v":0}]
[5378,541100,"Земљиште"]
[5379,542000,"РУДНА БОГАТСТВА (5380)",{"$f":"D249","v":0}]
[5380,542100,"Копови"]
[5381,543000,"ШУМЕ И ВОДЕ (5382 + 5383)",{"$f":"D251+D252","v":0}]
[5382,543100,"Шуме"]
[5383,543200,"Воде"]
[5384,550000,"НЕФИНАНСИЈСКА ИМОВИНА КОЈА СЕ ФИНАНСИРА ИЗ СРЕДСТАВА ЗА РЕАЛИЗАЦИЈУ НАЦИОНАЛНОГ ИНВЕСТИЦИОНОГ ПЛАНА (5385)",{"$f":"D254","v":0}]
[5385,551000,"НЕФИНАНСИЈСКА ИМОВИНА КОЈА СЕ ФИНАНСИРА ИЗ СРЕДСТАВА ЗА РЕАЛИЗАЦИЈУ НАЦИОНАЛНОГ ИНВЕСТИЦИОНОГ ПЛАНА (5386)",{"$f":"D255","v":0}]
[5386,551100,"Нефинансијска имовина која се финансира из средстава за реализацију националног инвестиционог плана"]
[5387,600000,"ИЗДАЦИ ЗА ОТПЛАТУ ГЛАВНИЦЕ И НАБАВКУ ФИНАНСИЈСКЕ ИМОВИНЕ (5388 + 5413)",{"$f":"D257+D282","v":0}]
[5388,610000,"ОТПЛАТА ГЛАВНИЦЕ (5389 + 5399 + 5407 + 5409 + 5411)",{"$f":"D258+D268+D276+D278+D280","v":0}]
[5389,611000,"ОТПЛАТА ГЛАВНИЦЕ ДОМАЋИМ КРЕДИТОРИМА (од 5390 до 5398)",{"$f":"SUM(D259:D267)","v":0}]
[5390,611100,"Отплата главнице на домаће хартије од вредности, изузев акција"]
[5391,611200,"Отплата главнице осталим нивоима власти"]
[5392,611300,"Отплата главнице домаћим јавним финансијским институцијама"]
[5393,611400,"Отплата главнице домаћим пословним банкама"]
[5394,611500,"Отплата главнице осталим домаћим кредиторима"]
[5395,611600,"Отплата главнице домаћинствима у земљи"]
[5396,611700,"Отплата главнице на домаће финансијске деривате"]
[5397,611800,"Отплата домаћих меница"]
[5398,611900,"Исправка унутрашњег дуга"]
[5399,612000,"ОТПЛАТА ГЛАВНИЦЕ СТРАНИМ КРЕДИТОРИМА (од 5400 до 5406)",{"$f":"SUM(D269:D275)","v":0}]
[5400,612100,"Отплата главнице на хартије од вредности, изузев акција, емитоване на иностраном финансијском тржишту"]
[5401,612200,"Отплата главнице страним владама"]
[5402,612300,"Отплата главнице мултилатералним институцијама"]
[5403,612400,"Отплате главнице страним пословним банкама"]
[5404,612500,"Отплате главнице осталим страним кредиторима"]
[5405,612600,"Отплата главнице на стране финансијске деривате"]
[5406,612900,"Исправка спољног дуга"]
[5407,613000,"ОТПЛАТА ГЛАВНИЦЕ ПО ГАРАНЦИЈАМА (5408)",{"$f":"D277","v":0}]
[5408,613100,"Отплата главнице по гаранцијама"]
[5409,614000,"ОТПЛАТА ГЛАВНИЦЕ ЗА ФИНАНСИЈСКИ ЛИЗИНГ (5410)",{"$f":"D279","v":0}]
[5410,614100,"Отплата главнице за финансијски лизинг"]
[5411,615000,"ОТПЛАТА ГАРАНЦИЈА ПО КОМЕРЦИЈАЛНИМ ТРАНСАКЦИЈАМА (5412)",{"$f":"D281","v":0}]
[5412,615100,"Отплата гаранција по комерцијалним трансакцијама"]
[5413,620000,"НАБАВКА ФИНАНСИЈСКЕ ИМОВИНЕ (5414 + 5424 + 5433)",{"$f":"D283+D293+D302","v":0}]
[5414,621000,"НАБАВКА ДОМАЋЕ ФИНАНСИЈСКЕ ИМОВИНЕ (од 5415 до 5423)",{"$f":"SUM(D284:D292)","v":0}]
[5415,621100,"Набавка домаћих хартија од вредности, изузев акција"]
[5416,621200,"Кредити осталим нивоима власти"]
[5417,621300,"Кредити домаћим јавним финансијским институцијама"]
[5418,621400,"Кредити домаћим пословним банкама"]
[5419,621500,"Кредити домаћим нефинансијским јавним институцијама"]
[5420,621600,"Кредити физичким лицима и домаћинствима у земљи"]
[5421,621700,"Кредити невладиним организацијама у земљи"]
[5422,621800,"Кредити домаћим нефинансијским приватним предузећима"]
[5423,621900,"Набавка домаћих акција и осталог капитала"]
[5424,622000,"НАБАВКА СТРАНЕ ФИНАНСИЈСКЕ ИМОВИНЕ (од 5425 до 5432)",{"$f":"SUM(D294:D301)","v":0}]
[5425,622100,"Набавка страних хартија од вредности, изузев акција"]
[5426,622200,"Кредити страним владама"]
[5427,622300,"Кредити међународним организацијама"]
[5428,622400,"Кредити страним пословним банкама"]
[5429,622500,"Кредити страним нефинансијским институцијама"]
[5430,622600,"Кредити страним невладиним организацијама"]
[5431,622700,"Набавка страних акција и осталог капитала"]
[5432,622800,"Куповина стране валуте"]
[5433,623000,"НАБАВКА ФИНАНСИЈСКЕ ИМОВИНЕ КОЈА СЕ ФИНАНСИРА ИЗ СРЕДСТАВА ЗА РЕАЛИЗАЦИЈУ НАЦИОНАЛНОГ ИНВЕСТИЦИОНОГ ПЛАНА (5434)",{"$f":"D303","v":0}]
[5434,623100,"Набавка финансијске имовине која се финансира из средстава за реализацију националног инвестиционог плана "]
[5435,null,"УКУПНИ РАСХОДИ И ИЗДАЦИ (5172 + 5387)",{"$f":"D41+D256","v":984}]
[]
[]
["ОБРАЗАЦ ПОПУНИО:",null,null,"ОДГОВОРНО ЛИЦЕ:"]
["______________________",null,null,"___________________"]

{"sheet":"Transferi","index":11,"n_rows":26,"n_cols":6,"rows_kept":26,"cut":false,"hidden":false,"merged":[[4,0,4,5],[8,0,8,5],[15,0,15,5],[17,0,17,2]]}
["РЕПУБЛИЧКИ ФОНД ЗА ЗДРАВСТВЕНО",null,null,null,null,"ТР"]
["ОСИГУРАЊЕ - БЕОГРАД"]
["Јована Мариновића 2"]
[]
[]
[]
[{"$f":"\"ФИЛИЈАЛА:   \" & Filijala","v":"ФИЛИЈАЛА:   06 НОВИ САД"}]
[{"$f":"\"ЗДРАВСТВЕНА УСТАНОВА:  \" & ZU","v":"ЗДРАВСТВЕНА УСТАНОВА:  00206006 ДЗ ЖАБАЉ"}]
["ТРАНСФЕРИ ИЗМЕЂУ БУЏЕТСКИХ КОРИСНИКА НА ИСТОМ НИВОУ - конто 781100 (ООСО)\nу периоду од 01.01.2022. - 31.12.2022. године"]
[null,null,null,null,null,"у хиљадама (000) динара"]
["Р.  бр.","Назив","Трансфери за услуге здравствене заштите","Трансфери за лекове издате на рецепт","Трансфери за помагала издата на налог","УКУПНО"]
[null,0,1,2,3,"4=1+2+3"]
["1","781100 - Трансфери између буџетских корисника на истом нивоу (ООСО)",null,null,null,{"$f":"C13+D13+E13","v":0}]
[]
["Напомена: 1. Износ исказан у колони 4 - УКУПНО увећан за укупну партиципацију из обрасца ОЗПР (колона 6) мора бити једнак износу на ОП 5101 у колони 9 Обрасца 5."]
["                 2. У колону 1 - Трансфери за услуге здравствене заштите уноси се износ трансфера за здравствене услуге примарне и стоматолошке здравствене заштите\n                     у здравственим установама које имају апотеку у саставу."]
[]
["РАСХОДИ ЗА ЛЕКОВЕ ИЗДАТЕ НА РЕЦЕПТ И ПОМАГАЛА ИЗДАТА НА НАЛОГ\nу периоду од 01.01.2022. - 31.12.2022. године"]
[]
[null,null,"у хиљадама (000) динара"]
["Р.  бр.","Назив","Лекови издати на рецепт и помагала издата на налог"]
[null,0,1]
["1","426751 - Лекови на рецепт"]
[]
[]
["Напомена: Образац ТР попуњавају само апотеке и здравствене установе које у свом саставу имају апотеку."]

{"sheet":"BO","index":12,"n_rows":24,"n_cols":8,"rows_kept":24,"cut":false,"hidden":false,"merged":[[4,0,4,7],[5,3,5,4]]}
["РЕПУБЛИЧКИ ФОНД ЗА ЗДРАВСТВЕНО",null,null,null,null,null,null,"БО"]
["ОСИГУРАЊЕ - БЕОГРАД"]
["Јована Мариновића 2"]
[]
["ОБРАЗАЦ БО - ИСПЛАЋЕНА И РЕФУНДИРАНА СРЕДСТВА КОЈА СЕ ОДНОСЕ НА НАКНАДЕ КОЈЕ СЕ ЕВИДЕНТИРАЈУ У ОКВИРУ ГРУПЕ 414100"]
[null,null,null,"у периоду од 01.01.2022. - 31.12.2022. године"]
[{"$f":"\"ФИЛИЈАЛА:   \" & Filijala","v":"ФИЛИЈАЛА:   06 НОВИ САД"}]
[{"$f":"\"ЗДРАВСТВЕНА УСТАНОВА:  \" & ZU","v":"ЗДРАВСТВЕНА УСТАНОВА:  00206006 ДЗ ЖАБАЉ"}]
[]
[null,null,null,null,null,null,null,"у хиљадама (000) динара"]
["Р.  бр.","Извор финансирања","771100 исказан у обрасцу 5ГО","Пренета средства за накнаде које нису исказане у приходима (сторниран расход извршен у текућој години)","Укупно пренета средства за накнаде","Исплате накнада исказаних у обрасцу 5ГО на 414100","Исплате накнада  које нису исказане у расходима","Укупно исплаћене накнаде"]
[null,0,1,2,"3=1+2",4,5,"6=4+5"]
["1","УКУПНА СРЕДСТВА (1.1-1.5)",{"$f":"C14+C15+C16+C17+C18","v":0},3286,3286,0,3286,3286]
["1.1","РФЗО",null,3286,{"$f":"C14+D14","v":3286},null,3286,{"$f":"F14+G14","v":3286}]
["1.2","ФОНД ПИО",null,null,{"$f":"C15+D15","v":0},null,null,{"$f":"F15+G15","v":0}]
["1.3","СЕКРЕТАРИЈАТ ЗА СОЦИЈАЛНУ И ДЕЧИЈУ ЗАШТИТУ",null,null,{"$f":"C16+D16","v":0},null,null,{"$f":"F16+G16","v":0}]
["1.4","ОПШТИНА / ГРАД",null,null,{"$f":"C17+D17","v":0},null,null,{"$f":"F17+G17","v":0}]
["1.5","ОСТАЛО",null,null,{"$f":"C18+D18","v":0},null,null,{"$f":"F18+G18","v":0}]
[]
["Напомена: Овим обрасцем обухваћена су средства за:"]
["* накнаде за боловање преко 30 дана које рефундира РФЗО"]
["* накнаде за породиљско одсуство које рефундира Секретаријат за социјалну и дечију заштиту"]
["* накнаде за инвалиде II категорије које рефундира Фонд ПИО"]
["* накнаде за 35% за трудничко боловање"]

{"sheet":"Krv1","index":13,"n_rows":27,"n_cols":9,"rows_kept":27,"cut":false,"hidden":false,"merged":[[19,8,20,8],[4,0,4,8],[8,0,8,8],[15,0,15,8],[17,0,17,8],[19,0,20,0],[19,1,20,1],[19,2,20,2],[19,3,20,3],[19,4,20,4],[19,5,19,7]]}
["РЕПУБЛИЧКИ ФОНД ЗА ЗДРАВСТВЕНО",null,null,null,null,null,null,null,"КРВ 1"]
["ОСИГУРАЊЕ - БЕОГРАД"]
["Јована Мариновића 2"]
[]
[]
[]
[{"$f":"\"ФИЛИЈАЛА:   \" & Filijala","v":"ФИЛИЈАЛА:   06 НОВИ САД"}]
[{"$f":"\"ЗДРАВСТВЕНА УСТАНОВА:  \" & ZU","v":"ЗДРАВСТВЕНА УСТАНОВА:  00206006 ДЗ ЖАБАЉ"}]
["ТРАНСФЕРИ РЕПУБЛИЧКОГ ФОНДА ЗА КРВ И ЛАБИЛНЕ ПРОДУКТЕ ОД КРВИ ЗДРАВСТВЕНИМ УСТАНОВАМА ЗА ОСИГУРАНА ЛИЦА РЕПУБЛИЧКОГ ФОНДА- конто 781100 (ООСО) у периоду од 01.01.2022. - 31.12.2022. године                                                                                                                                                                                                                                                                                                                                                   "]
[null,null,"у хиљадама (000) динара"]
["Р.  бр.","Назив","Трансфери за крв и лабилне продукте од крви"]
[null,0,1]
["1","781100 - Трансфери за крв и лабилне продукте од крви за осигурана лица Републичког фонда"]
[]
[]
[]
[]
["РАСХОДИ ЗА КРВ И ЛАБИЛНЕ ПРОДУКТЕ ОД КРВИ ЗА ОСИГУРАНА ЛИЦА РЕПУБЛИЧКОГ ФОНДА у периоду од 01.01.2022. - 31.12.2022. године"]
[null,null,null,null,null,null,null,null,"у хиљадама (000) динара"]
["Р.  бр.","Назив","Институт за трансфузију крви Београд","Завод за трансфузију крви Нови Сад","Завод за трансфузију крви Ниш","Остали",null,null,"Укупно"]
[null,null,null,null,null,"ЗУ од којих је набављена крв","Остали добављачи","Укупно остали"]
[null,0,1,2,3,4,5,"6=4+5","7 = 1+2+3+6"]
["1","426700 - Крв и лабилни продукти од крви",null,null,null,null,null,{"$f":"F23+G23","v":0},{"$f":"C23+D23+E23+H23","v":0}]
[]
[]
["Напомена 1: Средства за КПП 076 и за испоручену крв за осигурана лица Републичког фонда приликом пружања услуга ван уговорене накнаде"]
["Напомена 2: Уз образац Крв 1 здравствена установа треба да достави и обавештење на које се установе и у ком износу односи податак исказан у колонама 4 и 5"]

{"sheet":"Krv2a","index":14,"n_rows":367,"n_cols":4,"rows_kept":367,"cut":false,"hidden":false,"merged":[[4,0,4,6],[8,0,8,3]]}
["РЕПУБЛИЧКИ ФОНД ЗА ЗДРАВСТВЕНО",null,null,"КРВ 2а"]
["ОСИГУРАЊЕ - БЕОГРАД"]
["Јована Мариновића 2"]
[]
[]
[]
[{"$f":"\"ФИЛИЈАЛА:   \" & Filijala","v":"ФИЛИЈАЛА:   06 НОВИ САД"}]
[{"$f":"\"ЗДРАВСТВЕНА УСТАНОВА:  \" & ZU","v":"ЗДРАВСТВЕНА УСТАНОВА:  00206006 ДЗ ЖАБАЉ"}]
["ОСТВАРЕНИ ПРИХОДИ ОД ЗДРАВСТВЕНИХ УСТАНОВА ИЗ ПЛАНА МРЕЖЕ ПО ОСНОВУ ПРОДАЈЕ КРВИ И ЛАБИЛНИХ ПРОДУКАТА ОД КРВИ ЗА ОСИГУРАНА ЛИЦА РЕПУБЛИЧКОГ ФОНДА у периоду од 01.01.2022. - 31.12.2022. године"]
[null,null,null,"у хиљадама (000) динара"]
[null,"Р.  бр.","781100 - Остварени приходи од здравствених установа из плана мреже по основу продаје крви и лабилних продуката од крви за осигурана лица Републичког фонда","Износ"]
[null,null,null,1]
[null,"1","00201001 Дом здравља \"Др Јанош Хаџи\", Бачка Топола"]
[null,"2","00201002 Дом здравља \"Др Мартон Шандор\", Мали Иђош"]
[null,"3","00201004 Завод за јавно здравље Суботица"]
[null,"4","00201005 Апотека Суботица"]
[null,"5","00201006 Дом здравља Суботица"]
[null,"6","00201007 Општа болница Суботица"]
[null,"7","00202001 Дом здравља  Житиште"]
[null,"8","00202003 Дом здравља Нови Бечеј"]
[null,"9","00202004 Дом здравља Сечањ"]
[null,"10","00202005 Дом здравља Нова Црња"]
[null,"11","00202007 Специјална болница \"Русанда\" Меленци"]
[null,"12","00202008 Специјална болница за плућне болести \"Др Васа Савић\", Зрењанин"]
[null,"13","00202009 Завод за јавно здравље Зрењанин"]
[null,"14","00202010 Апотека Зрењанин"]
[null,"15","00202011 Дом здравља \"Др Бошко Вребалов\" Зрењанин"]
[null,"16","00202012 Општа болница \"Ђ. Јовановић\" Зрењанин"]
[null,"17","00203001 Дом здравља Ада"]
[null,"18","00203002 Дом здравља Кањижа"]
[null,"19","00203003 Дом здравља Нови Кнежевац"]
[null,"20","00203004 Дом здравља Чока"]
[null,"21","00203007 Специјална болница \"Свети Врачеви\", Нови Кнежевац"]
[null,"22","00203008 Специјална болница за рехабилитацију \" Бања Кањижа \""]
[null,"23","00203009 Завод за јавно здравље Кикинда"]
[null,"24","00203010 Апотека Кикинда"]
[null,"25","00203011 Дом здравља Кикинда"]
[null,"26","00203012 Општа болница Кикинда"]
[null,"27","00203013 Дом здравља Сента"]
[null,"28","00203014 Општа болница Сента"]
[null,"29","00203015 Апотека Сента"]
[null,"30","00204001 Дом здравља Алибунар"]
[null,"31","00204002 Дом здравља Бела Црква"]
[null,"32","00204003 Дом здравља Ковачица"]
[null,"33","00204004 Дом здравља \"Ковин\", Ковин"]
[null,"34","00204005 Дом здравља Опово"]
[null,"35","00204006 Дом здравља \"1.Октобар\", Пландиште"]
[null,"36","00204009 Специјална болница за плућне болести \"Др Будислав Бабић\" Бела Црква"]
[null,"37","00204010 Специјална болница за психијатријске болести \"Др Славољуб Бакаловић\" Вршац"]
[null,"38","00204011 Неуропсихијатријска болница \"Ковин\", Ковин"]
[null,"39","00204012 Завод за јавно здравље Панчево"]
[null,"40","00204014 Апотека Вршац"]
[null,"41","00204015 Дом здравља Вршац"]
[null,"42","00204016 Општа болница Вршац"]
[null,"43","00204017 Дом здравља Панчево"]
[null,"44","00204018 Општа болница Панчево"]
[null,"45","00205001 Дом здравља Апатин"]
[null,"46","00205002 Дом здравља Кула"]
[null,"47","00205003 Дом здравља \"Каменко Гагрчин\", Оџаци"]
[null,"48","00205005 Завод за јавно здравље Сомбор"]
[null,"49","00205006 Апотека Сомбор"]
[null,"50","00205007 Дом здравља \"Др Ђорђе Лазић\" Сомбор"]
[null,"51","00205008 Општа болница \"Др Радивој Симоновић\" Сомбор"]
[null,"52","00205009 Специјална болница за рехабилитацију\"Јунаковић\"Апатин"]
[null,"53","00206001 Дом здравља Бач"]
[null,"54","00206002 Дом здравља \"Др Младен Стојановић\", Бачка Паланка"]
[null,"55","00206003 Дом здравља Бачки Петровац"]
[null,"56","00206004 Дом здравља \"Др Душан Савић-Дода\" Беочин"]
[null,"57","00206005 Дом здравља Бечеј"]
[null,"58","00206006 Дом здравља Жабаљ"]
[null,"59","00206007 Дом здравља \"Др Ђорђе Бастић\", Србобран"]
[null,"60","00206008 Дом здравља Темерин"]
[null,"61","00206009 Дом здравља Тител"]
[null,"62","00206010 Дом здравља \"Нови Сад\""]
[null,"63","00206012 Завод за трансфузију крви Војводине"]
[null,"64","00206013 Специјална болница за реуматске болести Нови Сад"]
[null,"65","00206014 Институт за јавно здравље Војводине"]
[null,"66","00206015 Институт за онкологију  Војводине, Сремска Каменица"]
[null,"67","00206016 Институт за плућне болести Војводине, Сремска Каменица"]
[null,"68","00206017 Институт за кардиоваскуларне болести Војводине, Сремска Каменица"]
[null,"69","00206018 Институт за здравствену заштиту деце и омладине Војводине, Нови Сад"]
[null,"70","00206019 Клиника за стоматологију Војводине, Нови Сад"]
[null,"71","00206020 Клинички центар Војводине Нови Сад"]
[null,"72","00206021 Завод за здравствену заштиту радника Нови Сад"]
[null,"73","00206022 Завод за здравствену заштиту студената Нови Сад"]
[null,"74","00206023 Пастеров завод Нови Сад"]
[null,"75","00206024 Апотека Нови Сад"]
[null,"76","00206025 Завод за хитну медицинску помоћ , Нови Сад"]
[null,"77","00206026 Дом здравља \"Вељко Влаховић\" Врбас"]
[null,"78","00206027 Општа болница \"Врбас\" Врбас"]
[null,"79","00206028 Апотека Врбас"]
[null,"80","00206029 Војномедицински центар Нови Сад"]
[null,"81","00207001 Дом здравља \"Милорад Мика Павловић\", Инђија"]
[null,"82","00207002 Дом здравља \"Др Драган Фундук\", Пећинци"]
[null,"83","00207003 Дом здравља Рума"]
[null,"84","00207004 Дом здравља \"Јован Јовановић-Змај\", Стара Пазова"]
[null,"85","00207005 Дом здравља Шид"]
[null,"86","00207007 Специјална болница \"Др Боривоје Гњатић\""]
[null,"87","00207008 Завод за јавно здравље Сремска Митровица"]
[null,"88","00207009 Специјална болница за рехабилитацију Термал Врдник"]
[null,"89","00207010 Апотека Сремска Митровица"]
[null,"90","00207011 Дом здравља Ириг"]
[null,"91","00207012 Дом здравља Сремска Митровица"]
[null,"92","00207013 Општа болница Сремска Митровица"]
[null,"93","00208001 Дом здравља Богатић"]
[null,"94","00208002 Дом здравља Љубовија"]
[null,"95","00208005 Специјална болница за рехабилитацију Бања Ковиљача"]
[null,"96","00208006 Завод за јавно здравље Шабац"]
[null,"97","00208007 Здравствена установа \"Апотека Лозница\""]
[null,"98","00208009 Општа болница Шабац"]
[null,"99","00208010 Дом здравља Шабац"]
[null,"100","00208011 Дом здравља Владимирци"]
[null,"101","00208012 Дом здравља \"Др Даринка Лукић\" Коцељева"]
[null,"102","00208013 Дом здравља Лозница"]
[null,"103","00208014 Дом здравља Крупањ"]
[null,"104","00208015 Дом здравља Мали Зворник"]
[null,"105","00208016 Општа болница Лозница"]
[null,"106","00209001 Дом здравља Уб"]
[null,"107","00209003 Здравствена  установа  Апотека Ваљево"]
[null,"108","00209004 Дом здравља Лајковац"]
[null,"109","00209005 Завод за јавно здравље Ваљево"]
[null,"110","00209007 Дом здравља Ваљево"]
[null,"111","00209008 Дом здравља Осечина"]
[null,"112","00209009 Дом здравља Љиг"]
[null,"113","00209010 Дом здравља Мионица"]
[null,"114","00209011 Општа болница Ваљево"]
[null,"115","00210002 Општа болница \"Стефан Високи\", Смедеревска Паланка"]
[null,"116","00210003 СЗУ Апотека Здравље"]
[null,"117","00210004 Апотека Смедерево"]
[null,"118","00210005 Дом здравља Велика Плана"]
[null,"119","00210006 Дом здравља Смедеревска Паланка"]
[null,"120","00210007 Апотека \"Медица\" Велика Плана"]
[null,"121","00210008 Општа болница Свети Лука, Смедерево"]
[null,"122","00210009 Дом здравља Смедерево"]
[null,"123","00211001 Дом здравља Велико Градиште"]
[null,"124","00211002 Дом здравља Жагубица"]
[null,"125","00211005 Завод за јавно здравље Пожаревац"]
[null,"126","00211006 Здравствена установа Апотека Пожаревац"]
[null,"127","00211007 Дом здравља Жабари"]
[null,"128","00211008 Дом здравља Голубац"]
[null,"129","00211009 Дом здравља Кучево"]
[null,"130","00211010 Дом здравља Мало Црниће"]
[null,"131","00211011 Дом здравља Пожаревац"]
[null,"132","00211012 Општа болница Пожаревац"]
[null,"133","00211013 Дом здравља Петровац на Млави"]
[null,"134","00211014 Општа болница Петровац на Млави"]
[null,"135","00212001 Дом здравља Крагујевац"]
[null,"136","00212002 Дом здравља Баточина"]
[null,"137","00212003 Дом здравља \"Даница и Коста Шамановић\", Кнић"]
[null,"138","00212004 Дом здравља Лапово"]
[null,"139","00212005 Дом здравља \"Милоје Хаџић - Шуле\", Рача"]
[null,"140","00212006 Дом здравља \"Свети Ђорђе\", Топола"]
[null,"141","00212007 Здравствени центар Аранђеловац"]
[null,"142","00212008 Завод за стоматологију Крагујевац"]
[null,"143","00212009 Специјална болница за рехабилитацију Буковицка бања Аранђеловац"]
[null,"144","00212010 Клинички центар Крагујевац"]
[null,"145","00212011 Институт за јавно здравље Крагујевац"]
[null,"146","00212012 Апотека Крагујевац"]
[null,"147","00212013 Апотека \"Шумадија\" Аранђеловац"]
[null,"148","00212014 Завод за хитну медецинску помоћ Крагујевац"]
[null,"149","00213001 Дом здравља Деспотовац"]
[null,"150","00213002 Дом здравља Свилајнац"]
[null,"151","00213005 Завод за јавно здравље Ћуприја \"Поморавље\""]
[null,"152","00213007 Дом здравља Рековац"]
[null,"153","00213008 Дом здравља Јагодина"]
[null,"154","00213009 Општа болница Јагодина"]
[null,"155","00213010 Здравствена установа апотека Јагодина"]
[null,"156","00213011 Дом здравља Ћуприја"]
[null,"157","00213012 Општа болница Ћуприја"]
[null,"158","00213014 Дом здравља Параћин"]
[null,"159","00213015 Апотека Параћин"]
[null,"160","00213016 Општа болница Параћин"]
[null,"161","00214002 Здравствени центар Неготин"]
[null,"162","00214003 Здравствени центар Кладово"]
[null,"163","00214006 Дом здравља Др Верољуб Цакић Мајданпек"]
[null,"164","00214007 Општа болница Мајданпек"]
[null,"165","00214008 Дом здравља Бор"]
[null,"166","00214009 Општа болница Бор"]
[null,"167","00215001 Дом здравља Бољевац"]
[null,"168","00215002 Здравствени центар Књажевац"]
[null,"169","00215003 Здравствени центар Зајечар"]
[null,"170","00215004 Специјална болница за рехабилитацију Гамзиград"]
[null,"171","00215005 Завод за јавно здравље \"Тимок\" Зајечар"]
[null,"172","00215006 Апотека Зајечар"]
[null,"173","00216001 Здравствени центар Ужице"]
[null,"174","00216003 Спец. болница за болести штитасте жлезде и болести метаболизма \"Златибор\""]
[null,"175","00216004 Завод за јавно здравље Ужице"]
[null,"176","00216005 Апотека Ужице"]
[null,"177","00217003 Специјална болница за рехабилитацију Ивањица"]
[null,"178","00217004 Завод за јавно здравље Чачак"]
[null,"179","00217005 Апотека Чачак"]
[null,"180","00217007 Дом здравља Горњи Милановац"]
[null,"181","00217008 Општа болница Горњи Милановац"]
[null,"182","00217009 Дом здравља \"Чачак\", Чачак"]
[null,"183","00217010 Дом здравља Ивањица"]
[null,"184","00217011 Дом здравља Лучани"]
[null,"185","00217012 Општа болница Чачак"]
[null,"186","00218001 Дом здравља Рашка"]
[null,"187","00218004 Завод за јавно здравље Краљево"]
[null,"188","00218005 Специјална болница \"Новопазарска Бања\""]
[null,"189","00218006 Завод за специјалну рехабилитацију Врњачка Бања"]
[null,"190","00218007 Специјална болница за рехабилитацију \"Агенс\" Матарушка Бања"]
[null,"191","00218008 Апотека Краљево"]
[null,"192","00218009 Дом здравља Тутин"]
[null,"193","00218010 Дом здравља Врњачка Бања"]
[null,"194","00218011 Специјална болница за интерне болести Врњачка Бања"]
[null,"195","00218012 Дом здравља Нови Пазар"]
[null,"196","00218013 Општа болница Нови Пазар"]
[null,"197","00218014 Дом здравља Краљево"]
[null,"198","00218015 Општа болница Студеница Краљево"]
[null,"199","00218016 Завод за јавно здравље Нови Пазар"]
[null,"200","00218017 Апотекарска установа Нови Пазар"]
[null,"201","00219001 Дом здравља \"Др Сава Станојевић\", Трстеник"]
[null,"202","00219003 Специјална болница за рехабилитацију \"Рибарска Бања\""]
[null,"203","00219004 Завод за јавно здравље Крушевац"]
[null,"204","00219005 Апотека Крушевац"]
[null,"205","00219006 Дом здравља Брус"]
[null,"206","00219007 Дом здравља \"Др Добривоје Гер Поповић\", Александровац"]
[null,"207","00219008 Дом здравља Ћићевац"]
[null,"208","00219009 Дом здравља \"Др Властимир Годић\" Варварин"]
[null,"209","00219012 Општа болница Крушевац"]
[null,"210","00219013 Дом здравља Крушевац"]
[null,"211","00220001 Дом здравља Гаџин Хан"]
[null,"212","00220002 Дом здравља Дољевац"]
[null,"213","00220003 Дом здравља \"Др Љубинко Ђорђевић\", Сврљиг"]
[null,"214","00220004 Дом здравља Соко Бања"]
[null,"215","00220005 Дом здравља Ниш"]
[null,"216","00220006 Дом здравља Мерошина"]
[null,"217","00220007 Дом здравља Ражањ"]
[null,"218","00220009 Специјална псхијатријска болница \"Горња Топоница\""]
[null,"219","00220010 Специјална болница за неспец. плућне болести \"Сокобања\""]
[null,"220","00220011 Специјална болница за плућне болести Озрен, Сокобања"]
[null,"221","00220012 Завод за хитну медицинску помоћ  Ниш"]
[null,"222","00220013 Завод за здравствену заштиту радника Ниш"]
[null,"223","00220014 Завод за здравствену заштиту студената Ниш"]
[null,"224","00220015 Завод за плућне болести и туберкулозу Ниш"]
[null,"225","00220016 Завод за трансфузију крви "]
[null,"226","00220017 Завод за судску медицину Ниш"]
[null,"227","00220018 Институт за лечење и рехабилитацију Нишка Бања, Ниш"]
[null,"228","00220019 Клинички центар Ниш"]
[null,"229","00220020 Клиника за стоматологију Ниш"]
[null,"230","00220021 Институт за јавно здравље Ниш"]
[null,"231","00220022 Апотека Ниш"]
[null,"232","00220024 Војна болница Ниш"]
[null,"233","00220025 Дом здравља Алексинац"]
[null,"234","00220026 Општа болница Алексинац"]
[null,"235","00221001 Дом здравља Куршумлија"]
[null,"236","00221002 Дом здравља Блаце"]
[null,"237","00221005 Аптоека Прокупље"]
[null,"238","00221006 Дом здравља Житорађа"]
[null,"239","00221007 Дом здравља Прокупље"]
[null,"240","00221008 Општа болница Прокупље"]
[null,"241","00222001 Дом здравља Бела Паланка"]
[null,"242","00222003 Завод за јавно здравље Пирот"]
[null,"243","00222004 Апотека Пирот"]
[null,"244","00222005 Дом здравља \"Др Јован Ристић\", Бабушница"]
[null,"245","00222006 Дом здравља Димитровград"]
[null,"246","00222007 Дом здравља Пирот"]
[null,"247","00222008 Општа болница Пирот"]
[null,"248","00223001 Дом здравља Бојник"]
[null,"249","00223003 Завод за јавно здравље Лесковац"]
[null,"250","00223004 Апотека Лесковац"]
[null,"251","00223005 Дом здравља Лебане"]
[null,"252","00223006 Специјална болница за рехабилаитацију Гејзер, Сијаринска Бања"]
[null,"253","00223007 Дом здравља Власотинце"]
[null,"254","00223008 Дом здравља Лесковац"]
[null,"255","00223009 Општа болница Лесковац"]
[null,"256","00223010 Дом здравља Медвеђа"]
[null,"257","00224001 Здравствени центар Врање"]
[null,"258","00224002 Здравствени центар Сурдулица"]
[null,"259","00224003 Специјална болница  за плућне болести и туберкулозу Сурдулица"]
[null,"260","00224004 Специјална болница за рехабилаитацију Бујановац, Бујановачка Бања"]
[null,"261","00224005 Специјална болница за рехабилитацију Врањска Бања"]
[null,"262","00224006 Завод за јавно здравње Врање"]
[null,"263","00224007 Апотека Врање"]
[null,"264","00224008 Дом здравља Владичин Хан"]
[null,"265","00224009 Дом здравља Бујановац"]
[null,"266","00224010 Дом Здравља Босилеград"]
[null,"267","00224011 Апотека Бујановац"]
[null,"268","00224012 Дом здравља Прешево"]
[null,"269","00224013 Дом здравља Трговиште"]
[null,"270","00225001 Дом зравља Грачаница"]
[null,"271","00225002 Дом здравља Доња Гуштерица"]
[null,"272","00225003 Дом Здравља Косово Поље"]
[null,"273","00225004 Дом здравља Обилић"]
[null,"274","00225005 ДомЗдравља Штрпце"]
[null,"275","00225006 Клиничко болнички центар Приштина"]
[null,"276","00225007 Апотекарска установа Приштина"]
[null,"277","00225008 Здравствени центар Призрен"]
[null,"278","00225009 Дом здравља Приштина"]
[null,"279","00225010 Дом здравља Драгаш"]
[null,"280","00225011 Апотекарска установа Призрен"]
[null,"281","00225012 Дом здравља Исток"]
[null,"282","00225013 Здравствени центар Пећ"]
[null,"283","00225014 Специјална болница за плућне болести Пећ"]
[null,"284","00225015 Здравствени центар Ђаковица"]
[null,"285","00225016 Апотекарса установа Пећ"]
[null,"286","00225017 Завод за специјализовану рехабилитацију Исток"]
[null,"287","00228001 Дом здравља Звечан"]
[null,"288","00228002 Здравствени центар Косовска Митровица"]
[null,"289","00228003 Апотека Косовска Митровица"]
[null,"290","00228004 Завод за јавно здравње - Приштина"]
[null,"291","00229001 Апотека Гњилане"]
[null,"292","00229002 Здравствени центар Гњилане"]
[null,"293","00230001 Дом здравља \"Др Милорад Влајковић\" Барајево"]
[null,"294","00230002 Дом здравља Вождовац"]
[null,"295","00230003 Дом здравља Врачар"]
[null,"296","00230004 Дом здравља Гроцка"]
[null,"297","00230005 Дом здравља \"Звездара\""]
[null,"298","00230006 Дом здравља Земун"]
[null,"299","00230007 Дом здравља \"Др Ђорђе Ковачевић\", Лазаревац"]
[null,"300","00230008 Дом здравља Младеновац"]
[null,"301","00230009 Дом здравља Нови Београд"]
[null,"302","00230010 Дом здравља Обреновац"]
[null,"303","00230011 Дом здравља \"Др Милутин Ивковић\", Палилула"]
[null,"304","00230012 Дом здравља Раковица"]
[null,"305","00230013 Дом здравља Савски Венац"]
[null,"306","00230014 Дом здравља Сопот"]
[null,"307","00230015 Дом здравља Стари Град, Београд"]
[null,"308","00230016 Дом здравља \" Др Симо Милошевић\", Чукарица"]
[null,"309","00230017 Специјална болница за интерне болести Младеновац"]
[null,"310","00230018 Спец. болница за церебралну парализу и развојну неурологију, Београд"]
[null,"311","00230019 Институт за неонатологију, Београд"]
[null,"312","00230020 Спец. болница за цереброваскуларна обољења \"Свети Сава\" Београд"]
[null,"313","00230021 Градски завод за хитну медицинску помоћ Београд"]
[null,"314","00230022 Градски завод за кожне и венеричне болести Београд"]
[null,"315","00230023 Градски завод за геронтологију и палијативно збрињавање, Београд"]
[null,"316","00230024 Градски завод за јавно здравље Београд"]
[null,"317","00230025 Градски завод за антитуберкулозну заштиту и болести плућа Београд"]
[null,"318","00230026 Завод за ендемску нефропатију, Лазаревац"]
[null,"319","00230027 Завод за здравствену заштиту студената, Београд"]
[null,"320","00230028 Завод за здравствену заштиту радника МУП-а"]
[null,"321","00230029 Завод за биоциде и медицинску екологију"]
[null,"322","00230030 Специјална болница за рехабилитацију и ортопедску протетику, Београд"]
[null,"323","00230031 Институт за трансфузију крви Србије"]
[null,"324","00230032 Специјална болница за болести зависности"]
[null,"325","00230033 Завод за психофизичке поремећаје и говорну патологију Београд"]
[null,"326","00230034 Институт за ортопедско - хируршке болести \"Бањица\", Београд"]
[null,"327","00230035 Институт за неуропсихијатријске болести \"Др Лаза Лазаревић\""]
[null,"328","00230036 Институт за кардиоваскуларне болести \"Дедиње\""]
[null,"329","00230037 Институт за здравствену заштиту мајке и детета Србије \"Др Вукан Чупић\", Н.Београд"]
[null,"330","00230038 Институт за ментално здравље Београд"]
[null,"331","00230039 Институт за онкологију и радијологију Србије, Београд"]
[null,"332","00230040 Институт за реуматологију Београд"]
[null,"333","00230041 Институт за рехабилитацију Србије, Београд"]
[null,"334","00230042 Клиника за рехабилитацију \"Др Мирослав Зотовић\""]
[null,"335","00230043 Клиника за неурологију и психијатрију за децу и омладину, Београд"]
[null,"336","00230044 Универзитетска дечја клиника, Београд"]
[null,"337","00230045 Гинеколошко акушерска клиника \" Народни фронт\", Београд"]
[null,"338","00230047 Клиничко-болнички центар Бежанијска Коса"]
[null,"339","00230048 Клиничко-болнички центар \"Др Драгиша Мишовић\" Дедиње"]
[null,"340","00230049 Клиничко болнички центар Земун"]
[null,"341","00230050 Клиничко болнички центар Звездара, Београд"]
[null,"342","00230051 Клинички центар Србије"]
[null,"343","00230052 Апотека Београд"]
[null,"344","00230053 Институт за јавно здравље Србије \"др Милан Јовановић Батут\""]
[null,"345","00230054 Институт за вирусологију, вакцине и серуме Торлак"]
[null,"346","00230055 Војномедицинска академија"]
[null,"347","00230057 Институт за медицину рада Србије Др Драгомир Карајовић"]
[null,"348","00312001 Застава - Завод за здравствену заштиту радника, Крагујевац"]
[null,null,"УКУПНО:",{"$f":"SUM(D13:D360)","v":0}]
[]
[]
[]
[]
["Саставио:",null,null,"Директор здравствене установе:"]
["______________________",null,null,"______________________________"]

{"sheet":"Krv2b","index":15,"n_rows":284,"n_cols":4,"rows_kept":284,"cut":false,"hidden":false,"merged":[[4,0,4,6],[9,0,9,3],[12,0,14,0],[12,1,14,1],[12,2,14,2],[12,3,14,3]]}
["РЕПУБЛИЧКИ ФОНД ЗА ЗДРАВСТВЕНО",null,null,"КРВ 2б"]
["ОСИГУРАЊЕ - БЕОГРАД"]
["Јована Мариновића 2"]
[]
[]
[]
[{"$f":"\"ФИЛИЈАЛА:   \" & Filijala","v":"ФИЛИЈАЛА:   06 НОВИ САД"}]
[{"$f":"\"ЗДРАВСТВЕНА УСТАНОВА:  \" & ZU","v":"ЗДРАВСТВЕНА УСТАНОВА:  00206006 ДЗ ЖАБАЉ"}]
[]
["ИЗВРШЕНИ РАСХОДИ ИЗ ОСТВАРЕНИХ ПРИХОДА ОД ПРОДАЈЕ КРВИ \nИ ЛАБИЛНИХ ПРОДУКАТА ОД КРВИ \nу периоду од 01.01.2022. - 31.12.2022. године"]
[]
[null,null,null,"у хиљадама (000) динара"]
["Ознака ОП","Број конта","Опис","Износ"]
[]
[]
[1,2,3,4]
[5172,null,"ТЕКУЋИ РАСХОДИ И ИЗДАЦИ ЗА НЕФИНАНСИЈСКЕ ИМОВИНЕ (5173 + 5341)",{"$f":"D18+D186","v":0}]
[5173,400000,"ТЕКУЋИ РАСХОДИ (5174 + 5196 + 5241 + 5256 + 5280 + 5293 + 5309 + 5324)",{"$f":"D19+D41+D86+D101+D125+D138+D154+D169","v":0}]
[5174,410000,"РАСХОДИ ЗА ЗАПОСЛЕНЕ (5175 + 5177 + 5181 + 5183 + 5188 + 5190 + 5192 + 5194)",{"$f":"D20+D22+D26+D28+D33+D35+D37+D39","v":0}]
[5175,411000,"ПЛАТЕ, ДОДАЦИ И НАКНАДЕ ЗАПОСЛЕНИХ (ЗАРАДЕ) (5176)",{"$f":"D21","v":0}]
[5176,411100,"Плате, додаци и накнаде запослених"]
[5177,412000,"СОЦИЈАЛНИ ДОПРИНОСИ НА ТЕРЕТ ПОСЛОДАВЦА (од 5178 до 5180)",{"$f":"SUM(D23:D25)","v":0}]
[5178,412100,"Допринос за пензијско и инвалидско осигурање"]
[5179,412200,"Допринос за здравствено осигурање"]
[5180,412300,"Допринос за незапосленост"]
[5181,413000,"НАКНАДЕ У НАТУРИ (5182)",{"$f":"D27","v":0}]
[5182,413100,"Накнаде у натури"]
[5183,414000,"СОЦИЈАЛНА ДАВАЊА ЗАПОСЛЕНИМА (од 5184 до 5187)",{"$f":"SUM(D29:D32)","v":0}]
[5184,414100,"Исплата накнада за време одсуствовања с посла на терет фондова"]
[5185,414200,"Расходи за образовање деце запослених"]
[5186,414300,"Отпремнине и помоћи"]
[5187,414400,"Помоћ у медицинском лечењу запосленог или чланова уже породице и друге помоћи запосленом"]
[5188,415000,"НАКНАДА ТРОШКОВА ЗА ЗАПОСЛЕНЕ (5189)",{"$f":"D34","v":0}]
[5189,415100,"Накнаде трошкова за запослене"]
[5190,416000,"НАГРАДЕ ЗАПОСЛЕНИМА И ОСТАЛИ ПОСЕБНИ РАСХОДИ (5191)",{"$f":"D36","v":0}]
[5191,416100,"Награде запосленима и остали посебни расходи"]
[5192,417000,"ПОСЛАНИЧКИ ДОДАТАК (5193)",{"$f":"D38","v":0}]
[5193,417100,"Посланички додатак"]
[5194,418000,"СУДИЈСКИ ДОДАТАК (5195)",{"$f":"D40","v":0}]
[5195,418100,"Судијски додатак"]
[5196,420000,"КОРИШЋЕЊЕ УСЛУГА И РОБА (5197 + 5205 + 5211 + 5220 + 5228 + 5231) ",{"$f":"D42+D50+D56+D65+D73+D76","v":0}]
[5197,421000,"СТАЛНИ ТРОШКОВИ (од 5198 до 5204)",{"$f":"SUM(D43:D49)","v":0}]
[5198,421100,"Трошкови платног промета и банкарских услуга"]
[5199,421200,"Енергетске услуге"]
[5200,421300,"Комуналне услуге"]
[5201,421400,"Услуге комуникација"]
[5202,421500,"Трошкови осигурања"]
[5203,421600,"Закуп имовине и опреме"]
[5204,421900,"Остали трошкови"]
[5205,422000,"ТРОШКОВИ ПУТОВАЊА (од 5206 до 5210)",{"$f":"SUM(D51:D55)","v":0}]
[5206,422100,"Трошкови службених путовања у земљи"]
[5207,422200,"Трошкови службених путовања у иностранство"]
[5208,422300,"Трошкови путовања у оквиру редовног рада"]
[5209,422400,"Трошкови путовања ученика"]
[5210,422900,"Остали трошкови транспорта"]
[5211,423000,"УСЛУГЕ ПО УГОВОРУ (од 5212 до 5219)",{"$f":"SUM(D57:D64)","v":0}]
[5212,423100,"Административне услуге"]
[5213,423200,"Компјутерске услуге"]
[5214,423300,"Услуге образовања и усавршавања запослених"]
[5215,423400,"Услуге информисања"]
[5216,423500,"Стручне услуге"]
[5217,423600,"Услуге за домаћинство и угоститељство"]
[5218,423700,"Репрезентација"]
[5219,423900,"Остале опште услуге"]
[5220,424000,"СПЕЦИЈАЛИЗОВАНЕ УСЛУГЕ (од 5221 до 5227)",{"$f":"SUM(D66:D72)","v":0}]
[5221,424100,"Пољопривредне услуге"]
[5222,424200,"Услуге образовања, културе и спорта"]
[5223,424300,"Медицинске услуге"]
[5224,424400,"Услуге одржавања аутопутева"]
[5225,424500,"Услуге одржавања националних паркова и природних површина"]
[5226,424600,"Услуге очувања животне средине, науке и геодетске услуге"]
[5227,424900,"Остале специјализоване услуге"]
[5228,425000,"ТЕКУЋЕ ПОПРАВКЕ И ОДРЖАВАЊЕ (5229 + 5230)",{"$f":"D74+D75","v":0}]
[5229,425100,"Текуће поправке и одржавање зграда и објеката"]
[5230,425200,"Текуће поправке и одржавање опреме"]
[5231,426000,"МАТЕРИЈАЛ (од 5232 до 5240)",{"$f":"SUM(D77:D85)","v":0}]
[5232,426100,"Административни материјал"]
[5233,426200,"Материјали за пољопривреду"]
[5234,426300,"Материјали за образовање и усавршавање запослених"]
[5235,426400,"Материјали за саобраћај"]
[5236,426500,"Материјали за очување животне средине и науку"]
[5237,426600,"Материјали за образовање, културу и спорт"]
[5238,426700,"Медицински и лабораторијски материјали"]
[5239,426800,"Материјали за одржавање хигијене и угоститељство"]
[5240,426900,"Материјали за посебне намене"]
[5241,430000,"АМОРТИЗАЦИЈА И УПОТРЕБА СРЕДСТАВА ЗА РАД (5242 + 5246 + 5248 + 5250 + 5254)",{"$f":"D87+D91+D93+D95+D99","v":0}]
[5242,431000,"АМОРТИЗАЦИЈА НЕКРЕТНИНА И ОПРЕМЕ (од 5243 до 5245)",{"$f":"SUM(D88:D90)","v":0}]
[5243,431100,"Амортизација зграда и грађевинскиx објеката"]
[5244,431200,"Амортизација опреме"]
[5245,431300,"Амортизација осталих некретнина и опреме"]
[5246,432000,"АМОРТИЗАЦИЈА КУЛТИВИСАНЕ ИМОВИНЕ (5247)",{"$f":"D92","v":0}]
[5247,432100,"Амортизација култивисане опреме"]
[5248,433000,"УПОТРЕБА ДРАГОЦЕНОСТИ (5249)",{"$f":"D94","v":0}]
[5249,433100,"Употреба драгоцености"]
[5250,434000,"УПОТРЕБА ПРИРОДНЕ ИМОВИНЕ (од 5251 до 5253)",{"$f":"SUM(D96:D98)","v":0}]
[5251,434100,"Употреба земљишта"]
[5252,434200,"Употреба подземног блага"]
[5253,434300,"Употреба шума и вода"]
[5254,435000,"АМОРТИЗАЦИЈА НЕМАТЕРИЈАЛНЕ ИМОВИНЕ (5255)",{"$f":"D100","v":0}]
[5255,435100,"Амортизација нематеријалне имовине"]
[5256,440000,"ОТПЛАТА КАМАТА И ПРАТЕЋИ ТРОШКОВИ ЗАДУЖИВАЊА (5257 + 5267 + 5274 + 5276)",{"$f":"D102+D112+D119+D121","v":0}]
[5257,441000,"ОТПЛАТЕ ДОМАЋИХ КАМАТА (од 5258 до 5266)",{"$f":"SUM(D103:D111)","v":0}]
[5258,441100,"Отплата камата на домаће хартије од вредности"]
[5259,441200,"Отплата камата осталим нивоима власти"]
[5260,441300,"Отплата камата домаћим јавним финансијским институцијама"]
[5261,441400,"Отплата камата домаћим пословним банкама"]
[5262,441500,"Отплата камата осталим домаћим кредиторима"]
[5263,441600,"Отплата камата домаћинствима у земљи"]
[5264,441700,"Отплата камата на домаће финансијске деривате"]
[5265,441800,"Отплата камата на домаће менице"]
[5266,441900,"Финансијске промене на финансијским лизинзима"]
[5267,442000,"ОТПЛАТА СТРАНИХ КАМАТА (од 5268 до 5273)",{"$f":"SUM(D113:D118)","v":0}]
[5268,442100,"Отплата камата на хартије од вредности емитоване на иностраном финансијском тржишту"]
[5269,442200,"Отплата камата страним владама"]
[5270,442300,"Отплата камата мултилатералним институцијама"]
[5271,442400,"Отплата камата страним пословним банкама"]
[5272,442500,"Отплата камата осталим страним кредиторима"]
[5273,442600,"Отплата камата на стране финансијске деривате"]
[5274,443000,"ОТПЛАТА КАМАТА ПО ГАРАНЦИЈАМА (5275)",{"$f":"D120","v":0}]
[5275,443100,"Отплата камата по гаранцијама"]
[5276,444000,"ПРАТЕЋИ ТРОШКОВИ ЗАДУЖИВАЊА (од 5277 до 5279)",{"$f":"SUM(D122:D124)","v":0}]
[5277,444100,"Негативне курсне разлике"]
[5278,444200,"Казне за кашњење"]
[5279,444300,"Остали пратећи трошкови задуживања"]
[5280,450000,"СУБВЕНЦИЈЕ (5281 + 5284 + 5287 + 5290)",{"$f":"D126+D129+D132+D135","v":0}]
[5281,451000,"СУБВЕНЦИЈЕ ЈАВНИМ НЕФИНАНСИЈСКИМ ПРЕДУЗЕЋИМА И ОРГАНИЗАЦИЈАМА (5282 + 5283)",{"$f":"D127+D128","v":0}]
[5282,451100,"Текуће субвенције јавним нефинансијским предузећима и организацијама"]
[5283,451200,"Капиталне субвенције јавним нефинансијским предузећима и организацијама"]
[5284,452000,"СУБВЕНЦИЈЕ ПРИВАТНИМ ФИНАНСИЈСКИМ ИНСТИТУЦИЈАМА (5285 + 5286)",{"$f":"D130+D131","v":0}]
[5285,452100,"Текуће субвенције приватним финансијским институцијама"]
[5286,452200,"Капиталне субвенције приватним финансијским институцијама"]
[5287,453000,"СУБВЕНЦИЈЕ ЈАВНИМ ФИНАНСИЈСКИМ ИНСТИТУЦИЈАМА (5288 + 5289)",{"$f":"D133+D134","v":0}]
[5288,453100,"Текуће субвенције јавним финансијским институцијама"]
[5289,453200,"Капиталне субвенције јавним финансијским институцијама"]
[5290,454000,"СУБВЕНЦИЈЕ ПРИВАТНИМ ПРЕДУЗЕЋИМА (5291 + 5292)",{"$f":"D136+D137","v":0}]
[5291,454100,"Текуће субвенције приватним предузећима"]
[5292,454200,"Капиталне субвенције приватним предузећима"]
[5293,460000,"ДОНАЦИЈЕ, ДОТАЦИЈЕ И ТРАНСФЕРИ (5294 + 5297 + 5300 + 5303 + 5306)",{"$f":"D139+D142+D145+D148+D151","v":0}]
[5294,461000,"ДОНАЦИЈЕ СТРАНИМ ВЛАДАМА (5295 + 5296)",{"$f":"D140+D141","v":0}]
[5295,461100,"Текуће донације страним владама"]
[5296,461200,"Капиталне донације страним владама"]
[5297,462000,"ДОТАЦИЈЕ МЕЂУНАРОДНИМ ОРГАНИЗАЦИЈАМА (5298 + 5299)",{"$f":"D143+D144","v":0}]
[5298,462100,"Текуће дотације међународним организацијама"]
[5299,462200,"Капиталне дотације међународним организацијама"]
[5300,463000,"ТРАНСФЕРИ ОСТАЛИМ НИВОИМА ВЛАСТИ (5301 + 5302)",{"$f":"D146+D147","v":0}]
[5301,463100,"Текући трансфери осталим нивоима власти"]
[5302,463200,"Капитални трансфери осталим нивоима власти"]
[5303,464000,"ДОТАЦИЈЕ ОРГАНИЗАЦИЈАМА ОБАВЕЗНОГ СОЦИЈАЛНОГ ОСИГУРАЊА (5304 + 5305)",{"$f":"D149+D150","v":0}]
[5304,464100,"Текуће дотације организацијама обавезног социјалног осигурања"]
[5305,464200,"Капиталне дотације организацијама обавезног социјалног осигурања"]
[5306,465000,"ОСТАЛЕ ДОТАЦИЈЕ И ТРАНСФЕРИ (5307 + 5308)",{"$f":"D152+D153","v":0}]
[5307,465100,"Остале текуће дотације и трансфери"]
[5308,465200,"Остале капиталне дотације и трансфери"]
[5309,470000,"СОЦИЈАЛНО ОСИГУРАЊЕ И СОЦИЈАЛНА ЗАШТИТА (5310 + 5314)",{"$f":"D155+D159","v":0}]
[5310,471000,"ПРАВА ИЗ СОЦИЈАЛНОГ ОСИГУРАЊА (ОРГАНИЗАЦИЈЕ ОБАВЕЗНОГ СОЦИЈАЛНОГ ОСИГУРАЊА) (од 5311 до 5313)",{"$f":"SUM(D156:D158)","v":0}]
[5311,471100,"Права из социјалног осигурања која се исплаћују непосредно домаћинствима"]
[5312,471200,"Права из социјалног осигурања која се исплаћују непосредно пружаоцима услуга"]
[5313,471900,"Трансфери другим организацијама обавезног социјалног осигурања за доприносе за осигурање"]
[5314,472000,"НАКНАДЕ ЗА СОЦИЈАЛНУ ЗАШТИТУ ИЗ БУЏЕТА (од 5315 до 5323)",{"$f":"SUM(D160:D168)","v":0}]
[5315,472100,"Накнаде из буџета у случају болести и инвалидности"]
[5316,472200,"Накнаде из буџета за породиљско одсуство"]
[5317,472300,"Накнаде из буџета за децу и породицу"]
[5318,472400,"Накнаде из буџета за случај незапослености"]
[5319,472500,"Старосне и породичне пензије из буџета"]
[5320,472600,"Накнаде из буџета у случају смрти"]
[5321,472700,"Накнаде из буџета за образовање, културу, науку и спорт"]
[5322,472800,"Накнаде из буџета за становање и живот"]
[5323,472900,"Остале накнаде из буџета"]
[5324,480000,"ОСТАЛИ РАСХОДИ (5325 + 5328 + 5332 + 5334 + 5337 + 5339)",{"$f":"D170+D173+D177+D179+D182+D184","v":0}]
[5325,481000,"ДОТАЦИЈЕ НЕВЛАДИНИМ ОРГАНИЗАЦИЈАМА (5326 + 5327)",{"$f":"D171+D172","v":0}]
[5326,481100,"Дотације непрофитним организацијама које пружају помоћ домаћинствима"]
[5327,481900,"Дотације осталим непрофитним институцијама"]
[5328,482000,"ПОРЕЗИ, ОБАВЕЗНЕ ТАКСЕ И КАЗНЕ (од 5329 до 5331)",{"$f":"SUM(D174:D176)","v":0}]
[5329,482100,"Остали порези"]
[5330,482200,"Обавезне таксе"]
[5331,482300,"Новчане казне и пенали"]
[5332,483000,"НОВЧАНЕ КАЗНЕ И ПЕНАЛИ ПО РЕШЕЊУ СУДОВА (5333)",{"$f":"D178","v":0}]
[5333,483100,"Новчане казне и пенали по решењу судова"]
[5334,484000,"НАКНАДА ШТЕТЕ ЗА ПОВРЕДЕ ИЛИ ШТЕТУ НАСТАЛУ УСЛЕД ЕЛЕМЕНТАРНИХ НЕПОГОДА ИЛИ ДРУГИХ ПРИРОДНИХ УЗРОКА (5335 + 5336)",{"$f":"D180+D181","v":0}]
[5335,484100,"Накнада штете за повреде или штету насталу услед елементарних непогода"]
[5336,484200,"Накнада штете од дивљачи"]
[5337,485000,"НАКНАДА ШТЕТЕ ЗА ПОВРЕДЕ ИЛИ ШТЕТУ НАНЕТУ ОД СТРАНЕ ДРЖАВНИХ ОРГАНА (5338)",{"$f":"D183","v":0}]
[5338,485100,"Накнада штете за повреде или штету нанетих од стране државних органа"]
[5339,489000,"РАСХОДИ КОЈИ СЕ ФИНАНСИРАЈУ ИЗ СРЕДСТАВА ЗА РЕАЛИЗАЦИЈУ НАЦИОНАЛНОГ ИНВЕСТИЦИОНОГ ПЛАНА (5340)",{"$f":"D185","v":0}]
[5340,489100,"Расходи који се финансирају из средстава за реализацију националног инвестиционог плана"]
[5341,500000,"ИЗДАЦИ ЗА НЕФИНАНСИЈСКУ ИМОВИНУ (5342 + 5364 + 5373 + 5376 + 5384)",{"$f":"D187+D209+D218+D221+D229","v":0}]
[5342,510000,"ОСНОВНА СРЕДСТВА (5343 + 5348 + 5358 + 5360 + 5362)",{"$f":"D188+D193+D203+D205+D207","v":0}]
[5343,511000,"ЗГРАДЕ И ГРАЂЕВИНСКИ ОБЈЕКТИ (од 5344 до 5347)",{"$f":"SUM(D189:D192)","v":0}]
[5344,511100,"Куповина зграда и објеката"]
[5345,511200,"Изградња зграда и објеката"]
[5346,511300,"Капитално одржавање зграда и објеката"]
[5347,511400,"Пројектно планирање"]
[5348,512000,"МАШИНЕ И ОПРЕМА (од 5349 до 5357)",{"$f":"SUM(D194:D202)","v":0}]
[5349,512100,"Опрема за саобраћај"]
[5350,512200,"Административна опрема"]
[5351,512300,"Опрема за пољопривреду"]
[5352,512400,"Опрема за заштиту животне средине"]
[5353,512500,"Медицинска и лабораторијска опрема"]
[5354,512600,"Опрема за образовање, културу и спорт"]
[5355,512700,"Опрема за војску"]
[5356,512800,"Опрема за јавну безбедност"]
[5357,512900,"Опрема за производњу, моторна, непокретна и немоторна опрема"]
[5358,513000,"ОСТАЛЕ НЕКРЕТНИНЕ И ОПРЕМА (5359)",{"$f":"D204","v":0}]
[5359,513100,"Остале некретнине и опрема"]
[5360,514000,"КУЛТИВИСАНА ИМОВИНА (5361)",{"$f":"D206","v":0}]
[5361,514100,"Култивисана имовина"]
[5362,515000,"НЕМАТЕРИЈАЛНА ИМОВИНА (5363)",{"$f":"D208","v":0}]
[5363,515100,"Нематеријална имовина"]
[5364,520000,"ЗАЛИХЕ (5365 + 5367 + 5371)",{"$f":"D210+D212+D216","v":0}]
[5365,521000,"РОБНЕ РЕЗЕРВЕ (5366)",{"$f":"D211","v":0}]
[5366,521100,"Робне резерве"]
[5367,522000,"ЗАЛИХЕ ПРОИЗВОДЊЕ (од 5368 до 5370)",{"$f":"SUM(D213:D215)","v":0}]
[5368,522100,"Залихе материјала"]
[5369,522200,"Залихе недовршене производње"]
[5370,522300,"Залихе готових производа"]
[5371,523000,"ЗАЛИХЕ РОБЕ ЗА ДАЉУ ПРОДАЈУ (5372)",{"$f":"D217","v":0}]
[5372,523100,"Залихе робе за даљу продају"]
[5373,530000,"ДРАГОЦЕНОСТИ (5374)",{"$f":"D219","v":0}]
[5374,531000,"ДРАГОЦЕНОСТИ (5375)",{"$f":"D220","v":0}]
[5375,531100,"Драгоцености"]
[5376,540000,"ПРИРОДНА ИМОВИНА (5377 + 5379 + 5381)",{"$f":"D222+D224+D226","v":0}]
[5377,541000,"ЗЕМЉИШТЕ (5378)",{"$f":"D223","v":0}]
[5378,541100,"Земљиште"]
[5379,542000,"РУДНА БОГАТСТВА (5380)",{"$f":"D225","v":0}]
[5380,542100,"Копови"]
[5381,543000,"ШУМЕ И ВОДЕ (5382 + 5383)",{"$f":"D227+D228","v":0}]
[5382,543100,"Шуме"]
[5383,543200,"Воде"]
[5384,550000,"НЕФИНАНСИЈСКА ИМОВИНА КОЈА СЕ ФИНАНСИРА ИЗ СРЕДСТАВА ЗА РЕАЛИЗАЦИЈУ НАЦИОНАЛНОГ ИНВЕСТИЦИОНОГ ПЛАНА (5385)",{"$f":"D230","v":0}]
[5385,551000,"НЕФИНАНСИЈСКА ИМОВИНА КОЈА СЕ ФИНАНСИРА ИЗ СРЕДСТАВА ЗА РЕАЛИЗАЦИЈУ НАЦИОНАЛНОГ ИНВЕСТИЦИОНОГ ПЛАНА (5386)",{"$f":"D231","v":0}]
[5386,551100,"Нефинансијска имовина која се финансира из средстава за реализацију националног инвестиционог плана"]
[5387,600000,"ИЗДАЦИ ЗА ОТПЛАТУ ГЛАВНИЦЕ И НАБАВКУ ФИНАНСИЈСКЕ ИМОВИНЕ (5388 + 5413)",{"$f":"D233+D258","v":0}]
[5388,610000,"ОТПЛАТА ГЛАВНИЦЕ (5389 + 5399 + 5407 + 5409 + 5411)",{"$f":"D234+D244+D252+D254+D256","v":0}]
[5389,611000,"ОТПЛАТА ГЛАВНИЦЕ ДОМАЋИМ КРЕДИТОРИМА (од 5390 до 5398)",{"$f":"SUM(D235:D243)","v":0}]
[5390,611100,"Отплата главнице на домаће хартије од вредности, изузев акција"]
[5391,611200,"Отплата главнице осталим нивоима власти"]
[5392,611300,"Отплата главнице домаћим јавним финансијским институцијама"]
[5393,611400,"Отплата главнице домаћим пословним банкама"]
[5394,611500,"Отплата главнице осталим домаћим кредиторима"]
[5395,611600,"Отплата главнице домаћинствима у земљи"]
[5396,611700,"Отплата главнице на домаће финансијске деривате"]
[5397,611800,"Отплата домаћих меница"]
[5398,611900,"Исправка унутрашњег дуга"]
[5399,612000,"ОТПЛАТА ГЛАВНИЦЕ СТРАНИМ КРЕДИТОРИМА (од 5400 до 5406)",{"$f":"SUM(D245:D251)","v":0}]
[5400,612100,"Отплата главнице на хартије од вредности, изузев акција, емитоване на иностраном финансијском тржишту"]
[5401,612200,"Отплата главнице страним владама"]
[5402,612300,"Отплата главнице мултилатералним институцијама"]
[5403,612400,"Отплате главнице страним пословним банкама"]
[5404,612500,"Отплате главнице осталим страним кредиторима"]
[5405,612600,"Отплата главнице на стране финансијске деривате"]
[5406,612900,"Исправка спољног дуга"]
[5407,613000,"ОТПЛАТА ГЛАВНИЦЕ ПО ГАРАНЦИЈАМА (5408)",{"$f":"D253","v":0}]
[5408,613100,"Отплата главнице по гаранцијама"]
[5409,614000,"ОТПЛАТА ГЛАВНИЦЕ ЗА ФИНАНСИЈСКИ ЛИЗИНГ (5410)",{"$f":"D255","v":0}]
[5410,614100,"Отплата главнице за финансијски лизинг"]
[5411,615000,"ОТПЛАТА ГАРАНЦИЈА ПО КОМЕРЦИЈАЛНИМ ТРАНСАКЦИЈАМА (5412)",{"$f":"D257","v":0}]
[5412,615100,"Отплата гаранција по комерцијалним трансакцијама"]
[5413,620000,"НАБАВКА ФИНАНСИЈСКЕ ИМОВИНЕ (5414 + 5424 + 5433)",{"$f":"D259+D269+D278","v":0}]
[5414,621000,"НАБАВКА ДОМАЋЕ ФИНАНСИЈСКЕ ИМОВИНЕ (од 5415 до 5423)",{"$f":"SUM(D260:D268)","v":0}]
[5415,621100,"Набавка домаћих хартија од вредности, изузев акција"]
[5416,621200,"Кредити осталим нивоима власти"]
[5417,621300,"Кредити домаћим јавним финансијским институцијама"]
[5418,621400,"Кредити домаћим пословним банкама"]
[5419,621500,"Кредити домаћим нефинансијским јавним институцијама"]
[5420,621600,"Кредити физичким лицима и домаћинствима у земљи"]
[5421,621700,"Кредити невладиним организацијама у земљи"]
[5422,621800,"Кредити домаћим нефинансијским приватним предузећима"]
[5423,621900,"Набавка домаћих акција и осталог капитала"]
[5424,622000,"НАБАВКА СТРАНЕ ФИНАНСИЈСКЕ ИМОВИНЕ (од 5425 до 5432)",{"$f":"SUM(D270:D277)","v":0}]
[5425,622100,"Набавка страних хартија од вредности, изузев акција"]
[5426,622200,"Кредити страним владама"]
[5427,622300,"Кредити међународним организацијама"]
[5428,622400,"Кредити страним пословним банкама"]
[5429,622500,"Кредити страним нефинансијским институцијама"]
[5430,622600,"Кредити страним невладиним организацијама"]
[5431,622700,"Набавка страних акција и осталог капитала"]
[5432,622800,"Куповина стране валуте"]
[5433,623000,"НАБАВКА ФИНАНСИЈСКЕ ИМОВИНЕ КОЈА СЕ ФИНАНСИРА ИЗ СРЕДСТАВА ЗА РЕАЛИЗАЦИЈУ НАЦИОНАЛНОГ ИНВЕСТИЦИОНОГ ПЛАНА (5434)",{"$f":"D279","v":0}]
[5434,623100,"Набавка финансијске имовине која се финансира из средстава за реализацију националног инвестиционог плана "]
[5435,null,"УКУПНИ РАСХОДИ И ИЗДАЦИ (5172 + 5387)",{"$f":"D17+D232","v":0}]
[]
[]
["Саставио:",null,null,"Директор здравствене установе:"]
["______________________",null,null,"______________________________"]

{"sheet":"DP","index":16,"n_rows":46,"n_cols":6,"rows_kept":46,"cut":false,"hidden":false,"merged":[[4,1,4,5]]}
["РЕПУБЛИЧКИ ФОНД ЗА ЗДРАВСТВЕНО",null,null,null,null,"ДП"]
["ОСИГУРАЊЕ - БЕОГРАД"]
["Јована Мариновића 2"]
[]
[null,"ДИРЕКТНА ПЛАЋАЊА\nу периоду од 01.01.2022. - 31.12.2022. године"]
[]
[{"$f":"\"ФИЛИЈАЛА:   \" & Filijala","v":"ФИЛИЈАЛА:   06 НОВИ САД"}]
[{"$f":"\"ЗДРАВСТВЕНА УСТАНОВА:  \" & ZU","v":"ЗДРАВСТВЕНА УСТАНОВА:  00206006 ДЗ ЖАБАЉ"}]
[null,null,null,null,null,"у хиљадама (000) динара"]
[null,"Р.  бр.","Конто","ИЗНОС НЕРЕАЛИЗОВАНИХ ОБРАЧУНСКИХ НАЛОГА ИЗ 2021. КОЈИ СУ РЕАЛИЗОВАНИ У ПЕРИОДУ 01.01.-31.12.2022. ГОДИНE","ИЗНОС РЕАЛИЗОВАНИХ ОБРАЧУНСКИХ НАЛОГА У 2022. ГОДИНИ ЗА ПЕРИОД 01.01.-31.12.2022. ГОДИНЕ","ИЗНОС НЕРЕАЛИЗОВАНИХ ОБРАЧУНСКИХ НАЛОГА У 2022. ГОДИНИ ЗАКЉУЧНО СА 31.12.2022. ГОДИНЕ"]
[null,null,null,3,4,5]
[null,"1","421200 - Енергетске услуге",{"$f":"+D13+D14","v":0},{"$f":"+E13+E14","v":6039},{"$f":"+F13+F14","v":0}]
[null,null,"06C - Енергенти у ЗУ примарне ЗЗ",null,6039]
[null,null,"07С - Енергенти у ЗУ секундарне  ЗЗ"]
[null,2,"426700 - Медицински и лабораторијски материјали",{"$f":"SUM(D16:D45)","v":0},{"$f":"SUM(E16:E45)","v":7163},{"$f":"SUM(F16:F45)","v":0}]
[null,null,"062 - Лекови у ЗУ примарне ЗЗ",null,5133]
[null,null,"071 - Лекови у ЗУ секундарне ЗЗ"]
[null,null,"073 - Цитистатици са листе"]
[null,null,"074 - Лекови по посебном режиму"]
[null,null,"075 - Лекови за хемофилију"]
[null,null,"986 - Октреотид и ланреотид",null,762]
[null,null,"064 - Санитетски и медицински потрошни материјал у примарној ЗЗ",null,1268]
[null,null,"085 - Санитетски и медицински материјал потришни у секундарној и терцијарној ЗЗ"]
[null,null,"077 - Уградни материјал у ортопедији"]
[null,null,"078 - Имплантати у ортопедији "]
[null,null,"079 - Уградни материјал у кардиохирургији"]
[null,null,"081 - Пејсмејкери и електроде"]
[null,null,"082 - Стентови"]
[null,null,"083 - Графтови"]
[null,null,"084 - Остали уградни материјал"]
[null,null,"080 - Дијализни материјал и лекови за дијализу (осим епоетина)"]
[null,null,"920 - Лекови ван листе лекова за лечење ретких урођених болести метаболизма"]
[null,null,"926 - Лекови ван листе лекова за лечење ретких тумора"]
[null,null,"927 - Лекови за лечење хередитарног ангиоедема"]
[null,null,"076 - Крв и продукти од крви"]
[null,null,"07V -  Варијабилни део накнаде по основу ДСГ учинка и показатеља квалитета"]
[null,null,"07Z - Номинални износ варијабилног дела накнаде"]
[null,null,"922 - Трансплантација срца"]
[null,null,"925 - Механичка екстракција тромба"]
[null,null,"958 - Лекови ван листе лекова"]
[null,null,"961 - Трансплантације бубрега"]
[null,null,"962 - Трансплантације јетре"]
[null,null,"963 - Трансплантације костне сржи"]
[null,null,"980 - Ендоваскуларно лечење интракранијалних анеуризми"]
[null,null,"994 - Перкутана вертебропластика"]
[null,null,"Укупно:",{"$f":"+D12+D15","v":0},{"$f":"+E12+E15","v":13202},{"$f":"+F12+F15","v":0}]

{"sheet":"VP","index":17,"n_rows":300,"n_cols":10,"rows_kept":300,"cut":false,"hidden":false,"merged":[[13,0,13,9],[14,0,14,9],[26,1,28,1],[26,2,28,2],[26,3,26,9],[17,0,19,0],[17,3,17,9],[18,4,18,7],[18,9,19,9],[299,7,299,9],[18,3,19,3],[298,0,298,1],[27,8,28,8],[27,9,28,9],[26,0,28,0],[298,7,298,9],[27,3,28,3],[17,2,19,2],[27,4,27,7],[17,1,19,1],[18,8,19,8]]}
["РЕПУБЛИЧКИ ФОНД ЗА ЗДРАВСТВЕНО",null,null,null,null,null,null,null,null,"ВП"]
["ОСИГУРАЊЕ - БЕОГРАД"]
["Јована Мариновића 2"]
[]
[]
[]
[{"$f":"\"ФИЛИЈАЛА:   \" & Filijala","v":"ФИЛИЈАЛА:   06 НОВИ САД"}]
[{"$f":"\"ЗДРАВСТВЕНА УСТАНОВА:  \" & ZU","v":"ЗДРАВСТВЕНА УСТАНОВА:  00206006 ДЗ ЖАБАЉ"}]
[]
[]
[]
[]
[]
["КОРИШЋЕНИ НЕРАСПОРЕЂЕНИ ВИШАК ПРИХОДА И ПРИМАЊА ИЗ РАНИЈИХ ГОДИНА"]
["у периоду од 01.01.2022. - 31.12.2022. године"]
[]
["I НЕРАСПОРЕЂЕНИ ВИШАК ПРИХОДА И ПРИМАЊА ИЗ РАНИЈИХ ГОДИНА",null,null,null,null,null,null,null,null,"у хиљадама (000) динара"]
["Ознака ОП","Број конта","Опис","НЕРАСПОРЕЂЕНИ ВИШАК ПРИХОДА И ПРИМАЊА ИЗ РАНИЈИХ ГОДИНА"]
[null,null,null,"Укупно           \n(од 5 до 10)","Приходи и примања из буџета",null,null,null,"Из донација и помоћи","Из осталих извора"]
[null,null,null,null,"Републике","Аутономне покрајине","Општине / \nграда","ООСО"]
[1,2,3,4,5,6,7,8,9,10]
[5001,null,"НЕРАСПОРЕЂЕНИ ВИШАК ПРИХОДА И ПРИМАЊА ИЗ РАНИЈИХ ГОДИНА",{"$f":"SUM(E22:J22)","v":12521},null,null,null,1670,null,10851]
[]
[]
[]
["II ИЗВРШЕНИ РАСХОДИ И ИЗДАЦИ ИЗ НЕРАСПОРЕЂЕНОГ ВИШКА ПРИХОДА И ПРИМАЊА ИЗ РАНИЈИХ ГОДИНА",null,null,null,null,null,null,null,null,"у хиљадама (000) динара"]
["Ознака ОП","Број конта","Опис","Износ извршених расхода и издатака"]
[null,null,null,"Укупно           \n(од 5 до 10)","Расходи и издаци на терет буџета",null,null,null,"Из донација и помоћи","Из осталих извора"]
[null,null,null,null,"Републике ","Аутономне покрајине","Општине / \nграда","ООСО"]
[1,2,3,4,5,6,7,8,9,10]
[5172,null,"ТЕКУЋИ РАСХОДИ И ИЗДАЦИ ЗА НЕФИНАНСИЈСКЕ ИМОВИНЕ (5173 + 5341)",{"$f":"SUM(E31:J31)","v":0},{"$f":"E32+E200","v":0},0,0,0,0,0]
[5173,400000,"ТЕКУЋИ РАСХОДИ (5174 + 5196 + 5241 + 5256 + 5280 + 5293 + 5309 + 5324)",0,{"$f":"E33+E55+E100+E115+E139+E152+E168+E183","v":0},0,0,0,0,0]
[5174,410000,"РАСХОДИ ЗА ЗАПОСЛЕНЕ (5175 + 5177 + 5181 + 5183 + 5188 + 5190 + 5192 + 5194)",0,{"$f":"E34+E36+E40+E42+E47+E49+E51+E53","v":0},0,0,0,0,0]
[5175,411000,"ПЛАТЕ, ДОДАЦИ И НАКНАДЕ ЗАПОСЛЕНИХ (ЗАРАДЕ) (5176)",0,{"$f":"E35","v":0},0,0,0,0,0]
[5176,411100,"Плате, додаци и накнаде запослених",0]
[5177,412000,"СОЦИЈАЛНИ ДОПРИНОСИ НА ТЕРЕТ ПОСЛОДАВЦА (од 5178 до 5180)",0,{"$f":"SUM(E37:E39)","v":0},0,0,0,0,0]
[5178,412100,"Допринос за пензијско и инвалидско осигурање",0]
[5179,412200,"Допринос за здравствено осигурање",0]
[5180,412300,"Допринос за незапосленост",0]
[5181,413000,"НАКНАДЕ У НАТУРИ (5182)",0,{"$f":"E41","v":0},0,0,0,0,0]
[5182,413100,"Накнаде у натури",0]
[5183,414000,"СОЦИЈАЛНА ДАВАЊА ЗАПОСЛЕНИМА (од 5184 до 5187)",0,{"$f":"SUM(E43:E46)","v":0},0,0,0,0,0]
[5184,414100,"Исплата накнада за време одсуствовања с посла на терет фондова",0]
[5185,414200,"Расходи за образовање деце запослених",0]
[5186,414300,"Отпремнине и помоћи",0]
[5187,414400,"Помоћ у медицинском лечењу запосленог или чланова уже породице и друге помоћи запосленом",0]
[5188,415000,"НАКНАДА ТРОШКОВА ЗА ЗАПОСЛЕНЕ (5189)",0,{"$f":"E48","v":0},0,0,0,0,0]
[5189,415100,"Накнаде трошкова за запослене",0]
[5190,416000,"НАГРАДЕ ЗАПОСЛЕНИМА И ОСТАЛИ ПОСЕБНИ РАСХОДИ (5191)",0,{"$f":"E50","v":0},0,0,0,0,0]
[5191,416100,"Награде запосленима и остали посебни расходи",0]
[5192,417000,"ПОСЛАНИЧКИ ДОДАТАК (5193)",0,{"$f":"E52","v":0},0,0,0,0,0]
[5193,417100,"Посланички додатак",0]
[5194,418000,"СУДИЈСКИ ДОДАТАК (5195)",0,{"$f":"E54","v":0},0,0,0,0,0]
[5195,418100,"Судијски додатак",0]
[5196,420000,"КОРИШЋЕЊЕ УСЛУГА И РОБА (5197 + 5205 + 5211 + 5220 + 5228 + 5231) ",0,{"$f":"E56+E64+E70+E79+E87+E90","v":0},0,0,0,0,0]
[5197,421000,"СТАЛНИ ТРОШКОВИ (од 5198 до 5204)",0,{"$f":"SUM(E57:E63)","v":0},0,0,0,0,0]
[5198,421100,"Трошкови платног промета и банкарских услуга",0]
[5199,421200,"Енергетске услуге",0]
[5200,421300,"Комуналне услуге",0]
[5201,421400,"Услуге комуникација",0]
[5202,421500,"Трошкови осигурања",0]
[5203,421600,"Закуп имовине и опреме",0]
[5204,421900,"Остали трошкови",0]
[5205,422000,"ТРОШКОВИ ПУТОВАЊА (од 5206 до 5210)",0,{"$f":"SUM(E65:E69)","v":0},0,0,0,0,0]
[5206,422100,"Трошкови службених путовања у земљи",0]
[5207,422200,"Трошкови службених путовања у иностранство",0]
[5208,422300,"Трошкови путовања у оквиру редовног рада",0]
[5209,422400,"Трошкови путовања ученика",0]
[5210,422900,"Остали трошкови транспорта",0]
[5211,423000,"УСЛУГЕ ПО УГОВОРУ (од 5212 до 5219)",0,{"$f":"SUM(E71:E78)","v":0},0,0,0,0,0]
[5212,423100,"Административне услуге",0]
[5213,423200,"Компјутерске услуге",0]
[5214,423300,"Услуге образовања и усавршавања запослених",0]
[5215,423400,"Услуге информисања",0]
[5216,423500,"Стручне услуге",0]
[5217,423600,"Услуге за домаћинство и угоститељство",0]
[5218,423700,"Репрезентација",0]
[5219,423900,"Остале опште услуге",0]
[5220,424000,"СПЕЦИЈАЛИЗОВАНЕ УСЛУГЕ (од 5221 до 5227)",0,{"$f":"SUM(E80:E86)","v":0},0,0,0,0,0]
[5221,424100,"Пољопривредне услуге",0]
[5222,424200,"Услуге образовања, културе и спорта",0]
[5223,424300,"Медицинске услуге",0]
[5224,424400,"Услуге одржавања аутопутева",0]
[5225,424500,"Услуге одржавања националних паркова и природних површина",0]
[5226,424600,"Услуге очувања животне средине, науке и геодетске услуге",0]
[5227,424900,"Остале специјализоване услуге",0]
[5228,425000,"ТЕКУЋЕ ПОПРАВКЕ И ОДРЖАВАЊЕ (5229 + 5230)",0,{"$f":"E88+E89","v":0},0,0,0,0,0]
[5229,425100,"Текуће поправке и одржавање зграда и објеката",0]
[5230,425200,"Текуће поправке и одржавање опреме",0]
[5231,426000,"МАТЕРИЈАЛ (од 5232 до 5240)",0,{"$f":"SUM(E91:E99)","v":0},0,0,0,0,0]
[5232,426100,"Административни материјал",0]
[5233,426200,"Материјали за пољопривреду",0]
[5234,426300,"Материјали за образовање и усавршавање запослених",0]
[5235,426400,"Материјали за саобраћај",0]
[5236,426500,"Материјали за очување животне средине и науку",{"$f":"SUM(E95:J95)","v":0}]
[5237,426600,"Материјали за образовање, културу и спорт",0]
[5238,426700,"Медицински и лабораторијски материјали",0]
[5239,426800,"Материјали за одржавање хигијене и угоститељство",0]
[5240,426900,"Материјали за посебне намене",0]
[5241,430000,"АМОРТИЗАЦИЈА И УПОТРЕБА СРЕДСТАВА ЗА РАД (5242 + 5246 + 5248 + 5250 + 5254)",0,{"$f":"E101+E105+E107+E109+E113","v":0},0,0,0,0,0]
[5242,431000,"АМОРТИЗАЦИЈА НЕКРЕТНИНА И ОПРЕМЕ (од 5243 до 5245)",0,{"$f":"SUM(E102:E104)","v":0},0,0,0,0,0]
[5243,431100,"Амортизација зграда и грађевинскиx објеката",0]
[5244,431200,"Амортизација опреме",0]
[5245,431300,"Амортизација осталих некретнина и опреме",0]
[5246,432000,"АМОРТИЗАЦИЈА КУЛТИВИСАНЕ ИМОВИНЕ (5247)",0,{"$f":"E106","v":0},0,0,0,0,0]
[5247,432100,"Амортизација култивисане опреме",0]
[5248,433000,"УПОТРЕБА ДРАГОЦЕНОСТИ (5249)",0,{"$f":"E108","v":0},0,0,0,0,0]
[5249,433100,"Употреба драгоцености",0]
[5250,434000,"УПОТРЕБА ПРИРОДНЕ ИМОВИНЕ (од 5251 до 5253)",0,{"$f":"SUM(E110:E112)","v":0},0,0,0,0,0]
[5251,434100,"Употреба земљишта",0]
[5252,434200,"Употреба подземног блага",0]
[5253,434300,"Употреба шума и вода",0]
[5254,435000,"АМОРТИЗАЦИЈА НЕМАТЕРИЈАЛНЕ ИМОВИНЕ (5255)",0,{"$f":"E114","v":0},0,0,0,0,0]
[5255,435100,"Амортизација нематеријалне имовине",0]
[5256,440000,"ОТПЛАТА КАМАТА И ПРАТЕЋИ ТРОШКОВИ ЗАДУЖИВАЊА (5257 + 5267 + 5274 + 5276)",0,{"$f":"E116+E126+E133+E135","v":0},0,0,0,0,0]
[5257,441000,"ОТПЛАТЕ ДОМАЋИХ КАМАТА (од 5258 до 5266)",0,{"$f":"SUM(E117:E125)","v":0},0,0,0,0,0]
[5258,441100,"Отплата камата на домаће хартије од вредности",0]
[5259,441200,"Отплата камата осталим нивоима власти",0]
[5260,441300,"Отплата камата домаћим јавним финансијским институцијама",0]
[5261,441400,"Отплата камата домаћим пословним банкама",0]
[5262,441500,"Отплата камата осталим домаћим кредиторима",0]
[5263,441600,"Отплата камата домаћинствима у земљи",0]
[5264,441700,"Отплата камата на домаће финансијске деривате",0]
[5265,441800,"Отплата камата на домаће менице",0]
[5266,441900,"Финансијске промене на финансијским лизинзима",0]
[5267,442000,"ОТПЛАТА СТРАНИХ КАМАТА (од 5268 до 5273)",0,{"$f":"SUM(E127:E132)","v":0},0,0,0,0,0]
[5268,442100,"Отплата камата на хартије од вредности емитоване на иностраном финансијском тржишту",0]
[5269,442200,"Отплата камата страним владама",0]
[5270,442300,"Отплата камата мултилатералним институцијама",0]
[5271,442400,"Отплата камата страним пословним банкама",0]
[5272,442500,"Отплата камата осталим страним кредиторима",0]
[5273,442600,"Отплата камата на стране финансијске деривате",0]
[5274,443000,"ОТПЛАТА КАМАТА ПО ГАРАНЦИЈАМА (5275)",0,{"$f":"E134","v":0},0,0,0,0,0]
[5275,443100,"Отплата камата по гаранцијама",0]
[5276,444000,"ПРАТЕЋИ ТРОШКОВИ ЗАДУЖИВАЊА (од 5277 до 5279)",0,{"$f":"SUM(E136:E138)","v":0},0,0,0,0,0]
[5277,444100,"Негативне курсне разлике",0]
[5278,444200,"Казне за кашњење",0]
[5279,444300,"Остали пратећи трошкови задуживања",0]
[5280,450000,"СУБВЕНЦИЈЕ (5281 + 5284 + 5287 + 5290)",0,{"$f":"E140+E143+E146+E149","v":0},0,0,0,0,0]
[5281,451000,"СУБВЕНЦИЈЕ ЈАВНИМ НЕФИНАНСИЈСКИМ ПРЕДУЗЕЋИМА И ОРГАНИЗАЦИЈАМА (5282 + 5283)",0,{"$f":"E141+E142","v":0},0,0,0,0,0]
[5282,451100,"Текуће субвенције јавним нефинансијским предузећима и организацијама",0]
[5283,451200,"Капиталне субвенције јавним нефинансијским предузећима и организацијама",0]
[5284,452000,"СУБВЕНЦИЈЕ ПРИВАТНИМ ФИНАНСИЈСКИМ ИНСТИТУЦИЈАМА (5285 + 5286)",0,{"$f":"E144+E145","v":0},0,0,0,0,0]
[5285,452100,"Текуће субвенције приватним финансијским институцијама",0]
[5286,452200,"Капиталне субвенције приватним финансијским институцијама",0]
[5287,453000,"СУБВЕНЦИЈЕ ЈАВНИМ ФИНАНСИЈСКИМ ИНСТИТУЦИЈАМА (5288 + 5289)",0,{"$f":"E147+E148","v":0},0,0,0,0,0]
[5288,453100,"Текуће субвенције јавним финансијским институцијама",0]
[5289,453200,"Капиталне субвенције јавним финансијским институцијама",0]
[5290,454000,"СУБВЕНЦИЈЕ ПРИВАТНИМ ПРЕДУЗЕЋИМА (5291 + 5292)",0,{"$f":"E150+E151","v":0},0,0,0,0,0]
[5291,454100,"Текуће субвенције приватним предузећима",0]
[5292,454200,"Капиталне субвенције приватним предузећима",0]
[5293,460000,"ДОНАЦИЈЕ, ДОТАЦИЈЕ И ТРАНСФЕРИ (5294 + 5297 + 5300 + 5303 + 5306)",0,{"$f":"E153+E156+E159+E162+E165","v":0},0,0,0,0,0]
[5294,461000,"ДОНАЦИЈЕ СТРАНИМ ВЛАДАМА (5295 + 5296)",0,{"$f":"E154+E155","v":0},0,0,0,0,0]
[5295,461100,"Текуће донације страним владама",0]
[5296,461200,"Капиталне донације страним владама",0]
[5297,462000,"ДОТАЦИЈЕ МЕЂУНАРОДНИМ ОРГАНИЗАЦИЈАМА (5298 + 5299)",0,{"$f":"E157+E158","v":0},0,0,0,0,0]
[5298,462100,"Текуће дотације међународним организацијама",0]
[5299,462200,"Капиталне дотације међународним организацијама",0]
[5300,463000,"ТРАНСФЕРИ ОСТАЛИМ НИВОИМА ВЛАСТИ (5301 + 5302)",{"$f":"SUM(E159:J159)","v":0},{"$f":"E160+E161","v":0},0,0,0,0,0]
[5301,463100,"Текући трансфери осталим нивоима власти",0]
[5302,463200,"Капитални трансфери осталим нивоима власти",0]
[5303,464000,"ДОТАЦИЈЕ ОРГАНИЗАЦИЈАМА ОБАВЕЗНОГ СОЦИЈАЛНОГ ОСИГУРАЊА (5304 + 5305)",0,{"$f":"E163+E164","v":0},0,0,0,0,0]
[5304,464100,"Текуће дотације организацијама обавезног социјалног осигурања",0]
[5305,464200,"Капиталне дотације организацијама обавезног социјалног осигурања",0]
[5306,465000,"ОСТАЛЕ ДОТАЦИЈЕ И ТРАНСФЕРИ (5307 + 5308)",0,{"$f":"E166+E167","v":0},0,0,0,0,0]
[5307,465100,"Остале текуће дотације и трансфери",0]
[5308,465200,"Остале капиталне дотације и трансфери",0]
[5309,470000,"СОЦИЈАЛНО ОСИГУРАЊЕ И СОЦИЈАЛНА ЗАШТИТА (5310 + 5314)",0,{"$f":"E169+E173","v":0},0,0,0,0,0]
[5310,471000,"ПРАВА ИЗ СОЦИЈАЛНОГ ОСИГУРАЊА (ОРГАНИЗАЦИЈЕ ОБАВЕЗНОГ СОЦИЈАЛНОГ ОСИГУРАЊА) (од 5311 до 5313)",0,{"$f":"SUM(E170:E172)","v":0},0,0,0,0,0]
[5311,471100,"Права из социјалног осигурања која се исплаћују непосредно домаћинствима",0]
[5312,471200,"Права из социјалног осигурања која се исплаћују непосредно пружаоцима услуга",0]
[5313,471900,"Трансфери другим организацијама обавезног социјалног осигурања за доприносе за осигурање",0]
[5314,472000,"НАКНАДЕ ЗА СОЦИЈАЛНУ ЗАШТИТУ ИЗ БУЏЕТА (од 5315 до 5323)",0,{"$f":"SUM(E174:E182)","v":0},0,0,0,0,0]
[5315,472100,"Накнаде из буџета у случају болести и инвалидности",0]
[5316,472200,"Накнаде из буџета за породиљско одсуство",0]
[5317,472300,"Накнаде из буџета за децу и породицу",0]
[5318,472400,"Накнаде из буџета за случај незапослености",0]
[5319,472500,"Старосне и породичне пензије из буџета",0]
[5320,472600,"Накнаде из буџета у случају смрти",0]
[5321,472700,"Накнаде из буџета за образовање, културу, науку и спорт",0]
[5322,472800,"Накнаде из буџета за становање и живот",0]
[5323,472900,"Остале накнаде из буџета",0]
[5324,480000,"ОСТАЛИ РАСХОДИ (5325 + 5328 + 5332 + 5334 + 5337 + 5339)",0,{"$f":"E184+E187+E191+E193+E196+E198","v":0},0,0,0,0,0]
[5325,481000,"ДОТАЦИЈЕ НЕВЛАДИНИМ ОРГАНИЗАЦИЈАМА (5326 + 5327)",0,{"$f":"E185+E186","v":0},0,0,0,0,0]
[5326,481100,"Дотације непрофитним организацијама које пружају помоћ домаћинствима",0]
[5327,481900,"Дотације осталим непрофитним институцијама",0]
[5328,482000,"ПОРЕЗИ, ОБАВЕЗНЕ ТАКСЕ, КАЗНЕ, ПЕНАЛИ И КАМАТЕ (од 5329 до 5331)",0,{"$f":"SUM(E188:E190)","v":0},0,0,0,0,0]
[5329,482100,"Остали порези",0]
[5330,482200,"Обавезне таксе",0]
[5331,482300,"Новчане казне, пенали и камате",0]
[5332,483000,"НОВЧАНЕ КАЗНЕ И ПЕНАЛИ ПО РЕШЕЊУ СУДОВА (5333)",0,{"$f":"E192","v":0},0,0,0,0,0]
[5333,483100,"Новчане казне и пенали по решењу судова",0]
[5334,484000,"НАКНАДА ШТЕТЕ ЗА ПОВРЕДЕ ИЛИ ШТЕТУ НАСТАЛУ УСЛЕД ЕЛЕМЕНТАРНИХ НЕПОГОДА ИЛИ ДРУГИХ ПРИРОДНИХ УЗРОКА (5335 + 5336)",0,{"$f":"E194+E195","v":0},0,0,0,0,0]
[5335,484100,"Накнада штете за повреде или штету насталу услед елементарних непогода",0]
[5336,484200,"Накнада штете од дивљачи",0]
[5337,485000,"НАКНАДА ШТЕТЕ ЗА ПОВРЕДЕ ИЛИ ШТЕТУ НАНЕТУ ОД СТРАНЕ ДРЖАВНИХ ОРГАНА (5338)",0,{"$f":"E197","v":0},0,0,0,0,0]
[5338,485100,"Накнада штете за повреде или штету нанетих од стране државних органа",0]
[5339,489000,"РАСХОДИ КОЈИ СЕ ФИНАНСИРАЈУ ИЗ СРЕДСТАВА ЗА РЕАЛИЗАЦИЈУ НАЦИОНАЛНОГ ИНВЕСТИЦИОНОГ ПЛАНА (5340)",0,{"$f":"E199","v":0},0,0,0,0,0]
[5340,489100,"Расходи који се финансирају из средстава за реализацију националног инвестиционог плана",0]
[5341,500000,"ИЗДАЦИ ЗА НЕФИНАНСИЈСКУ ИМОВИНУ (5342 + 5364 + 5373 + 5376 + 5384)",0,{"$f":"E201+E223+E232+E235+E243","v":0},0,0,0,0,0]
[5342,510000,"ОСНОВНА СРЕДСТВА (5343 + 5348 + 5358 + 5360 + 5362)",0,{"$f":"E202+E207+E217+E219+E221","v":0},0,0,0,0,0]
[5343,511000,"ЗГРАДЕ И ГРАЂЕВИНСКИ ОБЈЕКТИ (од 5344 до 5347)",0,{"$f":"SUM(E203:E206)","v":0},0,0,0,0,0]
[5344,511100,"Куповина зграда и објеката",0]
[5345,511200,"Изградња зграда и објеката",0]
[5346,511300,"Капитално одржавање зграда и објеката",0]
[5347,511400,"Пројектно планирање",0]
[5348,512000,"МАШИНЕ И ОПРЕМА (од 5349 до 5357)",0,{"$f":"SUM(E208:E216)","v":0},0,0,0,0,0]
[5349,512100,"Опрема за саобраћај",0]
[5350,512200,"Административна опрема",0]
[5351,512300,"Опрема за пољопривреду",0]
[5352,512400,"Опрема за заштиту животне средине",0]
[5353,512500,"Медицинска и лабораторијска опрема",0]
[5354,512600,"Опрема за образовање, културу и спорт",0]
[5355,512700,"Опрема за војску",0]
[5356,512800,"Опрема за јавну безбедност",0]
[5357,512900,"Опрема за производњу, моторна, непокретна и немоторна опрема",0]
[5358,513000,"ОСТАЛЕ НЕКРЕТНИНЕ И ОПРЕМА (5359)",0,{"$f":"E218","v":0},0,0,0,0,0]
[5359,513100,"Остале некретнине и опрема",0]
[5360,514000,"КУЛТИВИСАНА ИМОВИНА (5361)",0,{"$f":"E220","v":0},0,0,0,0,0]
[5361,514100,"Култивисана имовина",0]
[5362,515000,"НЕМАТЕРИЈАЛНА ИМОВИНА (5363)",0,{"$f":"E222","v":0},0,0,0,0,0]
[5363,515100,"Нематеријална имовина",0]
[5364,520000,"ЗАЛИХЕ (5365 + 5367 + 5371)",{"$f":"SUM(E223:J223)","v":0},{"$f":"E224+E226+E230","v":0},0,0,0,0,0]
[5365,521000,"РОБНЕ РЕЗЕРВЕ (5366)",0,{"$f":"E225","v":0},0,0,0,0,0]
[5366,521100,"Робне резерве",0]
[5367,522000,"ЗАЛИХЕ ПРОИЗВОДЊЕ (од 5368 до 5370)",0,{"$f":"SUM(E227:E229)","v":0},0,0,0,0,0]
[5368,522100,"Залихе материјала",0]
[5369,522200,"Залихе недовршене производње",0]
[5370,522300,"Залихе готових производа",0]
[5371,523000,"ЗАЛИХЕ РОБЕ ЗА ДАЉУ ПРОДАЈУ (5372)",0,{"$f":"E231","v":0},0,0,0,0,0]
[5372,523100,"Залихе робе за даљу продају",0]
[5373,530000,"ДРАГОЦЕНОСТИ (5374)",0,{"$f":"E233","v":0},0,0,0,0,0]
[5374,531000,"ДРАГОЦЕНОСТИ (5375)",0,0,0,0,0,0,0]
[5375,531100,"Драгоцености",0]
[5376,540000,"ПРИРОДНА ИМОВИНА (5377 + 5379 + 5381)",0,{"$f":"E236+E238+E240","v":0},0,0,0,0,0]
[5377,541000,"ЗЕМЉИШТЕ (5378)",0,{"$f":"E237","v":0},0,0,0,0,0]
[5378,541100,"Земљиште",0]
[5379,542000,"РУДНА БОГАТСТВА (5380)",0,{"$f":"E239","v":0},0,0,0,0,0]
[5380,542100,"Копови",0]
[5381,543000,"ШУМЕ И ВОДЕ (5382 + 5383)",0,{"$f":"E241+E242","v":0},0,0,0,0,0]
[5382,543100,"Шуме",0]
[5383,543200,"Воде",0]
[5384,550000,"НЕФИНАНСИЈСКА ИМОВИНА КОЈА СЕ ФИНАНСИРА ИЗ СРЕДСТАВА ЗА РЕАЛИЗАЦИЈУ НАЦИОНАЛНОГ ИНВЕСТИЦИОНОГ ПЛАНА (5385)",0,{"$f":"E244","v":0},0,0,0,0,0]
[5385,551000,"НЕФИНАНСИЈСКА ИМОВИНА КОЈА СЕ ФИНАНСИРА ИЗ СРЕДСТАВА ЗА РЕАЛИЗАЦИЈУ НАЦИОНАЛНОГ ИНВЕСТИЦИОНОГ ПЛАНА (5386)",0,0,0,0,0,0,0]
[5386,551100,"Нефинансијска имовина која се финансира из средстава за реализацију националног инвестиционог плана",0]
[5387,600000,"ИЗДАЦИ ЗА ОТПЛАТУ ГЛАВНИЦЕ И НАБАВКУ ФИНАНСИЈСКЕ ИМОВИНЕ (5388 + 5413)",0,{"$f":"E247+E272","v":0},0,0,0,0,0]
[5388,610000,"ОТПЛАТА ГЛАВНИЦЕ (5389 + 5399 + 5407 + 5409 + 5411)",0,{"$f":"E248+E258+E266+E268+E270","v":0},0,0,0,0,0]
[5389,611000,"ОТПЛАТА ГЛАВНИЦЕ ДОМАЋИМ КРЕДИТОРИМА (од 5390 до 5398)",0,{"$f":"SUM(E249:E257)","v":0},0,0,0,0,0]
[5390,611100,"Отплата главнице на домаће хартије од вредности, изузев акција",0]
[5391,611200,"Отплата главнице осталим нивоима власти",0]
[5392,611300,"Отплата главнице домаћим јавним финансијским институцијама",0]
[5393,611400,"Отплата главнице домаћим пословним банкама",0]
[5394,611500,"Отплата главнице осталим домаћим кредиторима",0]
[5395,611600,"Отплата главнице домаћинствима у земљи",0]
[5396,611700,"Отплата главнице на домаће финансијске деривате",0]
[5397,611800,"Отплата домаћих меница",0]
[5398,611900,"Исправка унутрашњег дуга",0]
[5399,612000,"ОТПЛАТА ГЛАВНИЦЕ СТРАНИМ КРЕДИТОРИМА (од 5400 до 5406)",0,{"$f":"SUM(E259:E265)","v":0},0,0,0,0,0]
[5400,612100,"Отплата главнице на хартије од вредности, изузев акција, емитоване на иностраном финансијском тржишту",0]
[5401,612200,"Отплата главнице страним владама",0]
[5402,612300,"Отплата главнице мултилатералним институцијама",0]
[5403,612400,"Отплате главнице страним пословним банкама",0]
[5404,612500,"Отплате главнице осталим страним кредиторима",0]
[5405,612600,"Отплата главнице на стране финансијске деривате",0]
[5406,612900,"Исправка спољног дуга",0]
[5407,613000,"ОТПЛАТА ГЛАВНИЦЕ ПО ГАРАНЦИЈАМА (5408)",0,{"$f":"E267","v":0},0,0,0,0,0]
[5408,613100,"Отплата главнице по гаранцијама",0]
[5409,614000,"ОТПЛАТА ГЛАВНИЦЕ ЗА ФИНАНСИЈСКИ ЛИЗИНГ (5410)",0,{"$f":"E269","v":0},0,0,0,0,0]
[5410,614100,"Отплата главнице за финансијски лизинг",0]
[5411,615000,"ОТПЛАТА ГАРАНЦИЈА ПО КОМЕРЦИЈАЛНИМ ТРАНСАКЦИЈАМА (5412)",0,0,0,0,0,0,0]
[5412,615100,"Отплата гаранција по комерцијалним трансакцијама",0]
[5413,620000,"НАБАВКА ФИНАНСИЈСКЕ ИМОВИНЕ (5414 + 5424 + 5433)",0,{"$f":"E273+E283+E292","v":0},0,0,0,0,0]
[5414,621000,"НАБАВКА ДОМАЋЕ ФИНАНСИЈСКЕ ИМОВИНЕ (од 5415 до 5423)",0,{"$f":"SUM(E274:E282)","v":0},0,0,0,0,0]
[5415,621100,"Набавка домаћих хартија од вредности, изузев акција",0]
[5416,621200,"Кредити осталим нивоима власти",0]
[5417,621300,"Кредити домаћим јавним финансијским институцијама",0]
[5418,621400,"Кредити домаћим пословним банкама",0]
[5419,621500,"Кредити домаћим нефинансијским јавним институцијама",0]
[5420,621600,"Кредити физичким лицима и домаћинствима у земљи",0]
[5421,621700,"Кредити невладиним организацијама у земљи",0]
[5422,621800,"Кредити домаћим нефинансијским приватним предузећима",0]
[5423,621900,"Набавка домаћих акција и осталог капитала",0]
[5424,622000,"НАБАВКА СТРАНЕ ФИНАНСИЈСКЕ ИМОВИНЕ (од 5425 до 5432)",0,{"$f":"SUM(E284:E291)","v":0},0,0,0,0,0]
[5425,622100,"Набавка страних хартија од вредности, изузев акција",0]
[5426,622200,"Кредити страним владама",0]
[5427,622300,"Кредити међународним организацијама",0]
[5428,622400,"Кредити страним пословним банкама",0]
[5429,622500,"Кредити страним нефинансијским институцијама",0]
[5430,622600,"Кредити страним невладиним организацијама",{"$f":"SUM(E289:J289)","v":0}]
[5431,622700,"Набавка страних акција и осталог капитала",0]
[5432,622800,"Куповина стране валуте",0]
[5433,623000,"НАБАВКА ФИНАНСИЈСКЕ ИМОВИНЕ КОЈА СЕ ФИНАНСИРА ИЗ СРЕДСТАВА ЗА РЕАЛИЗАЦИЈУ НАЦИОНАЛНОГ ИНВЕСТИЦИОНОГ ПЛАНА (5434)",0,{"$f":"E293","v":0},0,0,0,0,0]
[5434,623100,"Набавка финансијске имовине која се финансира из средстава за реализацију националног инвестиционог плана ",0]
[5435,null,"УКУПНИ РАСХОДИ И ИЗДАЦИ (5172 + 5387)",0,{"$f":"E31+E246","v":0},0,0,0,0,0]
[]
["НАПОМЕНА: Здравствене установе исказују коришћени нераспоређени вишак прихода и примања из ранијих година (извор финансирања 13 у складу са класификацијом извора финансирања)"]
[]
[]
["Саставио:",null,null,null,null,null,null,"Директор здравствене установе:"]
["__________________________________",null,null,null,null,null,null,"______________________________________"]

{"sheet":"KontrolaF","index":18,"n_rows":30,"n_cols":8,"rows_kept":30,"cut":false,"hidden":false,"merged":[[0,6,0,7],[29,3,29,5],[11,3,11,5],[21,3,21,5]]}
["Matični broj","Naziv ustanove","R.Br.",null,null,null,"Odstupanja"]
[{"$f":"MaticniBroj","v":"08062463"},{"$f":"NazivKorisnika","v":"ДОМ ЗДРАВЉА ЖАБАЉ"},null,null,1,null,"u 000 decimal","u 000 din"]
[null,null,null,null,"u decimal din","u 000 din"]
[null,null,"2","4712 iz CB                                                   --->",null,{"$f":"ROUND(E4/1000,5)","v":0}]
[]
[null,null,"3","7811 iz OZPR","--->",{"$f":"OZPR!J31","v":984}]
[]
[null,null,"4","ZBIR = 2 + 3",null,{"$f":"F4+F6","v":984}]
[]
[null,null,"5","781100 iz obrasca 5","--->",{"$f":"Obrazac5!I138","v":265495}]
[]
[null,null,"6","RAZLIKA = 4 - 5",null,null,{"$f":"F8-F10","v":-264511},{"$f":"G12","v":-264511}]
[]
[null,null,"7","PRERAČUNATI PDV","--->"]
[]
[null,null,"8","PDV iz participacije","--->",{"$f":"OZPR!E31*0.1","v":0}]
[]
[null,null,"9","ZBIR = 7 + 8",null,{"$f":"F14+F16","v":0}]
[]
[null,null,"10","PDV iz K9","--->",{"$f":"K9OOSO!E22","v":0}]
[]
[null,null,"11","Odstupanje = 9 - 10",null,null,{"$f":"F18-F20","v":0},{"$f":"Odstupanje_1","v":0}]
[]
[null,null,"12","Asignacije","--->",0]
[]
[null,null,"13","Realizovane asignacije iz prethodne godine","--->",0]
[]
[null,null,"14","Obrazloženo odstupanje","--->",0]
[]
[null,null,"15","Konačno odstupanje =  11 - 12 - 13 - 14",null,null,{"$f":"H22-F24-F26-F28","v":0},{"$f":"G30","v":0}]

{"sheet":"Kontrola","index":19,"n_rows":4,"n_cols":1,"rows_kept":4,"cut":false,"hidden":false,"merged":[]}
["Logicka Kontrola"]
[]
["Nema gresaka!!!!!"]
["Kraj kontrole"]